Workbook

Sheet Nevek (hidden)
A1: Élzárás 42/2mm ABS élműanyaggal munkadíj /fm | B1: Elzaras_42_2_nagyker | C1: =VLOOKUP(A1,Data!$E$1:$AZ$25999,8,0) -> 350
A2: Munkalap élzárás 2mm vastag élzáróanyaggal | B2: Elzaras_munkalap_kisker | C2: 1000
A3: Lapszabás Hátfallemez /m² | B3: Lapsz_HDF | C3: =VLOOKUP(A3,Data!$E$1:$AZ$25999,7,0) -> 1500
A4: Lapszabás Hátfallemez /m² | B4: Lapsz_HDF_nk | C4: =VLOOKUP(A4,Data!$E$1:$AZ$25999,8,0) -> 1600
A5: Lapszabás Bútorlap /m² | B5: Lapsz_vastag | C5: =VLOOKUP(A5,Data!$E$1:$AZ$25999,7,0) -> 3000
A6: Lapszabás Bútorlap kis tábla /tbl | B6: Lapsz_vastag_kis | C6: =VLOOKUP(A6,Data!$E$1:$AZ$25999,7,0) -> 8000
A7: Lapszabás Bútorlap kis tábla /tbl | B7: Lapsz_vastag_kis_nk | C7: =VLOOKUP(A7,Data!$E$1:$AZ$25999,8,0) -> 6000
A8: Lapszabás Bútorlap /m² | B8: Lapsz_vastag_nk | C8: =VLOOKUP(A8,Data!$E$1:$AZ$25999,8,0) -> 1800
A9: Éldekorozás /fm | B9: Munkalap_eldekorozas_kisker | C9: 1200
A10: 36mm vastag lap elkészítése ragasztással /m² | B10: Dupla_ragasztas | C10: =VLOOKUP(A10,Data!$E$1:$AZ$25999,7,0) -> 4000
A11: Élzárás 22/0,4mm ABS élműanyaggal munkadíj /fm | B11: Elzaras_22_04_kisker | C11: =VLOOKUP(A11,Data!$E$1:$AZ$25999,7,0) -> 350
A12: Élzárás 22/0,4mm ABS élműanyaggal munkadíj /fm | B12: Elzaras_22_04_nagyker | C12: =VLOOKUP(A12,Data!$E$1:$AZ$25999,8,0) -> 85
A13: Élzárás 22/0,8mm ABS élműanyaggal munkadíj /fm | B13: Elzaras_22_08_kisker | C13: =VLOOKUP(A13,Data!$E$1:$AZ$25999,7,0) -> 400
A14: Élzárás 22/0,8mm ABS élműanyaggal munkadíj /fm | B14: Elzaras_22_08_nagyker | C14: =VLOOKUP(A14,Data!$E$1:$AZ$25999,8,0) -> 120
A15: Élzárás 22/2mm ABS élműanyaggal munkadíj /fm | B15: Elzaras_22_2_kisker | C15: =VLOOKUP(A15,Data!$E$1:$AZ$25999,7,0) -> 450
A16: Élzárás 22/2mm ABS élműanyaggal munkadíj /fm | B16: Elzaras_22_2_nagyker | C16: =VLOOKUP(A16,Data!$E$1:$AZ$25999,8,0) -> 150
A17: Élzárás 28/2mm ABS élműanyaggal munkadíj /fm | B17: Elzaras_28_2_kisker | C17: =VLOOKUP(A17,Data!$E$1:$AZ$25999,7,0) -> 650
A18: Élzárás 28/2mm ABS élműanyaggal munkadíj /fm | B18: Elzaras_28_2_nagyker | C18: =VLOOKUP(A18,Data!$E$1:$AZ$25999,8,0) -> 200
A19: Élzárás 42/2mm ABS élműanyaggal munkadíj /fm | B19: Elzaras_42_2_kisker | C19: =VLOOKUP(A19,Data!$E$1:$AZ$25999,7,0) -> 900
A20: 36mm vastag lap elkészítése ragasztással /m² | B20: Dupla_ragasztas1m | C20: =VLOOKUP(A20,Data!$E$1:$AZ$25999,7,0) -> 4000
A21: 36mm vastag lap elkészítése ragasztással /m² | B21: Dupla_ragasztas2m | C21: =VLOOKUP(A21,Data!$E$1:$AZ$25999,7,0) -> 4000
A22: 36mm vastag lap elkészítése ragasztással /m² | B22: Dupla_ragasztas2mplusz | C22: =VLOOKUP(A22,Data!$E$1:$AZ$25999,7,0) -> 4000
A23: 36mm vastag lap elkészítése ragasztással /m² | B23: Dupla_ragasztas_m2 | C23: =VLOOKUP(A23,Data!$E$1:$AZ$25999,7,0) -> 4000
A24: Üveg csiszolás 10mm /fm | B24: Uveg_csisz_10 | C24: =VLOOKUP(A24,Data!$E$1:$AZ$25999,7,0) -> 2700
A25: Üveg csiszolás 3mm /fm | B25: Uveg_csisz_3 | C25: =VLOOKUP(A25,Data!$E$1:$AZ$25999,7,0) -> 1200
A26: Üveg csiszolás 4mm /fm | B26: Uveg_csisz_4 | C26: =VLOOKUP(A26,Data!$E$1:$AZ$25999,7,0) -> 1500
A27: Üveg csiszolás 5mm /fm | B27: Uveg_csisz_5 | C27: =VLOOKUP(A27,Data!$E$1:$AZ$25999,7,0) -> 1800
A28: Üveg csiszolás 6mm /fm | B28: Uveg_csisz_6 | C28: =VLOOKUP(A28,Data!$E$1:$AZ$25999,7,0) -> 2250
A29: Üveg csiszolás 8mm /fm | B29: Uveg_csisz_8 | C29: =VLOOKUP(A29,Data!$E$1:$AZ$25999,7,0) -> 2400
A30: Üveg fazettázás /fm | B30: Uveg_faz_20 | C30: =VLOOKUP(A30,Data!$E$1:$AZ$25999,7,0) -> 4500
A31: Üveg zámolás /fm | B31: Uveg_zam | C31: =VLOOKUP(A31,Data!$E$1:$AZ$25999,7,0) -> 400
A32: Munkalap méretrevágás | B32: Munkalap_vagas_kisker | C32: =VLOOKUP(A32,Data!$E$1:$AZ$25999,7,0) -> 2200
A33: Munkalap méretrevágás | B33: Munkalap_vagas_nk | C33: =VLOOKUP(A33,Data!$E$1:$AZ$25999,8,0) -> 550
A34: Éldekorozás /fm | B34: Munkalap_eldekorozas_nk | C34: =VLOOKUP(A34,Data!$E$1:$AZ$25999,8,0) -> 1400
A35: Munkalap élzárás 2mm vastag élzáróanyaggal | B35: Elzaras_munkalap_nk | C35: =VLOOKUP(A35,Data!$E$1:$AZ$25999,8,0) -> 1400
A36: Élzárás 22/0,6mm élfurnérral munkadíj /fm | B36: Elzaras_elfurner_kisker | C36: =VLOOKUP(A36,Data!$E$1:$AZ$25999,7,0) -> 500
A37: Élzárás 22/0,6mm élfurnérral munkadíj /fm | B37: Elzaras_elfurner_nk | C37: =VLOOKUP(A37,Data!$E$1:$AZ$25999,8,0) -> 150
A38: Élzárás 22/2mm élléccel munkadíj /fm | B38: Elzaras_ellec_22_2_kisker | C38: =VLOOKUP(A38,Data!$E$1:$AZ$25999,7,0) -> 650
A39: Élzárás 22/2mm élléccel munkadíj /fm | B39: Elzaras_ellec_22_2_nk | C39: =VLOOKUP(A39,Data!$E$1:$AZ$25999,8,0) -> 300
A40: Élzárás 42/1mm ABS élműanyaggal munkadíj /fm | B40: Elzaras_42_1_kisker | C40: =VLOOKUP(A40,Data!$E$1:$AZ$25999,7,0) -> 650
A41: Élzárás 42/0,4mm ABS élműanyaggal munkadíj /fm | B41: Elzaras_42_04_kisker | C41: =VLOOKUP(A41,Data!$E$1:$AZ$25999,7,0) -> 600

Sheet Data (hidden)
E8: 1 | F8: 2 | G8: 3 | H8: 4 | I8: 5 | J8: 6 | K8: 7 | L8: 8 | M8: 9 | N8: 10 | O8: 11 | P8: 12 | Q8: 13 | R8: 14 | S8: 15 | T8: 16 | U8: 17 | V8: 18 | W8: 19 | X8: 20 | Y8: 21 | Z8: 22 | AA8: 23 | AB8: 24
B10: UNI | C10: MINTA | D10: Kronospan | E10: 0162 PE | F10: Laminált forgácslapok | G10: 18mm | H10: 2800X2070mm | I10: Grafit szürke | J10: Tbl | K10: 29860 | L10: 24860 | M10: 22860 | N10: HU 172162 | O10: 275 FS02 | P10: Alap szín | Q10: Enyhén recés | R10: 164 HDF | S10: 2800 | T10: 2070 | U10: Nincs javaslat | V10: 7144.099379 | W10: 8665 | X10: 6964.099379 | Y10: 6944.099379 | Z10: 3944.099379 | AA10: B0120 | AB10: Nincs | AC10: Nincs | AD10: 3200 | AE10: 4720 | AF10: 3020 | AG10: 3000 | AH10: 8664.099379 | AI10: Szabott laptermék | AJ10: 5.796
B11: UNI | D11: Kronospan | E11: 0166 BS | F11: Laminált forgácslapok | G11: 18mm | H11: 2800X2070mm | I11: Bazalt | J11: Tbl | K11: 29860 | L11: 24860 | M11: 22860 | N11: HU 172166 | O11: 276 FS15 | P11: Alap szín | Q11: Sík, selyemfényű | R11: 164 HDF | S11: 2800 | T11: 2070 | U11: Nincs javaslat | V11: 7144.099379 | W11: 8665 | X11: 6964.099379 | Y11: 6944.099379 | Z11: 3944.099379 | AA11: B0030 | AB11: Nincs | AC11: Nincs | AD11: 3200 | AE11: 4720 | AF11: 3020 | AG11: 3000 | AH11: 8664.099379 | AI11: Szabott laptermék | AJ11: 5.796
B12: UNI | C12: MINTA | D12: Kronospan | E12: 0197 SU | F12: Laminált forgácslapok | G12: 18mm | H12: 2800X2070mm | I12: Csincsilla szürke | J12: Tbl | K12: 29860 | L12: 24860 | M12: 22860 | N12: HU 170197 | O12: Nincs | P12: Alap szín | Q12: Enyhén recés | R12: 540 HDF | S12: 2800 | T12: 2070 | U12: Nincs javaslat | V12: 7144.099379 | W12: 8665 | X12: 6964.099379 | Y12: 6944.099379 | Z12: 3944.099379 | AA12: B0120 | AB12: Nincs | AC12: Nincs | AD12: 3200 | AE12: 4720 | AF12: 3020 | AG12: 3000 | AH12: 8664.099379 | AI12: Szabott laptermék | AJ12: 5.796
B13: Cseresznye-eger | D13: Kronospan | E13: 0344 BS | F13: Laminált forgácslapok | G13: 18mm | H13: 2800X2070mm | I13: Öreg cseresznye | J13: Tbl | K13: 27665.44 | L13: 22665.44 | M13: 20665.44 | N13: HD 220344 | O13: Nincs | P13: Kiemelt szín | Q13: Sík, selyemfényű | R13: 344 HDF | S13: 2800 | T13: 2070 | U13: Nincs javaslat | V13: 6565.465839 | W13: 8065 | X13: 6315.465839 | Y13: 6265.465839 | Z13: 3565.465839 | AA13: Nincs | AB13: Csavartakaró matrica Arden cseresznye 442 FS2 | AC13: Van | AD13: 3000 | AE13: 4500 | AF13: 2750 | AG13: 2700 | AH13: 8065.465839 | AI13: Szabott laptermék | AJ13: 5.796
B14: Juhar-nyir | C14: MINTA | D14: Kronospan | E14: 0375 BS | F14: Laminált forgácslapok | G14: 18mm | H14: 2800X2070mm | I14: Juhar (Kronospan) | J14: Tbl | K14: 27665.44 | L14: 22665.44 | M14: 20665.44 | N14: HD 261375 | O14: Nincs | P14: Kiemelt szín | Q14: Sík, selyemfényű | R14: 375 HDF | S14: 2800 | T14: 2070 | U14: Nincs javaslat | V14: 6565.465839 | W14: 8065 | X14: 6315.465839 | Y14: 6265.465839 | Z14: 3565.465839 | AA14: B4300 | AB14: Csavartakaró matrica Európai juhar 375 PR | AC14: Van | AD14: 3000 | AE14: 4500 | AF14: 2750 | AG14: 2700 | AH14: 8065.465839 | AI14: Szabott laptermék | AJ14: 5.796
B15: Bukk | D15: Kronospan | E15: 0381 BS | F15: Laminált forgácslapok | G15: 18mm | H15: 2800X2070mm | I15: Gőzölt bükk (Kronospan) | J15: Tbl | K15: 27665.44 | L15: 22665.44 | M15: 20665.44 | N15: HD 211381 | O15: Nincs | P15: Kiemelt szín | Q15: Sík, selyemfényű | R15: 381 HDF | S15: 2800 | T15: 2070 | U15: Nincs javaslat | V15: 6565.465839 | W15: 8065 | X15: 6315.465839 | Y15: 6265.465839 | Z15: 3565.465839 | AA15: B3000 | AB15: Csavartakaró matrica Bükk 381 PR | AC15: Van | AD15: 3000 | AE15: 4500 | AF15: 2750 | AG15: 2700 | AH15: 8065.465839 | AI15: Szabott laptermék | AJ15: 5.796
B16: UNI | C16: MINTA | D16: Kronospan | E16: 0522 PE | F16: Laminált forgácslapok | G16: 18mm | H16: 2800X2070mm | I16: Bézs (Kronospan) | J16: Tbl | K16: 28488.4 | L16: 23488.4 | M16: 21488.4 | N16: HU 12522 | O16: Nincs | P16: Alap szín | Q16: Enyhén recés | R16: 522 HDF | S16: 2800 | T16: 2070 | U16: Nincs javaslat | V16: 6907.453416 | W16: 8425 | X16: 6727.453416 | Y16: 6707.453416 | Z16: 3707.453416 | AA16: B0311 | AB16: Csavartakaró matrica Beige U522 PE | AC16: Nincs | AD16: 3200 | AE16: 4720 | AF16: 3020 | AG16: 3000 | AH16: 8427.453416 | AI16: Szabott laptermék | AJ16: 5.796
B17: UNI | C17: MINTA | D17: Kronospan | E17: 0540 PE | F17: Laminált forgácslapok | G17: 18mm | H17: 2800X2070mm | I17: Manhattan szürke | J17: Tbl | K17: 28488.4 | L17: 23488.4 | M17: 21488.4 | N17: HU 171700 | O17: Nincs | P17: Alap szín | Q17: Enyhén recés | R17: 540 HDF | S17: 2800 | T17: 2070 | U17: Nincs javaslat | V17: 6907.453416 | W17: 8425 | X17: 6727.453416 | Y17: 6707.453416 | Z17: 3707.453416 | AA17: B0120 | AB17: Csavartakaró matrica Manhattan szürke U540 PE | AC17: Nincs | AD17: 3200 | AE17: 4720 | AF17: 3020 | AG17: 3000 | AH17: 8427.453416 | AI17: Szabott laptermék | AJ17: 5.796
B18: UNI | C18: MINTA | D18: Kronospan | E18: 0564 PE | F18: Laminált forgácslapok | G18: 18mm | H18: 2800X2070mm | I18: Mandula | J18: Tbl | K18: 29860 | L18: 24860 | M18: 22860 | N18: HU 12564 | O18: Nincs | P18: Alap szín | Q18: Enyhén recés | R18: 522 HDF | S18: 2800 | T18: 2070 | U18: U216 ST9 | V18: 7144.099379 | W18: 8665 | X18: 6964.099379 | Y18: 6944.099379 | Z18: 3944.099379 | AA18: B0120 | AB18: Nincs | AC18: Nincs | AD18: 3200 | AE18: 4720 | AF18: 3020 | AG18: 3000 | AH18: 8664.099379 | AI18: Szabott laptermék | AJ18: 5.796
B19: Dio-mogyoro-gesztenye | D19: Kronospan | E19: 0729 BS | F19: Laminált forgácslapok | G19: 18mm | H19: 2800X2070mm | I19: Dió | J19: Tbl | K19: 28488.4 | L19: 23488.4 | M19: 21488.4 | N19: HD 28729 | O19: Nincs | P19: Alap szín | Q19: Sík, selyemfényű | R19: 729 HDF | S19: 2800 | T19: 2070 | U19: K020 PW | V19: 6907.453416 | W19: 8425 | X19: 6727.453416 | Y19: 6707.453416 | Z19: 3707.453416 | AA19: B5490 | AB19: Csavartakaró matrica Dió 729 PR | AC19: Van | AD19: 3200 | AE19: 4720 | AF19: 3020 | AG19: 3000 | AH19: 8427.453416 | AI19: Szabott laptermék | AJ19: 5.796
B20: UNI | C20: MINTA | D20: Falco | E20: 103 FS01 | F20: Laminált forgácslapok | G20: 18mm | H20: 2800X2070mm | I20: Frontfehér sima | J20: Tbl | K20: 23916.4 | L20: 18916.4 | M20: 16916.4 | N20: HU 10113 SM | O20: K101 SM | P20: Akciós fehér szín | Q20: Tükörsima | R20: 101 HDF | S20: 2800 | T20: 2070 | U20: Nincs javaslat | V20: 5018.63354 | W20: 6370 | X20: 5068.63354 | Y20: 5018.63354 | Z20: 2918.63354 | AA20: B0030 | AB20: Csavartakaró matrica Fehér sima D152 25db/ levél | AC20: Nincs | AD20: 2100 | AE20: 3450 | AF20: 2150 | AG20: 2100 | AH20: 6368.63354 | AI20: Szabott laptermék fehér | AJ20: 5.796
B21: UNI | C21: MINTA | D21: Falco | E21: 103 FS02 | F21: Laminált forgácslapok | G21: 18mm | H21: 2800X2070mm | I21: Frontfehér prégelt | J21: Tbl | K21: 23916.4 | L21: 18916.4 | M21: 16916.4 | N21: HU 10113 GY | O21: Nincs | P21: Kiemelt szín | Q21: Enyhén recés | R21: 101 HDF | S21: 2800 | T21: 2070 | U21: Nincs javaslat | V21: 5918.63354 | W21: 7420 | X21: 5668.63354 | Y21: 5618.63354 | Z21: 2918.63354 | AA21: B0030 | AB21: Csavartakaró matrica Fehér gyöngy K101 PE | AC21: Nincs | AD21: 3000 | AE21: 4500 | AF21: 2750 | AG21: 2700 | AH21: 7418.63354 | AI21: Szabott laptermék | AJ21: 5.796
B22: UNI | D22: Falco | E22: 105 FS01 | F22: Laminált forgácslapok | G22: 18mm | H22: 2800X2070mm | I22: Hófehér sima | J22: Tbl | K22: 27116.8 | L22: 22116.8 | M22: 20116.8 | N22: HU 10129 SM | O22: Nincs | P22: Kiemelt szín | Q22: Tükörsima | R22: 101 HDF | S22: 2800 | T22: 2070 | U22: Nincs javaslat | V22: 6470.807453 | W22: 7970 | X22: 6220.807453 | Y22: 6170.807453 | Z22: 3470.807453 | AA22: Nincs | AB22: Csavartakaró matrica Fehér sima D152 25db/ levél | AC22: Nincs | AD22: 3000 | AE22: 4500 | AF22: 2750 | AG22: 2700 | AH22: 7970.807453 | AI22: Szabott laptermék | AJ22: 5.796
B23: UNI | C23: MINTA | D23: Falco | E23: 105 FS02 | F23: Laminált forgácslapok | G23: 18mm | H23: 2800X2070mm | I23: Hófehér prégelt | J23: Tbl | K23: 27116.8 | L23: 22116.8 | M23: 20116.8 | N23: HU 10129 GY | O23: Nincs | P23: Kiemelt szín | Q23: Enyhén recés | R23: 101 HDF | S23: 2800 | T23: 2070 | U23: Nincs javaslat | V23: 6470.807453 | W23: 7970 | X23: 6220.807453 | Y23: 6170.807453 | Z23: 3470.807453 | AA23: B0030 | AB23: Csavartakaró matrica Fehér gyöngy K101 PE | AC23: Nincs | AD23: 3000 | AE23: 4500 | AF23: 2750 | AG23: 2700 | AH23: 7970.807453 | AI23: Szabott laptermék | AJ23: 5.796
B24: UNI | C24: MINTA | D24: Falco | E24: 105 FS22 | F24: Laminált forgácslapok | G24: 18mm | H24: 2800X2070mm | I24: Hófehér mély erezett | J24: Tbl | K24: 29402.8 | L24: 24402.8 | M24: 22402.8 | N24: HU 10113 vER | O24: Nincs | P24: Alap szín | Q24: Mély erezett | R24: 101 HDF | S24: 2800 | T24: 2070 | U24: 103 FS31 | V24: 7065.217391 | W24: 8585 | X24: 6885.217391 | Y24: 6865.217391 | Z24: 3865.217391 | AA24: B0030 | AB24: Csavartakaró matrica Fehér erezett K101 PR | AC24: Van | AD24: 3200 | AE24: 4720 | AF24: 3020 | AG24: 3000 | AH24: 8585.217391 | AI24: Szabott laptermék | AJ24: 5.796
B25: UNI | D25: Falco | E25: 107 FS01 | F25: Laminált forgácslapok | G25: 18mm | H25: 2800X2070mm | I25: Jégfehér sima | J25: Tbl | K25: 27116.8 | L25: 22116.8 | M25: 20116.8 | N25: HU 101027 | O25: U8681 SM | P25: Akciós fautánzat szín | Q25: Tükörsima | R25: 101 HDF | S25: 2800 | T25: 2070 | U25: Nincs javaslat | V25: 6270.807453 | W25: 7470 | X25: 5940.807453 | Y25: 5900.807453 | Z25: 3470.807453 | AA25: Nincs | AB25: Csavartakaró matrica Jégfehér 107 FS08 | AC25: Nincs | AD25: 2800 | AE25: 4000 | AF25: 2470 | AG25: 2430 | AH25: 7470.807453 | AI25: Szabott laptermék | AJ25: 5.796
B26: UNI | C26: MINTA | D26: Falco | E26: 107 FS08 | F26: Laminált forgácslapok | G26: 18mm | H26: 2800X2070mm | I26: Jégfehér matt | J26: Tbl | K26: 27116.8 | L26: 22116.8 | M26: 20116.8 | N26: HU 101027 GY | O26: Nincs | P26: Akciós fautánzat szín | Q26: Top matt | R26: 101 HDF | S26: 2800 | T26: 2070 | U26: Nincs javaslat | V26: 6270.807453 | W26: 7470 | X26: 5940.807453 | Y26: 5900.807453 | Z26: 3470.807453 | AA26: Nincs | AB26: Csavartakaró matrica Jégfehér 107 FS08 | AC26: Nincs | AD26: 2800 | AE26: 4000 | AF26: 2470 | AG26: 2430 | AH26: 7470.807453 | AI26: Szabott laptermék | AJ26: 5.796
B27: UNI | C27: MINTA | D27: Falco | E27: 107 FS15 | F27: Laminált forgácslapok | G27: 18mm | H27: 2800X2070mm | I27: Jégfehér sima | J27: Tbl | K27: 27116.8 | L27: 22116.8 | M27: 20116.8 | N27: HU 101027 GY | O27: Nincs | P27: Kiemelt szín | Q27: Sík, selyemfényű | R27: 101 HDF | S27: 2800 | T27: 2070 | U27: Nincs javaslat | V27: 6470.807453 | W27: 7970 | X27: 6220.807453 | Y27: 6170.807453 | Z27: 3470.807453 | AA27: Nincs | AB27: Csavartakaró matrica Alba fehér sima U8681 SM | AC27: Nincs | AD27: 3000 | AE27: 4500 | AF27: 2750 | AG27: 2700 | AH27: 7970.807453 | AI27: Szabott laptermék | AJ27: 5.796
B28: UNI | C28: MINTA | D28: Falco | E28: 116 SM | F28: Laminált forgácslapok | G28: 18mm | H28: 2800X2070mm | I28: Korpusz fehér (Falco) | J28: Tbl | K28: 21478 | L28: 16478 | M28: 14478 | N28: HU 10129 SM | O28: Nincs | P28: Akciós fehér szín | Q28: Tükörsima | R28: 101 HDF | S28: 2800 | T28: 2070 | U28: Nincs javaslat | V28: 4597.929607 | W28: 5950 | X28: 4647.929607 | Y28: 4597.929607 | Z28: 2497.929607 | AA28: B0030 | AB28: Csavartakaró matrica Fehér sima D152 25db/ levél | AC28: Nincs | AD28: 2100 | AE28: 3450 | AF28: 2150 | AG28: 2100 | AH28: 5947.929607 | AI28: Szabott laptermék fehér | AJ28: 5.796
B29: UNI | C29: MINTA | D29: Falco | E29: 121 FS01 | F29: Laminált forgácslapok | G29: 18mm | H29: 2800X2070mm | I29: Hideg fehér sima | J29: Tbl | K29: 23916.4 | L29: 18916.4 | M29: 16916.4 | N29: HU 10113 SM | O29: Nincs | P29: Akciós fautánzat szín | Q29: Tükörsima | R29: 101 HDF | S29: 2800 | T29: 2070 | U29: Nincs javaslat | V29: 5718.63354 | W29: 6920 | X29: 5388.63354 | Y29: 5348.63354 | Z29: 2918.63354 | AA29: Nincs | AB29: Csavartakaró matrica Fehér sima D152 25db/ levél | AC29: Nincs | AD29: 2800 | AE29: 4000 | AF29: 2470 | AG29: 2430 | AH29: 6918.63354 | AI29: Szabott laptermék | AJ29: 5.796
B30: UNI | C30: MINTA | D30: Falco | E30: 121 FS02 | F30: Laminált forgácslapok | G30: 18mm | H30: 2800X2070mm | I30: Hideg fehér prégelt | J30: Tbl | K30: 23916.4 | L30: 18916.4 | M30: 16916.4 | N30: HU 10129 GY | O30: Nincs | P30: Kiemelt szín | Q30: Enyhén recés | R30: 101 HDF | S30: 2800 | T30: 2070 | U30: Nincs javaslat | V30: 5918.63354 | W30: 7420 | X30: 5668.63354 | Y30: 5618.63354 | Z30: 2918.63354 | AA30: Nincs | AB30: Csavartakaró matrica Fehér gyöngy K101 PE | AC30: Nincs | AD30: 3000 | AE30: 4500 | AF30: 2750 | AG30: 2700 | AH30: 7418.63354 | AI30: Szabott laptermék | AJ30: 5.796
B31: UNI | C31: MINTA | D31: Falco | E31: 121 FS15 | F31: Laminált forgácslapok | G31: 18mm | H31: 2800X2070mm | I31: Hideg fehér | J31: Tbl | K31: 23916.4 | L31: 18916.4 | M31: 16916.4 | N31: HU 10129 SM | O31: Nincs | P31: Akciós fautánzat szín | Q31: Sík, selyemfényű | R31: 101 HDF | S31: 2800 | T31: 2070 | U31: Nincs javaslat | V31: 5718.63354 | W31: 6920 | X31: 5388.63354 | Y31: 5348.63354 | Z31: 2918.63354 | AA31: Nincs | AB31: Csavartakaró matrica Fehér sima D152 25db/ levél | AC31: Nincs | AD31: 2800 | AE31: 4000 | AF31: 2470 | AG31: 2430 | AH31: 6918.63354 | AI31: Szabott laptermék | AJ31: 5.796
B32: UNI | C32: MINTA | D32: Kaindl | E32: 1570OM | F32: Laminált forgácslapok | G32: 18mm | H32: 2790X1300mm | I32: Matt fehér (ujjlenyomat mentes) | J32: Tbl | K32: 81432.16 | L32: 76432.16 | M32: 74432.16 | N32: HU 101570 MAT | O32: Nincs | P32: Prémium2 szín | Q32: Ujjlenyomat mentes matt | R32: 101 HDF | S32: 2790 | T32: 1300 | U32: Nincs javaslat | V32: 27021.68734 | W32: 30720 | X32: 26721.68734 | Y32: 26521.68734 | Z32: 20521.68734 | AA32: B0030 | AB32: Csavartakaró matrica Fehér sima D152 25db/ levél | AC32: Nincs | AD32: 6500 | AE32: 10200 | AF32: 6200 | AG32: 6000 | AH32: 30721.68734 | AI32: Szabott laptermék | AJ32: 3.627
B33: UNI | C33: MINTA | D33: Kronospan | E33: 1700 PE | F33: Laminált forgácslapok | G33: 18mm | H33: 2800X2070mm | I33: Acél szürke | J33: Tbl | K33: 29860 | L33: 24860 | M33: 22860 | N33: HU 171700 | O33: 277 FS02 | P33: Alap szín | Q33: Enyhén recés | R33: 540 HDF | S33: 2800 | T33: 2070 | U33: Nincs javaslat | V33: 7144.099379 | W33: 8665 | X33: 6964.099379 | Y33: 6944.099379 | Z33: 3944.099379 | AA33: B0120 | AB33: Csavartakaró matrica Manhattan szürke U540 PE | AC33: Nincs | AD33: 3200 | AE33: 4720 | AF33: 3020 | AG33: 3000 | AH33: 8664.099379 | AI33: Szabott laptermék | AJ33: 5.796
B34: Juhar-nyir | C34: MINTA | D34: Kronospan | E34: 1715 BS | F34: Laminált forgácslapok | G34: 18mm | H34: 2800X2070mm | I34: Nyír (Kronospan) | J34: Tbl | K34: 28488.4 | L34: 23488.4 | M34: 21488.4 | N34: HD 272715 | O34: Nincs | P34: Alap szín | Q34: Sík, selyemfényű | R34: K012 HDF | S34: 2800 | T34: 2070 | U34: D2260 PR | V34: 6907.453416 | W34: 8425 | X34: 6727.453416 | Y34: 6707.453416 | Z34: 3707.453416 | AA34: Nincs | AB34: Csavartakaró matrica Nyír 1715 BS | AC34: Van | AD34: 3200 | AE34: 4720 | AF34: 3020 | AG34: 3000 | AH34: 8427.453416 | AI34: Szabott laptermék | AJ34: 5.796
B35: UNI | C35: MINTA | D35: Falco | E35: 200 FS02 | F35: Laminált forgácslapok | G35: 18mm | H35: 2800X2070mm | I35: Prégelt fekete | J35: Tbl | K35: 24556.48 | L35: 19556.48 | M35: 17556.48 | N35: HU 19015 GY | O35: Nincs | P35: Kiemelt szín | Q35: Enyhén recés | R35: 190 HDF | S35: 2800 | T35: 2070 | U35: Nincs javaslat | V35: 6029.068323 | W35: 7530 | X35: 5779.068323 | Y35: 5729.068323 | Z35: 3029.068323 | AA35: B0210 | AB35: Csavartakaró matrica Fekete gyöngy 200 FS02 | AC35: Nincs | AD35: 3000 | AE35: 4500 | AF35: 2750 | AG35: 2700 | AH35: 7529.068323 | AI35: Szabott laptermék | AJ35: 5.796
B36: UNI | C36: MINTA | D36: Falco | E36: 207 FS15 | F36: Laminált forgácslapok | G36: 18mm | H36: 2800X2070mm | I36: Chilli piros | J36: Tbl | K36: 34432 | L36: 29432 | M36: 27432 | N36: HU 137113 | O36: Nincs | P36: Egyéb szín | Q36: Pórusnyomott | R36: Nincs | S36: 2800 | T36: 2070 | U36: U321 ST9 | V36: 8432.919255 | W36: 9535 | X36: 7892.919255 | Y36: 7832.919255 | Z36: 4732.919255 | AA36: Nincs | AB36: Nincs | AC36: Van | AD36: 3700 | AE36: 4800 | AF36: 3160 | AG36: 3100 | AH36: 9532.919255 | AI36: Szabott laptermék | AJ36: 5.796
B37: UNI | C37: MINTA | D37: Falco | E37: 215 FS15 | F37: Laminált forgácslapok | G37: 18mm | H37: 2800X2070mm | I37: Narancs (Falco) | J37: Tbl | K37: 34432 | L37: 29432 | M37: 27432 | N37: HU 14132 | O37: Nincs | P37: Egyéb szín | Q37: Sík, selyemfényű | R37: Nincs | S37: 2800 | T37: 2070 | U37: Nincs javaslat | V37: 8432.919255 | W37: 9535 | X37: 7892.919255 | Y37: 7832.919255 | Z37: 4732.919255 | AA37: B0390 | AB37: Nincs | AC37: Nincs | AD37: 3700 | AE37: 4800 | AF37: 3160 | AG37: 3100 | AH37: 9532.919255 | AI37: Szabott laptermék | AJ37: 5.796
B38: UNI | C38: MINTA | D38: Kaindl | E38: 2162OM | F38: Laminált forgácslapok | G38: 18mm | H38: 2790X1300mm | I38: Matt grafit szürke (ujjlenyomat mentes) | J38: Tbl | K38: 83078.08 | L38: 78078.08 | M38: 76078.08 | N38: HU 172162 SM | O38: Nincs | P38: Prémium2 szín | Q38: Ujjlenyomat mentes matt | R38: 164 HDF | S38: 2790 | T38: 1300 | U38: Nincs javaslat | V38: 27475.48387 | W38: 31175 | X38: 27175.48387 | Y38: 26975.48387 | Z38: 20975.48387 | AD38: 6500 | AE38: 10200 | AF38: 6200 | AG38: 6000 | AH38: 31175.48387 | AI38: Szabott laptermék | AJ38: 3.627
B39: UNI | D39: Kaindl | E39: 2166OM | F39: Laminált forgácslapok | G39: 18mm | H39: 2790X1300mm | I39: Matt bazalt szürke (ujjlenyomat mentes) | J39: Tbl | K39: 83078.08 | L39: 78078.08 | M39: 76078.08 | N39: HU 172166 SM | O39: Nincs | P39: Prémium2 szín | Q39: Ujjlenyomat mentes matt | R39: 164 HDF | S39: 2790 | T39: 1300 | U39: Nincs javaslat | V39: 27475.48387 | W39: 31175 | X39: 27175.48387 | Y39: 26975.48387 | Z39: 20975.48387 | AD39: 6500 | AE39: 10200 | AF39: 6200 | AG39: 6000 | AH39: 31175.48387 | AI39: Szabott laptermék | AJ39: 3.627
B40: UNI | C40: MINTA | D40: Kaindl | E40: 2171OM | F40: Laminált forgácslapok | G40: 18mm | H40: 2790X1300mm | I40: Matt agate szürke (ujjlenyomat mentes) | J40: Tbl | K40: 83078.08 | L40: 78078.08 | M40: 76078.08 | N40: HU 170752 SM | O40: Nincs | P40: Prémium2 szín | Q40: Ujjlenyomat mentes matt | R40: Nincs | S40: 2790 | T40: 1300 | U40: Nincs javaslat | V40: 27475.48387 | W40: 31175 | X40: 27175.48387 | Y40: 26975.48387 | Z40: 20975.48387 | AD40: 6500 | AE40: 10200 | AF40: 6200 | AG40: 6000 | AH40: 31175.48387 | AI40: Szabott laptermék | AJ40: 3.627
B41: UNI | D41: Kaindl | E41: 2190OM | F41: Laminált forgácslapok | G41: 18mm | H41: 2790X1300mm | I41: Matt fekete (ujjlenyomat mentes) | J41: Tbl | K41: 81432.16 | L41: 76432.16 | M41: 74432.16 | N41: HU 193190 MAT | O41: Nincs | P41: Prémium2 szín | Q41: Ujjlenyomat mentes matt | R41: 190 HDF | S41: 2790 | T41: 1300 | U41: Nincs javaslat | V41: 27021.68734 | W41: 30720 | X41: 26721.68734 | Y41: 26521.68734 | Z41: 20521.68734 | AA41: B0210 | AB41: Nincs | AC41: Nincs | AD41: 6500 | AE41: 10200 | AF41: 6200 | AG41: 6000 | AH41: 30721.68734 | AI41: Szabott laptermék | AJ41: 3.627
B42: UNI | D42: Kaindl | E42: 2190SU | F42: Laminált forgácslapok | G42: 18mm | H42: 2800X2070mm | I42: Fekete erezett | J42: Tbl | K42: 31963.12 | L42: 26963.12 | M42: 24963.12 | N42: HU 192999 | O42: Nincs | P42: Alap szín | Q42: Kőris erezett | R42: 190 HDF | S42: 2800 | T42: 2070 | U42: Nincs javaslat | V42: 7506.956522 | W42: 9025 | X42: 7326.956522 | Y42: 7306.956522 | Z42: 4306.956522 | AA42: Nincs | AB42: Nincs | AC42: Nincs | AD42: 3200 | AE42: 4720 | AF42: 3020 | AG42: 3000 | AH42: 9026.956522 | AI42: Szabott laptermék | AJ42: 5.796
B43: UNI | D43: Falco | E43: 220 FS08 | F43: Laminált forgácslapok | G43: 18mm | H43: 2800X2070mm | I43: Azurkék | J43: Tbl | K43: 31963.12 | L43: 26963.12 | M43: 24963.12 | N43: HU 150517 | O43: K517 SU | P43: Alap szín | Q43: Top matt | R43: Nincs | S43: 2800 | T43: 2070 | U43: Nincs javaslat | V43: 7506.956522 | W43: 9025 | X43: 7326.956522 | Y43: 7306.956522 | Z43: 4306.956522 | AA43: B0030 | AB43: Nincs | AC43: Nincs | AD43: 3200 | AE43: 4720 | AF43: 3020 | AG43: 3000 | AH43: 9026.956522 | AI43: Szabott laptermék | AJ43: 5.796
B44: UNI | D44: Kaindl | E44: 22458NM | F44: Laminált forgácslapok | G44: 18mm | H44: 2800X2070mm | I44: Avocado zöld | J44: Tbl | K44: 35437.84 | L44: 30437.84 | M44: 28437.84 | N44: HU 162458 | O44: Nincs | P44: Alap szín | Q44: Top matt | R44: Nincs | S44: 2800 | T44: 2070 | U44: Nincs javaslat | V44: 8106.459627 | W44: 9625 | X44: 7926.459627 | Y44: 7906.459627 | Z44: 4906.459627 | AA44: Nincs | AB44: Nincs | AC44: Nincs | AD44: 3200 | AE44: 4720 | AF44: 3020 | AG44: 3000 | AH44: 9626.459627 | AI44: Szabott laptermék | AJ44: 5.796
B45: UNI | C45: MINTA | D45: Falco | E45: 242 FS15 | F45: Laminált forgácslapok | G45: 18mm | H45: 2800X2070mm | I45: Sárga (Falco) | J45: Tbl | K45: 31963.12 | L45: 26963.12 | M45: 24963.12 | N45: HU 11134 | O45: Nincs | P45: Egyéb szín | Q45: Sík, selyemfényű | R45: Nincs | S45: 2800 | T45: 2070 | U45: Nincs javaslat | V45: 8006.956522 | W45: 9105 | X45: 7466.956522 | Y45: 7406.956522 | Z45: 4306.956522 | AA45: B0390 | AB45: Nincs | AC45: Nincs | AD45: 3700 | AE45: 4800 | AF45: 3160 | AG45: 3100 | AH45: 9106.956522 | AI45: Szabott laptermék | AJ45: 5.796
B46: UNI | C46: MINTA | D46: Falco | E46: 244 FS08 | F46: Laminált forgácslapok | G46: 18mm | H46: 2800X2070mm | I46: Petrol | J46: Tbl | K46: 31963.12 | L46: 26963.12 | M46: 24963.12 | N46: HU 16244 | O46: Nincs | P46: Alap szín | Q46: Top matt | R46: Nincs | S46: 2800 | T46: 2070 | U46: Nincs javaslat | V46: 7506.956522 | W46: 9025 | X46: 7326.956522 | Y46: 7306.956522 | Z46: 4306.956522 | AA46: Nincs | AB46: Nincs | AC46: Nincs | AD46: 3200 | AE46: 4720 | AF46: 3020 | AG46: 3000 | AH46: 9026.956522 | AI46: Szabott laptermék | AJ46: 5.796
B47: UNI | D47: Kaindl | E47: 25731NM | F47: Laminált forgácslapok | G47: 18mm | H47: 2800X2070mm | I47: Sunset orange | J47: Tbl | K47: 35437.84 | L47: 30437.84 | M47: 28437.84 | N47: HU 145731 | O47: Nincs | P47: Egyéb szín | Q47: Top matt | R47: Nincs | S47: 2800 | T47: 2070 | V47: 8606.459627 | W47: 9705 | X47: 8066.459627 | Y47: 8006.459627 | Z47: 4906.459627 | AD47: 3700 | AE47: 4800 | AF47: 3160 | AG47: 3100 | AH47: 9706.459627 | AI47: Szabott laptermék | AJ47: 5.796
B48: UNI | D48: Kaindl | E48: 25736NM | F48: Laminált forgácslapok | G48: 18mm | H48: 2800X2070mm | I48: Moss green | J48: Tbl | K48: 35437.84 | L48: 30437.84 | M48: 28437.84 | N48: HU 166736 | O48: Nincs | P48: Egyéb szín | Q48: Top matt | R48: Nincs | S48: 2800 | T48: 2070 | V48: 8606.459627 | W48: 9705 | X48: 8066.459627 | Y48: 8006.459627 | Z48: 4906.459627 | AD48: 3700 | AE48: 4800 | AF48: 3160 | AG48: 3100 | AH48: 9706.459627 | AI48: Szabott laptermék | AJ48: 5.796
B49: UNI | C49: MINTA | D49: Kaindl | E49: 25737NM | F49: Laminált forgácslapok | G49: 18mm | H49: 2800X2070mm | I49: Verde | J49: Tbl | K49: 35437.84 | L49: 30437.84 | M49: 28437.84 | N49: HU 166737 | O49: Nincs | P49: Egyéb szín | Q49: Top matt | R49: Nincs | S49: 2800 | T49: 2070 | V49: 8606.459627 | W49: 9705 | X49: 8066.459627 | Y49: 8006.459627 | Z49: 4906.459627 | AD49: 3700 | AE49: 4800 | AF49: 3160 | AG49: 3100 | AH49: 9706.459627 | AI49: Szabott laptermék | AJ49: 5.796
B50: UNI | C50: MINTA | D50: Kaindl | E50: 27045SU | F50: Laminált forgácslapok | G50: 18mm | H50: 2800X2070mm | I50: Champagne | J50: Tbl | K50: 31963.12 | L50: 26963.12 | M50: 24963.12 | N50: HU 121343 ER | O50: Nincs | P50: Alap szín | Q50: Kőris erezett | R50: Nincs | S50: 2800 | T50: 2070 | U50: Nincs javaslat | V50: 7506.956522 | W50: 9025 | X50: 7326.956522 | Y50: 7306.956522 | Z50: 4306.956522 | AD50: 3200 | AE50: 4720 | AF50: 3020 | AG50: 3000 | AH50: 9026.956522 | AI50: Szabott laptermék | AJ50: 5.796
B51: UNI | C51: MINTA | D51: Falco | E51: 271 FS02 | F51: Laminált forgácslapok | G51: 18mm | H51: 2800X2070mm | I51: Antracit prégelt | J51: Tbl | K51: 24556.48 | L51: 19556.48 | M51: 17556.48 | N51: HU 17164 | O51: U164 PE | P51: Akciós fautánzat szín | Q51: Enyhén recés | R51: 164 HDF | S51: 2800 | T51: 2070 | U51: Nincs javaslat | V51: 5829.068323 | W51: 7030 | X51: 5499.068323 | Y51: 5459.068323 | Z51: 3029.068323 | AA51: Nincs | AB51: Csavartakaró matrica Antracit U961 ST2 | AC51: Nincs | AD51: 2800 | AE51: 4000 | AF51: 2470 | AG51: 2430 | AH51: 7029.068323 | AI51: Szabott laptermék | AJ51: 5.796
B52: UNI | D52: Kaindl | E52: 27166SU | F52: Laminált forgácslapok | G52: 18mm | H52: 2800X2070mm | I52: Taupe | J52: Tbl | K52: 33883.36 | L52: 28883.36 | M52: 26883.36 | N52: HU 188166 ER | O52: Nincs | P52: Egyéb szín | Q52: Kőris erezett | R52: Nincs | S52: 2800 | T52: 2070 | U52: Nincs javaslat | V52: 8338.26087 | W52: 9440 | X52: 7798.26087 | Y52: 7738.26087 | Z52: 4638.26087 | AD52: 3700 | AE52: 4800 | AF52: 3160 | AG52: 3100 | AH52: 9438.26087 | AI52: Szabott laptermék | AJ52: 5.796
B53: UNI | D53: Falco | E53: 275 FS02 | F53: Laminált forgácslapok | G53: 18mm | H53: 2800X2070mm | I53: Grafit szürke | J53: Tbl | K53: 27116.8 | L53: 22116.8 | M53: 20116.8 | N53: HU 172162 | O53: 0162 PE | P53: Kiemelt szín | Q53: Enyhén recés | R53: 164 HDF | S53: 2800 | T53: 2070 | U53: Nincs javaslat | V53: 6470.807453 | W53: 7970 | X53: 6220.807453 | Y53: 6170.807453 | Z53: 3470.807453 | AA53: B0120 | AB53: Nincs | AC53: Nincs | AD53: 3000 | AE53: 4500 | AF53: 2750 | AG53: 2700 | AH53: 7970.807453 | AI53: Szabott laptermék | AJ53: 5.796
B54: UNI | D54: Falco | E54: 276 FS15 | F54: Laminált forgácslapok | G54: 18mm | H54: 2800X2070mm | I54: Bazalt | J54: Tbl | K54: 27116.8 | L54: 22116.8 | M54: 20116.8 | N54: HU 172166 | O54: 0166 BS | P54: Kiemelt szín | Q54: Sík, selyemfényű | R54: 164 HDF | S54: 2800 | T54: 2070 | U54: Nincs javaslat | V54: 6470.807453 | W54: 7970 | X54: 6220.807453 | Y54: 6170.807453 | Z54: 3470.807453 | AA54: B0030 | AB54: Nincs | AC54: Nincs | AD54: 3000 | AE54: 4500 | AF54: 2750 | AG54: 2700 | AH54: 7970.807453 | AI54: Szabott laptermék | AJ54: 5.796
B55: UNI | D55: Falco | E55: 277 FS02 | F55: Laminált forgácslapok | G55: 18mm | H55: 2800X2070mm | I55: Acél szürke | J55: Tbl | K55: 27116.8 | L55: 22116.8 | M55: 20116.8 | N55: HU 171700 | O55: 1700 PE | P55: Kiemelt szín | Q55: Enyhén recés | R55: 540 HDF | S55: 2800 | T55: 2070 | U55: Nincs javaslat | V55: 6470.807453 | W55: 7970 | X55: 6220.807453 | Y55: 6170.807453 | Z55: 3470.807453 | AA55: B0120 | AB55: Csavartakaró matrica Manhattan szürke U540 PE | AC55: Nincs | AD55: 3000 | AE55: 4500 | AF55: 2750 | AG55: 2700 | AH55: 7970.807453 | AI55: Szabott laptermék | AJ55: 5.796
B56: UNI | D56: Falco | E56: 278 FS08 | F56: Laminált forgácslapok | G56: 18mm | H56: 2800X2070mm | I56: Egérszürke | J56: Tbl | K56: 24556.48 | L56: 19556.48 | M56: 17556.48 | N56: HU 170519 | O56: K519 SU | P56: Akciós fautánzat szín | Q56: Top matt | R56: 540 HDF | S56: 2800 | T56: 2070 | U56: Nincs javaslat | V56: 5829.068323 | W56: 7030 | X56: 5499.068323 | Y56: 5459.068323 | Z56: 3029.068323 | AA56: B0030 | AB56: Nincs | AC56: Nincs | AD56: 2800 | AE56: 4000 | AF56: 2470 | AG56: 2430 | AH56: 7029.068323 | AI56: Szabott laptermék | AJ56: 5.796
B57: UNI | C57: MINTA | D57: Falco | E57: 301 FS08 | F57: Laminált forgácslapok | G57: 18mm | H57: 2800X2070mm | I57: Capuccino | J57: Tbl | K57: 31963.12 | L57: 26963.12 | M57: 24963.12 | N57: HU 18301 | O57: Nincs | P57: Kiemelt szín | Q57: Top matt | R57: Nincs | S57: 2800 | T57: 2070 | U57: Nincs javaslat | V57: 7306.956522 | W57: 8805 | X57: 7056.956522 | Y57: 7006.956522 | Z57: 4306.956522 | AA57: Nincs | AB57: Csavartakaró matrica Capuccino U3053 BS | AC57: Nincs | AD57: 3000 | AE57: 4500 | AF57: 2750 | AG57: 2700 | AH57: 8806.956522 | AI57: Szabott laptermék | AJ57: 5.796
B58: UNI | C58: MINTA | D58: Falco | E58: 314 FS02 | F58: Laminált forgácslapok | G58: 18mm | H58: 2800X2070mm | I58: Világos szürke (Falco) | J58: Tbl | K58: 24556.48 | L58: 19556.48 | M58: 17556.48 | N58: HU 17035 | O58: U708 ST9 | P58: Akciós fautánzat szín | Q58: Enyhén recés | R58: 540 HDF | S58: 2800 | T58: 2070 | U58: Nincs javaslat | V58: 5829.068323 | W58: 7030 | X58: 5499.068323 | Y58: 5459.068323 | Z58: 3029.068323 | AA58: B0120 | AB58: Csavartakaró matrica Világos szürke U112 PE | AC58: Nincs | AD58: 2800 | AE58: 4000 | AF58: 2470 | AG58: 2430 | AH58: 7029.068323 | AI58: Szabott laptermék | AJ58: 5.796
B59: UNI | C59: MINTA | D59: Falco | E59: 318 FS02 | F59: Laminált forgácslapok | G59: 18mm | H59: 2800X2070mm | I59: Palaszürke | J59: Tbl | K59: 27116.8 | L59: 22116.8 | M59: 20116.8 | N59: HU 17860 | O59: U732 ST9 | P59: Akciós fautánzat szín | Q59: Enyhén recés | R59: Nincs | S59: 2800 | T59: 2070 | U59: U732 ST9 | V59: 6270.807453 | W59: 7470 | X59: 5940.807453 | Y59: 5900.807453 | Z59: 3470.807453 | AA59: Nincs | AB59: Nincs | AC59: Nincs | AD59: 2800 | AE59: 4000 | AF59: 2470 | AG59: 2430 | AH59: 7470.807453 | AI59: Szabott laptermék | AJ59: 5.796
B60: Fantazia | D60: Falco | E60: 322 FS02 | F60: Laminált forgácslapok | G60: 18mm | H60: 2800X2070mm | I60: Csiszolt aluminium | J60: Tbl | K60: 31963.12 | L60: 26963.12 | M60: 24963.12 | N60: HD 29522 | O60: K522 PE | P60: Kiemelt szín | Q60: Enyhén recés | R60: 540 HDF | S60: 2800 | T60: 2070 | U60: Nincs javaslat | V60: 7306.956522 | W60: 8805 | X60: 7056.956522 | Y60: 7006.956522 | Z60: 4306.956522 | AA60: B0030 | AB60: Nincs | AC60: Nincs | AD60: 3000 | AE60: 4500 | AF60: 2750 | AG60: 2700 | AH60: 8806.956522 | AI60: Szabott laptermék | AJ60: 5.796
B61: Dio-mogyoro-gesztenye | D61: Kaindl | E61: 32339AN | F61: Laminált forgácslapok | G61: 18mm | H61: 2800X2070mm | I61: TORTONA DIÓ | J61: Tbl | K61: 34422.856 | L61: 29422.856 | M61: 27422.856 | N61: HD 283702 | O61: Nincs | P61: Alap szín | Q61: Pórusnyomott | R61: 729 HDF | S61: 2800 | T61: 2070 | U61: Nincs javaslat | V61: 7931.341615 | W61: 9450 | X61: 7751.341615 | Y61: 7731.341615 | Z61: 4731.341615 | AA61: Nincs | AB61: Nincs | AC61: Nincs | AD61: 3200 | AE61: 4720 | AF61: 3020 | AG61: 3000 | AH61: 9451.341615 | AI61: Szabott laptermék | AJ61: 5.796
B62: sotettolgy | D62: Kaindl | E62: 32360AN | F62: Laminált forgácslapok | G62: 18mm | H62: 2800X2070mm | I62: CASTELL TÖLGY | J62: Tbl | K62: 34422.856 | L62: 29422.856 | M62: 27422.856 | N62: HD 242360 | O62: Nincs | P62: Alap szín | Q62: Pórusnyomott | R62: K004 HDF | S62: 2800 | T62: 2070 | U62: Nincs javaslat | V62: 7931.341615 | W62: 9450 | X62: 7751.341615 | Y62: 7731.341615 | Z62: 4731.341615 | AA62: Nincs | AB62: Nincs | AC62: Nincs | AD62: 3200 | AE62: 4720 | AF62: 3020 | AG62: 3000 | AH62: 9451.341615 | AI62: Szabott laptermék | AJ62: 5.796
B63: vilagostolgy | D63: Kaindl | E63: 34032SV | F63: Laminált forgácslapok | G63: 18mm | H63: 2800X2070mm | I63: Hemlock nordique | J63: Tbl | K63: 43118.8 | L63: 38118.8 | M63: 36118.8 | N63: HD 254032 | O63: Nincs | P63: Exkluzív szín | Q63: Szinkron nyomott | R63: K011 HDF | S63: 2800 | T63: 2070 | V63: 10231.67702 | W63: 11730 | X63: 9881.677019 | Y63: 9831.677019 | Z63: 6231.677019 | AD63: 4000 | AE63: 5500 | AF63: 3650 | AG63: 3600 | AH63: 11731.67702 | AI63: Szabott laptermék | AJ63: 5.796
B64: vilagostolgy | C64: MINTA | D64: Kaindl | E64: 34139RV | F64: Laminált forgácslapok | G64: 18mm | H64: 2800X2070mm | I64: San Remo tölgy homok | J64: Tbl | K64: 43118.8 | L64: 38118.8 | M64: 36118.8 | N64: HD 244139 | O64: 624 FS22 | P64: Egyéb szín | Q64: Szinkron nyomott | R64: 3025 HDF | S64: 2800 | T64: 2070 | U64: H3309 ST28 | V64: 9931.677019 | W64: 11030 | X64: 9391.677019 | Y64: 9331.677019 | Z64: 6231.677019 | AA64: Nincs | AB64: Csavartakaró matrica Coimbra 572 FS22 | AD64: 3700 | AE64: 4800 | AF64: 3160 | AG64: 3100 | AH64: 11031.67702 | AI64: Szabott laptermék | AJ64: 5.796
B65: sotettolgy | C65: MINTA | D65: Kaindl | E65: 34140RV | F65: Laminált forgácslapok | G65: 18mm | H65: 2800X2070mm | I65: San Remo tölgy classic | J65: Tbl | K65: 43118.8 | L65: 38118.8 | M65: 36118.8 | N65: HD 244140 | O65: Nincs | P65: Egyéb szín | Q65: Szinkron nyomott | R65: K021 HDF | S65: 2800 | T65: 2070 | V65: 9931.677019 | W65: 11030 | X65: 9391.677019 | Y65: 9331.677019 | Z65: 6231.677019 | AD65: 3700 | AE65: 4800 | AF65: 3160 | AG65: 3100 | AH65: 11031.67702 | AI65: Szabott laptermék | AJ65: 5.796
B66: Fantazia | C66: MINTA | D66: Kaindl | E66: 34321DP | F66: Laminált forgácslapok | G66: 18mm | H66: 2800X2070mm | I66: Oxid | J66: Tbl | K66: 39369.76 | L66: 34369.76 | M66: 32369.76 | N66: HD 294321 | O66: Nincs | P66: Alap szín | Q66: Vakolatmintás | R66: Nincs | S66: 2800 | T66: 2070 | U66: 34321 DP | V66: 8784.84472 | W66: 10305 | X66: 8604.84472 | Y66: 8584.84472 | Z66: 5584.84472 | AA66: Nincs | AB66: Nincs | AC66: Van | AD66: 3200 | AE66: 4720 | AF66: 3020 | AG66: 3000 | AH66: 10304.84472 | AI66: Szabott laptermék | AJ66: 5.796
B67: UNI | C67: MINTA | D67: Falco | E67: 345 FS08 | F67: Laminált forgácslapok | G67: 18mm | H67: 2800X2070mm | I67: Közép szürke | J67: Tbl | K67: 27116.8 | L67: 22116.8 | M67: 20116.8 | N67: HU 17035 | O67: 0540 PE | P67: Kiemelt szín | Q67: Top matt | R67: 540 HDF | S67: 2800 | T67: 2070 | U67: Nincs javaslat | V67: 6470.807453 | W67: 7970 | X67: 6220.807453 | Y67: 6170.807453 | Z67: 3470.807453 | AA67: B0120 | AB67: Csavartakaró matrica Világos szürke U112 PE | AC67: Nincs | AD67: 3000 | AE67: 4500 | AF67: 2750 | AG67: 2700 | AH67: 7970.807453 | AI67: Szabott laptermék | AJ67: 5.796
B68: UNI | C68: MINTA | D68: Falco | E68: 348 FS02 | F68: Laminált forgácslapok | G68: 18mm | H68: 2800X2070mm | I68: Krém | J68: Tbl | K68: 27116.8 | L68: 22116.8 | M68: 20116.8 | N68: HU 12514 | O68: Nincs | P68: Akciós fautánzat szín | Q68: Enyhén recés | R68: 522 HDF | S68: 2800 | T68: 2070 | U68: U108 ST9 | V68: 6270.807453 | W68: 7470 | X68: 5940.807453 | Y68: 5900.807453 | Z68: 3470.807453 | AA68: B0300 | AB68: Csavartakaró matrica Alabástrom U104 ST15 | AC68: Nincs | AD68: 2800 | AE68: 4000 | AF68: 2470 | AG68: 2430 | AH68: 7470.807453 | AI68: Szabott laptermék | AJ68: 5.796
B69: UNI | C69: MINTA | D69: Falco | E69: 350 FS15 | F69: Laminált forgácslapok | G69: 18mm | H69: 2800X2070mm | I69: Kasmír | J69: Tbl | K69: 24556.48 | L69: 19556.48 | M69: 17556.48 | N69: HU 170702 | O69: Nincs | P69: Akciós fautánzat szín | Q69: Sík, selyemfényű | R69: Nincs | S69: 2800 | T69: 2070 | U69: Nincs javaslat | V69: 5829.068323 | W69: 7030 | X69: 5499.068323 | Y69: 5459.068323 | Z69: 3029.068323 | AA69: Nincs | AB69: Nincs | AC69: Nincs | AD69: 2800 | AE69: 4000 | AF69: 2470 | AG69: 2430 | AH69: 7029.068323 | AI69: Szabott laptermék | AJ69: 5.796
B70: UNI | C70: MINTA | D70: Falco | E70: 351 FS08 | F70: Laminált forgácslapok | G70: 18mm | H70: 2800X2070mm | I70: Szatén | J70: Tbl | K70: 27116.8 | L70: 22116.8 | M70: 20116.8 | N70: HU 121343 | O70: U156 ST9 | P70: Akciós fautánzat szín | Q70: Top matt | R70: Nincs | S70: 2800 | T70: 2070 | U70: Nincs javaslat | V70: 6270.807453 | W70: 7470 | X70: 5940.807453 | Y70: 5900.807453 | Z70: 3470.807453 | AA70: Nincs | AB70: Nincs | AC70: Nincs | AD70: 2800 | AE70: 4000 | AF70: 2470 | AG70: 2430 | AH70: 7470.807453 | AI70: Szabott laptermék | AJ70: 5.796
B71: UNI | C71: MINTA | D71: Falco | E71: 352 FS15 | F71: Laminált forgácslapok | G71: 18mm | H71: 2800X2070mm | I71: Latte | J71: Tbl | K71: 31963.12 | L71: 26963.12 | M71: 24963.12 | N71: HU 187166 | O71: Nincs | P71: Kiemelt szín | Q71: Top matt | R71: Nincs | S71: 2800 | T71: 2070 | U71: Nincs javaslat | V71: 7306.956522 | W71: 8805 | X71: 7056.956522 | Y71: 7006.956522 | Z71: 4306.956522 | AA71: Nincs | AB71: Nincs | AC71: Nincs | AD71: 3000 | AE71: 4500 | AF71: 2750 | AG71: 2700 | AH71: 8806.956522 | AI71: Szabott laptermék | AJ71: 5.796
B72: vilagostolgy | C72: MINTA | D72: Kaindl | E72: 35252AT | F72: Laminált forgácslapok | G72: 18mm | H72: 2800X2070mm | I72: Chalet Tölgy | J72: Tbl | K72: 34422.856 | L72: 29422.856 | M72: 27422.856 | N72: HD 246252 | O72: Nincs | P72: Alap szín | Q72: Pórusnyomott | R72: K006 HDF | S72: 2800 | T72: 2070 | V72: 7931.341615 | W72: 9450 | X72: 7751.341615 | Y72: 7731.341615 | Z72: 4731.341615 | AD72: 3200 | AE72: 4720 | AF72: 3020 | AG72: 3000 | AH72: 9451.341615 | AI72: Szabott laptermék | AJ72: 5.796
B73: UNI | C73: MINTA | D73: Falco | E73: 353 FS15 | F73: Laminált forgácslapok | G73: 18mm | H73: 2800X2070mm | I73: Kobalt szürke | J73: Tbl | K73: 31963.12 | L73: 26963.12 | M73: 24963.12 | N73: HU 170767 | O73: Nincs | P73: Kiemelt szín | Q73: Sík, selyemfényű | R73: Nincs | S73: 2800 | T73: 2070 | U73: Nincs javaslat | V73: 7306.956522 | W73: 8805 | X73: 7056.956522 | Y73: 7006.956522 | Z73: 4306.956522 | AA73: Nincs | AB73: Nincs | AC73: Nincs | AD73: 3000 | AE73: 4500 | AF73: 2750 | AG73: 2700 | AH73: 8806.956522 | AI73: Szabott laptermék | AJ73: 5.796
B74: Fantazia | D74: Falco | E74: 380 FS28 | F74: Laminált forgácslapok | G74: 18mm | H74: 2800X2070mm | I74: Világos Element | J74: Tbl | K74: 32786.08 | L74: 27786.08 | M74: 25786.08 | N74: HD 290380 | O74: Nincs | P74: Egyéb szín | Q74: Rusztikus kő | R74: Nincs | S74: 2800 | T74: 2070 | U74: Nincs javaslat | V74: 8148.944099 | W74: 9250 | X74: 7608.944099 | Y74: 7548.944099 | Z74: 4448.944099 | AA74: Nincs | AB74: Nincs | AC74: Van | AD74: 3700 | AE74: 4800 | AF74: 3160 | AG74: 3100 | AH74: 9248.944099 | AI74: Szabott laptermék | AJ74: 5.796
B75: Fantazia | D75: Falco | E75: 381 FS28 | F75: Laminált forgácslapok | G75: 18mm | H75: 2800X2070mm | I75: Szürke Element | J75: Tbl | K75: 32786.08 | L75: 27786.08 | M75: 25786.08 | N75: HD 29641 | O75: Nincs | P75: Egyéb szín | Q75: Rusztikus kő | R75: Nincs | S75: 2800 | T75: 2070 | U75: Nincs javaslat | V75: 8148.944099 | W75: 9250 | X75: 7608.944099 | Y75: 7548.944099 | Z75: 4448.944099 | AA75: Nincs | AB75: Nincs | AC75: Van | AD75: 3700 | AE75: 4800 | AF75: 3160 | AG75: 3100 | AH75: 9248.944099 | AI75: Szabott laptermék | AJ75: 5.796
B76: Fantazia | D76: Falco | E76: 382 FS28 | F76: Laminált forgácslapok | G76: 18mm | H76: 2800X2070mm | I76: Nebula | J76: Tbl | K76: 32786.08 | L76: 27786.08 | M76: 25786.08 | N76: HD 29629 | O76: Nincs | P76: Egyéb szín | Q76: Rusztikus kő | R76: Nincs | S76: 2800 | T76: 2070 | U76: Nincs javaslat | V76: 8148.944099 | W76: 9250 | X76: 7608.944099 | Y76: 7548.944099 | Z76: 4448.944099 | AA76: Nincs | AB76: Nincs | AC76: Van | AD76: 3700 | AE76: 4800 | AF76: 3160 | AG76: 3100 | AH76: 9248.944099 | AI76: Szabott laptermék | AJ76: 5.796
B77: Fantazia | D77: Falco | E77: 383 FS28 | F77: Laminált forgácslapok | G77: 18mm | H77: 2800X2070mm | I77: Világos Allegro | J77: Tbl | K77: 32786.08 | L77: 27786.08 | M77: 25786.08 | N77: HD 29976 | O77: Nincs | P77: Egyéb szín | Q77: Rusztikus kő | R77: Nincs | S77: 2800 | T77: 2070 | U77: Nincs javaslat | V77: 8148.944099 | W77: 9250 | X77: 7608.944099 | Y77: 7548.944099 | Z77: 4448.944099 | AA77: Nincs | AB77: Nincs | AC77: Van | AD77: 3700 | AE77: 4800 | AF77: 3160 | AG77: 3100 | AH77: 9248.944099 | AI77: Szabott laptermék | AJ77: 5.796
B78: Fantazia | D78: Falco | E78: 384 FS28 | F78: Laminált forgácslapok | G78: 18mm | H78: 2800X2070mm | I78: Szürke Allegro | J78: Tbl | K78: 32786.08 | L78: 27786.08 | M78: 25786.08 | N78: HD 29348 | O78: Nincs | P78: Egyéb szín | Q78: Rusztikus kő | R78: Nincs | S78: 2800 | T78: 2070 | U78: Nincs javaslat | V78: 8148.944099 | W78: 9250 | X78: 7608.944099 | Y78: 7548.944099 | Z78: 4448.944099 | AA78: Nincs | AB78: Nincs | AC78: Van | AD78: 3700 | AE78: 4800 | AF78: 3160 | AG78: 3100 | AH78: 9248.944099 | AI78: Szabott laptermék | AJ78: 5.796
B79: Fantazia | D79: Falco | E79: 385 FS28 | F79: Laminált forgácslapok | G79: 18mm | H79: 2800X2070mm | I79: Világos Cosmos | J79: Tbl | K79: 32786.08 | L79: 27786.08 | M79: 25786.08 | N79: HD 296036 | O79: Nincs | P79: Egyéb szín | Q79: Rusztikus kő | R79: Nincs | S79: 2800 | T79: 2070 | U79: Nincs javaslat | V79: 8148.944099 | W79: 9250 | X79: 7608.944099 | Y79: 7548.944099 | Z79: 4448.944099 | AA79: Nincs | AB79: Nincs | AC79: Van | AD79: 3700 | AE79: 4800 | AF79: 3160 | AG79: 3100 | AH79: 9248.944099 | AI79: Szabott laptermék | AJ79: 5.796
B80: Fantazia | D80: Falco | E80: 386 FS28 | F80: Laminált forgácslapok | G80: 18mm | H80: 2800X2070mm | I80: Szürke Cosmos | J80: Tbl | K80: 32786.08 | L80: 27786.08 | M80: 25786.08 | N80: HD 294298 | O80: Nincs | P80: Egyéb szín | Q80: Rusztikus kő | R80: Nincs | S80: 2800 | T80: 2070 | U80: Nincs javaslat | V80: 8148.944099 | W80: 9250 | X80: 7608.944099 | Y80: 7548.944099 | Z80: 4448.944099 | AA80: Nincs | AB80: Nincs | AC80: Van | AD80: 3700 | AE80: 4800 | AF80: 3160 | AG80: 3100 | AH80: 9248.944099 | AI80: Szabott laptermék | AJ80: 5.796
B81: Fantazia | D81: Falco | E81: 387 FS28 | F81: Laminált forgácslapok | G81: 18mm | H81: 2800X2070mm | I81: Pixel | J81: Tbl | K81: 32786.08 | L81: 27786.08 | M81: 25786.08 | N81: HD 29387 | O81: Nincs | P81: Egyéb szín | Q81: Rusztikus kő | R81: Nincs | S81: 2800 | T81: 2070 | U81: Nincs javaslat | V81: 8148.944099 | W81: 9250 | X81: 7608.944099 | Y81: 7548.944099 | Z81: 4448.944099 | AA81: Nincs | AB81: Nincs | AC81: Van | AD81: 3700 | AE81: 4800 | AF81: 3160 | AG81: 3100 | AH81: 9248.944099 | AI81: Szabott laptermék | AJ81: 5.796
B82: Bukk | C82: MINTA | D82: Falco | E82: 401 FS24 | F82: Laminált forgácslapok | G82: 18mm | H82: 2800X2070mm | I82: Savaria bükk | J82: Tbl | K82: 24556.48 | L82: 19556.48 | M82: 17556.48 | N82: HD 211381 | O82: Nincs | P82: Alap szín | Q82: Pórusnyomott | R82: 381 HDF | S82: 2800 | T82: 2070 | U82: Nincs javaslat | V82: 6229.068323 | W82: 7750 | X82: 6049.068323 | Y82: 6029.068323 | Z82: 3029.068323 | AA82: B3020 | AB82: Csavartakaró matrica Bükk 381 PR | AC82: Van | AD82: 3200 | AE82: 4720 | AF82: 3020 | AG82: 3000 | AH82: 7749.068323 | AI82: Szabott laptermék | AJ82: 5.796
B83: Cseresznye-eger | C83: MINTA | D83: Falco | E83: 404 FS24 | F83: Laminált forgácslapok | G83: 18mm | H83: 2800X2070mm | I83: Virágos cseresznye | J83: Tbl | K83: 24556.48 | L83: 19556.48 | M83: 17556.48 | N83: HD 223128 | O83: Nincs | P83: Alap szín | Q83: Pórusnyomott | R83: 344 HDF | S83: 2800 | T83: 2070 | U83: Nincs javaslat | V83: 6229.068323 | W83: 7750 | X83: 6049.068323 | Y83: 6029.068323 | Z83: 3029.068323 | AA83: Nincs | AB83: Csavartakaró matrica Arden cseresznye 442 FS2 | AC83: Van | AD83: 3200 | AE83: 4720 | AF83: 3020 | AG83: 3000 | AH83: 7749.068323 | AI83: Szabott laptermék | AJ83: 5.796
B84: Orokzold | C84: MINTA | D84: Falco | E84: 410 FS24 | F84: Laminált forgácslapok | G84: 18mm | H84: 2800X2070mm | I84: Bio fenyő | J84: Tbl | K84: 27116.8 | L84: 22116.8 | M84: 20116.8 | N84: HD 259320 | O84: Nincs | P84: Kiemelt szín | Q84: Pórusnyomott | R84: 381 HDF | S84: 2800 | T84: 2070 | U84: Nincs javaslat | V84: 6470.807453 | W84: 7970 | X84: 6220.807453 | Y84: 6170.807453 | Z84: 3470.807453 | AA84: B5080 | AB84: Csavartakaró matrica Bio fenyő 410 FS24 | AC84: Van | AD84: 3000 | AE84: 4500 | AF84: 2750 | AG84: 2700 | AH84: 7970.807453 | AI84: Szabott laptermék | AJ84: 5.796
B85: Dio-mogyoro-gesztenye | C85: MINTA | D85: Falco | E85: 422 FS15 | F85: Laminált forgácslapok | G85: 18mm | H85: 2800X2070mm | I85: Mogyoró (Falco) | J85: Tbl | K85: 27116.8 | L85: 22116.8 | M85: 20116.8 | N85: HD 280722 | O85: Nincs | P85: Kiemelt szín | Q85: Sík, selyemfényű | R85: 9455 HDF | S85: 2800 | T85: 2070 | U85: Nincs javaslat | V85: 6470.807453 | W85: 7970 | X85: 6220.807453 | Y85: 6170.807453 | Z85: 3470.807453 | AA85: Nincs | AB85: Csavartakaró matrica Mogyoró 422 FS15 | AC85: Van | AD85: 3000 | AE85: 4500 | AF85: 2750 | AG85: 2700 | AH85: 7970.807453 | AI85: Szabott laptermék | AJ85: 5.796
B86: Fantazia | D86: Kaindl | E86: 42207DP | F86: Laminált forgácslapok | G86: 18mm | H86: 2800X2070mm | I86: TERRA SZÜRKE BETON | J86: Tbl | K86: 39369.76 | L86: 34369.76 | M86: 32369.76 | N86: HD 290027 | O86: Nincs | P86: Egyéb szín | Q86: Lágy tapintású | R86: Nincs | S86: 2800 | T86: 2070 | U86: Nincs javaslat | V86: 9284.84472 | W86: 10385 | X86: 8744.84472 | Y86: 8684.84472 | Z86: 5584.84472 | AA86: Nincs | AB86: Nincs | AC86: Nincs | AD86: 3700 | AE86: 4800 | AF86: 3160 | AG86: 3100 | AH86: 10384.84472 | AI86: Szabott laptermék | AJ86: 5.796
B87: Fantazia | D87: Kaindl | E87: 42238DP | F87: Laminált forgácslapok | G87: 18mm | H87: 2800X2070mm | I87: INFINITI BETON | J87: Tbl | K87: 39369.76 | L87: 34369.76 | M87: 32369.76 | N87: HD 292238 | O87: Nincs | P87: Egyéb szín | Q87: Lágy tapintású | R87: Nincs | S87: 2800 | T87: 2070 | U87: Nincs javaslat | V87: 9284.84472 | W87: 10385 | X87: 8744.84472 | Y87: 8684.84472 | Z87: 5584.84472 | AA87: Nincs | AB87: Nincs | AC87: Nincs | AD87: 3700 | AE87: 4800 | AF87: 3160 | AG87: 3100 | AH87: 10384.84472 | AI87: Szabott laptermék | AJ87: 5.796
B88: Fantazia | D88: Kaindl | E88: 42364DP | F88: Laminált forgácslapok | G88: 18mm | H88: 2800X2070mm | I88: SAND BETON | J88: Tbl | K88: 39369.76 | L88: 34369.76 | M88: 32369.76 | N88: HD 292364 | O88: Nincs | P88: Egyéb szín | Q88: Lágy tapintású | R88: Nincs | S88: 2800 | T88: 2070 | U88: Nincs javaslat | V88: 9284.84472 | W88: 10385 | X88: 8744.84472 | Y88: 8684.84472 | Z88: 5584.84472 | AA88: Nincs | AB88: Nincs | AC88: Nincs | AD88: 3700 | AE88: 4800 | AF88: 3160 | AG88: 3100 | AH88: 10384.84472 | AI88: Szabott laptermék | AJ88: 5.796
B89: Bukk | C89: MINTA | D89: Falco | E89: 438 FS24 | F89: Laminált forgácslapok | G89: 18mm | H89: 2800X2070mm | I89: Világos bükk | J89: Tbl | K89: 27116.8 | L89: 22116.8 | M89: 20116.8 | N89: HD 212582 | O89: Nincs | P89: Kiemelt szín | Q89: Pórusnyomott | R89: 381 HDF | S89: 2800 | T89: 2070 | U89: Nincs javaslat | V89: 6470.807453 | W89: 7970 | X89: 6220.807453 | Y89: 6170.807453 | Z89: 3470.807453 | AA89: Nincs | AB89: Csavartakaró matrica Világos bükk 438 FS24 | AC89: Van | AD89: 3000 | AE89: 4500 | AF89: 2750 | AG89: 2700 | AH89: 7970.807453 | AI89: Szabott laptermék | AJ89: 5.796
B90: Fantazia | D90: Kaindl | E90: 44374DP | F90: Laminált forgácslapok | G90: 18mm | H90: 2800X2070mm | I90: Beton Opalgrey | J90: Tbl | K90: 43068.98919 | L90: 38068.98919 | M90: 36068.98919 | N90: HD 29649 | O90: Nincs | P90: Exkluzív szín | Q90: Lágy tapintású | R90: Nincs | S90: 2800 | T90: 2070 | V90: 10223.08302 | W90: 11725 | X90: 9873.08302 | Y90: 9823.08302 | Z90: 6223.08302 | AD90: 4000 | AE90: 5500 | AF90: 3650 | AG90: 3600 | AH90: 11723.08302 | AI90: Szabott laptermék | AJ90: 5.796
B91: Fantazia | C91: MINTA | D91: Kaindl | E91: 44375DP | F91: Laminált forgácslapok | G91: 18mm | H91: 2800X2070mm | I91: Beton art Pearl Grey | J91: Tbl | K91: 39369.76 | L91: 34369.76 | M91: 32369.76 | N91: HD 29651 | O91: Nincs | P91: Alap szín | Q91: Vakolatmintás | R91: Nincs | S91: 2800 | T91: 2070 | U91: Nincs javaslat | V91: 8784.84472 | W91: 10305 | X91: 8604.84472 | Y91: 8584.84472 | Z91: 5584.84472 | AA91: Nincs | AB91: Nincs | AC91: Van | AD91: 3200 | AE91: 4720 | AF91: 3020 | AG91: 3000 | AH91: 10304.84472 | AI91: Szabott laptermék | AJ91: 5.796
B92: Fantazia | C92: MINTA | D92: Kaindl | E92: 44405DP | F92: Laminált forgácslapok | G92: 18mm | H92: 2800X2070mm | I92: Beton art slategray | J92: Tbl | K92: 39369.76 | L92: 34369.76 | M92: 32369.76 | N92: HD 29641 | O92: Nincs | P92: Egyéb szín | Q92: Lágy tapintású | R92: Nincs | S92: 2800 | T92: 2070 | V92: 9284.84472 | W92: 10385 | X92: 8744.84472 | Y92: 8684.84472 | Z92: 5584.84472 | AD92: 3700 | AE92: 4800 | AF92: 3160 | AG92: 3100 | AH92: 10384.84472 | AI92: Szabott laptermék | AJ92: 5.796
B93: Juhar-nyir | C93: MINTA | D93: Falco | E93: 463 FS24 | F93: Laminált forgácslapok | G93: 18mm | H93: 2800X2070mm | I93: Európai juhar | J93: Tbl | K93: 24556.48 | L93: 19556.48 | M93: 17556.48 | N93: HD 250396 | O93: Nincs | P93: Kiemelt szín | Q93: Pórusnyomott | R93: 375 HDF | S93: 2800 | T93: 2070 | U93: Nincs javaslat | V93: 6029.068323 | W93: 7530 | X93: 5779.068323 | Y93: 5729.068323 | Z93: 3029.068323 | AA93: B4300 | AB93: Csavartakaró matrica Nyír 1715 BS | AC93: Van | AD93: 3000 | AE93: 4500 | AF93: 2750 | AG93: 2700 | AH93: 7529.068323 | AI93: Szabott laptermék | AJ93: 5.796
B94: Kortefa-almafa-szilvafa | C94: MINTA | D94: Falco | E94: 489 FS15 | F94: Laminált forgácslapok | G94: 18mm | H94: 2800X2070mm | I94: Calvados (Falco) | J94: Tbl | K94: 24556.48 | L94: 19556.48 | M94: 17556.48 | N94: HD 222951 | O94: Nincs | P94: Kiemelt szín | Q94: Sík, selyemfényű | R94: Nincs | S94: 2800 | T94: 2070 | U94: Nincs javaslat | V94: 6029.068323 | W94: 7530 | X94: 5779.068323 | Y94: 5729.068323 | Z94: 3029.068323 | AA94: Nincs | AB94: Csavartakaró matrica Calvados 1792 BS | AC94: Van | AD94: 3000 | AE94: 4500 | AF94: 2750 | AG94: 2700 | AH94: 7529.068323 | AI94: Szabott laptermék | AJ94: 5.796
B95: Dio-mogyoro-gesztenye | C95: MINTA | D95: Falco | E95: 508 FS15 | F95: Laminált forgácslapok | G95: 18mm | H95: 2800X2070mm | I95: Lyoni dió (Falco) | J95: Tbl | K95: 31231.6 | L95: 26231.6 | M95: 24231.6 | N95: HD 284734 | O95: H3734 ST9 | P95: Kiemelt szín | Q95: Sík, selyemfényű | R95: 729 HDF | S95: 2800 | T95: 2070 | U95: K020 PW | V95: 7180.745342 | W95: 8680 | X95: 6930.745342 | Y95: 6880.745342 | Z95: 4180.745342 | AA95: Nincs | AB95: Csavartakaró matrica Dijoni natúr dió H3734 ST9 | AC95: Van | AD95: 3000 | AE95: 4500 | AF95: 2750 | AG95: 2700 | AH95: 8680.745342 | AI95: Szabott laptermék | AJ95: 5.796
B96: Kortefa-almafa-szilvafa | C96: MINTA | D96: Falco | E96: 551 FS15 | F96: Laminált forgácslapok | G96: 18mm | H96: 2800X2070mm | I96: Sötét szilva | J96: Tbl | K96: 25562.32 | L96: 20562.32 | M96: 18562.32 | N96: HD 225129 | O96: Nincs | P96: Kiemelt szín | Q96: Sík, selyemfényű | R96: K004 HDF | S96: 2800 | T96: 2070 | U96: 641 FS26 | V96: 6202.608696 | W96: 7705 | X96: 5952.608696 | Y96: 5902.608696 | Z96: 3202.608696 | AA96: Nincs | AB96: Csavartakaró matrica Sötét szilva 551 FS15 | AC96: Van | AD96: 3000 | AE96: 4500 | AF96: 2750 | AG96: 2700 | AH96: 7702.608696 | AI96: Szabott laptermék | AJ96: 5.796
B97: vilagostolgy | C97: MINTA | D97: Kronospan | E97: 5527 SN | F97: Laminált forgácslapok | G97: 18mm | H97: 2800X2070mm | I97: Paleo tölgy | J97: Tbl | K97: 34614.88 | L97: 29614.88 | M97: 27614.88 | N97: HD 246527 | O97: Nincs | P97: Alap szín | Q97: Mély erezett | R97: K021 HDF | S97: 2800 | T97: 2070 | U97: 8431 SN | V97: 7964.47205 | W97: 9485 | X97: 7784.47205 | Y97: 7764.47205 | Z97: 4764.47205 | AA97: Nincs | AB97: Nincs | AC97: Van | AD97: 3200 | AE97: 4720 | AF97: 3020 | AG97: 3000 | AH97: 9484.47205 | AI97: Szabott laptermék | AJ97: 5.796
B98: Tropusi | C98: MINTA | D98: Kronospan | E98: 5529 SN | F98: Laminált forgácslapok | G98: 18mm | H98: 2800X2070mm | I98: Oregon | J98: Tbl | K98: 34614.88 | L98: 29614.88 | M98: 27614.88 | N98: HD 244176 | O98: Nincs | P98: Alap szín | Q98: Mély erezett | R98: K011 HDF | S98: 2800 | T98: 2070 | U98: K022 SN | V98: 7964.47205 | W98: 9485 | X98: 7784.47205 | Y98: 7764.47205 | Z98: 4764.47205 | AA98: Nincs | AB98: Csavartakaró matrica Luna szilva 611 FS22 | AC98: Van | AD98: 3200 | AE98: 4720 | AF98: 3020 | AG98: 3000 | AH98: 9484.47205 | AI98: Szabott laptermék | AJ98: 5.796
B99: koris-akac | C99: MINTA | D99: Falco | E99: 572 FS22 | F99: Laminált forgácslapok | G99: 18mm | H99: 2800X2070mm | I99: Coimbra | J99: Tbl | K99: 31231.6 | L99: 26231.6 | M99: 24231.6 | N99: HD 267777 | O99: Nincs | P99: Alap szín | Q99: Mély erezett | R99: K012 HDF | S99: 2800 | T99: 2070 | U99: D0184 MX | V99: 7380.745342 | W99: 8900 | X99: 7200.745342 | Y99: 7180.745342 | Z99: 4180.745342 | AA99: Nincs | AB99: Csavartakaró matrica Coimbra 572 FS22 | AC99: Van | AD99: 3200 | AE99: 4720 | AF99: 3020 | AG99: 3000 | AH99: 8900.745342 | AI99: Szabott laptermék | AJ99: 5.796
B100: vilagostolgy | C100: MINTA | D100: Falco | E100: 577 FS22 | F100: Laminált forgácslapok | G100: 18mm | H100: 2800X2070mm | I100: Sonoma tölgy (Falco) | J100: Tbl | K100: 24556.48 | L100: 19556.48 | M100: 17556.48 | N100: HD 243145 | O100: H1145 ST10 | P100: Akciós fautánzat szín | Q100: Mély erezett | R100: 3025 HDF | S100: 2800 | T100: 2070 | U100: Nincs javaslat | V100: 5829.068323 | W100: 6830 | X100: 5499.068323 | Y100: 5459.068323 | Z100: 3029.068323 | AA100: B5890 | AB100: Csavartakaró matrica Sonoma tölgy sötét 577 FS22 | AC100: Van | AD100: 2800 | AE100: 4000 | AF100: 2470 | AG100: 2430 | AH100: 6829.068323 | AI100: Akciós laptermék | AJ100: 5.796
B101: sotettolgy | C101: MINTA | D101: Falco | E101: 578 FS22 | F101: Laminált forgácslapok | G101: 18mm | H101: 2800X2070mm | I101: Sonoma Tölgy barna | J101: Tbl | K101: 31231.6 | L101: 26231.6 | M101: 24231.6 | N101: HD 227967 | O101: Nincs | P101: Kiemelt szín | Q101: Mély erezett | R101: 729 HDF | S101: 2800 | T101: 2070 | U101: D2194 PR | V101: 7180.745342 | W101: 8680 | X101: 6930.745342 | Y101: 6880.745342 | Z101: 4180.745342 | AA101: Nincs | AB101: Csavartakaró matrica Sonoma tölgy barna 578 FS22 | AC101: Van | AD101: 3000 | AE101: 4500 | AF101: 2750 | AG101: 2700 | AH101: 8680.745342 | AI101: Szabott laptermék | AJ101: 5.796
B102: vilagostolgy | C102: MINTA | D102: Falco | E102: 582 FS22 | F102: Laminált forgácslapok | G102: 18mm | H102: 2800X2070mm | I102: River Tölgy | J102: Tbl | K102: 32786.08 | L102: 27786.08 | M102: 25786.08 | N102: HD 261298 | O102: Nincs | P102: Alap szín | Q102: Mély erezett | R102: K019 HDF | S102: 2800 | T102: 2070 | U102: K085 PW | V102: 7648.944099 | W102: 9170 | X102: 7468.944099 | Y102: 7448.944099 | Z102: 4448.944099 | AA102: Nincs | AB102: Csavartakaró matrica River tölgy 582 FS22 | AC102: Van | AD102: 3200 | AE102: 4720 | AF102: 3020 | AG102: 3000 | AH102: 9168.944099 | AI102: Szabott laptermék | AJ102: 5.796
B103: vilagostolgy | C103: MINTA | D103: Falco | E103: 583 FS22 | F103: Laminált forgácslapok | G103: 18mm | H103: 2800X2070mm | I103: Spanyol Tölgy | J103: Tbl | K103: 32786.08 | L103: 27786.08 | M103: 25786.08 | N103: HD 24086 | O103: Nincs | P103: Alap szín | Q103: Mély erezett | R103: K006 HDF | S103: 2800 | T103: 2070 | U103: K006 PW | V103: 7648.944099 | W103: 9170 | X103: 7468.944099 | Y103: 7448.944099 | Z103: 4448.944099 | AA103: Nincs | AB103: Csavartakaró matrica Spanyol tölgy 583 FS22 | AC103: Van | AD103: 3200 | AE103: 4720 | AF103: 3020 | AG103: 3000 | AH103: 9168.944099 | AI103: Szabott laptermék | AJ103: 5.796
B104: sotettolgy | C104: MINTA | D104: Falco | E104: 586 FS22 | F104: Laminált forgácslapok | G104: 18mm | H104: 2800X2070mm | I104: Csoko sonoma tölgy | J104: Tbl | K104: 31231.6 | L104: 26231.6 | M104: 24231.6 | N104: HD 243215 | O104: Nincs | P104: Alap szín | Q104: Mély erezett | R104: 854 HDF | S104: 2800 | T104: 2070 | U104: 8548 SN | V104: 7380.745342 | W104: 8900 | X104: 7200.745342 | Y104: 7180.745342 | Z104: 4180.745342 | AA104: Nincs | AB104: Csavartakaró matrica Fineline sötét 8548 SN | AC104: Van | AD104: 3200 | AE104: 4720 | AF104: 3020 | AG104: 3000 | AH104: 8900.745342 | AI104: Szabott laptermék | AJ104: 5.796
B105: vilagostolgy | C105: MINTA | D105: Falco | E105: 587 FS22 | F105: Laminált forgácslapok | G105: 18mm | H105: 2800X2070mm | I105: Country tölgy | J105: Tbl | K105: 31231.6 | L105: 26231.6 | M105: 24231.6 | N105: HD 240027 | O105: Nincs | P105: Kiemelt szín | Q105: Mély erezett | R105: 740 HDF | S105: 2800 | T105: 2070 | U105: K078 PW | V105: 7180.745342 | W105: 8680 | X105: 6930.745342 | Y105: 6880.745342 | Z105: 4180.745342 | AA105: Nincs | AB105: Nincs | AC105: Van | AD105: 3000 | AE105: 4500 | AF105: 2750 | AG105: 2700 | AH105: 8680.745342 | AI105: Szabott laptermék | AJ105: 5.796
B106: vilagostolgy | D106: Falco | E106: 588 FS22 | F106: Laminált forgácslapok | G106: 18mm | H106: 2800X2070mm | I106: Canyon tölgy (Falco) | J106: Tbl | K106: 31231.6 | L106: 26231.6 | M106: 24231.6 | N106: HD 244141 | O106: Nincs | P106: Kiemelt szín | Q106: Mély erezett | R106: K105 HDF | S106: 2800 | T106: 2070 | U106: H1146 ST10 | V106: 7180.745342 | W106: 8680 | X106: 6930.745342 | Y106: 6880.745342 | Z106: 4180.745342 | AA106: Nincs | AB106: Csavartakaró matrica Sherwood tölgy A812 PS17 | AC106: Van | AD106: 3000 | AE106: 4500 | AF106: 2750 | AG106: 2700 | AH106: 8680.745342 | AI106: Szabott laptermék | AJ106: 5.796
B107: UNI | C107: MINTA | D107: Kronospan | E107: 5982 BS | F107: Laminált forgácslapok | G107: 18mm | H107: 2800X2070mm | I107: Kagyló | J107: Tbl | K107: 29860 | L107: 24860 | M107: 22860 | N107: HU 125982 | O107: Nincs | P107: Alap szín | Q107: Sík, selyemfényű | R107: 522 HDF | S107: 2800 | T107: 2070 | U107: Nincs javaslat | V107: 7144.099379 | W107: 8665 | X107: 6964.099379 | Y107: 6944.099379 | Z107: 3944.099379 | AA107: B0120 | AB107: Nincs | AC107: Nincs | AD107: 3200 | AE107: 4720 | AF107: 3020 | AG107: 3000 | AH107: 8664.099379 | AI107: Szabott laptermék | AJ107: 5.796
B108: UNI | D108: Kronospan | E108: 5994 SU | F108: Laminált forgácslapok | G108: 18mm | H108: 2800X2070mm | I108: Alby kék | J108: Tbl | K108: 35072.08 | L108: 30072.08 | M108: 28072.08 | N108: HU 156994 | O108: Nincs | P108: Egyéb szín | Q108: Top matt | R108: Nincs | S108: 2800 | T108: 2070 | U108: Nincs javaslat | V108: 8543.354037 | W108: 9645 | X108: 8003.354037 | Y108: 7943.354037 | Z108: 4843.354037 | AA108: B0030 | AB108: Nincs | AC108: Nincs | AD108: 3700 | AE108: 4800 | AF108: 3160 | AG108: 3100 | AH108: 9643.354037 | AI108: Szabott laptermék | AJ108: 5.796
B109: Kortefa-almafa-szilvafa | C109: MINTA | D109: Falco | E109: 611 FS22 | F109: Laminált forgácslapok | G109: 18mm | H109: 2800X2070mm | I109: Luna szilva | J109: Tbl | K109: 32786.08 | L109: 27786.08 | M109: 25786.08 | N109: HD 263158 | O109: Nincs | P109: Alap szín | Q109: Mély erezett | R109: K019 HDF | S109: 2800 | T109: 2070 | U109: H1176 ST37 | V109: 7648.944099 | W109: 9170 | X109: 7468.944099 | Y109: 7448.944099 | Z109: 4448.944099 | AA109: Nincs | AB109: Csavartakaró matrica Luna szilva 611 FS22 | AC109: Van | AD109: 3200 | AE109: 4720 | AF109: 3020 | AG109: 3000 | AH109: 9168.944099 | AI109: Szabott laptermék | AJ109: 5.796
B110: Tropusi | C110: MINTA | D110: Falco | E110: 616 FS08 | F110: Laminált forgácslapok | G110: 18mm | H110: 2800X2070mm | I110: Gyöngy calobra | J110: Tbl | K110: 31231.6 | L110: 26231.6 | M110: 24231.6 | N110: HD 262040 | O110: Nincs | P110: Alap szín | Q110: Top matt | R110: K019 HDF | S110: 2800 | T110: 2070 | U110: H3450 ST22 | V110: 7380.745342 | W110: 8900 | X110: 7200.745342 | Y110: 7180.745342 | Z110: 4180.745342 | AA110: Nincs | AB110: Csavartakaró matrica Kanadai krém juhar H1867 ST9 | AC110: Van | AD110: 3200 | AE110: 4720 | AF110: 3020 | AG110: 3000 | AH110: 8900.745342 | AI110: Szabott laptermék | AJ110: 5.796
B111: Tropusi | C111: MINTA | D111: Falco | E111: 617 FS08 | F111: Laminált forgácslapok | G111: 18mm | H111: 2800X2070mm | I111: Natúr calobra | J111: Tbl | K111: 31231.6 | L111: 26231.6 | M111: 24231.6 | N111: HD 273222 | O111: Nincs | P111: Alap szín | Q111: Top matt | R111: K012 HDF | S111: 2800 | T111: 2070 | U111: Nincs javaslat | V111: 7380.745342 | W111: 8900 | X111: 7200.745342 | Y111: 7180.745342 | Z111: 4180.745342 | AA111: Nincs | AB111: Csavartakaró matrica Ardeni fenyö homok 516 FS22 | AC111: Van | AD111: 3200 | AE111: 4720 | AF111: 3020 | AG111: 3000 | AH111: 8900.745342 | AI111: Szabott laptermék | AJ111: 5.796
B112: vilagostolgy | C112: MINTA | D112: Falco | E112: 621 FS22 | F112: Laminált forgácslapok | G112: 18mm | H112: 2800X2070mm | I112: Kelta tölgy | J112: Tbl | K112: 31231.6 | L112: 26231.6 | M112: 24231.6 | N112: HD 298547 | O112: Nincs | P112: Alap szín | Q112: Mély erezett | R112: K011 HDF | S112: 2800 | T112: 2070 | U112: K019 PW | V112: 7380.745342 | W112: 8900 | X112: 7200.745342 | Y112: 7180.745342 | Z112: 4180.745342 | AA112: Nincs | AB112: Regisztrálatlan | AC112: Van | AD112: 3200 | AE112: 4720 | AF112: 3020 | AG112: 3000 | AH112: 8900.745342 | AI112: Szabott laptermék | AJ112: 5.796
B113: sotettolgy | C113: MINTA | D113: Falco | E113: 622 FS22 | F113: Laminált forgácslapok | G113: 18mm | H113: 2800X2070mm | I113: Szürke sonoma tölgy | J113: Tbl | K113: 27116.8 | L113: 22116.8 | M113: 20116.8 | N113: HD 243197 | O113: Nincs | P113: Kiemelt szín | Q113: Mély erezett | R113: K007 HDF | S113: 2800 | T113: 2070 | U113: H3156 ST12 | V113: 6470.807453 | W113: 7970 | X113: 6220.807453 | Y113: 6170.807453 | Z113: 3470.807453 | AA113: Nincs | AB113: Csavartakaró matrica Sonuma tölgy trüffel D5194 MX | AC113: Van | AD113: 3000 | AE113: 4500 | AF113: 2750 | AG113: 2700 | AH113: 7970.807453 | AI113: Szabott laptermék | AJ113: 5.796
B114: vilagostolgy | C114: MINTA | D114: Falco | E114: 623 FS22 | F114: Laminált forgácslapok | G114: 18mm | H114: 2800X2070mm | I114: Világos monaco tölgy | J114: Tbl | K114: 32786.08 | L114: 27786.08 | M114: 25786.08 | N114: HD 243078 | O114: Nincs | P114: Alap szín | Q114: Mély erezett | R114: K010 HDF | S114: 2800 | T114: 2070 | U114: Nincs javaslat | V114: 7648.944099 | W114: 9170 | X114: 7468.944099 | Y114: 7448.944099 | Z114: 4448.944099 | AA114: Nincs | AB114: Csavartakaró matrica Hacienda fehér 623 FS22 | AC114: Van | AD114: 3200 | AE114: 4720 | AF114: 3020 | AG114: 3000 | AH114: 9168.944099 | AI114: Szabott laptermék | AJ114: 5.796
B115: vilagostolgy | C115: MINTA | D115: Falco | E115: 624 FS22 | F115: Laminált forgácslapok | G115: 18mm | H115: 2800X2070mm | I115: Krém monaco tölgy | J115: Tbl | K115: 32786.08 | L115: 27786.08 | M115: 25786.08 | N115: HD 244139 | O115: D3349 MX | P115: Alap szín | Q115: Mély erezett | R115: 3025 HDF | S115: 2800 | T115: 2070 | U115: H3309 ST28 | V115: 7648.944099 | W115: 9170 | X115: 7468.944099 | Y115: 7448.944099 | Z115: 4448.944099 | AA115: Nincs | AB115: Csavartakaró matrica Coimbra 572 FS22 | AC115: Van | AD115: 3200 | AE115: 4720 | AF115: 3020 | AG115: 3000 | AH115: 9168.944099 | AI115: Szabott laptermék | AJ115: 5.796
B116: vilagostolgy | C116: MINTA | D116: Falco | E116: 627 FS26 | F116: Laminált forgácslapok | G116: 18mm | H116: 2800X2070mm | I116: Fehér arwen tölgy | J116: Tbl | K116: 31231.6 | L116: 26231.6 | M116: 24231.6 | N116: HD 24080 | O116: Nincs | P116: Kiemelt szín | Q116: Pórusnyomott | R116: K001 HDF | S116: 2800 | T116: 2070 | U116: Nincs javaslat | V116: 7180.745342 | W116: 8680 | X116: 6930.745342 | Y116: 6880.745342 | Z116: 4180.745342 | AA116: Nincs | AB116: Nincs | AC116: Van | AD116: 3000 | AE116: 4500 | AF116: 2750 | AG116: 2700 | AH116: 8680.745342 | AI116: Szabott laptermék | AJ116: 5.796
B117: vilagostolgy | C117: MINTA | D117: Falco | E117: 628 FS26 | F117: Laminált forgácslapok | G117: 18mm | H117: 2800X2070mm | I117: Szürke arwen tölgy | J117: Tbl | K117: 31231.6 | L117: 26231.6 | M117: 24231.6 | N117: HD 26089 | O117: Nincs | P117: Kiemelt szín | Q117: Pórusnyomott | R117: K002 HDF | S117: 2800 | T117: 2070 | U117: Nincs javaslat | V117: 7180.745342 | W117: 8680 | X117: 6930.745342 | Y117: 6880.745342 | Z117: 4180.745342 | AA117: Nincs | AB117: Nincs | AC117: Van | AD117: 3000 | AE117: 4500 | AF117: 2750 | AG117: 2700 | AH117: 8680.745342 | AI117: Szabott laptermék | AJ117: 5.796
B118: vilagostolgy | C118: MINTA | D118: Falco | E118: 629 FS26 | F118: Laminált forgácslapok | G118: 18mm | H118: 2800X2070mm | I118: Natúr arwen tölgy | J118: Tbl | K118: 31231.6 | L118: 26231.6 | M118: 24231.6 | N118: HD 243170 | O118: Nincs | P118: Kiemelt szín | Q118: Pórusnyomott | R118: K105 HDF | S118: 2800 | T118: 2070 | U118: 624 FS22 | V118: 7180.745342 | W118: 8680 | X118: 6930.745342 | Y118: 6880.745342 | Z118: 4180.745342 | AA118: Nincs | AB118: Nincs | AC118: Van | AD118: 3000 | AE118: 4500 | AF118: 2750 | AG118: 2700 | AH118: 8680.745342 | AI118: Szabott laptermék | AJ118: 5.796
B119: vilagostolgy | C119: MINTA | D119: Falco | E119: 630 FS26 | F119: Laminált forgácslapok | G119: 18mm | H119: 2800X2070mm | I119: Szürke freya tölgy | J119: Tbl | K119: 32786.08 | L119: 27786.08 | M119: 25786.08 | N119: HD 24630 | O119: Nincs | P119: Alap szín | Q119: Pórusnyomott | R119: K018 HDF | S119: 2800 | T119: 2070 | U119: Nincs javaslat | V119: 7648.944099 | W119: 9170 | X119: 7468.944099 | Y119: 7448.944099 | Z119: 4448.944099 | AA119: Nincs | AB119: Nincs | AC119: Van | AD119: 3200 | AE119: 4720 | AF119: 3020 | AG119: 3000 | AH119: 9168.944099 | AI119: Szabott laptermék | AJ119: 5.796
B120: vilagostolgy | C120: MINTA | D120: Falco | E120: 631 FS26 | F120: Laminált forgácslapok | G120: 18mm | H120: 2800X2070mm | I120: Fekete freya tölgy | J120: Tbl | K120: 32786.08 | L120: 27786.08 | M120: 25786.08 | N120: HD 24631 | O120: Nincs | P120: Alap szín | Q120: Pórusnyomott | R120: K016 HDF | S120: 2800 | T120: 2070 | U120: Nincs javaslat | V120: 7648.944099 | W120: 9170 | X120: 7468.944099 | Y120: 7448.944099 | Z120: 4448.944099 | AA120: Nincs | AB120: Nincs | AC120: Van | AD120: 3200 | AE120: 4720 | AF120: 3020 | AG120: 3000 | AH120: 9168.944099 | AI120: Szabott laptermék | AJ120: 5.796
B121: Dio-mogyoro-gesztenye | C121: MINTA | D121: Falco | E121: 640 FS26 | F121: Laminált forgácslapok | G121: 18mm | H121: 2800X2070mm | I121: Admiral dió | J121: Tbl | K121: 32786.08 | L121: 27786.08 | M121: 25786.08 | N121: HD 283702 | O121: Nincs | P121: Alap szín | Q121: Pórusnyomott | R121: K007 HDF | S121: 2800 | T121: 2070 | U121: Nincs javaslat | V121: 7648.944099 | W121: 9170 | X121: 7468.944099 | Y121: 7448.944099 | Z121: 4448.944099 | AA121: Nincs | AB121: Nincs | AC121: Van | AD121: 3200 | AE121: 4720 | AF121: 3020 | AG121: 3000 | AH121: 9168.944099 | AI121: Szabott laptermék | AJ121: 5.796
B122: Dio-mogyoro-gesztenye | C122: MINTA | D122: Falco | E122: 641 FS26 | F122: Laminált forgácslapok | G122: 18mm | H122: 2800X2070mm | I122: Virginiai gesztenye | J122: Tbl | K122: 31231.6 | L122: 26231.6 | M122: 24231.6 | N122: HD 267777 | O122: Nincs | P122: Alap szín | Q122: Pórusnyomott | R122: 3025 HDF | S122: 2800 | T122: 2070 | U122: Nincs javaslat | V122: 7380.745342 | W122: 8900 | X122: 7200.745342 | Y122: 7180.745342 | Z122: 4180.745342 | AA122: Nincs | AB122: Nincs | AC122: Van | AD122: 3200 | AE122: 4720 | AF122: 3020 | AG122: 3000 | AH122: 8900.745342 | AI122: Szabott laptermék | AJ122: 5.796
B123: vilagostolgy | C123: MINTA | D123: Falco | E123: 642 FS26 | F123: Laminált forgácslapok | G123: 18mm | H123: 2800X2070mm | I123: Dakota tölgy | J123: Tbl | K123: 31231.6 | L123: 26231.6 | M123: 24231.6 | N123: HD 243171 | O123: Nincs | P123: Kiemelt szín | Q123: Pórusnyomott | R123: K021 HDF | S123: 2800 | T123: 2070 | U123: K086 PW | V123: 7180.745342 | W123: 8680 | X123: 6930.745342 | Y123: 6880.745342 | Z123: 4180.745342 | AA123: Nincs | AB123: Nincs | AC123: Van | AD123: 3000 | AE123: 4500 | AF123: 2750 | AG123: 2700 | AH123: 8680.745342 | AI123: Szabott laptermék | AJ123: 5.796
B124: Orokzold | C124: MINTA | D124: Falco | E124: 663 FS22 | F124: Laminált forgácslapok | G124: 18mm | H124: 2800X2070mm | I124: Északi fenyő | J124: Tbl | K124: 32786.08 | L124: 27786.08 | M124: 25786.08 | N124: HD 291424 | O124: Nincs | P124: Alap szín | Q124: Mély erezett | R124: K001 HDF | S124: 2800 | T124: 2070 | U124: Nincs javaslat | V124: 7648.944099 | W124: 9170 | X124: 7468.944099 | Y124: 7448.944099 | Z124: 4448.944099 | AA124: Nincs | AB124: Nincs | AC124: Van | AD124: 3200 | AE124: 4720 | AF124: 3020 | AG124: 3000 | AH124: 9168.944099 | AI124: Szabott laptermék | AJ124: 5.796
B125: sotettolgy | D125: Falco | E125: 665 FS26 | F125: Laminált forgácslapok | G125: 18mm | H125: 2800X2070mm | I125: Apolsa Tölgy | J125: Tbl | K125: 31231.6 | L125: 26231.6 | M125: 24231.6 | N125: HD 243181 | O125: Nincs | P125: Alap szín | Q125: Pórusnyomott | R125: K007 HDF | S125: 2800 | T125: 2070 | U125: Nincs javaslat | V125: 7380.745342 | W125: 8900 | X125: 7200.745342 | Y125: 7180.745342 | Z125: 4180.745342 | AA125: Nincs | AB125: Nincs | AC125: Van | AD125: 3200 | AE125: 4720 | AF125: 3020 | AG125: 3000 | AH125: 8900.745342 | AI125: Szabott laptermék | AJ125: 5.796
B126: vilagostolgy | D126: Falco | E126: 668 FS26 | F126: Laminált forgácslapok | G126: 18mm | H126: 2800X2070mm | I126: Wallpole Tölgy | J126: Tbl | K126: 27116.8 | L126: 22116.8 | M126: 20116.8 | N126: HD 241318 | O126: Nincs | P126: Akciós fautánzat szín | Q126: Pórusnyomott | R126: K006 HDF | S126: 2800 | T126: 2070 | U126: Nincs javaslat | V126: 6270.807453 | W126: 7470 | X126: 5940.807453 | Y126: 5900.807453 | Z126: 3470.807453 | AA126: Nincs | AB126: Nincs | AC126: Van | AD126: 2800 | AE126: 4000 | AF126: 2470 | AG126: 2430 | AH126: 7470.807453 | AI126: Szabott laptermék | AJ126: 5.796
B127: Dio-mogyoro-gesztenye | D127: Falco | E127: 669 FS26 | F127: Laminált forgácslapok | G127: 18mm | H127: 2800X2070mm | I127: Benevente | J127: Tbl | K127: 31231.6 | L127: 26231.6 | M127: 24231.6 | N127: HD 29669 | O127: Nincs | P127: Alap szín | Q127: Pórusnyomott | R127: K004 HDF | S127: 2800 | T127: 2070 | U127: Nincs javaslat | V127: 7380.745342 | W127: 8900 | X127: 7200.745342 | Y127: 7180.745342 | Z127: 4180.745342 | AA127: Nincs | AB127: Nincs | AC127: Van | AD127: 3200 | AE127: 4720 | AF127: 3020 | AG127: 3000 | AH127: 8900.745342 | AI127: Szabott laptermék | AJ127: 5.796
B128: vilagostolgy | D128: Falco | E128: 671 FS26 | F128: Laminált forgácslapok | G128: 18mm | H128: 2800X2070mm | I128: Világos Partosa Tölgy | J128: Tbl | K128: 32786.08 | L128: 27786.08 | M128: 25786.08 | N128: HD 243331 | O128: Nincs | P128: Alap szín | Q128: Pórusnyomott | R128: K021 HDF | S128: 2800 | T128: 2070 | U128: Nincs javaslat | V128: 7648.944099 | W128: 9170 | X128: 7468.944099 | Y128: 7448.944099 | Z128: 4448.944099 | AA128: Nincs | AB128: Nincs | AC128: Van | AD128: 3200 | AE128: 4720 | AF128: 3020 | AG128: 3000 | AH128: 9168.944099 | AI128: Szabott laptermék | AJ128: 5.796
B129: sotettolgy | D129: Falco | E129: 672 FS26 | F129: Laminált forgácslapok | G129: 18mm | H129: 2800X2070mm | I129: Sötét partosa Tölgy | J129: Tbl | K129: 32786.08 | L129: 27786.08 | M129: 25786.08 | N129: HD 298545 | O129: Nincs | P129: Alap szín | Q129: Pórusnyomott | R129: K007 HDF | S129: 2800 | T129: 2070 | U129: Nincs javaslat | V129: 7648.944099 | W129: 9170 | X129: 7468.944099 | Y129: 7448.944099 | Z129: 4448.944099 | AA129: Nincs | AB129: Nincs | AC129: Van | AD129: 3200 | AE129: 4720 | AF129: 3020 | AG129: 3000 | AH129: 9168.944099 | AI129: Szabott laptermék | AJ129: 5.796
B130: vilagostolgy | D130: Falco | E130: 673 FS26 | F130: Laminált forgácslapok | G130: 18mm | H130: 2800X2070mm | I130: Világos Kent Tölgy | J130: Tbl | K130: 31231.6 | L130: 26231.6 | M130: 24231.6 | N130: HD 253760 | O130: Nincs | P130: Alap szín | Q130: Pórusnyomott | R130: K019 HDF | S130: 2800 | T130: 2070 | U130: Nincs javaslat | V130: 7380.745342 | W130: 8900 | X130: 7200.745342 | Y130: 7180.745342 | Z130: 4180.745342 | AA130: Nincs | AB130: Nincs | AC130: Van | AD130: 3200 | AE130: 4720 | AF130: 3020 | AG130: 3000 | AH130: 8900.745342 | AI130: Szabott laptermék | AJ130: 5.796
B131: vilagostolgy | D131: Falco | E131: 674 FS26 | F131: Laminált forgácslapok | G131: 18mm | H131: 2800X2070mm | I131: Natúr Kent Tölgy | J131: Tbl | K131: 31231.6 | L131: 26231.6 | M131: 24231.6 | N131: HD 243145 | O131: Nincs | P131: Alap szín | Q131: Pórusnyomott | R131: K105 HDF | S131: 2800 | T131: 2070 | U131: Nincs javaslat | V131: 7380.745342 | W131: 8900 | X131: 7200.745342 | Y131: 7180.745342 | Z131: 4180.745342 | AA131: Nincs | AB131: Nincs | AC131: Van | AD131: 3200 | AE131: 4720 | AF131: 3020 | AG131: 3000 | AH131: 8900.745342 | AI131: Szabott laptermék | AJ131: 5.796
B132: sotettolgy | D132: Falco | E132: 675 FS26 | F132: Laminált forgácslapok | G132: 18mm | H132: 2800X2070mm | I132: Szürke Kent Tölgy | J132: Tbl | K132: 31231.6 | L132: 26231.6 | M132: 24231.6 | N132: HD 241146 | O132: Nincs | P132: Alap szín | Q132: Pórusnyomott | R132: K105 HDF | S132: 2800 | T132: 2070 | U132: Nincs javaslat | V132: 7380.745342 | W132: 8900 | X132: 7200.745342 | Y132: 7180.745342 | Z132: 4180.745342 | AA132: Nincs | AB132: Nincs | AC132: Van | AD132: 3200 | AE132: 4720 | AF132: 3020 | AG132: 3000 | AH132: 8900.745342 | AI132: Szabott laptermék | AJ132: 5.796
B133: vilagostolgy | D133: Falco | E133: 676 FS26 | F133: Laminált forgácslapok | G133: 18mm | H133: 2800X2070mm | I133: Világos Piemona Tölgy | J133: Tbl | K133: 32786.08 | L133: 27786.08 | M133: 25786.08 | N133: HD 253760 | O133: Nincs | P133: Alap szín | Q133: Pórusnyomott | R133: K019 HDF | S133: 2800 | T133: 2070 | U133: Nincs javaslat | V133: 7648.944099 | W133: 9170 | X133: 7468.944099 | Y133: 7448.944099 | Z133: 4448.944099 | AA133: Nincs | AB133: Nincs | AC133: Van | AD133: 3200 | AE133: 4720 | AF133: 3020 | AG133: 3000 | AH133: 9168.944099 | AI133: Szabott laptermék | AJ133: 5.796
B134: vilagostolgy | D134: Falco | E134: 677 FS26 | F134: Laminált forgácslapok | G134: 18mm | H134: 2800X2070mm | I134: Natúr Piemona Tölgy | J134: Tbl | K134: 32786.08 | L134: 27786.08 | M134: 25786.08 | N134: HD 264023 | O134: Nincs | P134: Alap szín | Q134: Pórusnyomott | R134: K011 HDF | S134: 2800 | T134: 2070 | U134: Nincs javaslat | V134: 7648.944099 | W134: 9170 | X134: 7468.944099 | Y134: 7448.944099 | Z134: 4448.944099 | AA134: Nincs | AB134: Nincs | AC134: Van | AD134: 3200 | AE134: 4720 | AF134: 3020 | AG134: 3000 | AH134: 9168.944099 | AI134: Szabott laptermék | AJ134: 5.796
B135: sotettolgy | D135: Falco | E135: 678 FS26 | F135: Laminált forgácslapok | G135: 18mm | H135: 2800X2070mm | I135: Sötét Piamona Tölgy | J135: Tbl | K135: 32786.08 | L135: 27786.08 | M135: 25786.08 | N135: HD 240678 | O135: Nincs | P135: Alap szín | Q135: Pórusnyomott | R135: Nincs | S135: 2800 | T135: 2070 | U135: Nincs javaslat | V135: 7648.944099 | W135: 9170 | X135: 7468.944099 | Y135: 7448.944099 | Z135: 4448.944099 | AA135: Nincs | AB135: Nincs | AC135: Van | AD135: 3200 | AE135: 4720 | AF135: 3020 | AG135: 3000 | AH135: 9168.944099 | AI135: Szabott laptermék | AJ135: 5.796
B136: vilagostolgy | D136: Falco | E136: 682 FS26 | F136: Laminált forgácslapok | G136: 18mm | H136: 2800X2070mm | I136: Natúr Arcena Tölgy | J136: Tbl | K136: 31231.6 | L136: 26231.6 | M136: 24231.6 | N136: HD 243309 | O136: Nincs | P136: Alap szín | Q136: Pórusnyomott | R136: K105 HDF | S136: 2800 | T136: 2070 | U136: Nincs javaslat | V136: 7380.745342 | W136: 8900 | X136: 7200.745342 | Y136: 7180.745342 | Z136: 4180.745342 | AA136: Nincs | AB136: Nincs | AC136: Van | AD136: 3200 | AE136: 4720 | AF136: 3020 | AG136: 3000 | AH136: 8900.745342 | AI136: Szabott laptermék | AJ136: 5.796
B137: sotettolgy | D137: Falco | E137: 683 FS26 | F137: Laminált forgácslapok | G137: 18mm | H137: 2800X2070mm | I137: Sötét Arcena Tölgy | J137: Tbl | K137: 31231.6 | L137: 26231.6 | M137: 24231.6 | N137: HD 242360 | O137: Nincs | P137: Alap szín | Q137: Pórusnyomott | R137: K007 HDF | S137: 2800 | T137: 2070 | U137: Nincs javaslat | V137: 7380.745342 | W137: 8900 | X137: 7200.745342 | Y137: 7180.745342 | Z137: 4180.745342 | AA137: Nincs | AB137: Nincs | AC137: Van | AD137: 3200 | AE137: 4720 | AF137: 3020 | AG137: 3000 | AH137: 8900.745342 | AI137: Szabott laptermék | AJ137: 5.796
B138: vilagostolgy | D138: Falco | E138: 684 FS26 | F138: Laminált forgácslapok | G138: 18mm | H138: 2800X2070mm | I138: Palas Tölgy | J138: Tbl | K138: 32786.08 | L138: 27786.08 | M138: 25786.08 | N138: HD 24081 | O138: Nincs | P138: Alap szín | Q138: Pórusnyomott | R138: K002 HDF | S138: 2800 | T138: 2070 | U138: Nincs javaslat | V138: 7648.944099 | W138: 9170 | X138: 7468.944099 | Y138: 7448.944099 | Z138: 4448.944099 | AA138: Nincs | AB138: Nincs | AC138: Van | AD138: 3200 | AE138: 4720 | AF138: 3020 | AG138: 3000 | AH138: 9168.944099 | AI138: Szabott laptermék | AJ138: 5.796
B139: vilagostolgy | D139: Falco | E139: 685 FS26 | F139: Laminált forgácslapok | G139: 18mm | H139: 2800X2070mm | I139: Világos Dylan Tölgy | J139: Tbl | K139: 32786.08 | L139: 27786.08 | M139: 25786.08 | N139: HD 244420 | O139: Nincs | P139: Alap szín | Q139: Pórusnyomott | R139: K021 HDF | S139: 2800 | T139: 2070 | U139: Nincs javaslat | V139: 7648.944099 | W139: 9170 | X139: 7468.944099 | Y139: 7448.944099 | Z139: 4448.944099 | AA139: Nincs | AB139: Nincs | AC139: Van | AD139: 3200 | AE139: 4720 | AF139: 3020 | AG139: 3000 | AH139: 9168.944099 | AI139: Szabott laptermék | AJ139: 5.796
B140: sotettolgy | D140: Falco | E140: 686 FS26 | F140: Laminált forgácslapok | G140: 18mm | H140: 2800X2070mm | I140: Sötét Dylan Tölgy | J140: Tbl | K140: 32786.08 | L140: 27786.08 | M140: 25786.08 | N140: HD 284887 | O140: Nincs | P140: Alap szín | Q140: Pórusnyomott | R140: K007 HDF | S140: 2800 | T140: 2070 | U140: Nincs javaslat | V140: 7648.944099 | W140: 9170 | X140: 7468.944099 | Y140: 7448.944099 | Z140: 4448.944099 | AA140: Nincs | AB140: Nincs | AC140: Van | AD140: 3200 | AE140: 4720 | AF140: 3020 | AG140: 3000 | AH140: 9168.944099 | AI140: Szabott laptermék | AJ140: 5.796
B141: vilagostolgy | D141: Falco | E141: 687 FS26 | F141: Laminált forgácslapok | G141: 18mm | H141: 2800X2070mm | I141: Tristan Tölgy | J141: Tbl | K141: 31231.6 | L141: 26231.6 | M141: 24231.6 | N141: HD 244420 | O141: Nincs | P141: Alap szín | Q141: Pórusnyomott | R141: K021 HDF | S141: 2800 | T141: 2070 | U141: Nincs javaslat | V141: 7380.745342 | W141: 8900 | X141: 7200.745342 | Y141: 7180.745342 | Z141: 4180.745342 | AA141: Nincs | AB141: Nincs | AC141: Van | AD141: 3200 | AE141: 4720 | AF141: 3020 | AG141: 3000 | AH141: 8900.745342 | AI141: Szabott laptermék | AJ141: 5.796
B142: koris-akac | D142: Falco | E142: 688 FS26 | F142: Laminált forgácslapok | G142: 18mm | H142: 2800X2070mm | I142: Natút Othello Kőris | J142: Tbl | K142: 31231.6 | L142: 26231.6 | M142: 24231.6 | N142: HD 243170 | O142: Nincs | P142: Alap szín | Q142: Pórusnyomott | R142: K021 HDF | S142: 2800 | T142: 2070 | U142: Nincs javaslat | V142: 7380.745342 | W142: 8900 | X142: 7200.745342 | Y142: 7180.745342 | Z142: 4180.745342 | AA142: Nincs | AB142: Nincs | AC142: Van | AD142: 3200 | AE142: 4720 | AF142: 3020 | AG142: 3000 | AH142: 8900.745342 | AI142: Szabott laptermék | AJ142: 5.796
B143: koris-akac | D143: Falco | E143: 689 FS26 | F143: Laminált forgácslapok | G143: 18mm | H143: 2800X2070mm | I143: Sötét Othello Kőris | J143: Tbl | K143: 31231.6 | L143: 26231.6 | M143: 24231.6 | N143: HD 241113 | O143: Nincs | P143: Alap szín | Q143: Pórusnyomott | R143: K007 HDF | S143: 2800 | T143: 2070 | U143: Nincs javaslat | V143: 7380.745342 | W143: 8900 | X143: 7200.745342 | Y143: 7180.745342 | Z143: 4180.745342 | AA143: Nincs | AB143: Nincs | AC143: Van | AD143: 3200 | AE143: 4720 | AF143: 3020 | AG143: 3000 | AH143: 8900.745342 | AI143: Szabott laptermék | AJ143: 5.796
B144: vilagostolgy | C144: MINTA | D144: Falco | E144: 697 FS22 | F144: Laminált forgácslapok | G144: 18mm | H144: 2800X2070mm | I144: Rauna szil világos | J144: Tbl | K144: 27116.8 | L144: 22116.8 | M144: 20116.8 | N144: HD 243326 | O144: Nincs | P144: Akciós fautánzat szín | Q144: Mély erezett | R144: 3025 HDF | S144: 2800 | T144: 2070 | U144: Nincs javaslat | V144: 6270.807453 | W144: 7470 | X144: 5940.807453 | Y144: 5900.807453 | Z144: 3470.807453 | AA144: Nincs | AB144: Csavartakaró matrica Rauna szil világos 697 FS22 | AC144: Van | AD144: 2800 | AE144: 4000 | AF144: 2470 | AG144: 2430 | AH144: 7470.807453 | AI144: Szabott laptermék | AJ144: 5.796
B145: sotettolgy | C145: MINTA | D145: Falco | E145: 698 FS22 | F145: Laminált forgácslapok | G145: 18mm | H145: 2800X2070mm | I145: Rauna szil sötét | J145: Tbl | K145: 27116.8 | L145: 22116.8 | M145: 20116.8 | N145: HD 243133 | O145: Nincs | P145: Kiemelt szín | Q145: Mély erezett | R145: K007 HDF | S145: 2800 | T145: 2070 | U145: K007 PW | V145: 6470.807453 | W145: 7970 | X145: 6220.807453 | Y145: 6170.807453 | Z145: 3470.807453 | AA145: Nincs | AB145: Csavartakaró matrica Rauna szil sötét 698 FS22 | AC145: Van | AD145: 3000 | AE145: 4500 | AF145: 2750 | AG145: 2700 | AH145: 7970.807453 | AI145: Szabott laptermék | AJ145: 5.796
B146: UNI | C146: MINTA | D146: Kronospan | E146: 7031 BS | F146: Laminált forgácslapok | G146: 18mm | H146: 2800X2070mm | I146: Krém | J146: Tbl | K146: 29860 | L146: 24860 | M146: 22860 | N146: HU 12104 | O146: U104 ST9 | P146: Kiemelt szín | Q146: Sík, selyemfényű | R146: 522 HDF | S146: 2800 | T146: 2070 | U146: Nincs javaslat | V146: 6944.099379 | W146: 8445 | X146: 6694.099379 | Y146: 6644.099379 | Z146: 3944.099379 | AA146: B0120 | AB146: Nincs | AC146: Nincs | AD146: 3000 | AE146: 4500 | AF146: 2750 | AG146: 2700 | AH146: 8444.099379 | AI146: Szabott laptermék | AJ146: 5.796
B147: UNI | C147: MINTA | D147: Kronospan | E147: 7063 SU | F147: Laminált forgácslapok | G147: 18mm | H147: 2800X2070mm | I147: Pasztel zöld | J147: Tbl | K147: 35072.08 | L147: 30072.08 | M147: 28072.08 | N147: HU 167063 | O147: Nincs | P147: Egyéb szín | Q147: Top matt | R147: Nincs | S147: 2800 | T147: 2070 | U147: Nincs javaslat | V147: 8543.354037 | W147: 9645 | X147: 8003.354037 | Y147: 7943.354037 | Z147: 4843.354037 | AA147: B0120 | AB147: Nincs | AC147: Nincs | AD147: 3700 | AE147: 4800 | AF147: 3160 | AG147: 3100 | AH147: 9643.354037 | AI147: Szabott laptermék | AJ147: 5.796
B148: UNI | D148: Kronospan | E148: 7113 BS | F148: Laminált forgácslapok | G148: 18mm | H148: 2800X2070mm | I148: Chili vörös | J148: Tbl | K148: 35072.08 | L148: 30072.08 | M148: 28072.08 | N148: HU 137113 | O148: 207 FS15 | P148: Helyettesíthető szín | Q148: Sík, selyemfényű | R148: Nincs | S148: 2800 | T148: 2070 | U148: U321 ST9 | V148: 8843.354037 | W148: 9845 | X148: 8003.354037 | Y148: 7943.354037 | Z148: 4843.354037 | AA148: B0120 | AB148: Nincs | AC148: Nincs | AD148: 4000 | AE148: 5000 | AF148: 3160 | AG148: 3100 | AH148: 9843.354037 | AI148: Szabott laptermék | AJ148: 5.796
B149: UNI | D149: Kronospan | E149: 7181 BS | F149: Laminált forgácslapok | G149: 18mm | H149: 2800X2070mm | I149: Étcsokoládé | J149: Tbl | K149: 35072.08 | L149: 30072.08 | M149: 28072.08 | N149: HU 188181 | O149: Nincs | P149: Egyéb szín | Q149: Sík, selyemfényű | R149: Nincs | S149: 2800 | T149: 2070 | U149: Nincs javaslat | V149: 8543.354037 | W149: 9645 | X149: 8003.354037 | Y149: 7943.354037 | Z149: 4843.354037 | AA149: B0030 | AB149: Nincs | AC149: Nincs | AD149: 3700 | AE149: 4800 | AF149: 3160 | AG149: 3100 | AH149: 9643.354037 | AI149: Szabott laptermék | AJ149: 5.796
B150: UNI | D150: Kronospan | E150: 7190 BS | F150: Laminált forgácslapok | G150: 18mm | H150: 2800X2070mm | I150: Mamba Zöld | J150: Tbl | K150: 35072.08 | L150: 30072.08 | M150: 28072.08 | N150: HU 167190 | O150: Nincs | P150: Egyéb szín | Q150: Sík, selyemfényű | R150: Nincs | S150: 2800 | T150: 2070 | U150: Nincs javaslat | V150: 8543.354037 | W150: 9645 | X150: 8003.354037 | Y150: 7943.354037 | Z150: 4843.354037 | AA150: B0120 | AB150: Nincs | AC150: Nincs | AD150: 3700 | AE150: 4800 | AF150: 3160 | AG150: 3100 | AH150: 9643.354037 | AI150: Szabott laptermék | AJ150: 5.796
B151: UNI | C151: MINTA | D151: Kronospan | E151: 8100 SM | F151: Laminált forgácslapok | G151: 18mm | H151: 2800X2070mm | I151: Gyöngyfehér (Rendelésre kb. 1-2 hét) | J151: Tbl | K151: 29860 | L151: 24860 | M151: 22860 | N151: HU 10113 SM | O151: 103 FS01 | P151: Alap szín | Q151: Tükörsima | R151: 101 HDF | S151: 2800 | T151: 2070 | U151: Nincs javaslat | V151: 7144.099379 | W151: 8665 | X151: 6964.099379 | Y151: 6944.099379 | Z151: 3944.099379 | AA151: B0120 | AB151: Csavartakaró matrica Fehér sima D152 25db/ levél | AC151: Nincs | AD151: 3200 | AE151: 4720 | AF151: 3020 | AG151: 3000 | AH151: 8664.099379 | AI151: Szabott laptermék | AJ151: 5.796
B152: vilagostolgy | C152: MINTA | D152: Kronospan | E152: 8431 SN | F152: Laminált forgácslapok | G152: 18mm | H152: 2800X2070mm | I152: Nagano tölgy | J152: Tbl | K152: 33060.4 | L152: 28060.4 | M152: 26060.4 | N152: HD 248431 | O152: Nincs | P152: Kiemelt szín | Q152: Mély erezett | R152: K006 HDF | S152: 2800 | T152: 2070 | U152: K006 PW | V152: 7496.273292 | W152: 8995 | X152: 7246.273292 | Y152: 7196.273292 | Z152: 4496.273292 | AA152: Nincs | AB152: Csavartakaró matrica Sonoma tölgy sötét 577 FS22 | AC152: Van | AD152: 3000 | AE152: 4500 | AF152: 2750 | AG152: 2700 | AH152: 8996.273292 | AI152: Szabott laptermék | AJ152: 5.796
B153: Tropusi | C153: MINTA | D153: Kronospan | E153: 8548 SN | F153: Laminált forgácslapok | G153: 18mm | H153: 2800X2070mm | I153: Fineline sötét | J153: Tbl | K153: 34614.88 | L153: 29614.88 | M153: 27614.88 | N153: HD 298548 | O153: Nincs | P153: Alap szín | Q153: Mély erezett | R153: 854 HDF | S153: 2800 | T153: 2070 | U153: Nincs javaslat | V153: 7964.47205 | W153: 9485 | X153: 7784.47205 | Y153: 7764.47205 | Z153: 4764.47205 | AA153: B6170 | AB153: Csavartakaró matrica Fineline sötét 8548 SN | AC153: Van | AD153: 3200 | AE153: 4720 | AF153: 3020 | AG153: 3000 | AH153: 9484.47205 | AI153: Szabott laptermék | AJ153: 5.796
B154: vilagostolgy | D154: Kronospan | E154: 8921 BS | F154: Laminált forgácslapok | G154: 18mm | H154: 2800X2070mm | I154: Ferrara tölgy (Kronospan) | J154: Tbl | K154: 28488.4 | L154: 23488.4 | M154: 21488.4 | N154: HD 247921 | O154: Nincs | P154: Alap szín | Q154: Sík, selyemfényű | R154: K019 HDF | S154: 2800 | T154: 2070 | U154: 617 FS08 | V154: 6907.453416 | W154: 8425 | X154: 6727.453416 | Y154: 6707.453416 | Z154: 3707.453416 | AA154: Nincs | AB154: Nincs | AC154: Van | AD154: 3200 | AE154: 4720 | AF154: 3020 | AG154: 3000 | AH154: 8427.453416 | AI154: Szabott laptermék | AJ154: 5.796
B155: Dio-mogyoro-gesztenye | C155: MINTA | D155: Kronospan | E155: 8953 SU | F155: Laminált forgácslapok | G155: 18mm | H155: 2800X2070mm | I155: Tiepolo dió | J155: Tbl | K155: 29860 | L155: 24860 | M155: 22860 | N155: HD 288953 | O155: Nincs | P155: Alap szín | Q155: Top matt | R155: 729 HDF | S155: 2800 | T155: 2070 | U155: H3702 ST10 | V155: 7144.099379 | W155: 8665 | X155: 6964.099379 | Y155: 6944.099379 | Z155: 3944.099379 | AA155: Nincs | AB155: Csavartakaró matrica Dió 729 PR | AC155: Van | AD155: 3200 | AE155: 4720 | AF155: 3020 | AG155: 3000 | AH155: 8664.099379 | AI155: Szabott laptermék | AJ155: 5.796
B156: UNI | D156: Kronospan | E156: 8984 BS | F156: Laminált forgácslapok | G156: 18mm | H156: 2800X2070mm | I156: Sötét kék | J156: Tbl | K156: 35072.08 | L156: 30072.08 | M156: 28072.08 | N156: HU 15128 | O156: Nincs | P156: Egyéb szín | Q156: Sík, selyemfényű | R156: Nincs | S156: 2800 | T156: 2070 | U156: Nincs javaslat | V156: 8543.354037 | W156: 9645 | X156: 8003.354037 | Y156: 7943.354037 | Z156: 4843.354037 | AA156: B0120 | AB156: Nincs | AC156: Nincs | AD156: 3700 | AE156: 4800 | AF156: 3160 | AG156: 3100 | AH156: 9643.354037 | AI156: Szabott laptermék | AJ156: 5.796
B157: Tropusi | C157: MINTA | D157: Kronospan | E157: 8995 SN | F157: Laminált forgácslapok | G157: 18mm | H157: 2800X2070mm | I157: Coco bolo (Kronospan) | J157: Tbl | K157: 34614.88 | L157: 29614.88 | M157: 27614.88 | N157: HD 283012 | O157: H3012 ST22 | P157: Alap szín | Q157: Mély erezett | R157: K013 HDF | S157: 2800 | T157: 2070 | U157: Nincs javaslat | V157: 7964.47205 | W157: 9485 | X157: 7784.47205 | Y157: 7764.47205 | Z157: 4764.47205 | AA157: B5890 | AB157: Csavartakaró matrica Coco Bolo 8995 SN | AC157: Van | AD157: 3200 | AE157: 4720 | AF157: 3020 | AG157: 3000 | AH157: 9484.47205 | AI157: Szabott laptermék | AJ157: 5.796
B158: UNI | D158: Kronospan | E158: 9551 BS | F158: Laminált forgácslapok | G158: 18mm | H158: 2800X2070mm | I158: Sötét vörös | J158: Tbl | K158: 35072.08 | L158: 30072.08 | M158: 28072.08 | N158: HU 139551 | O158: Nincs | P158: Egyéb szín | Q158: Sík, selyemfényű | R158: Nincs | S158: 2800 | T158: 2070 | U158: Nincs javaslat | V158: 8543.354037 | W158: 9645 | X158: 8003.354037 | Y158: 7943.354037 | Z158: 4843.354037 | AA158: B0120 | AB158: Nincs | AC158: Nincs | AD158: 3700 | AE158: 4800 | AF158: 3160 | AG158: 3100 | AH158: 9643.354037 | AI158: Szabott laptermék | AJ158: 5.796
B159: UNI | C159: MINTA | D159: Kronospan | E159: 9561 BS | F159: Laminált forgácslapok | G159: 18mm | H159: 2800X2070mm | I159: Oliva zöld | J159: Tbl | K159: 35072.08 | L159: 30072.08 | M159: 28072.08 | N159: HU 169561 | O159: Nincs | P159: Egyéb szín | Q159: Sík, selyemfényű | R159: Nincs | S159: 2800 | T159: 2070 | U159: Nincs javaslat | V159: 8543.354037 | W159: 9645 | X159: 8003.354037 | Y159: 7943.354037 | Z159: 4843.354037 | AA159: B0120 | AB159: Nincs | AC159: Nincs | AD159: 3700 | AE159: 4800 | AF159: 3160 | AG159: 3100 | AH159: 9643.354037 | AI159: Szabott laptermék | AJ159: 5.796
B160: Dio-mogyoro-gesztenye | C160: MINTA | D160: Kronospan | E160: 9614 BS | F160: Laminált forgácslapok | G160: 18mm | H160: 2800X2070mm | I160: Lyoni dió | J160: Tbl | K160: 28488.4 | L160: 23488.4 | M160: 21488.4 | N160: HD 289714 | O160: Nincs | P160: Kiemelt szín | Q160: Sík, selyemfényű | R160: K021 HDF | S160: 2800 | T160: 2070 | U160: K078 PW | V160: 6707.453416 | W160: 8205 | X160: 6457.453416 | Y160: 6407.453416 | Z160: 3707.453416 | AA160: Nincs | AB160: Nincs | AC160: Van | AD160: 3000 | AE160: 4500 | AF160: 2750 | AG160: 2700 | AH160: 8207.453416 | AI160: Szabott laptermék | AJ160: 5.796
B161: Tropusi | C161: MINTA | D161: Kronospan | E161: 9763 BS | F161: Laminált forgácslapok | G161: 18mm | H161: 2800X2070mm | I161: Luisiana wenge | J161: Tbl | K161: 29860 | L161: 24860 | M161: 22860 | N161: HD 282229 | O161: Nincs | P161: Alap szín | Q161: Sík, selyemfényű | R161: K016 HDF | S161: 2800 | T161: 2070 | U161: Nincs javaslat | V161: 7144.099379 | W161: 8665 | X161: 6964.099379 | Y161: 6944.099379 | Z161: 3944.099379 | AA161: Nincs | AB161: Nincs | AC161: Van | AD161: 3200 | AE161: 4720 | AF161: 3020 | AG161: 3000 | AH161: 8664.099379 | AI161: Szabott laptermék | AJ161: 5.796
B162: Nincs | E162: Bükk19 | F162: Furnérozott forgácslapok | G162: 19mm | H162: 2800X2070mm | I162: Gőzölt bükk furnéros | J162: Tbl | K162: 68747.664 | L162: 69157.38368 | M162: 61747.664 | N162: HD 71010 | O162: Nincs | P162: Exkluzív szín | Q162: Csiszolt fa | R162: Bükk5 | S162: 2800 | T162: 2070 | U162: Nincs javaslat | V162: 14653.4962 | W162: 16155 | X162: 14303.4962 | Y162: 14253.4962 | Z162: 10653.4962 | AA162: Nincs | AB162: Nincs | AC162: Van | AD162: 4000 | AE162: 5500 | AF162: 3650 | AG162: 3600 | AH162: 16153.4962 | AI162: Szabott laptermék | AJ162: 5.796
B163: Nincs | E163: Bükk5 | F163: Rétegelt lemezek | G163: 4,6mm | H163: 2500X1220mm | I163: Bükk/Ellenhúzó | J163: Tbl | K163: 39395.424 | L163: 36282.87488 | M163: 32395.424 | N163: Nem kapható | O163: Nincs | P163: Egész táblás szín | Q163: Csiszolt fa | R163: Nincs | S163: 2500 | T163: 1220 | U163: Nincs javaslat | V163: 14621.45049 | W163: 16470 | X163: 14541.45049 | Y163: 14501.45049 | Z163: 10621.45049 | AA163: Nincs | AB163: Nincs | AC163: Van | AD163: 4000 | AE163: 5850 | AF163: 3920 | AG163: 3880 | AH163: 16471.45049 | AI163: Szabott laptermék | AJ163: 3.05
B164: Fantazia | C164: MINTA | D164: Kronoswiss | E164: D1883 BS | F164: Laminált forgácslapok | G164: 18mm | H164: 2800X2070mm | I164: Beton | J164: Tbl | K164: 29410.42 | L164: 24410.42 | M164: 22410.42 | N164: HD 294298 | O164: Nincs | P164: Egyéb szín | Q164: Sík, selyemfényű | R164: Nincs | S164: 2800 | T164: 2070 | U164: Nincs javaslat | V164: 7566.532091 | W164: 8665 | X164: 7026.532091 | Y164: 6966.532091 | Z164: 3866.532091 | AA164: Nincs | AB164: Nincs | AC164: Van | AD164: 3700 | AE164: 4800 | AF164: 3160 | AG164: 3100 | AH164: 8666.532091 | AI164: Szabott laptermék | AJ164: 5.796
B165: Kortefa-almafa-szilvafa | C165: MINTA | D165: Kronoswiss | E165: D1972 PR | F165: Laminált forgácslapok | G165: 18mm | H165: 2800X2070mm | I165: Olasz alma (Kronoswiss) | J165: Tbl | K165: 27248.88 | L165: 22248.88 | M165: 20248.88 | N165: HD 222951 | O165: Nincs | P165: Alap szín | Q165: Pórusnyomott | R165: Nincs | S165: 2800 | T165: 2070 | U165: Nincs javaslat | V165: 6693.595583 | W165: 8215 | X165: 6513.595583 | Y165: 6493.595583 | Z165: 3493.595583 | AA165: Nincs | AB165: Csavartakaró matrica Olasz alma 468 FS15 | AC165: Van | AD165: 3200 | AE165: 4720 | AF165: 3020 | AG165: 3000 | AH165: 8213.595583 | AI165: Szabott laptermék | AJ165: 5.796
B166: Dio-mogyoro-gesztenye | C166: MINTA | D166: Kronoswiss | E166: D2251 PR | F166: Laminált forgácslapok | G166: 18mm | H166: 2800X2070mm | I166: Dió ecco | J166: Tbl | K166: 27128.23 | L166: 22128.23 | M166: 20128.23 | N166: HD 283102 | O166: Nincs | P166: Egyéb szín | Q166: Pórusnyomott | R166: 729 HDF | S166: 2800 | T166: 2070 | U166: D722 PR | V166: 7172.779503 | W166: 8275 | X166: 6632.779503 | Y166: 6572.779503 | Z166: 3472.779503 | AA166: Nincs | AB166: Csavartakaró matrica Color dió 476 FS15 | AC166: Van | AD166: 3700 | AE166: 4800 | AF166: 3160 | AG166: 3100 | AH166: 8272.779503 | AI166: Szabott laptermék | AJ166: 5.796
B167: Fantazia | C167: MINTA | D167: Kronoswiss | E167: D2899 PE | F167: Laminált forgácslapok | G167: 18mm | H167: 2800X2070mm | I167: Titán | J167: Tbl | K167: 31387.81 | L167: 26387.81 | M167: 24387.81 | N167: HD 290501 | O167: Nincs | P167: Egyéb szín | Q167: Enyhén recés | R167: 540 HDF | S167: 2800 | T167: 2070 | U167: F509 ST2 | V167: 7907.696687 | W167: 9010 | X167: 7367.696687 | Y167: 7307.696687 | Z167: 4207.696687 | AA167: B0300 | AB167: Csavartakaró matrica Titánium F501 ST2 | AC167: Nincs | AD167: 3700 | AE167: 4800 | AF167: 3160 | AG167: 3100 | AH167: 9007.696687 | AI167: Szabott laptermék | AJ167: 5.796
B168: vilagostolgy | C168: MINTA | D168: Kronoswiss | E168: D3267 MX | F168: Laminált forgácslapok | G168: 18mm | H168: 2800X2070mm | I168: Nelson | J168: Tbl | K168: 27373.34 | L168: 22373.34 | M168: 20373.34 | N168: HD 240147 | O168: Nincs | P168: Egyéb szín | Q168: Mély erezett | R168: K105 HDF | S168: 2800 | T168: 2070 | U168: Nincs javaslat | V168: 7215.069013 | W168: 8315 | X168: 6675.069013 | Y168: 6615.069013 | Z168: 3515.069013 | AA168: Nincs | AB168: Csavartakaró matrica Molina homok H1267 ST9 | AC168: Van | AD168: 3700 | AE168: 4800 | AF168: 3160 | AG168: 3100 | AH168: 8315.069013 | AI168: Szabott laptermék | AJ168: 5.796
B169: sotettolgy | C169: MINTA | D169: Kronoswiss | E169: D3312 SD | F169: Laminált forgácslapok | G169: 18mm | H169: 2800X2070mm | I169: Varsó tölgy (KIFUTÓ SZÍN, KÉSZLET EREJÉIG) | J169: Tbl | K169: 37503.25 | L169: 32503.25 | M169: 30503.25 | N169: HD 243133 | O169: Nincs | P169: Egyéb szín | Q169: Szinkron nyomott | R169: K007 HDF | S169: 2800 | T169: 2070 | U169: K087 PW | V169: 8962.810559 | W169: 10065 | X169: 8422.810559 | Y169: 8362.810559 | Z169: 5262.810559 | AA169: Nincs | AB169: Nincs | AC169: Van | AD169: 3700 | AE169: 4800 | AF169: 3160 | AG169: 3100 | AH169: 10062.81056 | AI169: Szabott laptermék | AJ169: 5.796
B170: sotettolgy | C170: MINTA | D170: Kronoswiss | E170: D3313 SD | F170: Laminált forgácslapok | G170: 18mm | H170: 2800X2070mm | I170: Szentpétervár tölgy (KIFUTÓ SZÍN, KÉSZLET EREJÉIG) | J170: Tbl | K170: 37503.25 | L170: 32503.25 | M170: 30503.25 | N170: HD 243326 | O170: Nincs | P170: Egyéb szín | Q170: Szinkron nyomott | R170: K105 HDF | S170: 2800 | T170: 2070 | U170: H1146 ST10 | V170: 8962.810559 | W170: 10065 | X170: 8422.810559 | Y170: 8362.810559 | Z170: 5262.810559 | AA170: Nincs | AB170: Nincs | AC170: Van | AD170: 3700 | AE170: 4800 | AF170: 3160 | AG170: 3100 | AH170: 10062.81056 | AI170: Szabott laptermék | AJ170: 5.796
B171: vilagostolgy | C171: MINTA | D171: Kronoswiss | E171: D3349 MX | F171: Laminált forgácslapok | G171: 18mm | H171: 2800X2070mm | I171: San Marino tölgy | J171: Tbl | K171: 30153.37 | L171: 25153.37 | M171: 23153.37 | N171: HD 244139 | O171: 624 FS22 | P171: Alap szín | Q171: Mély erezett | R171: 3025 HDF | S171: 2800 | T171: 2070 | U171: 572 FS22 | V171: 7194.715321 | W171: 8715 | X171: 7014.715321 | Y171: 6994.715321 | Z171: 3994.715321 | AA171: Nincs | AB171: Csavartakaró matrica Coimbra 572 FS22 | AC171: Van | AD171: 3200 | AE171: 4720 | AF171: 3020 | AG171: 3000 | AH171: 8714.715321 | AI171: Szabott laptermék | AJ171: 5.796
B172: sotettolgy | C172: MINTA | D172: Kronoswiss | E172: D4019 OW | F172: Laminált forgácslapok | G172: 18mm | H172: 2800X2070mm | I172: Monteverde | J172: Tbl | K172: 30704.55 | L172: 25704.55 | M172: 23704.55 | N172: HD 29015 | O172: Nincs | P172: Egyéb szín | Q172: Pórusnyomott | R172: K007 HDF | S172: 2800 | T172: 2070 | U172: K009 PW | V172: 7789.811939 | W172: 8890 | X172: 7249.811939 | Y172: 7189.811939 | Z172: 4089.811939 | AA172: Nincs | AB172: Nincs | AC172: Van | AD172: 3700 | AE172: 4800 | AF172: 3160 | AG172: 3100 | AH172: 8889.811939 | AI172: Szabott laptermék | AJ172: 5.796
B173: sotettolgy | C173: MINTA | D173: Kronoswiss | E173: D4022 OW | F173: Laminált forgácslapok | G173: 18mm | H173: 2800X2070mm | I173: Gotland | J173: Tbl | K173: 29931.12 | L173: 24931.12 | M173: 22931.12 | N173: HD 28008 | O173: Nincs | P173: Alap szín | Q173: Pórusnyomott | R173: K021 HDF | S173: 2800 | T173: 2070 | U173: H3700 ST10 | V173: 7156.36991 | W173: 8675 | X173: 6976.36991 | Y173: 6956.36991 | Z173: 3956.36991 | AA173: Nincs | AB173: Nincs | AC173: Van | AD173: 3200 | AE173: 4720 | AF173: 3020 | AG173: 3000 | AH173: 8676.36991 | AI173: Szabott laptermék | AJ173: 5.796
B174: sotettolgy | C174: MINTA | D174: Kronoswiss | E174: D4024 OW | F174: Laminált forgácslapok | G174: 18mm | H174: 2800X2070mm | I174: Bolzano tölgy | J174: Tbl | K174: 32198.07 | L174: 27198.07 | M174: 25198.07 | N174: HD 28009 | O174: Nincs | P174: Egyéb szín | Q174: Pórusnyomott | R174: K007 HDF | S174: 2800 | T174: 2070 | U174: Nincs javaslat | V174: 8047.493099 | W174: 9145 | X174: 7507.493099 | Y174: 7447.493099 | Z174: 4347.493099 | AA174: Nincs | AB174: Nincs | AC174: Van | AD174: 3700 | AE174: 4800 | AF174: 3160 | AG174: 3100 | AH174: 9147.493099 | AI174: Szabott laptermék | AJ174: 5.796
B175: Orokzold | C175: MINTA | D175: Kronoswiss | E175: D4028 OW | F175: Laminált forgácslapok | G175: 18mm | H175: 2800X2070mm | I175: Vaudeville fenyő | J175: Tbl | K175: 30475.95 | L175: 25475.95 | M175: 23475.95 | N175: HD 256011 | O175: Nincs | P175: Alap szín | Q175: Pórusnyomott | R175: 101 HDF | S175: 2800 | T175: 2070 | U175: Nincs javaslat | V175: 7250.370945 | W175: 8770 | X175: 7070.370945 | Y175: 7050.370945 | Z175: 4050.370945 | AA175: Nincs | AB175: Nincs | AC175: Van | AD175: 3200 | AE175: 4720 | AF175: 3020 | AG175: 3000 | AH175: 8770.370945 | AI175: Szabott laptermék | AJ175: 5.796
B176: vilagostolgy | C176: MINTA | D176: Kronoswiss | E176: D4225 OW | F176: Laminált forgácslapok | G176: 18mm | H176: 2800X2070mm | I176: Artisian tölgy | J176: Tbl | K176: 25959.83 | L176: 20959.83 | M176: 18959.83 | N176: HD 249341 | O176: Nincs | P176: Alap szín | Q176: Pórusnyomott | R176: K021 HDF | S176: 2800 | T176: 2070 | U176: 8431 SN | V176: 6471.192202 | W176: 7990 | X176: 6291.192202 | Y176: 6271.192202 | Z176: 3271.192202 | AA176: Nincs | AB176: Nincs | AC176: Van | AD176: 3200 | AE176: 4720 | AF176: 3020 | AG176: 3000 | AH176: 7991.192202 | AI176: Szabott laptermék | AJ176: 5.796
B177: Tropusi | C177: MINTA | D177: Kronoswiss | E177: D8130 MX | F177: Laminált forgácslapok | G177: 18mm | H177: 2800X2070mm | I177: Angelique | J177: Tbl | K177: 28188.68 | L177: 23188.68 | M177: 21188.68 | N177: HD 291424 | O177: Nincs | P177: Egyéb szín | Q177: Mély erezett | R177: K010 HDF | S177: 2800 | T177: 2070 | U177: H3433 ST22 | V177: 7355.741891 | W177: 8455 | X177: 6815.741891 | Y177: 6755.741891 | Z177: 3655.741891 | AA177: Nincs | AB177: Csavartakaró matrica Woodline krém H1424 ST22 | AC177: Van | AD177: 3700 | AE177: 4800 | AF177: 3160 | AG177: 3100 | AH177: 8455.741891 | AI177: Szabott laptermék | AJ177: 5.796
B178: Fantazia | C178: MINTA | D178: Kronoswiss | E178: D881 PE | F178: Laminált forgácslapok | G178: 18mm | H178: 2800X2070mm | I178: Alumínium | J178: Tbl | K178: 30153.37 | L178: 25153.37 | M178: 23153.37 | N178: HD 29881 | O178: Nincs | P178: Alap szín | Q178: Enyhén recés | R178: 540 HDF | S178: 2800 | T178: 2070 | U178: F509 ST2 | V178: 7194.715321 | W178: 8715 | X178: 7014.715321 | Y178: 6994.715321 | Z178: 3994.715321 | AA178: B0300 | AB178: Csavartakaró matrica Alumínium F509 ST2 | AC178: Nincs | AD178: 3200 | AE178: 4720 | AF178: 3020 | AG178: 3000 | AH178: 8714.715321 | AI178: Szabott laptermék | AJ178: 5.796
B179: Fantazia | C179: MINTA | D179: Egger | E179: F186 ST9 | F179: Laminált forgácslapok | G179: 18mm | H179: 2800X2070mm | I179: Világos Chicago Beton | J179: Tbl | K179: 42581.59 | L179: 37581.59 | M179: 35581.59 | N179: HD 29186 | O179: Nincs | P179: Egyéb szín | Q179: Smoothtouch Matt | R179: Nincs | S179: 2800 | T179: 2070 | U179: Nincs javaslat | V179: 9838.990683 | W179: 10940 | X179: 9298.990683 | Y179: 9238.990683 | Z179: 6138.990683 | AA179: B0030 | AB179: Nincs | AC179: Nincs | AD179: 3700 | AE179: 4800 | AF179: 3160 | AG179: 3100 | AH179: 10938.99068 | AI179: Szabott laptermék | AJ179: 5.796
B180: Fantazia | C180: MINTA | D180: Egger | E180: F187 ST9 | F180: Laminált forgácslapok | G180: 18mm | H180: 2800X2070mm | I180: Sötétszürke Chicago Beton | J180: Tbl | K180: 42581.59 | L180: 37581.59 | M180: 35581.59 | N180: HD 29187 | O180: Nincs | P180: Egyéb szín | Q180: Smoothtouch Matt | R180: Nincs | S180: 2800 | T180: 2070 | U180: Nincs javaslat | V180: 9838.990683 | W180: 10940 | X180: 9298.990683 | Y180: 9238.990683 | Z180: 6138.990683 | AA180: B0030 | AB180: Nincs | AC180: Nincs | AD180: 3700 | AE180: 4800 | AF180: 3160 | AG180: 3100 | AH180: 10938.99068 | AI180: Szabott laptermék | AJ180: 5.796
B181: Fantazia | C181: MINTA | D181: Egger | E181: F206 ST9 | F181: Laminált forgácslapok | G181: 18mm | H181: 2800X2070mm | I181: Fekete Pietra Grigia | J181: Tbl | K181: 42581.59 | L181: 37581.59 | M181: 35581.59 | N181: HD 29160 | O181: Nincs | P181: Egyéb szín | Q181: Smoothtouch Matt | R181: Nincs | S181: 2800 | T181: 2070 | U181: Nincs javaslat | V181: 9838.990683 | W181: 10940 | X181: 9298.990683 | Y181: 9238.990683 | Z181: 6138.990683 | AA181: Nincs | AB181: Nincs | AC181: Van | AD181: 3700 | AE181: 4800 | AF181: 3160 | AG181: 3100 | AH181: 10938.99068 | AI181: Szabott laptermék | AJ181: 5.796
D182: Egger | E182: F235 ST76 | F182: Laminált forgácslapok | G182: 18mm | H182: 2800X2070mm | I182: Scivaro Pala | J182: Tbl | K182: 44965.38 | L182: 39965.38 | M182: 37965.38 | N182: HD 290235 | O182: Nincs | P182: Egyéb szín | R182: Nincs | S182: 2800 | T182: 2070 | U182: Nincs javaslat | V182: 10250.2726 | W182: 11350 | X182: 9710.272602 | Y182: 9650.272602 | Z182: 6550.272602 | AA182: Nincs | AB182: Nincs | AC182: Van | AD182: 3700 | AE182: 4800 | AF182: 3160 | AG182: 3100 | AH182: 11350.2726 | AI182: Szabott laptermék | AJ182: 5.796
D183: Egger | E183: F243 ST76 | F183: Laminált forgácslapok | G183: 18mm | H183: 2800X2070mm | I183: Candela Világosszürke Márvány | J183: Tbl | K183: 44965.38 | L183: 39965.38 | M183: 37965.38 | N183: HD 29243 | O183: Nincs | P183: Egyéb szín | R183: Nincs | S183: 2800 | T183: 2070 | U183: Nincs javaslat | V183: 10250.2726 | W183: 11350 | X183: 9710.272602 | Y183: 9650.272602 | Z183: 6550.272602 | AA183: Nincs | AB183: Nincs | AC183: Van | AD183: 3700 | AE183: 4800 | AF183: 3160 | AG183: 3100 | AH183: 11350.2726 | AI183: Szabott laptermék | AJ183: 5.796
D184: Egger | E184: F323 ST20 | F184: Laminált forgácslapok | G184: 18mm | H184: 2800X2070mm | I184: Cobra Bronz | J184: Tbl | K184: 44965.38 | L184: 39965.38 | M184: 37965.38 | N184: HD 29323 | O184: Nincs | P184: Egyéb szín | R184: Nincs | S184: 2800 | T184: 2070 | U184: Nincs javaslat | V184: 10250.2726 | W184: 11350 | X184: 9710.272602 | Y184: 9650.272602 | Z184: 6550.272602 | AA184: Nincs | AB184: Nincs | AC184: Van | AD184: 3700 | AE184: 4800 | AF184: 3160 | AG184: 3100 | AH184: 11350.2726 | AI184: Szabott laptermék | AJ184: 5.796
B185: Fantazia | C185: MINTA | D185: Egger | E185: F416 ST10 | F185: Laminált forgácslapok | G185: 18mm | H185: 2800X2070mm | I185: Bézs Textil | J185: Tbl | K185: 53539 | L185: 48539 | M185: 46539 | N185: HD 29416 | O185: Nincs | P185: Egyéb szín | Q185: Deepskin Rough | R185: Nincs | S185: 2800 | T185: 2070 | U185: Nincs javaslat | V185: 11729.50311 | W185: 12830 | X185: 11189.50311 | Y185: 11129.50311 | Z185: 8029.503106 | AA185: Nincs | AB185: Nincs | AC185: Van | AD185: 3700 | AE185: 4800 | AF185: 3160 | AG185: 3100 | AH185: 12829.50311 | AI185: Szabott laptermék | AJ185: 5.796
B186: Fantazia | D186: Egger | E186: F433 ST10 | F186: Laminált forgácslapok | G186: 18mm | H186: 2800X2070mm | I186: Antracit Len | J186: Tbl | K186: 42581.59 | L186: 37581.59 | M186: 35581.59 | N186: HD 290433 | O186: Nincs | P186: Egyéb szín | Q186: Deepskin Rough | R186: Nincs | S186: 2800 | T186: 2070 | U186: Nincs javaslat | V186: 9838.990683 | W186: 10940 | X186: 9298.990683 | Y186: 9238.990683 | Z186: 6138.990683 | AA186: B0030 | AB186: Nincs | AC186: Nincs | AD186: 3700 | AE186: 4800 | AF186: 3160 | AG186: 3100 | AH186: 10938.99068 | AI186: Szabott laptermék | AJ186: 5.796
D187: Egger | E187: F528 ST20 | F187: Laminált forgácslapok | G187: 18mm | H187: 2800X2070mm | I187: Bronz Szálcsiszolt Fém | J187: Tbl | K187: 44965.38 | L187: 39965.38 | M187: 37965.38 | N187: HD 29992 | O187: Nincs | P187: Egyéb szín | R187: Nincs | S187: 2800 | T187: 2070 | U187: Nincs javaslat | V187: 10250.2726 | W187: 11350 | X187: 9710.272602 | Y187: 9650.272602 | Z187: 6550.272602 | AA187: Nincs | AB187: Nincs | AC187: Van | AD187: 3700 | AE187: 4800 | AF187: 3160 | AG187: 3100 | AH187: 11350.2726 | AI187: Szabott laptermék | AJ187: 5.796
D188: Egger | E188: F685 ST10 | F188: Laminált forgácslapok | G188: 18mm | H188: 2800X2070mm | I188: Acapulco | J188: Tbl | K188: 42130.74 | L188: 37130.74 | M188: 35130.74 | N188: Nem kapható | O188: Nincs | P188: Egyéb szín | Q188: Deepskin Rough | R188: Nincs | S188: 2800 | T188: 2070 | U188: Nincs javaslat | V188: 9761.204279 | W188: 10860 | X188: 9221.204279 | Y188: 9161.204279 | Z188: 6061.204279 | AA188: Nincs | AB188: Nincs | AC188: Van | AD188: 3700 | AE188: 4800 | AF188: 3160 | AG188: 3100 | AH188: 10861.20428 | AI188: Szabott laptermék | AJ188: 5.796
D189: Egger | E189: F765 ST20 | F189: Laminált forgácslapok | G189: 18mm | H189: 2800X2070mm | I189: Szálcsiszolt Ezüstszürke | J189: Tbl | K189: 37358.08 | L189: 32358.08 | M189: 30358.08 | N189: Nem kapható | O189: Nincs | P189: Egyéb szín | R189: Nincs | S189: 2800 | T189: 2070 | U189: Nincs javaslat | V189: 8937.763975 | W189: 10040 | X189: 8397.763975 | Y189: 8337.763975 | Z189: 5237.763975 | AA189: Nincs | AB189: Nincs | AC189: Van | AD189: 3700 | AE189: 4800 | AF189: 3160 | AG189: 3100 | AH189: 10037.76398 | AI189: Szabott laptermék | AJ189: 5.796
D190: Egger | E190: F800 ST9 | F190: Laminált forgácslapok | G190: 18mm | H190: 2800X2070mm | I190: Kristály Márvány | J190: Tbl | K190: 42130.74 | L190: 37130.74 | M190: 35130.74 | N190: HD 29204 | O190: Nincs | P190: Egyéb szín | Q190: Smoothtouch Matt | R190: Nincs | S190: 2800 | T190: 2070 | U190: Nincs javaslat | V190: 9761.204279 | W190: 10860 | X190: 9221.204279 | Y190: 9161.204279 | Z190: 6061.204279 | AA190: Nincs | AB190: Nincs | AC190: Van | AD190: 3700 | AE190: 4800 | AF190: 3160 | AG190: 3100 | AH190: 10861.20428 | AI190: Szabott laptermék | AJ190: 5.796
B191: Nincs | E191: FEHÉRMDF16 | F191: MDF lemezek | G191: 16mm | H191: 2800X2070mm | I191: Natúr/fehér | J191: Tbl | K191: 27574 | L191: 23042.88 | M191: 20574 | N191: Nem kapható | O191: Nincs | P191: Egyéb szín | Q191: Natúr/fehér | R191: Nincs | S191: 2800 | T191: 2070 | U191: Nincs javaslat | V191: 7249.689441 | W191: 8350 | X191: 6709.689441 | Y191: 6649.689441 | Z191: 3549.689441 | AA191: Nincs | AB191: Nincs | AC191: Nincs | AD191: 3700 | AE191: 4800 | AF191: 3160 | AG191: 3100 | AH191: 8349.689441 | AI191: Szabott laptermék | AJ191: 5.796
B192: Nincs | E192: FEHÉRMDF18 | F192: MDF lemezek | G192: 18mm | H192: 2800X2070mm | I192: Natúr/fehér | J192: Tbl | K192: 29402.8 | L192: 25091.136 | M192: 22402.8 | N192: Nem kapható | O192: Nincs | P192: Kiemelt szín | Q192: Natúr/fehér | R192: Nincs | S192: 2800 | T192: 2070 | U192: Nincs javaslat | V192: 6865.217391 | W192: 8365 | X192: 6615.217391 | Y192: 6565.217391 | Z192: 3865.217391 | AA192: Nincs | AB192: Nincs | AC192: Nincs | AD192: 3000 | AE192: 4500 | AF192: 2750 | AG192: 2700 | AH192: 8365.217391 | AI192: Szabott laptermék | AJ192: 5.796
B193: vilagostolgy | C193: MINTA | D193: Egger | E193: H1113 ST10 | F193: Laminált forgácslapok | G193: 18mm | H193: 2800X2070mm | I193: Barna kansas tölgy | J193: Tbl | K193: 37747.97 | L193: 32747.97 | M193: 30747.97 | N193: HD 241113 | O193: Nincs | P193: Egyéb szín | Q193: Deepskin Rough | R193: K021 HDF | S193: 2800 | T193: 2070 | U193: D2197 PR | V193: 9005.032781 | W193: 10105 | X193: 8465.032781 | Y193: 8405.032781 | Z193: 5305.032781 | AA193: B6170 | AB193: Nincs | AC193: Van | AD193: 3700 | AE193: 4800 | AF193: 3160 | AG193: 3100 | AH193: 10105.03278 | AI193: Szabott laptermék | AJ193: 5.796
D194: Egger | E194: H1142 ST36 | F194: Laminált forgácslapok | G194: 18mm | H194: 2800X2070mm | I194: Sacramento Barna Tölgy | J194: Tbl | K194: 48805.86 | L194: 43805.86 | M194: 41805.86 | N194: HD 241142 | O194: Nincs | P194: Egyéb szín | Q194: Feelwood Brushed | R194: Nincs | S194: 2800 | T194: 2070 | U194: Nincs javaslat | V194: 10912.8813 | W194: 12015 | X194: 10372.8813 | Y194: 10312.8813 | Z194: 7212.881297 | AA194: Nincs | AB194: Nincs | AC194: Van | AD194: 3700 | AE194: 4800 | AF194: 3160 | AG194: 3100 | AH194: 12012.8813 | AI194: Szabott laptermék | AJ194: 5.796
B195: vilagostolgy | C195: MINTA | D195: Egger | E195: H1145 ST10 | F195: Laminált forgácslapok | G195: 18mm | H195: 2800X2070mm | I195: Natúr bardolino tölgy | J195: Tbl | K195: 28261.07 | L195: 23261.07 | M195: 21261.07 | N195: HD 243145 | O195: 577 FS22 | P195: Kiemelt szín | Q195: Deepskin Rough | R195: 3025 HDF | S195: 2800 | T195: 2070 | U195: H3309 ST28 | V195: 6668.231539 | W195: 8170 | X195: 6418.231539 | Y195: 6368.231539 | Z195: 3668.231539 | AA195: B5890 | AB195: Csavartakaró matrica Sonoma tölgy sötét 577 FS22 | AC195: Van | AD195: 3000 | AE195: 4500 | AF195: 2750 | AG195: 2700 | AH195: 8168.231539 | AI195: Szabott laptermék | AJ195: 5.796
B196: vilagostolgy | C196: MINTA | D196: Egger | E196: H1176 ST37 | F196: Laminált forgácslapok | G196: 18mm | H196: 2800X2070mm | I196: Halifax fehér tölgy | J196: Tbl | K196: 52212 | L196: 47212 | M196: 45212 | N196: HD 244176 | O196: Nincs | P196: Egyéb szín | Q196: Feelwood Rift | R196: K019 HDF | S196: 2800 | T196: 2070 | U196: K4325 AW | V196: 11500.5521 | W196: 12600 | X196: 10960.5521 | Y196: 10900.5521 | Z196: 7800.552105 | AA196: B6170 | AB196: Csavartakaró matrica Luna szilva 611 FS22 | AC196: Van | AD196: 3700 | AE196: 4800 | AF196: 3160 | AG196: 3100 | AH196: 12600.5521 | AI196: Szabott laptermék | AJ196: 5.796
B197: vilagostolgy | C197: MINTA | D197: Egger | E197: H1180 ST37 | F197: Laminált forgácslapok | G197: 18mm | H197: 2800X2070mm | I197: Halifax natúr tölgy | J197: Tbl | K197: 52212 | L197: 47212 | M197: 45212 | N197: HD 243180 | O197: Nincs | P197: Egyéb szín | Q197: Feelwood Rift | R197: K021 HDF | S197: 2800 | T197: 2070 | U197: Nincs javaslat | V197: 11500.5521 | W197: 12600 | X197: 10960.5521 | Y197: 10900.5521 | Z197: 7800.552105 | AA197: B6170 | AB197: Csavartakaró matrica Rauna szil világos 697 FS22 | AC197: Van | AD197: 3700 | AE197: 4800 | AF197: 3160 | AG197: 3100 | AH197: 12600.5521 | AI197: Szabott laptermék | AJ197: 5.796
B198: sotettolgy | C198: MINTA | D198: Egger | E198: H1181 ST37 | F198: Laminált forgácslapok | G198: 18mm | H198: 2800X2070mm | I198: Halifax dohány tölgy | J198: Tbl | K198: 56712 | L198: 51712 | M198: 49712 | N198: HD 253408 | O198: Nincs | P198: Egyéb szín | Q198: Feelwood Rift | R198: K007 HDF | S198: 2800 | T198: 2070 | U198: K015 PW | V198: 12276.94962 | W198: 13375 | X198: 11736.94962 | Y198: 11676.94962 | Z198: 8576.94962 | AA198: B6170 | AB198: Csavartakaró matrica Sonuma tölgy trüffel D5194 MX | AC198: Van | AD198: 3700 | AE198: 4800 | AF198: 3160 | AG198: 3100 | AH198: 13376.94962 | AI198: Szabott laptermék | AJ198: 5.796
B199: sotettolgy | C199: MINTA | D199: Egger | E199: H1199 ST12 | F199: Laminált forgácslapok | G199: 18mm | H199: 2800X2070mm | I199: Sötétbarna thermo tölgy | J199: Tbl | K199: 37747.97 | L199: 32747.97 | M199: 30747.97 | N199: HD 241199 | O199: Nincs | P199: Egyéb szín | Q199: Omnipore Matt | R199: K016 HDF | S199: 2800 | T199: 2070 | U199: Nincs javaslat | V199: 9005.032781 | W199: 10105 | X199: 8465.032781 | Y199: 8405.032781 | Z199: 5305.032781 | AA199: B6170 | AB199: Csavartakaró matrica Ardeni fenyö sötétbarna 518 FS22 | AC199: Van | AD199: 3700 | AE199: 4800 | AF199: 3160 | AG199: 3100 | AH199: 10105.03278 | AI199: Szabott laptermék | AJ199: 5.796
D200: Egger | E200: H1204 TM22 | F200: Laminált forgácslapok | G200: 18mm | H200: 2800X2070mm | I200: LIGHTNATURAL LUGANO ASH | J200: Tbl | K200: 74296.42 | L200: 69296.42 | M200: 67296.42 | N200: HD 261204 | O200: Nincs | P200: Egész táblás szín | R200: Nincs | S200: 2800 | T200: 2070 | U200: Nincs javaslat | V200: 15610.83851 | W200: 17460 | X200: 15530.83851 | Y200: 15490.83851 | Z200: 11610.83851 | AA200: Nincs | AB200: Nincs | AC200: Van | AD200: 4000 | AE200: 5850 | AF200: 3920 | AG200: 3880 | AH200: 17460.83851 | AI200: Szabott laptermék | AJ200: 5.796
D201: Egger | E201: H1223 ST19 | F201: Laminált forgácslapok | G201: 18mm | H201: 2800X2070mm | I201: Sevilla Kőris | J201: Tbl | K201: 44965.38 | L201: 39965.38 | M201: 37965.38 | N201: HD 26088 | O201: Nincs | P201: Egyéb szín | Q201: Deepskin Excellent | R201: Nincs | S201: 2800 | T201: 2070 | U201: Nincs javaslat | V201: 10250.2726 | W201: 11350 | X201: 9710.272602 | Y201: 9650.272602 | Z201: 6550.272602 | AA201: Nincs | AB201: Nincs | AC201: Van | AD201: 3700 | AE201: 4800 | AF201: 3160 | AG201: 3100 | AH201: 11350.2726 | AI201: Szabott laptermék | AJ201: 5.796
D202: Egger | E202: H1227 TM12 | F202: Laminált forgácslapok | G202: 18mm | H202: 2800X2070mm | I202: BROWN ABANO ASH | J202: Tbl | K202: 74296.42 | L202: 69296.42 | M202: 67296.42 | N202: HD 261227 | O202: Nincs | P202: Egész táblás szín | R202: Nincs | S202: 2800 | T202: 2070 | U202: Nincs javaslat | V202: 15610.83851 | W202: 17460 | X202: 15530.83851 | Y202: 15490.83851 | Z202: 11610.83851 | AA202: Nincs | AB202: Nincs | AC202: Van | AD202: 4000 | AE202: 5850 | AF202: 3920 | AG202: 3880 | AH202: 17460.83851 | AI202: Szabott laptermék | AJ202: 5.796
D203: Egger | E203: H1242 ST10 | F203: Laminált forgácslapok | G203: 18mm | H203: 2800X2070mm | I203: Sheffield Natúr Akác | J203: Tbl | K203: 42130.74 | L203: 37130.74 | M203: 35130.74 | N203: HD 281242 | O203: Nincs | P203: Egyéb szín | Q203: Deepskin Rough | R203: Nincs | S203: 2800 | T203: 2070 | U203: Nincs javaslat | V203: 9761.204279 | W203: 10860 | X203: 9221.204279 | Y203: 9161.204279 | Z203: 6061.204279 | AA203: Nincs | AB203: Nincs | AC203: Van | AD203: 3700 | AE203: 4800 | AF203: 3160 | AG203: 3100 | AH203: 10861.20428 | AI203: Szabott laptermék | AJ203: 5.796
B204: koris-akac | C204: MINTA | D204: Egger | E204: H1250 ST36 | F204: Laminált forgácslapok | G204: 18mm | H204: 2800X2070mm | I204: Navarra kőris | J204: Tbl | K204: 49341.8 | L204: 44341.8 | M204: 42341.8 | N204: HD 261250 | O204: Nincs | P204: Exkluzív szín | Q204: Feelwood Brushed | R204: K012 HDF | S204: 2800 | T204: 2070 | U204: Nincs javaslat | V204: 11305.34852 | W204: 12805 | X204: 10955.34852 | Y204: 10905.34852 | Z204: 7305.348516 | AA204: B6170 | AB204: Csavartakaró matrica River tölgy 582 FS22 | AC204: Van | AD204: 4000 | AE204: 5500 | AF204: 3650 | AG204: 3600 | AH204: 12805.34852 | AI204: Szabott laptermék | AJ204: 5.796
B205: koris-akac | C205: MINTA | D205: Egger | E205: H1277 ST9 | F205: Laminált forgácslapok | G205: 18mm | H205: 2800X2070mm | I205: Akác fahéj | J205: Tbl | K205: 34258.01 | L205: 29258.01 | M205: 27258.01 | N205: HD 284277 | O205: Nincs | P205: Alap szín | Q205: Smoothtouch Matt | R205: K012 HDF | S205: 2800 | T205: 2070 | U205: 616 FS08 | V205: 7902.900276 | W205: 9425 | X205: 7722.900276 | Y205: 7702.900276 | Z205: 4702.900276 | AA205: Nincs | AB205: Csavartakaró matrica Akác H1277 ST9 | AC205: Van | AD205: 3200 | AE205: 4720 | AF205: 3020 | AG205: 3000 | AH205: 9422.900276 | AI205: Szabott laptermék | AJ205: 5.796
D206: Egger | E206: H1303 ST12 | F206: Laminált forgácslapok | G206: 18mm | H206: 2800X2070mm | I206: Belmont Barna Tölgy | J206: Tbl | K206: 40408.62 | L206: 35408.62 | M206: 33408.62 | N206: HD 241303 | O206: Nincs | P206: Egyéb szín | Q206: Omnipore Matt | R206: Nincs | S206: 2800 | T206: 2070 | U206: Nincs javaslat | V206: 9464.082126 | W206: 10565 | X206: 8924.082126 | Y206: 8864.082126 | Z206: 5764.082126 | AA206: Nincs | AB206: Nincs | AC206: Van | AD206: 3700 | AE206: 4800 | AF206: 3160 | AG206: 3100 | AH206: 10564.08213 | AI206: Szabott laptermék | AJ206: 5.796
D207: Egger | E207: H1307 ST19 | F207: Laminált forgácslapok | G207: 18mm | H207: 2800X2070mm | I207: Warmia Barna Dió | J207: Tbl | K207: 44965.38 | L207: 39965.38 | M207: 37965.38 | N207: HD 281307 | O207: Nincs | P207: Egyéb szín | Q207: Deepskin Excellent | R207: Nincs | S207: 2800 | T207: 2070 | U207: Nincs javaslat | V207: 10250.2726 | W207: 11350 | X207: 9710.272602 | Y207: 9650.272602 | Z207: 6550.272602 | AA207: Nincs | AB207: Nincs | AC207: Van | AD207: 3700 | AE207: 4800 | AF207: 3160 | AG207: 3100 | AH207: 11350.2726 | AI207: Szabott laptermék | AJ207: 5.796
B208: vilagostolgy | C208: MINTA | D208: Egger | E208: H1312 ST10 | F208: Laminált forgácslapok | G208: 18mm | H208: 2800X2070mm | I208: Whiteriver Homoksárga Tölgy | J208: Tbl | K208: 42581.59 | L208: 37581.59 | M208: 35581.59 | N208: HD 241312 | O208: Nincs | P208: Egyéb szín | Q208: Deepskin Rough | R208: K011 HDF | S208: 2800 | T208: 2070 | U208: Nincs javaslat | V208: 9838.990683 | W208: 10940 | X208: 9298.990683 | Y208: 9238.990683 | Z208: 6138.990683 | AA208: Nincs | AB208: Nincs | AC208: Van | AD208: 3700 | AE208: 4800 | AF208: 3160 | AG208: 3100 | AH208: 10938.99068 | AI208: Szabott laptermék | AJ208: 5.796
... 2002 more rows

Sheet Info
A1: Rendeléssel kapcsolatos információk | J1: Érvényesség:
J2: 2024-06-15-től
A3: Az árlistában szereplő és a megrendelőlapok kitöltésekor megjelenő árak tájékoztató jellegűek és csak a jóváhagyás után minősülnek ajánlatnak! Az árlistában, katalógusokban található árak csak a kalkulátorral kitöltött és on-line leadott rendelésekre érvényesek. Ha ön rendszeresen használ általunk is forgalmazott termékeket és érdekli az együttműködés, akkor egy személyes megbeszélés és legalább 1db véghezvitt megrendelés után tudunk biztosítani vevőkódot, amely kedvezményekkel is jár.
A6: Méretre vágatott vagy készíttetett termékeket csak jogos minőségi reklamáció esetén javítunk vagy cserélünk!
A9: A laptermékek méretre szabása az általunk elkészített szabászterv megszerkesztése szerint történik. Amennyiben a vevő kérésére egyedi szabászterv alapján kell a méretrevágást elvégezni (ez vonatkozik főként az egy anyagból kiszabott frontlapokra, de hozott anyagra és egyéb hasonló kategóriába sorolható művelet esetében), eseti díjat számolunk fel. Amelyik színeket négyzetméterre szabjuk, azok nem rendelhetőek egész táblás szabászatban, esetleg egy külön megegyezés keretében.
A12: Rendhegyó eset az élzáráskor a 70mm-nél keskenyebb munkadarabok 2 szembenlévő oldalának élzárása (pl. 1000X50mm 2 hosszú élzárása), ebben az esetben az élzárás munkadíja az "íves vagy ferde élzárás" munkadíjával számolandó. Ha igényli ezt a szolgáltatást, az jelentősen megnövelheti az elkészülési időt, a megrendelés gyártási ideje a várható elkészülési időn kívül eshet.
A15: Gyártási idő: Érvényes megrendelés és előleg befizetés után a megrendelés kap egy gyártásba kerülési napot. Ettől számítva kb. 5 munkanapon belül elkészül a megrendelés. Előfordulhatnak raktárkészlet hiányok a beszállítóinknál, az ilyen esetekben tájékoztatjuk a megrendelőinket az esetleges változásokról és a gyártásban kerülés is várakozik az alapanyag beérkezéséig. A megrendelés a rendszerünkbe történő berögzítés után nem módosítható és nem mondható le!
A18: Mennyiségi kedvezmények
A20: A bútorlapok és a hátfallemezek árait mennyiség függvényében automatikusan változtatja a program. Az árkategóriák mennyiségi egységei: 5m² alatti, 5m² és 20m² közötti, 20m² és 50m² közötti és 50m² feletti mennyiség.
A22: A megrendelés lépései
B23: Lépések | C23: Eredmény
A24: 1. Lépés | B24: Töltse ki a Bútorlap_m² megrendelőlap legtetején található adatkérő lapot | C24: Így mi megkapjuk a kapcsolatfelvételhez szükséges adatokat
A28: 2. Lépés | B28: Válasszon a bútorlap színkódok közül a legördülő választéklista segítségével | C28: Automatikus kitöltődnek az információs mezők (szín megnevezése, anyagvastagság, egységár, élzárások egységára)
A32: 3. Lépés | B32: Készítsen méretlistát a táblázat 'B', 'C' és 'D' oszlopait felhasználva (NEM KELL LEVONNI AZ ÉLZÁRÓ ANYAG VASTAGSÁGÁT!) | C32: A méretlista legalján összesítésre kerülnek a m², darabszám és a részösszeg adatok
A36: 4. Lépés | B36: Jelölje az élzárások, egy lapmérethez rendelhet több -féle élzárást is, választhat eltérő színű élzáróanyagot a legördülő menüben | C36: A méretlista legalján összesítésre kerülnek a folyóméter és a részösszeg adatok
A40: 5. Lépés | B40: Válasszon a szolgáltatások közül és a megadott oszlopokban jelölje azok mennyiségeit, ha szükséges akkor írjon hozzá megjegyzést a lejjebb található mezőkbe | C40: A méretlista legalján összesítésre kerülnek a folyóméter vagy darabszám és a részösszeg adatok
A44: 6. Lépés | B44: Ha hátfallemezt is szeretne rendelni a kiválasztott lapokhoz, akkor azt egy lejjebb található adatlapon megteheti, akár színazonos, akár fehér hátfalra van szüksége | C44: A méretlista legalján összesítésre kerülnek a m², darabszám és a részösszeg adatok
A48: 7. Lépés | B48: Ha sikeresen kitöltötte a megrendelőlapot, akkor azt kérjük juttassa el az e-mail címünkre ellenőrzés és visszaigazolás céljából | C48: A visszaigazolásban elküldjük a megrendelés várható gyártásba kerülési idejét (nem határidő!) és amennyiben helyesen töltötte ki a megrendelőlapot, akkor a végösszeget jóváhagyjuk és tájoztatjuk a további szükséges lépésekről.
A53: Helyettesített szín szabály: | C53: Helyettesített színek azt jelentik, hogy némely színeket több gyártó is kínál, ezek a színek vagy teljesen azonosak, vagy minimális eltérés mutatkozik köztük. A helyettesített színeket csak egész táblában lehet rendelni. A bútorlap kód kiválasztásánál helyettesített színt nem lehet választani a bútorlap m2 munkafüzetben, a zárójelben szereplő kódú bútorlap kapható négyzetméterre.
A56: Hozott anyag szabályok: | C56: Hozott anyagok méretre szabását elbírálást követően vállaljuk. Nálunk nem kapható hozott anyagok szabását, élzárását és egyéb formatizálását nem tudjuk vállalni. A hozott anyagok végső méretének megadásánál ügyelni kell arra, hogy a szabásra szánt anyag a készméretektől minél nagyobb legyen, de legalább 15-15mm szabási lehetőség legyen rajta minden irányba. Hozott anyagok élzárása méretreszabás nélkül nem megoldható. Ennek oka: A bútorlap éle a levegő nedvességtartalmától ha minimálisan is,de méretnövekedést szenved el. A méretnövekedés miatt az élzárógép megmunkálóegysége hibásan dolgozza meg az anyagot, másképpen mondva "belemar" az anyag felületébe. Minden egyes hozott anyagra a rendelés feldolgozásakor adminisztrációs költséget számolunk fel.
A59: A méretezéssel kapcsolatos információk: | C59: Száliránnyal rendelkező anyagok esetén a 'hossz' megnevezésű oszlopba a száliránnyal párhuzamos oldal, a 'szélesség' megnevezésű oszlopba a szálirányra merőleges oldal méretét kell beírni. A 'db' oszlopba kell beírni a darabszámot. Ha azonos méretű darabokhoz eltérő szolgáltatásokat vagy élzárásokat akarunk jelölni, akkor azokat érdemes külön beírni a méretlistába.
A62: Az élzárással kapcsolatos információk: | C62: Minden mérethez egyszerre akár különböző vastagságú élzáró is rendelhető. A lapok hossz oldalára ragasztandó élzáró élzáróanyag mennyiségét a baloldali, a szélességi oldalra pedig a jobboldali oszlopban kell jelölni. A jelölés lehet 0; 1 vagy 2. Ha 0, akkor a párhuzamos oldalak közül egyik se, ha 1 akkor csak az egyik és ha 2, akkor mindkettő oldal élzárva lesz. Külön oszlopban jelölhető íves élzárás, ilyenkor mennyiségként az ívhossz kerül megadásra. Előfordulhat, hogy a kiválasztott színhez nincs 04mm, 1mm vagy 2mm vastag élzáróanyag, ezt onnan tudhatjuk meg, hogy az élzárás beviteli cellái piros színűre változnak, ebben az esetben a program engedi a bevitelt, de ettől függetlenül érvénytelen a kalkuláció (vagy másik élzáróanyagot kell választani, vagy más élzáró vastagsági méretet, ebben segít a "helyettesítő élzáró" ajánlás, ami megtalálható a megrendelőlapon). A nem standard bútorlap élek (szögvágott, ferdére vágott) élzárása íves élzárás árral számolandó.
A66: A szolgáltatásokkal kapcsolatos információk: | C66: Jelölésük szerint 3 -féle szolgáltatást különböztet meg a táblázat. Az első típus az, amelyiknél egy adott munkadarabon az elvégzendő szolgáltatás darabszámát kell jelölni, ez a kalkuláció elkészítéséhez elengedhetetlen, viszont a gyártáshoz nem ad elég információt, ezért azt a megjegyzés rovatban vagy egyéb módon pontosítani kell felénk. A 2. típus a folyóméterre számolt szolgáltatások típusa, itt egy adott alapanyagnál 2 cella áll rendelkezésre a megjelöléshez és mint az élzárásoknál, itt is azt jelöljük, hogy az anyag hosszanti vagy szélességi oldalához kapcsolódik, illetve 0; 1 vagy 2 oldalra vonatkozik a művelet. A 3. csoportba azokat a szolgáltatásokat gyűjtöttük, amelyeknél darabszámtól és oldaltól függetlenül csak azt kell eldönteni, hogy az adott mérethez csatoljuk-e a műveletet vagy sem. Minden szolgáltatáshoz, amennyiben az eltér az alapértelmezéstől, akkor megjegyzést kell hozzá csatolni (a megrendelés összesítőnél található táblázatban) vagy rajzot kell róla készíteni.
A71: A megmunkálással kapcsolatos információk: | C71: Egész táblás szabás esetén a bútorlapoknál 14mm-14mm szélezést kell számolni a tábla 4 élén. A körfűrészlap vastagsága 3mm, ezt minden vágásnál szabási hulladékként kell számolni. A vágás pontossága +-0,5mm. Az elővágó körfűrészlap pályájának eltérése a fő körfűrészlaphoz képest 0-0,5mm lehet. Élzárásnál az ömledékragasztó színe alapértelmezetten színtelen. Íves élzárás megrendelésére van lehetőség, csupán arra kell odafigyelni, hogy 2mm vastag élzárót minimum 80mm rádiuszra tudunk felragasztani. Egész táblában rendelhető munkalap szabása esetén akár 30-40mm (!) szélezővágás is szükséges lehet, itt az árba a méretre vágás díját is beleszámolja a kalkulátor.
A87: A szolgáltatásokról részletesen: | C87: 45 fokos sarokvágás /db | D87: Egy darab lapanyag egyik sarkának 45°-os szögben történő levágása. Egy lapon maximum 4db vágást jelölhetünk! Megjegyzésként a lemetszett háromszög befogójának hosszát kell megadni.
C88: Ferde vágás (XYZ<1M) /db | D88: Egy lapon elvégzett 45°-os szögtől eltérő vágás. A lap egyik mérete sem haladja meg az egy métert. Ebből a szolgáltatásból egy lapon többet is kérhetünk.
C89: Ferde vágás (XYZ<1M) /db | D89: Egy lapon elvégzett 45°-os szögtől eltérő vágás. A lap valamelyik mérete(i) meghaladja az egy métert. Ebből a szolgáltatásból egy lapon többet is kérhetünk.
C90: Sarok lekerekítés 15cm rádiuszig | D90: Az instrukciók ugyanazok, mint a 45°-os sarokvágásnál, csak itt a kívánt rádiuszt kell megadni. FIGYELEM! 2MM ABS ÉLZÁRÁSHOZ A MINIMÁLIS RÁDIUSZ 70MM!
C91: Belső 90fokos kimetszés marással /db | D91: Egy négyszög alakú kimetszést jelent a kiválasztott méretű lapon. A marással készített kimetszés belső sarka minden esetben kerekített, kizárólag körfűrésszel kivágva alakítható „csücskösre”, de itt a körfűrészlap kb. 20mm-t belevág a kész anyagba is egyik oldalt. A kimetszett téglalap 2 oldalának a méretét és irányát kell megadni a megjegyzésben.
C92: Hátlap-besüllyesztés marása /fm | D92: A megjelölt oldalon elvégzett 3 X 13mm méretű kimetszés. Ha a kimetszés mérete eltér az alapértelmezéstől, akkor arra megjegyzést kell írni.
C93: Hátlap-nút marása /fm | D93: A megjelölt oldalon elvégzett 3mm szélességű és 10mm mélységű bemarás. Ha a bemarás mérete eltér az alapértelmezéstől, akkor arra megjegyzést kell írni. A megjegyzésben jelölni kell a bemarás távolságát az oldal szélétől.
C94: Ferde élvágás 45°-ig /fm | D94: A megjelölt oldalon körfűrésszel elvégzett vágás. A megjegyzésben jelölni kell a szög mértékét (0-45°)
C95: Ívelt alkatrész elkészítése < 1M /db | D95: Egy 1000mm-nél rövidebb és keskenyebb lapon elvégzett ívmarás. Az egységár 1db ív elkészítésére vonatkozik. Elkészítéséhez rajz szükségeltetik.
C96: Ívelt alkatrész elkészítése > 1M /db | D96: Egy olyan lapon elvégzendő ívelt marás, amelynek bármelyik mérete meghaladja az 1000mm-t. Az egységár 1db ív elkészítésére vonatkozik. Elkészítéséhez rajz szükségeltetik.
C97: Ívelt alkatrész elkészítése > 2M /db | D97: Egy olyan lapon elvégzendő ívelt marás, amelynek bármelyik mérete meghaladja az 2000mm-t. Az egységár 1db ív elkészítésére vonatkozik. Elkészítéséhez rajz szükségeltetik.
C98: Tolóajtó görgő furatkészítés / pár | D98: Sevroll vagy Forest Cosmo rendszerhez készített 40mm átmérőjű, a megfelelő helyre pozicionált furatpár. Ezen szolgáltatás vonatkozik az egyszerűbb 35mm átmérőjű műanyag görgők furataira, ez esetben ezt jelöljék a megjegyzések között.
C99: Pánthelyek kifúrása (35mm) /furat | D99: A pántfuratokat alapértelmezetten a lap 2 végétől 96-96mm-re fúrjuk, ha kettőnél több pántfurat van egy lapon, akkor az alapértelmezés szerint egymástól egyenlő távolságra lesznek kifúrva. Ha ettől eltérő méretkiosztással kell fúrni a pántokat, akkor azt a megjegyzés rovatban kell jelölni. A darabszám beírásakor a megfelelő cellába írjuk az adatokat, attól függően, hogy a pántot a lap melyik oldalába kérjük. Opcióként jelölhető ha bepréseléssel kérik a kivetőpántot. Erre a célra a BLUM által gyártott dűbeles CLIP 100°-os pántját tudjuk kínálni.
C100: Összehúzó vasalat helyének kialakítása /illesztési felület | D100: Az ár tartalmaz 1db munkalap egy végpontján (a kerekítéses vagy az egyenes végén) kialakított DERÉKSZÖGŰ (!) illeszkedési felület elkészítését. FONTOS: Az ár nem tartalmazza az illesztés mindkét felének az elkészítését, az illesztés párját a másik munkalapon kell bejelölni! Ez a megszokott számítási módtól azért tér el, mert a méretlistán így lehetett megoldani az illesztés pozíciójánka meghatározását és árának kiszámolását. A megadott ár tulajdonképpen egy teljes illesztés árának a fele. Az illesztés kialakításához tartozó munkafolyamatok, alkatrészek: Illesztőmarás, LAMELLO csaphely kialakítás (4db), összehúzó vasalat bemarás (3db), 4db lamello, 3 db összehúzó csavar.
C101: Sarok lekerekítés /negyed körív | D101: Konyhai munkalap sarkának 90°rádiuszú lekerekítése. Megadandó méretek: Rádiusz és pozíciója. (CSAK VEVŐKÓDDAL RENDELKEZŐ PARTNEREKNEK VÁLLALJUK)
C102: Sarok levágás /db | D102: Konyhai munkalap sarkának bármilyen szögben történő vágása. Megadandó méretek: A levágandó háromszög szárainak hossza és pozíciója.
A104: A megrendelőlapokról röviden
C105: Megrendelő lap neve | E105: Rendelhető tételek
C106: Bútorlap-m² | E106: m² árban szabható bútorlapok, azok élzárásai és egyéb hozzá kötődő szolgáltatások. Ezen a lapon kell kitölteni a megrendelő adatait! Helyettesített szín itt nem választható!
C107: Bútorlap-egésztábla | E107: Egész táblában szabható bútorlapok, azok élzárásai és egyéb hozzá kötődő szolgáltatások. Helyettesített színeket itt lehet kiválasztani. Főként hozott anyagok kalkulációjához használatos.
C108: Duplavastag-bútorlap_m² | E108: 36mm vastagra ragasztott, m² árban szabható bútorlapok, azok élzárásai és egyéb hozzá kötődő szolgáltatások.
C109: Hátfal-m² | E109: m² árban szabható hátfallemezek. A bútorlapokhoz ajánlott hátfallemezek többnyire színben megközelítik a bútorlapokat, de nem színazonosak.
C110: Hátfal-egésztábla | E110: Egész táblában szabható hátfallemezek (Kizárólag belső használatra készült)
C111: Munkalap_méretre | E111: Egész táblában és fél táblában árban szabható munkalapok és az azokhoz kapcsolódó szolgáltatások és alkatrészek
C112: Alkatrész megrendelőlap | E112: Forest, BLUM, Sevroll és egyéb alkatrészek

Sheet Árajánlat
B1: Árkalkuláció | C1: Megrendelő: | D1: =IF(Bútorlap_m²!B3="NÉV","",Bútorlap_m²!B3) ->  | F1: Elérhetőség: | I1: =IF(Bútorlap_m²!B6=0,"",Bútorlap_m²!B6) ->  | O1: =IF(Bútorlap_m²!AE8="On-line, kitöltőprogram használatával",1,IF(Bútorlap_m²!AE8="Egyéb",1.05,1.2)) -> 1 | Z1: =VLOOKUP(Bútorlap_m²!F7,Data!C3500:Z3599,2,0) -> Név | AA1: Szabott laptermék | AB1: Élzárás | AC1: Élzáróanyag | AD1: Szabott HDF | AE1: Formatizálás | AF1: Szabott HDF fehér | AG1: =Üveg!$AG$1 -> Üveg | AH1: Egész tábla laptermék | AI1: Lapszabás | AJ1: Szabott laptermék fehér | AK1: Egész tábla munkalap | AL1: Beszerelés | AM1: Gyártás | AN1: Szállítás | AO1: Forest | AP1: Blum | AQ1: Démos | AR1: Egyéb alkatrész | AS1: G-MAX | AT1: Akciós laptermék | AU1: Alkatrész raktári
B2: Cikkszám | C2: Csoport | D2: Tipus | E2: Méret | F2: Szín | G2: Egys. | H2: Alap ár | I2: Egységár | J2: b | K2: db | L2: Alap érték | M2: Összesen | N2: b | AA2: =VLOOKUP($Z$1,Data!$D$3500:$Z$3599,2,0) -> 1001 | AB2: =VLOOKUP($Z$1,Data!$D$3500:$Z$3599,3,0) -> 1 | AC2: =VLOOKUP($Z$1,Data!$D$3500:$Z$3599,4,0) -> 1 | AD2: =VLOOKUP($Z$1,Data!$D$3500:$Z$3599,5,0) -> 0 | AE2: =VLOOKUP($Z$1,Data!$D$3500:$Z$3599,6,0) -> 1 | AF2: =VLOOKUP($Z$1,Data!$D$3500:$Z$3599,7,0) -> 0 | AG2: =VLOOKUP($Z$1,Data!$D$3500:$Z$3599,8,0) -> 1 | AH2: =VLOOKUP($Z$1,Data!$D$3500:$Z$3599,9,0) -> 1 | AI2: =VLOOKUP($Z$1,Data!$D$3500:$Z$3599,10,0) -> 1 | AJ2: =VLOOKUP($Z$1,Data!$D$3500:$Z$3599,11,0) -> 1001 | AK2: =VLOOKUP($Z$1,Data!$D$3500:$Z$3599,12,0) -> 1 | AL2: =VLOOKUP($Z$1,Data!$D$3500:$Z$3599,13,0) -> 1 | AM2: =VLOOKUP($Z$1,Data!$D$3500:$Z$3599,14,0) -> 1 | AN2: =VLOOKUP($Z$1,Data!$D$3500:$Z$3599,15,0) -> 1 | AO2: =VLOOKUP($Z$1,Data!$D$3500:$Z$3599,16,0) -> 1 | AP2: =VLOOKUP($Z$1,Data!$D$3500:$Z$3599,17,0) -> 1 | AQ2: =VLOOKUP($Z$1,Data!$D$3500:$Z$3599,18,0) -> 1 | AR2: =VLOOKUP($Z$1,Data!$D$3500:$Z$3599,19,0) -> 1 | AS2: =VLOOKUP($Z$1,Data!$D$3500:$Z$3599,20,0) -> 0.8 | AT2: =VLOOKUP($Z$1,Data!$D$3500:$Z$3599,21,0) -> 1001 | AU2: =VLOOKUP($Z$1,Data!$D$3500:$Z$3599,22,0) -> 0.8
B3: =Bútorlap_m²!B28 -> 116 SM | C3: =VLOOKUP(B3,Butorlap_tabla,31,0) -> Szabott laptermék fehér | D3: =Bútorlap_m²!R28 -> 18mm | E3: =IF(K3<2,"1.ársáv",IF(AND(K3>=2,K3<20),"2.ársáv",IF(AND(K3>=20,K3<50),"3.ársáv","4.ársáv"))) -> 1.ársáv | F3: =Bútorlap_m²!F28 -> Korpusz fehér (Falco) | G3: m² | H3: =VLOOKUP($B3:$B3,Data!$E$10:$AZ$1999,19,0) -> 5950 | I3: =(H3-O3)*$O$1 -> 5950 | J3: =IF(B3="103 FS01",(VLOOKUP($B3:$B3,Data!$E$10:$AZ$1999,22,0)*1.05),(VLOOKUP($B3:$B3,Data!$E$10:$AZ$1999,22,0)*1.1)) -> 2747.722567 | K3: =Bútorlap_m²!E135 -> 0 | L3: =H3*$K3 -> 0 | M3: =I3*K3 -> 0 | N3: =J3*$K3 -> 0 | O3: =VLOOKUP(HLOOKUP(C3,$AA$1:$AZ$2,2,0),(IF(Q3=V3,Akciós_fehér_szín,IF(Q3=V4,Kiemelt_szín,IF(Q3=V5,Alap_szín,IF(Q3=V6,Egyéb_szín,IF(Q3=V7,Helyettesíthető_szín,IF(Q3=V8,Exkluzív_szín,IF(Q3=V9,Egész_táblás_szín,IF(Q3=V10,Akciós_fautánzat_szín,IF(Q3=V11,Prémium1_szín,IF(Q3=V12,Prémium2_szín,IF(Q3=V13,Prémium3_szín,Egyéb_vékony_szín)))))))))))),S3,0) -> 0 | P3: =M3 -> 0 | Q3: =VLOOKUP(B3,Data!$E$10:$AJ$799,12,0) -> Akciós fehér szín | S3: =IF(K3=0,3,IF(AND(K3>0,K3<5),2,IF(AND(K3>=5,K3<20),3,IF(AND(K3>=20,K3<50),4,5)))) -> 3 | V3: Akciós fehér szín | Z3: =VLOOKUP(B3,Data!$E$10:$AI$1999,18,0) -> 4597.929607 | AA3: =VLOOKUP(B3,Data!$E$10:$AI$1999,19,0) -> 5950 | AB3: =VLOOKUP(B3,Data!$E$10:$AI$1999,20,0) -> 4647.929607 | AC3: =VLOOKUP(B3,Data!$E$10:$AI$1999,21,0) -> 4597.929607
B4: Élzárás 0,4mm | C4: Élzárás | D4: =VLOOKUP(F4,ABS04_tabla,4,0) -> 24S | E4: =VLOOKUP(F4,ABS04_tabla,7,0) -> 0.5 | F4: =Bútorlap_m²!F34 -> 116 SM | G4: fm | H4: =Elzaras_22_04_kisker -> 350 | I4: =(H4*O4)*$O$1 -> 350 | J4: 0 | K4: =Bútorlap_m²!F135 -> 0 | L4: 0 | M4: =I4*K4 -> 0 | N4: 0 | O4: =HLOOKUP(C4,$AA$1:$AZ$2,2,0) -> 1 | P4: =M4 -> 0 | V4: Kiemelt szín
B5: Élzárás 0,7-1mm | C5: Élzárás | D5: =VLOOKUP(F5,ABS1_tabla,4,0) -> 24S | E5: =VLOOKUP(F5,ABS1_tabla,7,0) -> 1 | F5: =Bútorlap_m²!J34 -> 116 SM | G5: fm | H5: =Elzaras_22_08_kisker -> 400 | I5: 400 | J5: 0 | K5: =Bútorlap_m²!J135 -> 0 | L5: 0 | M5: 0 | N5: 0 | O5: 1 | P5: 0 | V5: Alap szín
B6: Élzárás 2mm | C6: Élzárás | D6: =VLOOKUP(F6,ABS2_tabla,4,0) -> 24S | E6: =VLOOKUP(F6,ABS2_tabla,7,0) -> 2 | F6: =Bútorlap_m²!N34 -> 116 SM | G6: fm | H6: =Elzaras_22_2_kisker -> 450 | I6: 450 | J6: 0 | K6: =Bútorlap_m²!N135 -> 0 | L6: 0 | M6: 0 | N6: 0 | O6: 1 | P6: 0 | V6: Egyéb szín
B7: Élzárás 0,4mm íves vagy ferde | C7: Élzárás | D7: =VLOOKUP(F7,ABS04_tabla,4,0) -> 24S | E7: =VLOOKUP(F7,ABS04_tabla,7,0) -> 0.5 | F7: =Bútorlap_m²!S34 -> 116 SM | G7: fm | H7: =H4*5 -> 1750 | I7: 1750 | J7: 0 | K7: =Bútorlap_m²!S135 -> 0 | L7: 0 | M7: 0 | N7: 0 | O7: 1 | P7: 0 | V7: Helyettesíthető szín
B8: Élzárás 0,7-1mm íves vagy ferde | C8: Élzárás | D8: =VLOOKUP(F8,ABS1_tabla,4,0) -> 24S | E8: =VLOOKUP(F8,ABS1_tabla,7,0) -> 1 | F8: =Bútorlap_m²!V34 -> 116 SM | G8: fm | H8: =H5*5 -> 2000 | I8: 2000 | J8: 0 | K8: =Bútorlap_m²!V135 -> 0 | L8: 0 | M8: 0 | N8: 0 | O8: 1 | P8: 0 | V8: Exkluzív szín
B9: Élzárás 2mm íves vagy ferde | C9: Élzárás | D9: =VLOOKUP(F9,ABS2_tabla,4,0) -> 24S | E9: =VLOOKUP(F9,ABS2_tabla,7,0) -> 2 | F9: =Bútorlap_m²!Y34 -> 116 SM | G9: fm | H9: =H6*5 -> 2250 | I9: 2250 | J9: 0 | K9: =Bútorlap_m²!Y135 -> 0 | L9: 0 | M9: 0 | N9: 0 | O9: 1 | P9: 0 | V9: Egész táblás szín
B10: Elhasznált élzáróanyag 0,4mm | C10: Élzáróanyag | D10: =VLOOKUP(F10,ABS04_tabla,4,0) -> 24S | E10: =VLOOKUP(F10,ABS04_tabla,7,0) -> 0.5 | F10: =Bútorlap_m²!F34 -> 116 SM | G10: fm | H10: =VLOOKUP($F10:$F10,Data!$B$19000:$M$20498,10,0) -> 89.1287397 | I10: 89.1287397 | J10: =VLOOKUP($F10:$F10,Data!$B$19000:$M$20498,12,0) -> 40.5130635 | K10: =Bútorlap_m²!F140 -> 0 | L10: 0 | M10: 0 | N10: 0 | O10: 1 | P10: 0 | V10: Akciós fautánzat szín
B11: Elhasznált élzáróanyag 0,7-1mm | C11: Élzáróanyag | D11: =VLOOKUP(F11,ABS1_tabla,4,0) -> 24S | E11: =VLOOKUP(F11,ABS1_tabla,7,0) -> 1 | F11: =Bútorlap_m²!J34 -> 116 SM | G11: fm | H11: =VLOOKUP($F11:$F11,Data!$B$20500:$M$21498,10,0) -> 157.3768697 | I11: 157.3768697 | J11: =VLOOKUP($F11:$F11,Data!$B$20500:$M$21498,12,0) -> 74.9413665 | K11: =Bútorlap_m²!J140 -> 0 | L11: 0 | M11: 0 | N11: 0 | O11: 1 | P11: 0 | V11: Prémium1 szín
B12: Elhasznált élzáróanyag 2mm | C12: Élzáróanyag | D12: =VLOOKUP(F12,ABS2_tabla,4,0) -> 24S | E12: =VLOOKUP(F12,ABS2_tabla,7,0) -> 2 | F12: =Bútorlap_m²!N34 -> 116 SM | G12: fm | H12: =VLOOKUP($F12:$F12,Data!$B$21499:$M$23498,10,0) -> 253.8749304 | I12: 253.8749304 | J12: =VLOOKUP($F12:$F12,Data!$B$21499:$M$23498,12,0) -> 141.041628 | K12: =Bútorlap_m²!N140 -> 0 | L12: 0 | M12: 0 | N12: 0 | O12: 1 | P12: 0 | V12: Prémium2 szín
B13: Plusz élzáróanyag 0,4mm | C13: Élzáróanyag | D13: =VLOOKUP(F13,ABS04_tabla,4,0) -> 24S | E13: =VLOOKUP(F13,ABS04_tabla,7,0) -> 0.5 | F13: =Bútorlap_m²!F34 -> 116 SM | G13: fm | H13: =VLOOKUP($F13:$F13,Data!$B$19000:$M$20498,10,0) -> 89.1287397 | I13: 89.1287397 | J13: =VLOOKUP($F13:$F13,Data!$B$19000:$M$20498,12,0) -> 40.5130635 | K13: =Bútorlap_m²!AF138 -> 0 | L13: 0 | M13: 0 | N13: 0 | O13: 1 | P13: 0 | V13: Prémium3 szín
B14: Plusz élzáróanyag 0,7-1mm | C14: Élzáróanyag | D14: =VLOOKUP(F14,ABS1_tabla,4,0) -> 24S | E14: =VLOOKUP(F14,ABS1_tabla,7,0) -> 1 | F14: =Bútorlap_m²!J34 -> 116 SM | G14: fm | H14: =VLOOKUP($F14:$F14,Data!$B$20500:$M$21498,10,0) -> 157.3768697 | I14: 157.3768697 | J14: =VLOOKUP($F14:$F14,Data!$B$20500:$M$21498,12,0) -> 74.9413665 | K14: =Bútorlap_m²!AF139 -> 0 | L14: 0 | M14: 0 | N14: 0 | O14: 1 | P14: 0 | V14: Egyéb vékony szín
B15: Plusz élzáróanyag 2mm | C15: Élzáróanyag | D15: =VLOOKUP(F15,ABS2_tabla,4,0) -> 24S | E15: =VLOOKUP(F15,ABS2_tabla,7,0) -> 2 | F15: =Bútorlap_m²!N34 -> 116 SM | G15: fm | H15: =VLOOKUP($F15:$F15,Data!$B$21499:$M$23498,10,0) -> 253.8749304 | I15: 253.8749304 | J15: =VLOOKUP($F15:$F15,Data!$B$21499:$M$23498,12,0) -> 141.041628 | K15: =Bútorlap_m²!AF140 -> 0 | L15: 0 | M15: 0 | N15: 0 | O15: 1 | P15: 0
B16: =Bútorlap_m²!AB30 -> 45 fokos sarokvágás /db | C16: Formatizálás | H16: =VLOOKUP($B16,Data!$E$25500:$AZ$25999,7,0) -> 1000 | I16: 1000 | J16: =VLOOKUP($B16,Data!$E$25500:$AZ$25999,9,0) -> 0 | K16: =Bútorlap_m²!AN135 -> 0 | L16: 0 | M16: 0 | N16: 0 | O16: 1 | P16: 0
B17: =Bútorlap_m²!AD30 -> Belső 90fokos kimetszés marással /db | C17: Formatizálás | H17: =VLOOKUP($B17,Data!$E$25500:$AZ$25999,7,0) -> 7500 | I17: 7500 | J17: =VLOOKUP($B17,Data!$E$25500:$AZ$25999,9,0) -> 0 | K17: =Bútorlap_m²!AO135 -> 0 | L17: 0 | M17: 0 | N17: 0 | O17: 1 | P17: 0
B18: =Bútorlap_m²!AF30 -> Hátlap-besüllyesztés marása /fm | C18: Formatizálás | H18: =VLOOKUP($B18,Data!$E$25500:$AZ$25999,7,0) -> 1000 | I18: 1000 | J18: =VLOOKUP($B18,Data!$E$25500:$AZ$25999,9,0) -> 0 | K18: =Bútorlap_m²!AP135 -> 0 | L18: 0 | M18: 0 | N18: 0 | O18: 1 | P18: 0
B19: =Bútorlap_m²!AH30 -> Ívelt alkatrész másolása < 1M /db | C19: Formatizálás | H19: =VLOOKUP($B19,Data!$E$25500:$AZ$25999,7,0) -> 4500 | I19: 4500 | J19: =VLOOKUP($B19,Data!$E$25500:$AZ$25999,9,0) -> 0 | K19: =Bútorlap_m²!AQ135 -> 0 | L19: 0 | M19: 0 | N19: 0 | O19: 1 | P19: 0
B20: =Bútorlap_m²!AJ30 -> Lapszabás Egyedi darab /db | C20: Formatizálás | H20: =VLOOKUP($B20,Data!$E$25500:$AZ$25999,7,0) -> 800 | I20: 800 | J20: =VLOOKUP($B20,Data!$E$25500:$AZ$25999,9,0) -> 0 | K20: =Bútorlap_m²!AR135 -> 0 | L20: 0 | M20: 0 | N20: 0 | O20: 1 | P20: 0
B21: Pánthelyfúrás 35mm /db | C21: Formatizálás | H21: =VLOOKUP($B21,Data!$E$25500:$AZ$25999,7,0) -> 500 | I21: 500 | J21: =VLOOKUP($B21,Data!$E$25500:$AZ$25999,9,0) -> 0 | K21: =Bútorlap_m²!AS135 -> 0 | L21: 0 | M21: 0 | N21: 0 | O21: 1 | P21: 0
B22: Csavartakaró matrica | C22: Alkatrész raktári | G22: levél | H22: 500 | I22: 400 | J22: 125 | K22: =Bútorlap_m²!N23 -> 0 | L22: 0 | M22: =I22*K22 -> 0 | N22: =J22*$K22 -> 0 | O22: 0.8 | P22: 0
B23: Javítóviasz | C23: Alkatrész raktári | G23: db | H23: 2000 | I23: 1600 | J23: 500 | K23: =Bútorlap_m²!AL23 -> 0 | L23: 0 | M23: 0 | N23: 0 | O23: 0.8 | P23: 0
B24: =Bútorlap_m²!B165 -> 116 SM | C24: =VLOOKUP(B24,Butorlap_tabla,31,0) -> Szabott laptermék fehér | D24: =Bútorlap_m²!R165 -> 18mm | E24: =IF(K24<2,"1.ársáv",IF(AND(K24>=2,K24<20),"2.ársáv",IF(AND(K24>=20,K24<50),"3.ársáv","4.ársáv"))) -> 1.ársáv | F24: =Bútorlap_m²!F165 -> Korpusz fehér (Falco) | G24: m² | H24: =VLOOKUP($B24:$B24,Data!$E$10:$AZ$1999,19,0) -> 5950 | I24: =(H24-O24)*$O$1 -> 5950 | J24: =IF(B3="103 FS01",(VLOOKUP($B24:$B24,Data!$E$10:$AZ$1999,22,0)*1.05),(VLOOKUP($B24:$B24,Data!$E$10:$AZ$1999,22,0)*1.1)) -> 2747.722567 | K24: =Bútorlap_m²!E272 -> 0 | L24: 0 | M24: 0 | N24: 0 | O24: =VLOOKUP(HLOOKUP(C24,$AA$1:$AZ$2,2,0),(IF(Q24=V24,Akciós_fehér_szín,IF(Q24=V25,Kiemelt_szín,IF(Q24=V26,Alap_szín,IF(Q24=V27,Egyéb_szín,IF(Q24=V28,Helyettesíthető_szín,IF(Q24=V29,Exkluzív_szín,IF(Q24=V30,Egész_táblás_szín,IF(Q24=V31,Akciós_fautánzat_szín,IF(Q24=V32,Prémium1_szín,IF(Q24=V33,Prémium2_szín,IF(Q24=V34,Prémium3_szín,Egyéb_vékony_szín)))))))))))),S24,0) -> 0 | P24: 0 | Q24: =VLOOKUP(B24,Data!$E$10:$AJ$799,12,0) -> Akciós fehér szín | S24: =IF(K24=0,3,IF(AND(K24>0,K24<5),2,IF(AND(K24>=5,K24<20),3,IF(AND(K24>=20,K24<50),4,5)))) -> 3 | V24: Akciós fehér szín | Z24: =VLOOKUP(B24,Data!$E$10:$AI$1999,18,0) -> 4597.929607 | AA24: =VLOOKUP(B24,Data!$E$10:$AI$1999,19,0) -> 5950 | AB24: =VLOOKUP(B24,Data!$E$10:$AI$1999,20,0) -> 4647.929607 | AC24: =VLOOKUP(B24,Data!$E$10:$AI$1999,21,0) -> 4597.929607
B25: Élzárás 0,4mm | C25: Élzárás | D25: =VLOOKUP(F25,ABS04_tabla,4,0) -> 24S | E25: =VLOOKUP(F25,ABS04_tabla,7,0) -> 0.5 | F25: =Bútorlap_m²!F171 -> 116 SM | G25: fm | H25: =Elzaras_22_04_kisker -> 350 | I25: =(H25*O25)*$O$1 -> 350 | J25: 0 | K25: =Bútorlap_m²!F272 -> 0 | L25: 0 | M25: 0 | N25: 0 | O25: 1 | P25: 0 | V25: Kiemelt szín
B26: Élzárás 0,7-1mm | C26: Élzárás | D26: =VLOOKUP(F26,ABS1_tabla,4,0) -> 24S | E26: =VLOOKUP(F26,ABS1_tabla,7,0) -> 1 | F26: =Bútorlap_m²!J171 -> 116 SM | G26: fm | H26: =Elzaras_22_08_kisker -> 400 | I26: 400 | J26: 0 | K26: =Bútorlap_m²!J272 -> 0 | L26: 0 | M26: 0 | N26: 0 | O26: 1 | P26: 0 | V26: Alap szín
B27: Élzárás 2mm | C27: Élzárás | D27: =VLOOKUP(F27,ABS2_tabla,4,0) -> 24S | E27: =VLOOKUP(F27,ABS2_tabla,7,0) -> 2 | F27: =Bútorlap_m²!N171 -> 116 SM | G27: fm | H27: =Elzaras_22_2_kisker -> 450 | I27: 450 | J27: 0 | K27: =Bútorlap_m²!N272 -> 0 | L27: 0 | M27: 0 | N27: 0 | O27: 1 | P27: 0 | V27: Egyéb szín
B28: Élzárás 0,4mm íves vagy ferde | C28: Élzárás | D28: =VLOOKUP(F28,ABS04_tabla,4,0) -> 24S | E28: =VLOOKUP(F28,ABS04_tabla,7,0) -> 0.5 | F28: =Bútorlap_m²!S171 -> 116 SM | G28: fm | H28: =H25*5 -> 1750 | I28: 1750 | J28: 0 | K28: =Bútorlap_m²!S272 -> 0 | L28: 0 | M28: 0 | N28: 0 | O28: 1 | P28: 0 | V28: Helyettesíthető szín
B29: Élzárás 0,7-1mm íves vagy ferde | C29: Élzárás | D29: =VLOOKUP(F29,ABS1_tabla,4,0) -> 24S | E29: =VLOOKUP(F29,ABS1_tabla,7,0) -> 1 | F29: =Bútorlap_m²!V171 -> 116 SM | G29: fm | H29: =H26*5 -> 2000 | I29: 2000 | J29: 0 | K29: =Bútorlap_m²!V272 -> 0 | L29: 0 | M29: 0 | N29: 0 | O29: 1 | P29: 0 | V29: Exkluzív szín
B30: Élzárás 2mm íves vagy ferde | C30: Élzárás | D30: =VLOOKUP(F30,ABS2_tabla,4,0) -> 24S | E30: =VLOOKUP(F30,ABS2_tabla,7,0) -> 2 | F30: =Bútorlap_m²!Y171 -> 116 SM | G30: fm | H30: =H27*5 -> 2250 | I30: 2250 | J30: 0 | K30: =Bútorlap_m²!Y272 -> 0 | L30: 0 | M30: 0 | N30: 0 | O30: 1 | P30: 0 | V30: Egész táblás szín
B31: Elhasznált élzáróanyag 0,4mm | C31: Élzáróanyag | D31: =VLOOKUP(F31,ABS04_tabla,4,0) -> 24S | E31: =VLOOKUP(F31,ABS04_tabla,7,0) -> 0.5 | F31: =Bútorlap_m²!F171 -> 116 SM | G31: fm | H31: =VLOOKUP($F31:$F31,Data!$B$19000:$M$20498,10,0) -> 89.1287397 | I31: 89.1287397 | J31: =VLOOKUP($F31:$F31,Data!$B$19000:$M$20498,12,0) -> 40.5130635 | K31: =Bútorlap_m²!F277 -> 0 | L31: 0 | M31: 0 | N31: 0 | O31: 1 | P31: 0 | V31: Akciós fautánzat szín
B32: Elhasznált élzáróanyag 0,7-1mm | C32: Élzáróanyag | D32: =VLOOKUP(F32,ABS1_tabla,4,0) -> 24S | E32: =VLOOKUP(F32,ABS1_tabla,7,0) -> 1 | F32: =Bútorlap_m²!J171 -> 116 SM | G32: fm | H32: =VLOOKUP($F32:$F32,Data!$B$20500:$M$21498,10,0) -> 157.3768697 | I32: 157.3768697 | J32: =VLOOKUP($F32:$F32,Data!$B$20500:$M$21498,12,0) -> 74.9413665 | K32: =Bútorlap_m²!J277 -> 0 | L32: 0 | M32: 0 | N32: 0 | O32: 1 | P32: 0 | V32: Prémium1 szín
B33: Elhasznált élzáróanyag 2mm | C33: Élzáróanyag | D33: =VLOOKUP(F33,ABS2_tabla,4,0) -> 24S | E33: =VLOOKUP(F33,ABS2_tabla,7,0) -> 2 | F33: =Bútorlap_m²!N171 -> 116 SM | G33: fm | H33: =VLOOKUP($F33:$F33,Data!$B$21499:$M$23498,10,0) -> 253.8749304 | I33: 253.8749304 | J33: =VLOOKUP($F33:$F33,Data!$B$21499:$M$23498,12,0) -> 141.041628 | K33: =Bútorlap_m²!N277 -> 0 | L33: 0 | M33: 0 | N33: 0 | O33: 1 | P33: 0 | V33: Prémium2 szín
B34: Plusz élzáróanyag 0,4mm | C34: Élzáróanyag | D34: =VLOOKUP(F34,ABS04_tabla,4,0) -> 24S | E34: =VLOOKUP(F34,ABS04_tabla,7,0) -> 0.5 | F34: =Bútorlap_m²!F171 -> 116 SM | G34: fm | H34: =VLOOKUP($F34:$F34,Data!$B$19000:$M$20498,10,0) -> 89.1287397 | I34: 89.1287397 | J34: =VLOOKUP($F34:$F34,Data!$B$19000:$M$20498,12,0) -> 40.5130635 | K34: =Bútorlap_m²!AF275 -> 0 | L34: =H34*$K34 -> 0 | M34: =I34*K34 -> 0 | N34: =J34*$K34 -> 0 | O34: =HLOOKUP(C34,$AA$1:$AZ$2,2,0) -> 1 | P34: =M34 -> 0 | V34: Prémium3 szín
B35: Plusz élzáróanyag 0,7-1mm | C35: Élzáróanyag | D35: =VLOOKUP(F35,ABS1_tabla,4,0) -> 24S | E35: =VLOOKUP(F35,ABS1_tabla,7,0) -> 1 | F35: =Bútorlap_m²!J171 -> 116 SM | G35: fm | H35: =VLOOKUP($F35:$F35,Data!$B$20500:$M$21498,10,0) -> 157.3768697 | I35: 157.3768697 | J35: =VLOOKUP($F35:$F35,Data!$B$20500:$M$21498,12,0) -> 74.9413665 | K35: =Bútorlap_m²!AF276 -> 0 | L35: 0 | M35: 0 | N35: 0 | O35: 1 | P35: 0 | V35: Egyéb vékony szín
B36: Plusz élzáróanyag 2mm | C36: Élzáróanyag | D36: =VLOOKUP(F36,ABS2_tabla,4,0) -> 24S | E36: =VLOOKUP(F36,ABS2_tabla,7,0) -> 2 | F36: =Bútorlap_m²!N171 -> 116 SM | G36: fm | H36: =VLOOKUP($F36:$F36,Data!$B$21499:$M$23498,10,0) -> 253.8749304 | I36: 253.8749304 | J36: =VLOOKUP($F36:$F36,Data!$B$21499:$M$23498,12,0) -> 141.041628 | K36: =Bútorlap_m²!AF277 -> 0 | L36: 0 | M36: 0 | N36: 0 | O36: 1 | P36: 0
B37: =Bútorlap_m²!AB167 -> 45 fokos sarokvágás /db | C37: Formatizálás | H37: =VLOOKUP($B37,Data!$E$25500:$AZ$25999,7,0) -> 1000 | I37: 1000 | J37: =VLOOKUP($B37,Data!$E$25500:$AZ$25999,9,0) -> 0 | K37: =Bútorlap_m²!AN272 -> 0 | L37: =H37*$K37 -> 0 | M37: 0 | N37: =J37*$K37 -> 0 | O37: 1 | P37: 0
B38: =Bútorlap_m²!AD167 -> Belső 90fokos kimetszés marással /db | C38: Formatizálás | H38: =VLOOKUP($B38,Data!$E$25500:$AZ$25999,7,0) -> 7500 | I38: 7500 | J38: =VLOOKUP($B38,Data!$E$25500:$AZ$25999,9,0) -> 0 | K38: =Bútorlap_m²!AO272 -> 0 | L38: 0 | M38: 0 | N38: 0 | O38: 1 | P38: 0
B39: =Bútorlap_m²!AF167 -> Hátlap-besüllyesztés marása /fm | C39: Formatizálás | H39: =VLOOKUP($B39,Data!$E$25500:$AZ$25999,7,0) -> 1000 | I39: 1000 | J39: =VLOOKUP($B39,Data!$E$25500:$AZ$25999,9,0) -> 0 | K39: =Bútorlap_m²!AP272 -> 0 | L39: 0 | M39: 0 | N39: 0 | O39: 1 | P39: 0
B40: =Bútorlap_m²!AH167 -> Ívelt alkatrész elkészítése < 1M /db | C40: Formatizálás | H40: =VLOOKUP($B40,Data!$E$25500:$AZ$25999,7,0) -> 7500 | I40: 7500 | J40: =VLOOKUP($B40,Data!$E$25500:$AZ$25999,9,0) -> 0 | K40: =Bútorlap_m²!AQ272 -> 0 | L40: 0 | M40: 0 | N40: 0 | O40: 1 | P40: 0
B41: =Bútorlap_m²!AJ167 -> Lapszabás Egyedi darab /db | C41: Formatizálás | H41: =VLOOKUP($B41,Data!$E$25500:$AZ$25999,7,0) -> 800 | I41: 800 | J41: =VLOOKUP($B41,Data!$E$25500:$AZ$25999,9,0) -> 0 | K41: =Bútorlap_m²!AR272 -> 0 | L41: 0 | M41: 0 | N41: 0 | O41: 1 | P41: 0
B42: Pánthelyfúrás 35mm /db | C42: Formatizálás | H42: =VLOOKUP($B42,Data!$E$25500:$AZ$25999,7,0) -> 500 | I42: 500 | J42: =VLOOKUP($B42,Data!$E$25500:$AZ$25999,9,0) -> 0 | K42: =Bútorlap_m²!AS272 -> 0 | L42: 0 | M42: 0 | N42: 0 | O42: 1 | P42: 0
B43: Csavartakaró matrica | C43: Alkatrész raktári | G43: levél | H43: 500 | I43: 400 | J43: 125 | K43: =Bútorlap_m²!N160 -> 0 | L43: 0 | M43: 0 | N43: 0 | O43: =HLOOKUP(C43,$AA$1:$AZ$2,2,0) -> 0.8 | P43: =M43 -> 0
B44: Javítóviasz | C44: Alkatrész raktári | G44: db | H44: 2000 | I44: 1600 | J44: 500 | K44: =Bútorlap_m²!AL160 -> 0 | L44: 0 | M44: 0 | N44: 0 | O44: 0.8 | P44: 0
B45: =Bútorlap_m²!B302 -> 116 SM | C45: =VLOOKUP(B45,Butorlap_tabla,31,0) -> Szabott laptermék fehér | D45: =Bútorlap_m²!R302 -> 18mm | E45: =IF(K45<2,"1.ársáv",IF(AND(K45>=2,K45<20),"2.ársáv",IF(AND(K45>=20,K45<50),"3.ársáv","4.ársáv"))) -> 1.ársáv | F45: =Bútorlap_m²!F302 -> Korpusz fehér (Falco) | G45: m² | H45: =VLOOKUP($B45:$B45,Data!$E$10:$AZ$1999,19,0) -> 5950 | I45: =(H45-O45)*$O$1 -> 5950 | J45: =IF(B3="103 FS01",(VLOOKUP($B45:$B45,Data!$E$10:$AZ$1999,22,0)*1.05),(VLOOKUP($B45:$B45,Data!$E$10:$AZ$1999,22,0)*1.1)) -> 2747.722567 | K45: =Bútorlap_m²!E409 -> 0 | L45: 0 | M45: 0 | N45: 0 | O45: =VLOOKUP(HLOOKUP(C45,$AA$1:$AZ$2,2,0),(IF(Q45=V45,Akciós_fehér_szín,IF(Q45=V46,Kiemelt_szín,IF(Q45=V47,Alap_szín,IF(Q45=V48,Egyéb_szín,IF(Q45=V49,Helyettesíthető_szín,IF(Q45=V50,Exkluzív_szín,IF(Q45=V51,Egész_táblás_szín,IF(Q45=V52,Akciós_fautánzat_szín,IF(Q45=V53,Prémium1_szín,IF(Q45=V54,Prémium2_szín,IF(Q45=V55,Prémium3_szín,Egyéb_vékony_szín)))))))))))),S45,0) -> 0 | P45: 0 | Q45: =VLOOKUP(B45,Data!$E$10:$AJ$799,12,0) -> Akciós fehér szín | S45: =IF(K45=0,3,IF(AND(K45>0,K45<5),2,IF(AND(K45>=5,K45<20),3,IF(AND(K45>=20,K45<50),4,5)))) -> 3 | V45: Akciós fehér szín | Z45: =VLOOKUP(B45,Data!$E$10:$AI$1999,18,0) -> 4597.929607 | AA45: =VLOOKUP(B45,Data!$E$10:$AI$1999,19,0) -> 5950 | AB45: =VLOOKUP(B45,Data!$E$10:$AI$1999,20,0) -> 4647.929607 | AC45: =VLOOKUP(B45,Data!$E$10:$AI$1999,21,0) -> 4597.929607
B46: Élzárás 0,4mm | C46: Élzárás | D46: =VLOOKUP(F46,ABS04_tabla,4,0) -> 24S | E46: =VLOOKUP(F46,ABS04_tabla,7,0) -> 0.5 | F46: =Bútorlap_m²!F308 -> 116 SM | G46: fm | H46: =Elzaras_22_04_kisker -> 350 | I46: =(H46*O46)*$O$1 -> 350 | J46: 0 | K46: =Bútorlap_m²!F409 -> 0 | L46: 0 | M46: 0 | N46: 0 | O46: 1 | P46: 0 | V46: Kiemelt szín
B47: Élzárás 0,7-1mm | C47: Élzárás | D47: =VLOOKUP(F47,ABS1_tabla,4,0) -> 24S | E47: =VLOOKUP(F47,ABS1_tabla,7,0) -> 1 | F47: =Bútorlap_m²!J308 -> 116 SM | G47: fm | H47: =Elzaras_22_08_kisker -> 400 | I47: 400 | J47: 0 | K47: =Bútorlap_m²!J409 -> 0 | L47: 0 | M47: 0 | N47: 0 | O47: 1 | P47: 0 | V47: Alap szín
B48: Élzárás 2mm | C48: Élzárás | D48: =VLOOKUP(F48,ABS2_tabla,4,0) -> 24S | E48: =VLOOKUP(F48,ABS2_tabla,7,0) -> 2 | F48: =Bútorlap_m²!N308 -> 116 SM | G48: fm | H48: =Elzaras_22_2_kisker -> 450 | I48: 450 | J48: 0 | K48: =Bútorlap_m²!N409 -> 0 | L48: 0 | M48: 0 | N48: 0 | O48: 1 | P48: 0 | V48: Egyéb szín
B49: Élzárás 0,4mm íves vagy ferde | C49: Élzárás | D49: =VLOOKUP(F49,ABS04_tabla,4,0) -> 24S | E49: =VLOOKUP(F49,ABS04_tabla,7,0) -> 0.5 | F49: =Bútorlap_m²!S308 -> 116 SM | G49: fm | H49: =H46*5 -> 1750 | I49: 1750 | J49: 0 | K49: =Bútorlap_m²!S409 -> 0 | L49: 0 | M49: 0 | N49: 0 | O49: 1 | P49: 0 | V49: Helyettesíthető szín
B50: Élzárás 0,7-1mm íves vagy ferde | C50: Élzárás | D50: =VLOOKUP(F50,ABS1_tabla,4,0) -> 24S | E50: =VLOOKUP(F50,ABS1_tabla,7,0) -> 1 | F50: =Bútorlap_m²!V308 -> 116 SM | G50: fm | H50: =H47*5 -> 2000 | I50: 2000 | J50: 0 | K50: =Bútorlap_m²!V409 -> 0 | L50: 0 | M50: 0 | N50: 0 | O50: 1 | P50: 0 | V50: Exkluzív szín
B51: Élzárás 2mm íves vagy ferde | C51: Élzárás | D51: =VLOOKUP(F51,ABS2_tabla,4,0) -> 24S | E51: =VLOOKUP(F51,ABS2_tabla,7,0) -> 2 | F51: =Bútorlap_m²!Y308 -> 116 SM | G51: fm | H51: =H48*5 -> 2250 | I51: 2250 | J51: 0 | K51: =Bútorlap_m²!Y409 -> 0 | L51: 0 | M51: 0 | N51: 0 | O51: 1 | P51: 0 | V51: Egész táblás szín
B52: Elhasznált élzáróanyag 0,4mm | C52: Élzáróanyag | D52: =VLOOKUP(F52,ABS04_tabla,4,0) -> 24S | E52: =VLOOKUP(F52,ABS04_tabla,7,0) -> 0.5 | F52: =Bútorlap_m²!F308 -> 116 SM | G52: fm | H52: =VLOOKUP($F52:$F52,Data!$B$19000:$M$20498,10,0) -> 89.1287397 | I52: 89.1287397 | J52: =VLOOKUP($F52:$F52,Data!$B$19000:$M$20498,12,0) -> 40.5130635 | K52: =Bútorlap_m²!F414 -> 0 | L52: 0 | M52: 0 | N52: 0 | O52: 1 | P52: 0 | V52: Akciós fautánzat szín
B53: Elhasznált élzáróanyag 0,7-1mm | C53: Élzáróanyag | D53: =VLOOKUP(F53,ABS1_tabla,4,0) -> 24S | E53: =VLOOKUP(F53,ABS1_tabla,7,0) -> 1 | F53: =Bútorlap_m²!J308 -> 116 SM | G53: fm | H53: =VLOOKUP($F53:$F53,Data!$B$20500:$M$21498,10,0) -> 157.3768697 | I53: 157.3768697 | J53: =VLOOKUP($F53:$F53,Data!$B$20500:$M$21498,12,0) -> 74.9413665 | K53: =Bútorlap_m²!J414 -> 0 | L53: 0 | M53: 0 | N53: 0 | O53: 1 | P53: 0 | V53: Prémium1 szín
B54: Elhasznált élzáróanyag 2mm | C54: Élzáróanyag | D54: =VLOOKUP(F54,ABS2_tabla,4,0) -> 24S | E54: =VLOOKUP(F54,ABS2_tabla,7,0) -> 2 | F54: =Bútorlap_m²!N308 -> 116 SM | G54: fm | H54: =VLOOKUP($F54:$F54,Data!$B$21499:$M$23498,10,0) -> 253.8749304 | I54: 253.8749304 | J54: =VLOOKUP($F54:$F54,Data!$B$21499:$M$23498,12,0) -> 141.041628 | K54: =Bútorlap_m²!N414 -> 0 | L54: 0 | M54: 0 | N54: 0 | O54: 1 | P54: 0 | V54: Prémium2 szín
B55: Plusz élzáróanyag 0,4mm | C55: Élzáróanyag | D55: =VLOOKUP(F55,ABS04_tabla,4,0) -> 24S | E55: =VLOOKUP(F55,ABS04_tabla,7,0) -> 0.5 | F55: =Bútorlap_m²!F308 -> 116 SM | G55: fm | H55: =VLOOKUP($F55:$F55,Data!$B$19000:$M$20498,10,0) -> 89.1287397 | I55: 89.1287397 | J55: =VLOOKUP($F55:$F55,Data!$B$19000:$M$20498,12,0) -> 40.5130635 | K55: =Bútorlap_m²!AF412 -> 0 | L55: =H55*$K55 -> 0 | M55: =I55*K55 -> 0 | N55: =J55*$K55 -> 0 | O55: =HLOOKUP(C55,$AA$1:$AZ$2,2,0) -> 1 | P55: =M55 -> 0 | V55: Prémium3 szín
B56: Plusz élzáróanyag 0,7-1mm | C56: Élzáróanyag | D56: =VLOOKUP(F56,ABS1_tabla,4,0) -> 24S | E56: =VLOOKUP(F56,ABS1_tabla,7,0) -> 1 | F56: =Bútorlap_m²!J308 -> 116 SM | G56: fm | H56: =VLOOKUP($F56:$F56,Data!$B$20500:$M$21498,10,0) -> 157.3768697 | I56: 157.3768697 | J56: =VLOOKUP($F56:$F56,Data!$B$20500:$M$21498,12,0) -> 74.9413665 | K56: =Bútorlap_m²!AF413 -> 0 | L56: 0 | M56: 0 | N56: 0 | O56: 1 | P56: 0 | V56: Egyéb vékony szín
B57: Plusz élzáróanyag 2mm | C57: Élzáróanyag | D57: =VLOOKUP(F57,ABS2_tabla,4,0) -> 24S | E57: =VLOOKUP(F57,ABS2_tabla,7,0) -> 2 | F57: =Bútorlap_m²!N308 -> 116 SM | G57: fm | H57: =VLOOKUP($F57:$F57,Data!$B$21499:$M$23498,10,0) -> 253.8749304 | I57: 253.8749304 | J57: =VLOOKUP($F57:$F57,Data!$B$21499:$M$23498,12,0) -> 141.041628 | K57: =Bútorlap_m²!AF414 -> 0 | L57: 0 | M57: 0 | N57: 0 | O57: 1 | P57: 0
B58: =Bútorlap_m²!AB304 -> 45 fokos sarokvágás /db | C58: Formatizálás | H58: =VLOOKUP($B58,Data!$E$25500:$AZ$25999,7,0) -> 1000 | I58: 1000 | J58: =VLOOKUP($B58,Data!$E$25500:$AZ$25999,9,0) -> 0 | K58: =Bútorlap_m²!AN409 -> 0 | L58: 0 | M58: 0 | N58: 0 | O58: 1 | P58: 0
B59: =Bútorlap_m²!AD304 -> Belső 90fokos kimetszés marással /db | C59: Formatizálás | H59: =VLOOKUP($B59,Data!$E$25500:$AZ$25999,7,0) -> 7500 | I59: 7500 | J59: =VLOOKUP($B59,Data!$E$25500:$AZ$25999,9,0) -> 0 | K59: =Bútorlap_m²!AO409 -> 0 | L59: 0 | M59: 0 | N59: 0 | O59: 1 | P59: 0
B60: =Bútorlap_m²!AF304 -> Hátlap-besüllyesztés marása /fm | C60: Formatizálás | H60: =VLOOKUP($B60,Data!$E$25500:$AZ$25999,7,0) -> 1000 | I60: 1000 | J60: =VLOOKUP($B60,Data!$E$25500:$AZ$25999,9,0) -> 0 | K60: =Bútorlap_m²!AP409 -> 0 | L60: 0 | M60: 0 | N60: 0 | O60: 1 | P60: 0
B61: =Bútorlap_m²!AH304 -> Ívelt alkatrész elkészítése < 1M /db | C61: Formatizálás | H61: =VLOOKUP($B61,Data!$E$25500:$AZ$25999,7,0) -> 7500 | I61: 7500 | J61: =VLOOKUP($B61,Data!$E$25500:$AZ$25999,9,0) -> 0 | K61: =Bútorlap_m²!AQ409 -> 0 | L61: 0 | M61: 0 | N61: 0 | O61: 1 | P61: 0
B62: =Bútorlap_m²!AJ304 -> Lapszabás Egyedi darab /db | C62: Formatizálás | H62: =VLOOKUP($B62,Data!$E$25500:$AZ$25999,7,0) -> 800 | I62: 800 | J62: =VLOOKUP($B62,Data!$E$25500:$AZ$25999,9,0) -> 0 | K62: =Bútorlap_m²!AR409 -> 0 | L62: 0 | M62: 0 | N62: 0 | O62: 1 | P62: 0
B63: Pánthelyfúrás 35mm /db | C63: Formatizálás | H63: =VLOOKUP($B63,Data!$E$25500:$AZ$25999,7,0) -> 500 | I63: 500 | J63: =VLOOKUP($B63,Data!$E$25500:$AZ$25999,9,0) -> 0 | K63: =Bútorlap_m²!AS409 -> 0 | L63: 0 | M63: 0 | N63: 0 | O63: 1 | P63: 0
B64: Csavartakaró matrica | C64: Alkatrész raktári | G64: levél | H64: 500 | I64: 400 | J64: 125 | K64: =Bútorlap_m²!N297 -> 0 | L64: 0 | M64: 0 | N64: 0 | O64: 0.8 | P64: 0
B65: Javítóviasz | C65: Alkatrész raktári | G65: db | H65: 2000 | I65: 1600 | J65: 500 | K65: =Bútorlap_m²!AL297 -> 0 | L65: 0 | M65: 0 | N65: 0 | O65: 0.8 | P65: 0
B66: =Bútorlap_m²!B439 -> 116 SM | C66: =VLOOKUP(B66,Butorlap_tabla,31,0) -> Szabott laptermék fehér | D66: =Bútorlap_m²!R439 -> 18mm | E66: =IF(K66<2,"1.ársáv",IF(AND(K66>=2,K66<20),"2.ársáv",IF(AND(K66>=20,K66<50),"3.ársáv","4.ársáv"))) -> 1.ársáv | F66: =Bútorlap_m²!F439 -> Korpusz fehér (Falco) | G66: m² | H66: =VLOOKUP($B66:$B66,Data!$E$10:$AZ$1999,19,0) -> 5950 | I66: =(H66-O66)*$O$1 -> 5950 | J66: =IF(B3="103 FS01",(VLOOKUP($B66:$B66,Data!$E$10:$AZ$1999,22,0)*1.05),(VLOOKUP($B66:$B66,Data!$E$10:$AZ$1999,22,0)*1.1)) -> 2747.722567 | K66: =Bútorlap_m²!E546 -> 0 | L66: 0 | M66: 0 | N66: 0 | O66: =VLOOKUP(HLOOKUP(C66,$AA$1:$AZ$2,2,0),(IF(Q66=V66,Akciós_fehér_szín,IF(Q66=V67,Kiemelt_szín,IF(Q66=V68,Alap_szín,IF(Q66=V69,Egyéb_szín,IF(Q66=V70,Helyettesíthető_szín,IF(Q66=V71,Exkluzív_szín,IF(Q66=V72,Egész_táblás_szín,IF(Q66=V73,Akciós_fautánzat_szín,IF(Q66=V74,Prémium1_szín,IF(Q66=V75,Prémium2_szín,IF(Q66=V76,Prémium3_szín,Egyéb_vékony_szín)))))))))))),S66,0) -> 0 | P66: 0 | Q66: =VLOOKUP(B66,Data!$E$10:$AJ$799,12,0) -> Akciós fehér szín | S66: =IF(K66=0,3,IF(AND(K66>0,K66<5),2,IF(AND(K66>=5,K66<20),3,IF(AND(K66>=20,K66<50),4,5)))) -> 3 | V66: Akciós fehér szín | Z66: =VLOOKUP(B66,Data!$E$10:$AI$1999,18,0) -> 4597.929607 | AA66: =VLOOKUP(B66,Data!$E$10:$AI$1999,19,0) -> 5950 | AB66: =VLOOKUP(B66,Data!$E$10:$AI$1999,20,0) -> 4647.929607 | AC66: =VLOOKUP(B66,Data!$E$10:$AI$1999,21,0) -> 4597.929607
B67: Élzárás 0,4mm | C67: Élzárás | D67: =VLOOKUP(F67,ABS04_tabla,4,0) -> 24S | E67: =VLOOKUP(F67,ABS04_tabla,7,0) -> 0.5 | F67: =Bútorlap_m²!F445 -> 116 SM | G67: fm | H67: =Elzaras_22_04_kisker -> 350 | I67: =(H67*O67)*$O$1 -> 350 | J67: 0 | K67: =Bútorlap_m²!F546 -> 0 | L67: =H67*$K67 -> 0 | M67: 0 | N67: =J67*$K67 -> 0 | O67: =HLOOKUP(C67,$AA$1:$AZ$2,2,0) -> 1 | P67: 0 | V67: Kiemelt szín
B68: Élzárás 0,7-1mm | C68: Élzárás | D68: =VLOOKUP(F68,ABS1_tabla,4,0) -> 24S | E68: =VLOOKUP(F68,ABS1_tabla,7,0) -> 1 | F68: =Bútorlap_m²!J445 -> 116 SM | G68: fm | H68: =Elzaras_22_08_kisker -> 400 | I68: 400 | J68: 0 | K68: =Bútorlap_m²!J546 -> 0 | L68: 0 | M68: =I68*K68 -> 0 | N68: 0 | O68: 1 | P68: =M68 -> 0 | V68: Alap szín
B69: Élzárás 2mm | C69: Élzárás | D69: =VLOOKUP(F69,ABS2_tabla,4,0) -> 24S | E69: =VLOOKUP(F69,ABS2_tabla,7,0) -> 2 | F69: =Bútorlap_m²!N445 -> 116 SM | G69: fm | H69: =Elzaras_22_2_kisker -> 450 | I69: 450 | J69: 0 | K69: =Bútorlap_m²!N546 -> 0 | L69: 0 | M69: 0 | N69: 0 | O69: 1 | P69: 0 | V69: Egyéb szín
B70: Élzárás 0,4mm íves vagy ferde | C70: Élzárás | D70: =VLOOKUP(F70,ABS04_tabla,4,0) -> 24S | E70: =VLOOKUP(F70,ABS04_tabla,7,0) -> 0.5 | F70: =Bútorlap_m²!S445 -> 116 SM | G70: fm | H70: =H67*5 -> 1750 | I70: 1750 | J70: 0 | K70: =Bútorlap_m²!S546 -> 0 | L70: 0 | M70: 0 | N70: 0 | O70: 1 | P70: 0 | V70: Helyettesíthető szín
B71: Élzárás 0,7-1mm íves vagy ferde | C71: Élzárás | D71: =VLOOKUP(F71,ABS1_tabla,4,0) -> 24S | E71: =VLOOKUP(F71,ABS1_tabla,7,0) -> 1 | F71: =Bútorlap_m²!V445 -> 116 SM | G71: fm | H71: =H68*5 -> 2000 | I71: 2000 | J71: 0 | K71: =Bútorlap_m²!V546 -> 0 | L71: 0 | M71: 0 | N71: 0 | O71: 1 | P71: 0 | V71: Exkluzív szín
B72: Élzárás 2mm íves vagy ferde | C72: Élzárás | D72: =VLOOKUP(F72,ABS2_tabla,4,0) -> 24S | E72: =VLOOKUP(F72,ABS2_tabla,7,0) -> 2 | F72: =Bútorlap_m²!Y445 -> 116 SM | G72: fm | H72: =H69*5 -> 2250 | I72: 2250 | J72: 0 | K72: =Bútorlap_m²!Y546 -> 0 | L72: 0 | M72: 0 | N72: 0 | O72: 1 | P72: 0 | V72: Egész táblás szín
B73: Elhasznált élzáróanyag 0,4mm | C73: Élzáróanyag | D73: =VLOOKUP(F73,ABS04_tabla,4,0) -> 24S | E73: =VLOOKUP(F73,ABS04_tabla,7,0) -> 0.5 | F73: =Bútorlap_m²!F445 -> 116 SM | G73: fm | H73: =VLOOKUP($F73:$F73,Data!$B$19000:$M$20498,10,0) -> 89.1287397 | I73: 89.1287397 | J73: =VLOOKUP($F73:$F73,Data!$B$19000:$M$20498,12,0) -> 40.5130635 | K73: =Bútorlap_m²!F551 -> 0 | L73: 0 | M73: 0 | N73: 0 | O73: 1 | P73: 0 | V73: Akciós fautánzat szín
B74: Elhasznált élzáróanyag 0,7-1mm | C74: Élzáróanyag | D74: =VLOOKUP(F74,ABS1_tabla,4,0) -> 24S | E74: =VLOOKUP(F74,ABS1_tabla,7,0) -> 1 | F74: =Bútorlap_m²!J445 -> 116 SM | G74: fm | H74: =VLOOKUP($F74:$F74,Data!$B$20500:$M$21498,10,0) -> 157.3768697 | I74: 157.3768697 | J74: =VLOOKUP($F74:$F74,Data!$B$20500:$M$21498,12,0) -> 74.9413665 | K74: =Bútorlap_m²!J551 -> 0 | L74: 0 | M74: 0 | N74: 0 | O74: 1 | P74: 0 | V74: Prémium1 szín
B75: Elhasznált élzáróanyag 2mm | C75: Élzáróanyag | D75: =VLOOKUP(F75,ABS2_tabla,4,0) -> 24S | E75: =VLOOKUP(F75,ABS2_tabla,7,0) -> 2 | F75: =Bútorlap_m²!N445 -> 116 SM | G75: fm | H75: =VLOOKUP($F75:$F75,Data!$B$21499:$M$23498,10,0) -> 253.8749304 | I75: 253.8749304 | J75: =VLOOKUP($F75:$F75,Data!$B$21499:$M$23498,12,0) -> 141.041628 | K75: =Bútorlap_m²!N551 -> 0 | L75: 0 | M75: 0 | N75: 0 | O75: 1 | P75: 0 | V75: Prémium2 szín
B76: Plusz élzáróanyag 0,4mm | C76: Élzáróanyag | D76: =VLOOKUP(F76,ABS04_tabla,4,0) -> 24S | E76: =VLOOKUP(F76,ABS04_tabla,7,0) -> 0.5 | F76: =Bútorlap_m²!F445 -> 116 SM | G76: fm | H76: =VLOOKUP($F76:$F76,Data!$B$19000:$M$20498,10,0) -> 89.1287397 | I76: 89.1287397 | J76: =VLOOKUP($F76:$F76,Data!$B$19000:$M$20498,12,0) -> 40.5130635 | K76: =Bútorlap_m²!AF549 -> 0 | L76: =H76*$K76 -> 0 | M76: =I76*K76 -> 0 | N76: =J76*$K76 -> 0 | O76: =HLOOKUP(C76,$AA$1:$AZ$2,2,0) -> 1 | P76: =M76 -> 0 | V76: Prémium3 szín
B77: Plusz élzáróanyag 0,7-1mm | C77: Élzáróanyag | D77: =VLOOKUP(F77,ABS1_tabla,4,0) -> 24S | E77: =VLOOKUP(F77,ABS1_tabla,7,0) -> 1 | F77: =Bútorlap_m²!J445 -> 116 SM | G77: fm | H77: =VLOOKUP($F77:$F77,Data!$B$20500:$M$21498,10,0) -> 157.3768697 | I77: 157.3768697 | J77: =VLOOKUP($F77:$F77,Data!$B$20500:$M$21498,12,0) -> 74.9413665 | K77: =Bútorlap_m²!AF550 -> 0 | L77: 0 | M77: 0 | N77: 0 | O77: 1 | P77: 0 | V77: Egyéb vékony szín
B78: Plusz élzáróanyag 2mm | C78: Élzáróanyag | D78: =VLOOKUP(F78,ABS2_tabla,4,0) -> 24S | E78: =VLOOKUP(F78,ABS2_tabla,7,0) -> 2 | F78: =Bútorlap_m²!N445 -> 116 SM | G78: fm | H78: =VLOOKUP($F78:$F78,Data!$B$21499:$M$23498,10,0) -> 253.8749304 | I78: 253.8749304 | J78: =VLOOKUP($F78:$F78,Data!$B$21499:$M$23498,12,0) -> 141.041628 | K78: =Bútorlap_m²!AF551 -> 0 | L78: 0 | M78: 0 | N78: 0 | O78: 1 | P78: 0
B79: =Bútorlap_m²!AB441 -> 45 fokos sarokvágás /db | C79: Formatizálás | H79: =VLOOKUP($B79,Data!$E$25500:$AZ$25999,7,0) -> 1000 | I79: 1000 | J79: =VLOOKUP($B79,Data!$E$25500:$AZ$25999,9,0) -> 0 | K79: =Bútorlap_m²!AN546 -> 0 | L79: 0 | M79: 0 | N79: 0 | O79: 1 | P79: 0
B80: =Bútorlap_m²!AD441 -> Belső 90fokos kimetszés marással /db | C80: Formatizálás | H80: =VLOOKUP($B80,Data!$E$25500:$AZ$25999,7,0) -> 7500 | I80: 7500 | J80: =VLOOKUP($B80,Data!$E$25500:$AZ$25999,9,0) -> 0 | K80: =Bútorlap_m²!AO546 -> 0 | L80: 0 | M80: 0 | N80: 0 | O80: 1 | P80: 0
B81: =Bútorlap_m²!AF441 -> Hátlap-besüllyesztés marása /fm | C81: Formatizálás | H81: =VLOOKUP($B81,Data!$E$25500:$AZ$25999,7,0) -> 1000 | I81: 1000 | J81: =VLOOKUP($B81,Data!$E$25500:$AZ$25999,9,0) -> 0 | K81: =Bútorlap_m²!AP546 -> 0 | L81: 0 | M81: 0 | N81: 0 | O81: 1 | P81: 0
B82: =Bútorlap_m²!AH441 -> Ívelt alkatrész elkészítése < 1M /db | C82: Formatizálás | H82: =VLOOKUP($B82,Data!$E$25500:$AZ$25999,7,0) -> 7500 | I82: 7500 | J82: =VLOOKUP($B82,Data!$E$25500:$AZ$25999,9,0) -> 0 | K82: =Bútorlap_m²!AQ546 -> 0 | L82: 0 | M82: 0 | N82: 0 | O82: 1 | P82: 0
B83: =Bútorlap_m²!AJ441 -> Lapszabás Egyedi darab /db | C83: Formatizálás | H83: =VLOOKUP($B83,Data!$E$25500:$AZ$25999,7,0) -> 800 | I83: 800 | J83: =VLOOKUP($B83,Data!$E$25500:$AZ$25999,9,0) -> 0 | K83: =Bútorlap_m²!AR546 -> 0 | L83: 0 | M83: 0 | N83: 0 | O83: 1 | P83: 0
B84: Pánthelyfúrás 35mm /db | C84: Formatizálás | H84: =VLOOKUP($B84,Data!$E$25500:$AZ$25999,7,0) -> 500 | I84: 500 | J84: =VLOOKUP($B84,Data!$E$25500:$AZ$25999,9,0) -> 0 | K84: =Bútorlap_m²!AS546 -> 0 | L84: 0 | M84: 0 | N84: 0 | O84: 1 | P84: 0
B85: Csavartakaró matrica | C85: Alkatrész raktári | G85: levél | H85: 500 | I85: 400 | J85: 125 | K85: =Bútorlap_m²!N434 -> 0 | L85: 0 | M85: 0 | N85: 0 | O85: 0.8 | P85: 0
B86: Javítóviasz | C86: Alkatrész raktári | G86: db | H86: 2000 | I86: 1600 | J86: 500 | K86: =Bútorlap_m²!AL434 -> 0 | L86: 0 | M86: 0 | N86: 0 | O86: 0.8 | P86: 0
B87: =Bútorlap_m²!B576 -> 116 SM | C87: =VLOOKUP(B87,Butorlap_tabla,31,0) -> Szabott laptermék fehér | D87: =Bútorlap_m²!R576 -> 18mm | E87: =IF(K87<2,"1.ársáv",IF(AND(K87>=2,K87<20),"2.ársáv",IF(AND(K87>=20,K87<50),"3.ársáv","4.ársáv"))) -> 1.ársáv | F87: =Bútorlap_m²!F576 -> Korpusz fehér (Falco) | G87: m² | H87: =VLOOKUP($B87:$B87,Data!$E$10:$AZ$1999,19,0) -> 5950 | I87: =(H87-O87)*$O$1 -> 5950 | J87: =IF(B3="103 FS01",(VLOOKUP($B87:$B87,Data!$E$10:$AZ$1999,22,0)*1.05),(VLOOKUP($B87:$B87,Data!$E$10:$AZ$1999,22,0)*1.1)) -> 2747.722567 | K87: =Bútorlap_m²!E683 -> 0 | L87: 0 | M87: 0 | N87: 0 | O87: =VLOOKUP(HLOOKUP(C87,$AA$1:$AZ$2,2,0),(IF(Q87=V87,Akciós_fehér_szín,IF(Q87=V88,Kiemelt_szín,IF(Q87=V89,Alap_szín,IF(Q87=V90,Egyéb_szín,IF(Q87=V91,Helyettesíthető_szín,IF(Q87=V92,Exkluzív_szín,IF(Q87=V93,Egész_táblás_szín,IF(Q87=V94,Akciós_fautánzat_szín,IF(Q87=V95,Prémium1_szín,IF(Q87=V96,Prémium2_szín,IF(Q87=V97,Prémium3_szín,Egyéb_vékony_szín)))))))))))),S87,0) -> 0 | P87: 0 | Q87: =VLOOKUP(B87,Data!$E$10:$AJ$799,12,0) -> Akciós fehér szín | S87: =IF(K87=0,3,IF(AND(K87>0,K87<5),2,IF(AND(K87>=5,K87<20),3,IF(AND(K87>=20,K87<50),4,5)))) -> 3 | V87: Akciós fehér szín | Z87: =VLOOKUP(B87,Data!$E$10:$AI$1999,18,0) -> 4597.929607 | AA87: =VLOOKUP(B87,Data!$E$10:$AI$1999,19,0) -> 5950 | AB87: =VLOOKUP(B87,Data!$E$10:$AI$1999,20,0) -> 4647.929607 | AC87: =VLOOKUP(B87,Data!$E$10:$AI$1999,21,0) -> 4597.929607
B88: Élzárás 0,4mm | C88: Élzárás | D88: =VLOOKUP(F88,ABS04_tabla,4,0) -> 24S | E88: =VLOOKUP(F88,ABS04_tabla,7,0) -> 0.5 | F88: =Bútorlap_m²!F582 -> 116 SM | G88: fm | H88: =Elzaras_22_04_kisker -> 350 | I88: 350 | J88: 0 | K88: =Bútorlap_m²!F683 -> 0 | L88: 0 | M88: 0 | N88: 0 | O88: 1 | P88: 0 | V88: Kiemelt szín
B89: Élzárás 0,7-1mm | C89: Élzárás | D89: =VLOOKUP(F89,ABS1_tabla,4,0) -> 24S | E89: =VLOOKUP(F89,ABS1_tabla,7,0) -> 1 | F89: =Bútorlap_m²!J582 -> 116 SM | G89: fm | H89: =Elzaras_22_08_kisker -> 400 | I89: 400 | J89: 0 | K89: =Bútorlap_m²!J683 -> 0 | L89: 0 | M89: 0 | N89: 0 | O89: 1 | P89: 0 | V89: Alap szín
B90: Élzárás 2mm | C90: Élzárás | D90: =VLOOKUP(F90,ABS2_tabla,4,0) -> 24S | E90: =VLOOKUP(F90,ABS2_tabla,7,0) -> 2 | F90: =Bútorlap_m²!N582 -> 116 SM | G90: fm | H90: =Elzaras_22_2_kisker -> 450 | I90: 450 | J90: 0 | K90: =Bútorlap_m²!N683 -> 0 | L90: 0 | M90: 0 | N90: 0 | O90: 1 | P90: 0 | V90: Egyéb szín
B91: Élzárás 0,4mm íves vagy ferde | C91: Élzárás | D91: =VLOOKUP(F91,ABS04_tabla,4,0) -> 24S | E91: =VLOOKUP(F91,ABS04_tabla,7,0) -> 0.5 | F91: =Bútorlap_m²!S582 -> 116 SM | G91: fm | H91: =H88*5 -> 1750 | I91: 1750 | J91: 0 | K91: =Bútorlap_m²!S683 -> 0 | L91: 0 | M91: 0 | N91: 0 | O91: 1 | P91: 0 | V91: Helyettesíthető szín
B92: Élzárás 0,7-1mm íves vagy ferde | C92: Élzárás | D92: =VLOOKUP(F92,ABS1_tabla,4,0) -> 24S | E92: =VLOOKUP(F92,ABS1_tabla,7,0) -> 1 | F92: =Bútorlap_m²!V582 -> 116 SM | G92: fm | H92: =H89*5 -> 2000 | I92: 2000 | J92: 0 | K92: =Bútorlap_m²!V683 -> 0 | L92: 0 | M92: 0 | N92: 0 | O92: 1 | P92: 0 | V92: Exkluzív szín
B93: Élzárás 2mm íves vagy ferde | C93: Élzárás | D93: =VLOOKUP(F93,ABS2_tabla,4,0) -> 24S | E93: =VLOOKUP(F93,ABS2_tabla,7,0) -> 2 | F93: =Bútorlap_m²!Y582 -> 116 SM | G93: fm | H93: =H90*5 -> 2250 | I93: 2250 | J93: 0 | K93: =Bútorlap_m²!Y683 -> 0 | L93: 0 | M93: 0 | N93: 0 | O93: 1 | P93: 0 | V93: Egész táblás szín
B94: Elhasznált élzáróanyag 0,4mm | C94: Élzáróanyag | D94: =VLOOKUP(F94,ABS04_tabla,4,0) -> 24S | E94: =VLOOKUP(F94,ABS04_tabla,7,0) -> 0.5 | F94: =Bútorlap_m²!F582 -> 116 SM | G94: fm | H94: =VLOOKUP($F94:$F94,Data!$B$19000:$M$20498,10,0) -> 89.1287397 | I94: 89.1287397 | J94: =VLOOKUP($F94:$F94,Data!$B$19000:$M$20498,12,0) -> 40.5130635 | K94: =Bútorlap_m²!F688 -> 0 | L94: 0 | M94: 0 | N94: 0 | O94: 1 | P94: 0 | V94: Akciós fautánzat szín
B95: Elhasznált élzáróanyag 0,7-1mm | C95: Élzáróanyag | D95: =VLOOKUP(F95,ABS1_tabla,4,0) -> 24S | E95: =VLOOKUP(F95,ABS1_tabla,7,0) -> 1 | F95: =Bútorlap_m²!J582 -> 116 SM | G95: fm | H95: =VLOOKUP($F95:$F95,Data!$B$20500:$M$21498,10,0) -> 157.3768697 | I95: 157.3768697 | J95: =VLOOKUP($F95:$F95,Data!$B$20500:$M$21498,12,0) -> 74.9413665 | K95: =Bútorlap_m²!J688 -> 0 | L95: 0 | M95: 0 | N95: 0 | O95: 1 | P95: 0 | V95: Prémium1 szín
B96: Elhasznált élzáróanyag 2mm | C96: Élzáróanyag | D96: =VLOOKUP(F96,ABS2_tabla,4,0) -> 24S | E96: =VLOOKUP(F96,ABS2_tabla,7,0) -> 2 | F96: =Bútorlap_m²!N582 -> 116 SM | G96: fm | H96: =VLOOKUP($F96:$F96,Data!$B$21499:$M$23498,10,0) -> 253.8749304 | I96: 253.8749304 | J96: =VLOOKUP($F96:$F96,Data!$B$21499:$M$23498,12,0) -> 141.041628 | K96: =Bútorlap_m²!N688 -> 0 | L96: 0 | M96: 0 | N96: 0 | O96: 1 | P96: 0 | V96: Prémium2 szín
B97: Plusz élzáróanyag 0,4mm | C97: Élzáróanyag | D97: =VLOOKUP(F97,ABS04_tabla,4,0) -> 24S | E97: =VLOOKUP(F97,ABS04_tabla,7,0) -> 0.5 | F97: =Bútorlap_m²!F582 -> 116 SM | G97: fm | H97: =VLOOKUP($F97:$F97,Data!$B$19000:$M$20498,10,0) -> 89.1287397 | I97: 89.1287397 | J97: =VLOOKUP($F97:$F97,Data!$B$19000:$M$20498,12,0) -> 40.5130635 | K97: =Bútorlap_m²!AF686 -> 0 | L97: =H97*$K97 -> 0 | M97: =I97*K97 -> 0 | N97: =J97*$K97 -> 0 | O97: =HLOOKUP(C97,$AA$1:$AZ$2,2,0) -> 1 | P97: =M97 -> 0 | V97: Prémium3 szín
B98: Plusz élzáróanyag 0,7-1mm | C98: Élzáróanyag | D98: =VLOOKUP(F98,ABS1_tabla,4,0) -> 24S | E98: =VLOOKUP(F98,ABS1_tabla,7,0) -> 1 | F98: =Bútorlap_m²!J582 -> 116 SM | G98: fm | H98: =VLOOKUP($F98:$F98,Data!$B$20500:$M$21498,10,0) -> 157.3768697 | I98: 157.3768697 | J98: =VLOOKUP($F98:$F98,Data!$B$20500:$M$21498,12,0) -> 74.9413665 | K98: =Bútorlap_m²!AF687 -> 0 | L98: 0 | M98: 0 | N98: 0 | O98: 1 | P98: 0 | V98: Egyéb vékony szín
B99: Plusz élzáróanyag 2mm | C99: Élzáróanyag | D99: =VLOOKUP(F99,ABS2_tabla,4,0) -> 24S | E99: =VLOOKUP(F99,ABS2_tabla,7,0) -> 2 | F99: =Bútorlap_m²!F582 -> 116 SM | G99: fm | H99: =VLOOKUP($F99:$F99,Data!$B$21499:$M$23498,10,0) -> 253.8749304 | I99: 253.8749304 | J99: =VLOOKUP($F99:$F99,Data!$B$21499:$M$23498,12,0) -> 141.041628 | K99: =Bútorlap_m²!AF688 -> 0 | L99: 0 | M99: 0 | N99: 0 | O99: 1 | P99: 0
B100: =Bútorlap_m²!AB578 -> 45 fokos sarokvágás /db | C100: Formatizálás | H100: =VLOOKUP($B100,Data!$E$25500:$AZ$25999,7,0) -> 1000 | I100: 1000 | J100: =VLOOKUP($B100,Data!$E$25500:$AZ$25999,9,0) -> 0 | K100: =Bútorlap_m²!AN683 -> 0 | L100: =H100*$K100 -> 0 | M100: 0 | N100: =J100*$K100 -> 0 | O100: 1 | P100: 0
B101: =Bútorlap_m²!AD578 -> Belső 90fokos kimetszés marással /db | C101: Formatizálás | H101: =VLOOKUP($B101,Data!$E$25500:$AZ$25999,7,0) -> 7500 | I101: 7500 | J101: =VLOOKUP($B101,Data!$E$25500:$AZ$25999,9,0) -> 0 | K101: =Bútorlap_m²!AO683 -> 0 | L101: 0 | M101: 0 | N101: 0 | O101: 1 | P101: 0
B102: =Bútorlap_m²!AF578 -> Hátlap-besüllyesztés marása /fm | C102: Formatizálás | H102: =VLOOKUP($B102,Data!$E$25500:$AZ$25999,7,0) -> 1000 | I102: 1000 | J102: =VLOOKUP($B102,Data!$E$25500:$AZ$25999,9,0) -> 0 | K102: =Bútorlap_m²!AP683 -> 0 | L102: 0 | M102: 0 | N102: 0 | O102: 1 | P102: 0
B103: =Bútorlap_m²!AH578 -> Ívelt alkatrész elkészítése < 1M /db | C103: Formatizálás | H103: =VLOOKUP($B103,Data!$E$25500:$AZ$25999,7,0) -> 7500 | I103: 7500 | J103: =VLOOKUP($B103,Data!$E$25500:$AZ$25999,9,0) -> 0 | K103: =Bútorlap_m²!AQ683 -> 0 | L103: 0 | M103: 0 | N103: 0 | O103: 1 | P103: 0
B104: =Bútorlap_m²!AJ578 -> Lapszabás Egyedi darab /db | C104: Formatizálás | H104: =VLOOKUP($B104,Data!$E$25500:$AZ$25999,7,0) -> 800 | I104: 800 | J104: =VLOOKUP($B104,Data!$E$25500:$AZ$25999,9,0) -> 0 | K104: =Bútorlap_m²!AR683 -> 0 | L104: 0 | M104: 0 | N104: 0 | O104: 1 | P104: 0
B105: Pánthelyfúrás 35mm /db | C105: Formatizálás | H105: =VLOOKUP($B105,Data!$E$25500:$AZ$25999,7,0) -> 500 | I105: 500 | J105: =VLOOKUP($B105,Data!$E$25500:$AZ$25999,9,0) -> 0 | K105: =Bútorlap_m²!AS683 -> 0 | L105: 0 | M105: 0 | N105: 0 | O105: 1 | P105: 0
B106: Csavartakaró matrica | C106: Alkatrész raktári | G106: levél | H106: 500 | I106: 400 | J106: 125 | K106: =Bútorlap_m²!N571 -> 0 | L106: 0 | M106: =I106*K106 -> 0 | N106: 0 | O106: =HLOOKUP(C106,$AA$1:$AZ$2,2,0) -> 0.8 | P106: =M106 -> 0
B107: Javítóviasz | C107: Alkatrész raktári | G107: db | H107: 2000 | I107: 1600 | J107: 500 | K107: =Bútorlap_m²!AL571 -> 0 | L107: 0 | M107: 0 | N107: 0 | O107: 0.8 | P107: 0
B108: =Bútorlap_tábla!B27 -> 116 SM | C108: Egész tábla laptermék | D108: =Bútorlap_tábla!R27 -> 18mm | E108: =Bútorlap_tábla!C30 -> 2800X2070mm | F108: =Bútorlap_tábla!F27 -> Korpusz fehér (Falco) | G108: Tbl | H108: =VLOOKUP($B108:$B108,Data!$E$10:$AZ$1999,7,0) -> 21478 | I108: 21478 | J108: =VLOOKUP($B108:$B108,Data!$E$10:$AZ$1999,9,0) -> 14478 | K108: =Bútorlap_tábla!F24 -> 0 | L108: 0 | M108: 0 | N108: 0 | O108: 1 | P108: 0
B109: Lapszabás | C109: Lapszabás | F109: =Bútorlap_tábla!F27 -> Korpusz fehér (Falco) | G109: m² | H109: =Lapsz_vastag -> 3000 | I109: 3000 | J109: 0 | K109: =Bútorlap_tábla!E134 -> 0 | L109: 0 | M109: 0 | N109: 0 | O109: 1 | P109: 0
B110: Élzárás 0,4mm | C110: Élzárás | D110: =VLOOKUP(F110,ABS04_tabla,4,0) -> 24S | E110: =VLOOKUP(F110,ABS04_tabla,7,0) -> 0.5 | F110: =Bútorlap_tábla!F33 -> 116 SM | G110: fm | H110: =Elzaras_22_04_kisker -> 350 | I110: 350 | J110: 0 | K110: =Bútorlap_tábla!F134 -> 0 | L110: 0 | M110: 0 | N110: 0 | O110: 1 | P110: 0
B111: Élzárás 0,7-1mm | C111: Élzárás | D111: =VLOOKUP(F111,ABS1_tabla,4,0) -> 24S | E111: =VLOOKUP(F111,ABS1_tabla,7,0) -> 1 | F111: =Bútorlap_tábla!J33 -> 116 SM | G111: fm | H111: =Elzaras_22_08_kisker -> 400 | I111: 400 | J111: 0 | K111: =Bútorlap_tábla!J134 -> 0 | L111: 0 | M111: 0 | N111: 0 | O111: 1 | P111: 0
B112: Élzárás 2mm | C112: Élzárás | D112: =VLOOKUP(F112,ABS2_tabla,4,0) -> 24S | E112: =VLOOKUP(F112,ABS2_tabla,7,0) -> 2 | F112: =Bútorlap_tábla!N33 -> 116 SM | G112: fm | H112: =Elzaras_22_2_kisker -> 450 | I112: 450 | J112: 0 | K112: =Bútorlap_tábla!N134 -> 0 | L112: 0 | M112: 0 | N112: 0 | O112: 1 | P112: 0
B113: Élzárás 0,4mm íves vagy ferde | C113: Élzárás | D113: =VLOOKUP(F113,ABS04_tabla,4,0) -> 24S | E113: =VLOOKUP(F113,ABS04_tabla,7,0) -> 0.5 | F113: =Bútorlap_tábla!S33 -> 116 SM | G113: fm | H113: =H110*4 -> 1400 | I113: 1400 | J113: 0 | K113: =Bútorlap_tábla!S134 -> 0 | L113: 0 | M113: 0 | N113: 0 | O113: 1 | P113: 0
B114: Élzárás 0,7-1mm íves vagy ferde | C114: Élzárás | D114: =VLOOKUP(F114,ABS1_tabla,4,0) -> 24S | E114: =VLOOKUP(F114,ABS1_tabla,7,0) -> 1 | F114: =Bútorlap_tábla!V33 -> 116 SM | G114: fm | H114: =H111*4 -> 1600 | I114: 1600 | J114: 0 | K114: =Bútorlap_tábla!V134 -> 0 | L114: 0 | M114: 0 | N114: 0 | O114: 1 | P114: 0
B115: Élzárás 2mm íves vagy ferde | C115: Élzárás | D115: =VLOOKUP(F115,ABS2_tabla,4,0) -> 24S | E115: =VLOOKUP(F115,ABS2_tabla,7,0) -> 2 | F115: =Bútorlap_tábla!Y33 -> 116 SM | G115: fm | H115: =H112*4 -> 1800 | I115: 1800 | J115: 0 | K115: =Bútorlap_tábla!Y134 -> 0 | L115: 0 | M115: 0 | N115: 0 | O115: 1 | P115: 0
B116: Elhasznált élzáróanyag 0,4mm | C116: Élzáróanyag | D116: =VLOOKUP(F116,ABS04_tabla,4,0) -> 24S | E116: =VLOOKUP(F116,ABS04_tabla,7,0) -> 0.5 | F116: =Bútorlap_tábla!F33 -> 116 SM | G116: fm | H116: =VLOOKUP($F116:$F116,Data!$B$19000:$M$20498,10,0) -> 89.1287397 | I116: 89.1287397 | J116: =VLOOKUP($F116:$F116,Data!$B$19000:$M$20498,12,0) -> 40.5130635 | K116: =Bútorlap_tábla!F139 -> 0 | L116: 0 | M116: 0 | N116: 0 | O116: 1 | P116: 0
B117: Elhasznált élzáróanyag 0,7-1mm | C117: Élzáróanyag | D117: =VLOOKUP(F117,ABS1_tabla,4,0) -> 24S | E117: =VLOOKUP(F117,ABS1_tabla,7,0) -> 1 | F117: =Bútorlap_tábla!J33 -> 116 SM | G117: fm | H117: =VLOOKUP($F117:$F117,Data!$B$20500:$M$21498,10,0) -> 157.3768697 | I117: 157.3768697 | J117: =VLOOKUP($F117:$F117,Data!$B$20500:$M$21498,12,0) -> 74.9413665 | K117: =Bútorlap_tábla!J139 -> 0 | L117: 0 | M117: 0 | N117: 0 | O117: 1 | P117: 0
B118: Elhasznált élzáróanyag 2mm | C118: Élzáróanyag | D118: =VLOOKUP(F118,ABS2_tabla,4,0) -> 24S | E118: =VLOOKUP(F118,ABS2_tabla,7,0) -> 2 | F118: =Bútorlap_tábla!N33 -> 116 SM | G118: fm | H118: =VLOOKUP($F118:$F118,Data!$B$21499:$M$23998,10,0) -> 253.8749304 | I118: 253.8749304 | J118: =VLOOKUP($F118:$F118,Data!$B$21499:$M$23998,12,0) -> 141.041628 | K118: =Bútorlap_tábla!N139 -> 0 | L118: 0 | M118: 0 | N118: 0 | O118: 1 | P118: 0
B119: Plusz élzáróanyag 0,4mm | C119: Élzáróanyag | D119: =VLOOKUP(F119,ABS04_tabla,4,0) -> 24S | E119: =VLOOKUP(F119,ABS04_tabla,7,0) -> 0.5 | F119: =Bútorlap_tábla!F33 -> 116 SM | G119: fm | H119: =VLOOKUP($F119:$F119,Data!$B$19000:$M$20498,10,0) -> 89.1287397 | I119: 89.1287397 | J119: =VLOOKUP($F119:$F119,Data!$B$19000:$M$20498,12,0) -> 40.5130635 | K119: =Bútorlap_tábla!AF137 -> 0 | L119: =H119*$K119 -> 0 | M119: =I119*K119 -> 0 | N119: =J119*$K119 -> 0 | O119: =HLOOKUP(C119,$AA$1:$AZ$2,2,0) -> 1 | P119: =M119 -> 0
B120: Plusz élzáróanyag 0,7-1mm | C120: Élzáróanyag | D120: =VLOOKUP(F120,ABS1_tabla,4,0) -> 24S | E120: =VLOOKUP(F120,ABS1_tabla,7,0) -> 1 | F120: =Bútorlap_tábla!J33 -> 116 SM | G120: fm | H120: =VLOOKUP($F120:$F120,Data!$B$20500:$M$21498,10,0) -> 157.3768697 | I120: 157.3768697 | J120: =VLOOKUP($F120:$F120,Data!$B$20500:$M$21498,12,0) -> 74.9413665 | K120: =Bútorlap_tábla!AF138 -> 0 | L120: 0 | M120: 0 | N120: 0 | O120: 1 | P120: 0
B121: Plusz élzáróanyag 2mm | C121: Élzáróanyag | D121: =VLOOKUP(F121,ABS2_tabla,4,0) -> 24S | E121: =VLOOKUP(F121,ABS2_tabla,7,0) -> 2 | F121: =Bútorlap_tábla!N33 -> 116 SM | G121: fm | H121: =VLOOKUP($F121:$F121,Data!$B$21499:$M$23998,10,0) -> 253.8749304 | I121: 253.8749304 | J121: =VLOOKUP($F121:$F121,Data!$B$21499:$M$23998,12,0) -> 141.041628 | K121: =Bútorlap_tábla!AF139 -> 0 | L121: 0 | M121: 0 | N121: 0 | O121: 1 | P121: 0
B122: =Bútorlap_tábla!AB29 -> 45 fokos sarokvágás /db | C122: Formatizálás | H122: =VLOOKUP($B122,Data!$E$25500:$AZ$25999,7,0) -> 1000 | I122: 1000 | J122: =VLOOKUP($B122,Data!$E$25500:$AZ$25999,9,0) -> 0 | K122: =Bútorlap_tábla!AN134 -> 0 | L122: 0 | M122: 0 | N122: 0 | O122: 1 | P122: 0
B123: =Bútorlap_tábla!AD29 -> Lapszabás Bútorlap /m² | C123: Formatizálás | H123: =VLOOKUP($B123,Data!$E$25500:$AZ$25999,7,0) -> 3000 | I123: 3000 | J123: =VLOOKUP($B123,Data!$E$25500:$AZ$25999,9,0) -> 0 | K123: =Bútorlap_tábla!AO134 -> 0 | L123: 0 | M123: 0 | N123: 0 | O123: 1 | P123: 0
B124: =Bútorlap_tábla!AF29 -> Hátlap-besüllyesztés marása /fm | C124: Formatizálás | H124: =VLOOKUP($B124,Data!$E$25500:$AZ$25999,7,0) -> 1000 | I124: 1000 | J124: =VLOOKUP($B124,Data!$E$25500:$AZ$25999,9,0) -> 0 | K124: =Bútorlap_tábla!AP134 -> 0 | L124: 0 | M124: 0 | N124: 0 | O124: 1 | P124: 0
B125: =Bútorlap_tábla!AH29 -> Ívelt alkatrész elkészítése < 1M /db | C125: Formatizálás | H125: =VLOOKUP($B125,Data!$E$25500:$AZ$25999,7,0) -> 7500 | I125: 7500 | J125: =VLOOKUP($B125,Data!$E$25500:$AZ$25999,9,0) -> 0 | K125: =Bútorlap_tábla!AQ134 -> 0 | L125: 0 | M125: 0 | N125: 0 | O125: 1 | P125: 0
B126: =Bútorlap_tábla!AJ29 -> Lapszabás Egyedi darab /db | C126: Formatizálás | H126: =VLOOKUP($B126,Data!$E$25500:$AZ$25999,7,0) -> 800 | I126: 800 | J126: =VLOOKUP($B126,Data!$E$25500:$AZ$25999,9,0) -> 0 | K126: =Bútorlap_tábla!AR134 -> 0 | L126: 0 | M126: 0 | N126: 0 | O126: 1 | P126: 0
B127: Pánthelyfúrás 35mm /db | C127: Formatizálás | H127: =VLOOKUP($B127,Data!$E$25500:$AZ$25999,7,0) -> 500 | I127: 500 | J127: =VLOOKUP($B127,Data!$E$25500:$AZ$25999,9,0) -> 0 | K127: =Bútorlap_tábla!AS134 -> 0 | L127: 0 | M127: 0 | N127: 0 | O127: 1 | P127: 0
B128: =Bútorlap_tábla!B163 -> 103 FS01 | C128: Egész tábla laptermék | D128: =Bútorlap_tábla!R163 -> 18mm | E128: =Bútorlap_tábla!C166 -> 2800X2070mm | F128: =Bútorlap_tábla!F163 -> Frontfehér sima | G128: Tbl | H128: =VLOOKUP($B128:$B128,Data!$E$10:$AZ$1999,7,0) -> 23916.4 | I128: 23916.4 | J128: =VLOOKUP($B128:$B128,Data!$E$10:$AZ$1999,9,0) -> 16916.4 | K128: =Bútorlap_tábla!F160 -> 0 | L128: 0 | M128: 0 | N128: 0 | O128: 1 | P128: 0
B129: Lapszabás | C129: Lapszabás | F129: =Bútorlap_tábla!F163 -> Frontfehér sima | G129: m² | H129: =Lapsz_vastag -> 3000 | I129: 3000 | J129: 0 | K129: =Bútorlap_tábla!E270 -> 0 | L129: 0 | M129: 0 | N129: 0 | O129: 1 | P129: 0
B130: Élzárás 0,4mm | C130: Élzárás | D130: =VLOOKUP(F130,ABS04_tabla,4,0) -> 24S | E130: =VLOOKUP(F130,ABS04_tabla,7,0) -> 0.5 | F130: =Bútorlap_tábla!F169 -> 103 FS01 | G130: fm | H130: =Elzaras_22_04_kisker -> 350 | I130: 350 | J130: 0 | K130: =Bútorlap_tábla!F270 -> 0 | L130: 0 | M130: 0 | N130: 0 | O130: 1 | P130: 0
B131: Élzárás 0,7-1mm | C131: Élzárás | D131: =VLOOKUP(F131,ABS1_tabla,4,0) -> 24S | E131: =VLOOKUP(F131,ABS1_tabla,7,0) -> 1 | F131: =Bútorlap_tábla!J169 -> 103 FS01 | G131: fm | H131: =Elzaras_22_08_kisker -> 400 | I131: =(H131*O131)*$O$1 -> 400 | J131: 0 | K131: =Bútorlap_tábla!J270 -> 0 | L131: =H131*$K131 -> 0 | M131: 0 | N131: =J131*$K131 -> 0 | O131: =HLOOKUP(C131,$AA$1:$AZ$2,2,0) -> 1 | P131: 0
B132: Élzárás 2mm | C132: Élzárás | D132: =VLOOKUP(F132,ABS2_tabla,4,0) -> 24S | E132: =VLOOKUP(F132,ABS2_tabla,7,0) -> 2 | F132: =Bútorlap_tábla!N169 -> 103 FS01 | G132: fm | H132: =Elzaras_22_2_kisker -> 450 | I132: 450 | J132: 0 | K132: =Bútorlap_tábla!N270 -> 0 | L132: 0 | M132: =I132*K132 -> 0 | N132: 0 | O132: 1 | P132: =M132 -> 0
B133: Élzárás 0,4mm íves vagy ferde | C133: Élzárás | D133: =VLOOKUP(F133,ABS04_tabla,4,0) -> 24S | E133: =VLOOKUP(F133,ABS04_tabla,7,0) -> 0.5 | F133: =Bútorlap_tábla!S169 -> 103 FS01 | G133: fm | H133: =H130*4 -> 1400 | I133: 1400 | J133: 0 | K133: =Bútorlap_tábla!S270 -> 0 | L133: 0 | M133: 0 | N133: 0 | O133: 1 | P133: 0
B134: Élzárás 0,7-1mm íves vagy ferde | C134: Élzárás | D134: =VLOOKUP(F134,ABS1_tabla,4,0) -> 24S | E134: =VLOOKUP(F134,ABS1_tabla,7,0) -> 1 | F134: =Bútorlap_tábla!V169 -> 103 FS01 | G134: fm | H134: =H131*4 -> 1600 | I134: 1600 | J134: 0 | K134: =Bútorlap_tábla!V270 -> 0 | L134: 0 | M134: 0 | N134: 0 | O134: 1 | P134: 0
B135: Élzárás 2mm íves vagy ferde | C135: Élzárás | D135: =VLOOKUP(F135,ABS2_tabla,4,0) -> 24S | E135: =VLOOKUP(F135,ABS2_tabla,7,0) -> 2 | F135: =Bútorlap_tábla!Y169 -> 103 FS01 | G135: fm | H135: =H132*4 -> 1800 | I135: 1800 | J135: 0 | K135: =Bútorlap_tábla!Y270 -> 0 | L135: 0 | M135: 0 | N135: 0 | O135: 1 | P135: 0
B136: Elhasznált élzáróanyag 0,4mm | C136: Élzáróanyag | D136: =VLOOKUP(F136,ABS04_tabla,4,0) -> 24S | E136: =VLOOKUP(F136,ABS04_tabla,7,0) -> 0.5 | F136: =Bútorlap_tábla!F169 -> 103 FS01 | G136: fm | H136: =VLOOKUP($F136:$F136,Data!$B$19000:$M$20498,10,0) -> 89.1287397 | I136: 89.1287397 | J136: =VLOOKUP($F136:$F136,Data!$B$19000:$M$20498,12,0) -> 40.5130635 | K136: =Bútorlap_tábla!F275 -> 0 | L136: 0 | M136: 0 | N136: 0 | O136: 1 | P136: 0
B137: Elhasznált élzáróanyag 0,7-1mm | C137: Élzáróanyag | D137: =VLOOKUP(F137,ABS1_tabla,4,0) -> 24S | E137: =VLOOKUP(F137,ABS1_tabla,7,0) -> 1 | F137: =Bútorlap_tábla!J169 -> 103 FS01 | G137: fm | H137: =VLOOKUP($F137:$F137,Data!$B$20500:$M$21498,10,0) -> 157.3768697 | I137: 157.3768697 | J137: =VLOOKUP($F137:$F137,Data!$B$20500:$M$21498,12,0) -> 74.9413665 | K137: =Bútorlap_tábla!J275 -> 0 | L137: 0 | M137: 0 | N137: 0 | O137: 1 | P137: 0
B138: Elhasznált élzáróanyag 2mm | C138: Élzáróanyag | D138: =VLOOKUP(F138,ABS2_tabla,4,0) -> 24S | E138: =VLOOKUP(F138,ABS2_tabla,7,0) -> 2 | F138: =Bútorlap_tábla!N169 -> 103 FS01 | G138: fm | H138: =VLOOKUP($F138:$F138,Data!$B$21499:$M$23998,10,0) -> 253.8749304 | I138: 253.8749304 | J138: =VLOOKUP($F138:$F138,Data!$B$21499:$M$23998,12,0) -> 141.041628 | K138: =Bútorlap_tábla!N275 -> 0 | L138: 0 | M138: 0 | N138: 0 | O138: 1 | P138: 0
B139: Plusz élzáróanyag 0,4mm | C139: Élzáróanyag | D139: =VLOOKUP(F139,ABS04_tabla,4,0) -> 24S | E139: =VLOOKUP(F139,ABS04_tabla,7,0) -> 0.5 | F139: =Bútorlap_tábla!F169 -> 103 FS01 | G139: fm | H139: =VLOOKUP($F139:$F139,Data!$B$19000:$M$20498,10,0) -> 89.1287397 | I139: 89.1287397 | J139: =VLOOKUP($F139:$F139,Data!$B$19000:$M$20498,12,0) -> 40.5130635 | K139: =Bútorlap_tábla!AF273 -> 0 | L139: =H139*$K139 -> 0 | M139: =I139*K139 -> 0 | N139: =J139*$K139 -> 0 | O139: =HLOOKUP(C139,$AA$1:$AZ$2,2,0) -> 1 | P139: =M139 -> 0
B140: Plusz élzáróanyag 0,7-1mm | C140: Élzáróanyag | D140: =VLOOKUP(F140,ABS1_tabla,4,0) -> 24S | E140: =VLOOKUP(F140,ABS1_tabla,7,0) -> 1 | F140: =Bútorlap_tábla!J169 -> 103 FS01 | G140: fm | H140: =VLOOKUP($F140:$F140,Data!$B$20500:$M$21498,10,0) -> 157.3768697 | I140: 157.3768697 | J140: =VLOOKUP($F140:$F140,Data!$B$20500:$M$21498,12,0) -> 74.9413665 | K140: =Bútorlap_tábla!AF274 -> 0 | L140: 0 | M140: 0 | N140: 0 | O140: 1 | P140: 0
B141: Plusz élzáróanyag 2mm | C141: Élzáróanyag | D141: =VLOOKUP(F141,ABS2_tabla,4,0) -> 24S | E141: =VLOOKUP(F141,ABS2_tabla,7,0) -> 2 | F141: =Bútorlap_tábla!N169 -> 103 FS01 | G141: fm | H141: =VLOOKUP($F141:$F141,Data!$B$21499:$M$23998,10,0) -> 253.8749304 | I141: 253.8749304 | J141: =VLOOKUP($F141:$F141,Data!$B$21499:$M$23998,12,0) -> 141.041628 | K141: =Bútorlap_tábla!AF275 -> 0 | L141: 0 | M141: 0 | N141: 0 | O141: 1 | P141: 0
B142: =Bútorlap_tábla!AB165 -> 45 fokos sarokvágás /db | C142: Formatizálás | H142: =VLOOKUP($B142,Data!$E$25500:$AZ$25999,7,0) -> 1000 | I142: 1000 | J142: =VLOOKUP($B142,Data!$E$25500:$AZ$25999,9,0) -> 0 | K142: =Bútorlap_tábla!AN270 -> 0 | L142: 0 | M142: 0 | N142: 0 | O142: 1 | P142: 0
B143: =Bútorlap_tábla!AD165 -> Lapszabás Bútorlap /m² | C143: Formatizálás | H143: =VLOOKUP($B143,Data!$E$25500:$AZ$25999,7,0) -> 3000 | I143: 3000 | J143: =VLOOKUP($B143,Data!$E$25500:$AZ$25999,9,0) -> 0 | K143: =Bútorlap_tábla!AO270 -> 0 | L143: 0 | M143: 0 | N143: 0 | O143: 1 | P143: 0
B144: =Bútorlap_tábla!AF165 -> Hátlap-besüllyesztés marása /fm | C144: Formatizálás | H144: =VLOOKUP($B144,Data!$E$25500:$AZ$25999,7,0) -> 1000 | I144: 1000 | J144: =VLOOKUP($B144,Data!$E$25500:$AZ$25999,9,0) -> 0 | K144: =Bútorlap_tábla!AP270 -> 0 | L144: 0 | M144: 0 | N144: 0 | O144: 1 | P144: 0
B145: =Bútorlap_tábla!AH165 -> Ívelt alkatrész elkészítése < 1M /db | C145: Formatizálás | H145: =VLOOKUP($B145,Data!$E$25500:$AZ$25999,7,0) -> 7500 | I145: 7500 | J145: =VLOOKUP($B145,Data!$E$25500:$AZ$25999,9,0) -> 0 | K145: =Bútorlap_tábla!AQ270 -> 0 | L145: 0 | M145: 0 | N145: 0 | O145: 1 | P145: 0
B146: =Bútorlap_tábla!AJ165 -> Lapszabás Egyedi darab /db | C146: Formatizálás | H146: =VLOOKUP($B146,Data!$E$25500:$AZ$25999,7,0) -> 800 | I146: 800 | J146: =VLOOKUP($B146,Data!$E$25500:$AZ$25999,9,0) -> 0 | K146: =Bútorlap_tábla!AR270 -> 0 | L146: 0 | M146: 0 | N146: 0 | O146: 1 | P146: 0
B147: Pánthelyfúrás 35mm /db | C147: Formatizálás | H147: =VLOOKUP($B147,Data!$E$25500:$AZ$25999,7,0) -> 500 | I147: 500 | J147: =VLOOKUP($B147,Data!$E$25500:$AZ$25999,9,0) -> 0 | K147: =Bútorlap_tábla!AS270 -> 0 | L147: 0 | M147: 0 | N147: 0 | O147: 1 | P147: 0
B148: =Duplavastag_bútorlap_m²!B27 -> 116 SM | C148: =VLOOKUP(B148,Butorlap_tabla,31,0) -> Szabott laptermék fehér | D148: Dupla vastag | E148: =IF(K148<1,"1.ársáv",IF(AND(K148>=1,K148<10),"2.ársáv",IF(AND(K148>=10,K148<25),"3.ársáv","4.ársáv"))) -> 1.ársáv | F148: =Duplavastag_bútorlap_m²!F27 -> Korpusz fehér (Falco) | G148: m² | H148: =IF(K148<1,VLOOKUP($B148:$B148,Data!$E$10:$AZ$1999,18,0),IF(AND(K148>=1,K148<10),VLOOKUP($B148:$B148,Data!$E$10:$AZ$1999,19,0),IF(AND(K148>=10,K148<25),VLOOKUP($B148:$B148,Data!$E$10:$AZ$1999,20,0),VLOOKUP($B148:$B148,Data!$E$10:$AZ$1999,21,0))))*2 -> 9195.859213 | I148: =(H148-O148)*$O$1 -> 9195.859213 | J148: =IF(B3="103 FS01",((VLOOKUP($B148:$B148,Data!$E$10:$AZ$1999,22,0)*1.05)*2),((VLOOKUP($B148:$B148,Data!$E$10:$AZ$1999,22,0)*1.1)*2)) -> 5495.445135 | K148: =Duplavastag_bútorlap_m²!E59 -> 0 | L148: =H148*$K148 -> 0 | M148: 0 | N148: =J148*$K148 -> 0 | O148: =VLOOKUP(HLOOKUP(C148,$AA$1:$AZ$2,2,0),(IF(Q148=V148,Akciós_fehér_szín,IF(Q148=V149,Kiemelt_szín,IF(Q148=V150,Alap_szín,IF(Q148=V151,Egyéb_szín,IF(Q148=V152,Helyettesíthető_szín,IF(Q148=V153,Exkluzív_szín,IF(Q148=V154,Egész_táblás_szín,IF(Q148=V155,Akciós_fautánzat_szín,IF(Q148=V156,Prémium1_szín,IF(Q148=V157,Prémium2_szín,IF(Q148=V158,Prémium3_szín,Egyéb_vékony_szín)))))))))))),S148,0) -> 0 | P148: 0 | Q148: =VLOOKUP(B148,Data!$E$10:$AJ$799,12,0) -> Akciós fehér szín | S148: =IF(K148=0,3,IF(AND(K148>0,K148<5),2,IF(AND(K148>=5,K148<20),3,IF(AND(K148>=20,K148<50),4,5)))) -> 3 | V148: Akciós fehér szín | Z148: =VLOOKUP(B148,Data!$E$10:$AI$1999,18,0) -> 4597.929607 | AA148: =VLOOKUP(B148,Data!$E$10:$AI$1999,19,0) -> 5950 | AB148: =VLOOKUP(B148,Data!$E$10:$AI$1999,20,0) -> 4647.929607 | AC148: =VLOOKUP(B148,Data!$E$10:$AI$1999,21,0) -> 4597.929607
B149: Dupla vastag lap összeragasztása | C149: Formatizálás | H149: Egyedi ár | I149: =H149 -> Egyedi ár | J149: Egyedi ár | K149: =Duplavastag_bútorlap_m²!D59 -> 0 | L149: =Duplavastag_bútorlap_m²!R61 -> 0 | M149: =L149 -> 0 | N149: 0 | O149: 1 | P149: 0 | V149: Kiemelt szín
B150: Élzárás 42/0,4mm | C150: Élzárás | D150: =VLOOKUP(F150,ABS4204_tabla,4,0) -> Nem kapható | E150: =VLOOKUP(F150,ABS4204_tabla,7,0) -> 0 | F150: =Duplavastag_bútorlap_m²!F33 -> 116 SM | G150: fm | H150: =Elzaras_42_04_kisker -> 600 | I150: 600 | J150: 0 | K150: =Duplavastag_bútorlap_m²!F59 -> 0 | L150: =H150*$K150 -> 0 | M150: =I150*K150 -> 0 | N150: =J150*$K150 -> 0 | O150: =HLOOKUP(C150,$AA$1:$AZ$2,2,0) -> 1 | P150: =M150 -> 0 | V150: Alap szín
B151: Élzárás 42/0,7-1mm | C151: Élzárás | D151: =VLOOKUP(F151,ABS421_tabla,4,0) -> 24S | E151: =VLOOKUP(F151,ABS421_tabla,7,0) -> 1 | F151: =Duplavastag_bútorlap_m²!J33 -> 116 SM | G151: fm | H151: =Elzaras_42_1_kisker -> 650 | I151: 650 | J151: 0 | K151: =Duplavastag_bútorlap_m²!J59 -> 0 | L151: =H151*$K151 -> 0 | M151: 0 | N151: =J151*$K151 -> 0 | O151: 1 | P151: 0 | V151: Egyéb szín
B152: Élzárás 42/2mm | C152: Élzárás | D152: =VLOOKUP(F152,ABS422_tabla,4,0) -> 24H | E152: =VLOOKUP(F152,ABS422_tabla,7,0) -> 2 | F152: =Duplavastag_bútorlap_m²!N33 -> 116 SM | G152: fm | H152: =Elzaras_42_2_kisker -> 900 | I152: 900 | J152: 0 | K152: =Duplavastag_bútorlap_m²!N59 -> 0 | L152: 0 | M152: 0 | N152: 0 | O152: 1 | P152: 0 | V152: Helyettesíthető szín
B153: Élzárás 0,4mm íves vagy ferde | C153: Élzárás | D153: =VLOOKUP(F153,ABS4204_tabla,4,0) -> Nem kapható | E153: =VLOOKUP(F153,ABS4204_tabla,7,0) -> 0 | F153: =Duplavastag_bútorlap_m²!AA33 -> 116 SM | G153: fm | H153: =H150*4 -> 2400 | I153: 2400 | J153: 0 | K153: =Duplavastag_bútorlap_m²!AA59 -> 0 | L153: =H153*$K153 -> 0 | M153: =I153*K153 -> 0 | N153: =J153*$K153 -> 0 | O153: 1 | P153: 0 | V153: Exkluzív szín
B154: Élzárás 0,7-1mm íves vagy ferde | C154: Élzárás | D154: =VLOOKUP(F154,ABS421_tabla,4,0) -> 24S | E154: =VLOOKUP(F154,ABS421_tabla,7,0) -> 1 | F154: =Duplavastag_bútorlap_m²!AD33 -> 116 SM | G154: fm | H154: =H151*4 -> 2600 | I154: 2600 | J154: 0 | K154: =Duplavastag_bútorlap_m²!AD59 -> 0 | L154: 0 | M154: 0 | N154: 0 | O154: =HLOOKUP(C154,$AA$1:$AZ$2,2,0) -> 1 | P154: =M154 -> 0 | V154: Egész táblás szín
B155: Élzárás 2mm íves vagy ferde | C155: Élzárás | D155: =VLOOKUP(F155,ABS422_tabla,4,0) -> 24H | E155: =VLOOKUP(F155,ABS422_tabla,7,0) -> 2 | F155: =Duplavastag_bútorlap_m²!AG33 -> 116 SM | G155: fm | H155: =H152*4 -> 3600 | I155: 3600 | J155: 0 | K155: =Duplavastag_bútorlap_m²!AG59 -> 0 | L155: 0 | M155: 0 | N155: 0 | O155: 1 | P155: 0 | V155: Akciós fautánzat szín
B156: Élzáróanyag 42/0,4mm | C156: Élzárás | D156: =VLOOKUP(F156,ABS4204_tabla,4,0) -> Nem kapható | E156: =VLOOKUP(F156,ABS4204_tabla,7,0) -> 0 | F156: =Duplavastag_bútorlap_m²!F33 -> 116 SM | G156: fm | H156: =VLOOKUP($F156:$F156,ABS4204_tabla,10,0) -> 0 | I156: 0 | J156: =VLOOKUP($F156:$F156,ABS4204_tabla,12,0) -> 0 | K156: =Duplavastag_bútorlap_m²!F64 -> 0 | L156: =H156*$K156 -> 0 | M156: =I156*K156 -> 0 | N156: =J156*$K156 -> 0 | O156: 1 | P156: =M156 -> 0 | V156: Prémium1 szín
B157: Élzáróanyag 42/0,7-1 mm | C157: Élzáróanyag | D157: =VLOOKUP(F157,ABS421_tabla,4,0) -> 24S | E157: =VLOOKUP(F157,ABS421_tabla,7,0) -> 1 | F157: =Duplavastag_bútorlap_m²!J33 -> 116 SM | G157: fm | H157: =VLOOKUP($F157:$F157,ABS421_tabla,10,0) -> 250.5543154 | I157: 250.5543154 | J157: =VLOOKUP($F157:$F157,ABS421_tabla,12,0) -> 143.1738945 | K157: =Duplavastag_bútorlap_m²!J64 -> 0 | L157: 0 | M157: 0 | N157: 0 | O157: =HLOOKUP(C157,$AA$1:$AZ$2,2,0) -> 1 | P157: 0 | V157: Prémium2 szín
B158: Élzáróanyag 42/2 mm | C158: Élzáróanyag | D158: =VLOOKUP(F158,ABS422_tabla,4,0) -> 24H | E158: =VLOOKUP(F158,ABS422_tabla,7,0) -> 2 | F158: =Duplavastag_bútorlap_m²!N33 -> 116 SM | G158: fm | H158: =VLOOKUP($F158:$F158,Data!$B$24000:$M$24998,10,0) -> 489.3681634 | I158: 489.3681634 | J158: =VLOOKUP($F158:$F158,Data!$B$24000:$M$24998,12,0) -> 279.6389505 | K158: =Duplavastag_bútorlap_m²!N64 -> 0 | L158: 0 | M158: 0 | N158: 0 | O158: 1 | P158: 0 | V158: Prémium3 szín
B159: Plusz élzáróanyag 42/0,4mm | C159: Élzáróanyag | D159: =VLOOKUP(F159,ABS4204_tabla,4,0) -> Nem kapható | E159: =VLOOKUP(F159,ABS4204_tabla,7,0) -> 0 | F159: =Duplavastag_bútorlap_m²!F33 -> 116 SM | G159: fm | H159: =VLOOKUP($F159:$F159,ABS4204_tabla,10,0) -> 0 | I159: 0 | J159: =VLOOKUP($F159:$F159,ABS4204_tabla,12,0) -> 0 | K159: =Duplavastag_bútorlap_m²!AT62 -> 0 | L159: 0 | M159: 0 | N159: 0 | O159: 1 | P159: 0 | V159: Egyéb vékony szín
B160: Plusz élzáróanyag 42/0,7-1mm | C160: Élzáróanyag | D160: =VLOOKUP(F160,ABS421_tabla,4,0) -> 24S | E160: =VLOOKUP(F160,ABS421_tabla,7,0) -> 1 | F160: =Duplavastag_bútorlap_m²!J33 -> 116 SM | G160: fm | H160: =VLOOKUP($F160:$F160,ABS421_tabla,10,0) -> 250.5543154 | I160: 250.5543154 | J160: =VLOOKUP($F160:$F160,ABS421_tabla,12,0) -> 143.1738945 | K160: =Duplavastag_bútorlap_m²!AT63 -> 0 | L160: =H160*$K160 -> 0 | M160: =I160*K160 -> 0 | N160: =J160*$K160 -> 0 | O160: =HLOOKUP(C160,$AA$1:$AZ$2,2,0) -> 1 | P160: =M160 -> 0
B161: Plusz élzáróanyag 42/2mm | C161: Élzáróanyag | D161: =VLOOKUP(F161,ABS422_tabla,4,0) -> 24H | E161: =VLOOKUP(F161,ABS422_tabla,7,0) -> 2 | F161: =Duplavastag_bútorlap_m²!N33 -> 116 SM | G161: fm | H161: =VLOOKUP($F161:$F161,Data!$B$24000:$M$24998,10,0) -> 489.3681634 | I161: 489.3681634 | J161: =VLOOKUP($F161:$F161,Data!$B$24000:$M$24998,12,0) -> 279.6389505 | K161: =Duplavastag_bútorlap_m²!AT64 -> 0 | L161: 0 | M161: 0 | N161: 0 | O161: 1 | P161: 0
B162: =Duplavastag_bútorlap_m²!AP29 -> 45 fokos sarokvágás /db | C162: Formatizálás | H162: =VLOOKUP($B162,Data!$E$25500:$AZ$25999,7,0)*2 -> 2000 | I162: 2000 | J162: =VLOOKUP($B162,Data!$E$25500:$AZ$25999,9,0) -> 0 | K162: =Duplavastag_bútorlap_m²!BB59 -> 0 | L162: 0 | M162: =I162*K162 -> 0 | N162: 0 | O162: 1 | P162: =M162 -> 0
B163: =Duplavastag_bútorlap_m²!AR29 -> Belső 90fokos kimetszés marással /db | C163: Formatizálás | H163: =VLOOKUP($B163,Data!$E$25500:$AZ$25999,7,0)*2 -> 15000 | I163: 15000 | J163: =VLOOKUP($B163,Data!$E$25500:$AZ$25999,9,0) -> 0 | K163: =Duplavastag_bútorlap_m²!BC59 -> 0 | L163: 0 | M163: 0 | N163: 0 | O163: 1 | P163: 0
B164: =Duplavastag_bútorlap_m²!AT29 -> Hátlap-besüllyesztés marása /fm | C164: Formatizálás | H164: =VLOOKUP($B164,Data!$E$25500:$AZ$25999,7,0)*2 -> 2000 | I164: 2000 | J164: =VLOOKUP($B164,Data!$E$25500:$AZ$25999,9,0) -> 0 | K164: =Duplavastag_bútorlap_m²!BD59 -> 0 | L164: 0 | M164: 0 | N164: 0 | O164: 1 | P164: 0
B165: =Duplavastag_bútorlap_m²!AV29 -> Ívelt alkatrész elkészítése < 1M /db | C165: Formatizálás | H165: =VLOOKUP($B165,Data!$E$25500:$AZ$25999,7,0)*2 -> 15000 | I165: 15000 | J165: =VLOOKUP($B165,Data!$E$25500:$AZ$25999,9,0) -> 0 | K165: =Duplavastag_bútorlap_m²!BE59 -> 0 | L165: 0 | M165: 0 | N165: 0 | O165: 1 | P165: 0
B166: =Duplavastag_bútorlap_m²!AX29 -> Ívelt alkatrész elkészítése > 2M /db | C166: Formatizálás | H166: =VLOOKUP($B166,Data!$E$25500:$AZ$25999,7,0)*2 -> 40000 | I166: 40000 | J166: =VLOOKUP($B166,Data!$E$25500:$AZ$25999,9,0) -> 0 | K166: =Duplavastag_bútorlap_m²!BF59 -> 0 | L166: 0 | M166: 0 | N166: 0 | O166: 1 | P166: 0
B167: Pánthelyfúrás 35mm /db | C167: Formatizálás | H167: =VLOOKUP($B167,Data!$E$25500:$AZ$25999,7,0)*2 -> 1000 | I167: 1000 | J167: =VLOOKUP($B167,Data!$E$25500:$AZ$25999,9,0) -> 0 | K167: =Duplavastag_bútorlap_m²!BG59 -> 0 | L167: 0 | M167: 0 | N167: 0 | O167: 1 | P167: 0
B168: =Duplavastag_bútorlap_m²!B88 -> 103 FS01 | C168: =VLOOKUP(B168,Butorlap_tabla,31,0) -> Szabott laptermék fehér | D168: Dupla vastag | E168: =IF(K168<1,"1.ársáv",IF(AND(K168>=1,K168<10),"2.ársáv",IF(AND(K168>=10,K168<25),"3.ársáv","4.ársáv"))) -> 1.ársáv | F168: =Duplavastag_bútorlap_m²!F88 -> Frontfehér sima | G168: m² | H168: =IF(K168<1,VLOOKUP($B168:$B168,Data!$E$10:$AZ$1999,18,0),IF(AND(K168>=1,K168<10),VLOOKUP($B168:$B168,Data!$E$10:$AZ$1999,19,0),IF(AND(K168>=10,K168<25),VLOOKUP($B168:$B168,Data!$E$10:$AZ$1999,20,0),VLOOKUP($B168:$B168,Data!$E$10:$AZ$1999,21,0))))*2 -> 10037.26708 | I168: =(H168-O168)*$O$1 -> 10037.26708 | J168: =IF(B3="103 FS01",((VLOOKUP($B168:$B168,Data!$E$10:$AZ$1999,22,0)*1.05)*2),((VLOOKUP($B168:$B168,Data!$E$10:$AZ$1999,22,0)*1.1)*2)) -> 6420.993789 | K168: =Duplavastag_bútorlap_m²!E120 -> 0 | L168: 0 | M168: 0 | N168: 0 | O168: =VLOOKUP(HLOOKUP(C168,$AA$1:$AZ$2,2,0),(IF(Q168=V168,Akciós_fehér_szín,IF(Q168=V169,Kiemelt_szín,IF(Q168=V170,Alap_szín,IF(Q168=V171,Egyéb_szín,IF(Q168=V172,Helyettesíthető_szín,IF(Q168=V173,Exkluzív_szín,IF(Q168=V174,Egész_táblás_szín,IF(Q168=V175,Akciós_fautánzat_szín,IF(Q168=V176,Prémium1_szín,IF(Q168=V177,Prémium2_szín,IF(Q168=V178,Prémium3_szín,Egyéb_vékony_szín)))))))))))),S168,0) -> 0 | P168: 0 | Q168: =VLOOKUP(B168,Data!$E$10:$AJ$799,12,0) -> Akciós fehér szín | S168: =IF(K168=0,3,IF(AND(K168>0,K168<5),2,IF(AND(K168>=5,K168<20),3,IF(AND(K168>=20,K168<50),4,5)))) -> 3 | V168: Akciós fehér szín | Z168: =VLOOKUP(B168,Data!$E$10:$AI$1999,18,0) -> 5018.63354 | AA168: =VLOOKUP(B168,Data!$E$10:$AI$1999,19,0) -> 6370 | AB168: =VLOOKUP(B168,Data!$E$10:$AI$1999,20,0) -> 5068.63354 | AC168: =VLOOKUP(B168,Data!$E$10:$AI$1999,21,0) -> 5018.63354
B169: Dupla vastag lap összeragasztása | C169: Formatizálás | H169: Egyedi ár | I169: =H169 -> Egyedi ár | J169: Egyedi ár | K169: =Duplavastag_bútorlap_m²!D120 -> 0 | L169: =Duplavastag_bútorlap_m²!R122 -> 0 | M169: =L169 -> 0 | N169: 0 | O169: 1 | P169: 0 | V169: Kiemelt szín
B170: Élzárás 42/0,4mm | C170: Élzárás | D170: =VLOOKUP(F170,ABS4204_tabla,4,0) -> Nem kapható | E170: =VLOOKUP(F170,ABS4204_tabla,7,0) -> 0 | F170: =Duplavastag_bútorlap_m²!F94 -> 103 FS01 | G170: fm | H170: =Elzaras_42_04_kisker -> 600 | I170: =(H170*O170)*$O$1 -> 600 | J170: 0 | K170: =Duplavastag_bútorlap_m²!F120 -> 0 | L170: =H170*$K170 -> 0 | M170: =I170*K170 -> 0 | N170: =J170*$K170 -> 0 | O170: =HLOOKUP(C170,$AA$1:$AZ$2,2,0) -> 1 | P170: =M170 -> 0 | V170: Alap szín
B171: Élzárás 42/0,7-1mm | C171: Élzárás | D171: =VLOOKUP(F171,ABS421_tabla,4,0) -> 24S | E171: =VLOOKUP(F171,ABS421_tabla,7,0) -> 1 | F171: =Duplavastag_bútorlap_m²!J94 -> 103 FS01 | G171: fm | H171: =Elzaras_42_1_kisker -> 650 | I171: 650 | J171: 0 | K171: =Duplavastag_bútorlap_m²!J120 -> 0 | L171: =H171*$K171 -> 0 | M171: 0 | N171: =J171*$K171 -> 0 | O171: 1 | P171: 0 | V171: Egyéb szín
B172: Élzárás 42/2mm | C172: Élzárás | D172: =VLOOKUP(F172,ABS422_tabla,4,0) -> 24H | E172: =VLOOKUP(F172,ABS422_tabla,7,0) -> 2 | F172: =Duplavastag_bútorlap_m²!N94 -> 103 FS01 | G172: fm | H172: =Elzaras_42_2_kisker -> 900 | I172: 900 | J172: 0 | K172: =Duplavastag_bútorlap_m²!N120 -> 0 | L172: 0 | M172: 0 | N172: 0 | O172: 1 | P172: 0 | V172: Helyettesíthető szín
B173: Élzárás 0,4mm íves vagy ferde | C173: Élzárás | D173: =VLOOKUP(F173,ABS4204_tabla,4,0) -> Nem kapható | E173: =VLOOKUP(F173,ABS4204_tabla,7,0) -> 0 | F173: =Duplavastag_bútorlap_m²!AA94 -> 103 FS01 | G173: fm | H173: =H170*4 -> 2400 | I173: 2400 | J173: 0 | K173: =Duplavastag_bútorlap_m²!AA120 -> 0 | L173: =H173*$K173 -> 0 | M173: =I173*K173 -> 0 | N173: =J173*$K173 -> 0 | O173: =HLOOKUP(C173,$AA$1:$AZ$2,2,0) -> 1 | P173: =M173 -> 0 | V173: Exkluzív szín
B174: Élzárás 0,7-1mm íves vagy ferde | C174: Élzárás | D174: =VLOOKUP(F174,ABS421_tabla,4,0) -> 24S | E174: =VLOOKUP(F174,ABS421_tabla,7,0) -> 1 | F174: =Duplavastag_bútorlap_m²!AD94 -> 103 FS01 | G174: fm | H174: =H171*4 -> 2600 | I174: 2600 | J174: 0 | K174: =Duplavastag_bútorlap_m²!AD120 -> 0 | L174: 0 | M174: 0 | N174: 0 | O174: 1 | P174: 0 | V174: Egész táblás szín
B175: Élzárás 2mm íves vagy ferde | C175: Élzárás | D175: =VLOOKUP(F175,ABS422_tabla,4,0) -> 24H | E175: =VLOOKUP(F175,ABS422_tabla,7,0) -> 2 | F175: =Duplavastag_bútorlap_m²!AG94 -> 103 FS01 | G175: fm | H175: =H172*4 -> 3600 | I175: 3600 | J175: 0 | K175: =Duplavastag_bútorlap_m²!AG120 -> 0 | L175: 0 | M175: 0 | N175: 0 | O175: 1 | P175: 0 | V175: Akciós fautánzat szín
B176: Élzáróanyag 42/0,4mm | C176: Élzáróanyag | D176: =VLOOKUP(F176,ABS4204_tabla,4,0) -> Nem kapható | E176: =VLOOKUP(F176,ABS4204_tabla,7,0) -> 0 | F176: =Duplavastag_bútorlap_m²!F94 -> 103 FS01 | G176: fm | H176: =VLOOKUP($F176:$F176,ABS4204_tabla,10,0) -> 0 | I176: 0 | J176: =VLOOKUP($F176:$F176,ABS4204_tabla,12,0) -> 0 | K176: =Duplavastag_bútorlap_m²!F125 -> 0 | L176: =H176*$K176 -> 0 | M176: =I176*K176 -> 0 | N176: =J176*$K176 -> 0 | O176: =HLOOKUP(C176,$AA$1:$AZ$2,2,0) -> 1 | P176: =M176 -> 0 | V176: Prémium1 szín
B177: Élzáróanyag 42/0,7-1 mm | C177: Élzáróanyag | D177: =VLOOKUP(F177,ABS421_tabla,4,0) -> 24S | E177: =VLOOKUP(F177,ABS421_tabla,7,0) -> 1 | F177: =Duplavastag_bútorlap_m²!J94 -> 103 FS01 | G177: fm | H177: =VLOOKUP($F177:$F177,ABS421_tabla,10,0) -> 250.5543154 | I177: 250.5543154 | J177: =VLOOKUP($F177:$F177,ABS421_tabla,12,0) -> 143.1738945 | K177: =Duplavastag_bútorlap_m²!J125 -> 0 | L177: 0 | M177: 0 | N177: 0 | O177: 1 | P177: 0 | V177: Prémium2 szín
B178: Élzáróanyag 42/2 mm | C178: Élzáróanyag | D178: =VLOOKUP(F178,ABS422_tabla,4,0) -> 24H | E178: =VLOOKUP(F178,ABS422_tabla,7,0) -> 2 | F178: =Duplavastag_bútorlap_m²!N94 -> 103 FS01 | G178: fm | H178: =VLOOKUP($F178:$F178,Data!$B$24000:$M$24998,10,0) -> 489.3681634 | I178: 489.3681634 | J178: =VLOOKUP($F178:$F178,Data!$B$24000:$M$24998,12,0) -> 279.6389505 | K178: =Duplavastag_bútorlap_m²!N125 -> 0 | L178: 0 | M178: 0 | N178: 0 | O178: 1 | P178: 0 | V178: Prémium3 szín
B179: Plusz élzáróanyag 42/0,4mm | C179: Élzáróanyag | D179: =VLOOKUP(F179,ABS4204_tabla,4,0) -> Nem kapható | E179: =VLOOKUP(F179,ABS4204_tabla,7,0) -> 0 | F179: =Duplavastag_bútorlap_m²!F94 -> 103 FS01 | G179: fm | H179: =VLOOKUP($F179:$F179,ABS4204_tabla,10,0) -> 0 | I179: 0 | J179: =VLOOKUP($F179:$F179,ABS4204_tabla,12,0) -> 0 | K179: =Duplavastag_bútorlap_m²!AT123 -> 0 | L179: 0 | M179: 0 | N179: 0 | O179: 1 | P179: 0 | V179: Egyéb vékony szín
B180: Plusz élzáróanyag 42/0,7-1mm | C180: Élzáróanyag | D180: =VLOOKUP(F180,ABS421_tabla,4,0) -> 24S | E180: =VLOOKUP(F180,ABS421_tabla,7,0) -> 1 | F180: =Duplavastag_bútorlap_m²!J94 -> 103 FS01 | G180: fm | H180: =VLOOKUP($F180:$F180,ABS421_tabla,10,0) -> 250.5543154 | I180: 250.5543154 | J180: =VLOOKUP($F180:$F180,ABS421_tabla,12,0) -> 143.1738945 | K180: =Duplavastag_bútorlap_m²!AT124 -> 0 | L180: =H180*$K180 -> 0 | M180: =I180*K180 -> 0 | N180: =J180*$K180 -> 0 | O180: =HLOOKUP(C180,$AA$1:$AZ$2,2,0) -> 1 | P180: =M180 -> 0
B181: Plusz élzáróanyag 42/2mm | C181: Élzáróanyag | D181: =VLOOKUP(F181,ABS422_tabla,4,0) -> 24H | E181: =VLOOKUP(F181,ABS422_tabla,7,0) -> 2 | F181: =Duplavastag_bútorlap_m²!N94 -> 103 FS01 | G181: fm | H181: =VLOOKUP($F181:$F181,Data!$B$24000:$M$24998,10,0) -> 489.3681634 | I181: 489.3681634 | J181: =VLOOKUP($F181:$F181,Data!$B$24000:$M$24998,12,0) -> 279.6389505 | K181: =Duplavastag_bútorlap_m²!AT125 -> 0 | L181: 0 | M181: 0 | N181: 0 | O181: 1 | P181: 0
B182: 0 | C182: 0 | F182: 0 | G182: 0 | H182: 0 | I182: 0 | J182: 0 | K182: 0 | L182: 0 | M182: 0 | N182: 0 | O182: 0 | P182: 0
B183: =Duplavastag_bútorlap_m²!AP90 -> 45 fokos sarokvágás /db | C183: Formatizálás | H183: =VLOOKUP($B183,Data!$E$25500:$AZ$25999,7,0)*2 -> 2000 | I183: 2000 | J183: =VLOOKUP($B183,Data!$E$25500:$AZ$25999,9,0) -> 0 | K183: =Duplavastag_bútorlap_m²!BB120 -> 0 | L183: 0 | M183: 0 | N183: 0 | O183: 1 | P183: 0
B184: =Duplavastag_bútorlap_m²!AR90 -> Belső 90fokos kimetszés marással /db | C184: Formatizálás | H184: =VLOOKUP($B184,Data!$E$25500:$AZ$25999,7,0)*2 -> 15000 | I184: 15000 | J184: =VLOOKUP($B184,Data!$E$25500:$AZ$25999,9,0) -> 0 | K184: =Duplavastag_bútorlap_m²!BC120 -> 0 | L184: 0 | M184: 0 | N184: 0 | O184: 1 | P184: 0
B185: =Duplavastag_bútorlap_m²!AT90 -> Hátlap-besüllyesztés marása /fm | C185: Formatizálás | H185: =VLOOKUP($B185,Data!$E$25500:$AZ$25999,7,0)*2 -> 2000 | I185: 2000 | J185: =VLOOKUP($B185,Data!$E$25500:$AZ$25999,9,0) -> 0 | K185: =Duplavastag_bútorlap_m²!BD120 -> 0 | L185: 0 | M185: 0 | N185: 0 | O185: 1 | P185: 0
B186: =Duplavastag_bútorlap_m²!AV90 -> Ívelt alkatrész elkészítése < 1M /db | C186: Formatizálás | H186: =VLOOKUP($B186,Data!$E$25500:$AZ$25999,7,0)*2 -> 15000 | I186: 15000 | J186: =VLOOKUP($B186,Data!$E$25500:$AZ$25999,9,0) -> 0 | K186: =Duplavastag_bútorlap_m²!BE120 -> 0 | L186: 0 | M186: 0 | N186: 0 | O186: 1 | P186: 0
B187: =Duplavastag_bútorlap_m²!AX90 -> Ívelt alkatrész elkészítése > 2M /db | C187: Formatizálás | H187: =VLOOKUP($B187,Data!$E$25500:$AZ$25999,7,0)*2 -> 40000 | I187: 40000 | J187: =VLOOKUP($B187,Data!$E$25500:$AZ$25999,9,0) -> 0 | K187: =Duplavastag_bútorlap_m²!BF120 -> 0 | L187: 0 | M187: 0 | N187: 0 | O187: 1 | P187: 0
B188: Pánthelyfúrás 35mm /db | C188: Formatizálás | H188: =VLOOKUP($B188,Data!$E$25500:$AZ$25999,7,0)*2 -> 1000 | I188: 1000 | J188: =VLOOKUP($B188,Data!$E$25500:$AZ$25999,9,0) -> 0 | K188: =Duplavastag_bútorlap_m²!BG120 -> 0 | L188: 0 | M188: 0 | N188: 0 | O188: 1 | P188: 0
B189: =Duplavastag_bútorlap_m²!B149 -> 103 FS01 | C189: =VLOOKUP(B189,Butorlap_tabla,31,0) -> Szabott laptermék fehér | D189: Dupla vastag | E189: =IF(K189<1,"1.ársáv",IF(AND(K189>=1,K189<10),"2.ársáv",IF(AND(K189>=10,K189<25),"3.ársáv","4.ársáv"))) -> 1.ársáv | F189: =Duplavastag_bútorlap_m²!F149 -> Frontfehér sima | G189: m² | H189: =IF(K189<1,VLOOKUP($B189:$B189,Data!$E$10:$AZ$1999,18,0),IF(AND(K189>=1,K189<10),VLOOKUP($B189:$B189,Data!$E$10:$AZ$1999,19,0),IF(AND(K189>=10,K189<25),VLOOKUP($B189:$B189,Data!$E$10:$AZ$1999,20,0),VLOOKUP($B189:$B189,Data!$E$10:$AZ$1999,21,0))))*2 -> 10037.26708 | I189: =(H189-O189)*$O$1 -> 10037.26708 | J189: =IF(B3="103 FS01",((VLOOKUP($B189:$B189,Data!$E$10:$AZ$1999,22,0)*1.05)*2),((VLOOKUP($B189:$B189,Data!$E$10:$AZ$1999,22,0)*1.1)*2)) -> 6420.993789 | K189: =Duplavastag_bútorlap_m²!E181 -> 0 | L189: 0 | M189: 0 | N189: 0 | O189: =VLOOKUP(HLOOKUP(C189,$AA$1:$AZ$2,2,0),(IF(Q189=V189,Akciós_fehér_szín,IF(Q189=V190,Kiemelt_szín,IF(Q189=V191,Alap_szín,IF(Q189=V192,Egyéb_szín,IF(Q189=V193,Helyettesíthető_szín,IF(Q189=V194,Exkluzív_szín,IF(Q189=V195,Egész_táblás_szín,IF(Q189=V196,Akciós_fautánzat_szín,IF(Q189=V197,Prémium1_szín,IF(Q189=V198,Prémium2_szín,IF(Q189=V199,Prémium3_szín,Egyéb_vékony_szín)))))))))))),S189,0) -> 0 | P189: 0 | Q189: =VLOOKUP(B189,Data!$E$10:$AJ$799,12,0) -> Akciós fehér szín | S189: =IF(K189=0,3,IF(AND(K189>0,K189<5),2,IF(AND(K189>=5,K189<20),3,IF(AND(K189>=20,K189<50),4,5)))) -> 3 | V189: Akciós fehér szín | Z189: =VLOOKUP(B189,Data!$E$10:$AI$1999,18,0) -> 5018.63354 | AA189: =VLOOKUP(B189,Data!$E$10:$AI$1999,19,0) -> 6370 | AB189: =VLOOKUP(B189,Data!$E$10:$AI$1999,20,0) -> 5068.63354 | AC189: =VLOOKUP(B189,Data!$E$10:$AI$1999,21,0) -> 5018.63354
B190: Dupla vastag lap összeragasztása | C190: Formatizálás | H190: Egyedi ár | I190: =H190 -> Egyedi ár | J190: Egyedi ár | K190: =Duplavastag_bútorlap_m²!D181 -> 0 | L190: =Duplavastag_bútorlap_m²!R183 -> 0 | M190: =L190 -> 0 | N190: 0 | O190: 1 | P190: 0 | V190: Kiemelt szín
B191: Élzárás 42/0,4mm | C191: Élzárás | D191: =VLOOKUP(F191,ABS4204_tabla,4,0) -> Nem kapható | E191: =VLOOKUP(F191,ABS4204_tabla,7,0) -> 0 | F191: =Duplavastag_bútorlap_m²!F155 -> 103 FS01 | G191: fm | H191: =Elzaras_42_04_kisker -> 600 | I191: =(H191*O191)*$O$1 -> 600 | J191: 0 | K191: =Duplavastag_bútorlap_m²!F181 -> 0 | L191: =H191*$K191 -> 0 | M191: =I191*K191 -> 0 | N191: =J191*$K191 -> 0 | O191: 1 | P191: =M191 -> 0 | V191: Alap szín
B192: Élzárás 42/0,7-1mm | C192: Élzárás | D192: =VLOOKUP(F192,ABS421_tabla,4,0) -> 24S | E192: =VLOOKUP(F192,ABS421_tabla,7,0) -> 1 | F192: =Duplavastag_bútorlap_m²!J155 -> 103 FS01 | G192: fm | H192: =Elzaras_42_1_kisker -> 650 | I192: 650 | J192: 0 | K192: =Duplavastag_bútorlap_m²!J181 -> 0 | L192: =H192*$K192 -> 0 | M192: 0 | N192: =J192*$K192 -> 0 | O192: =HLOOKUP(C192,$AA$1:$AZ$2,2,0) -> 1 | P192: 0 | V192: Egyéb szín
B193: Élzárás 42/2mm | C193: Élzárás | D193: =VLOOKUP(F193,ABS422_tabla,4,0) -> 24H | E193: =VLOOKUP(F193,ABS422_tabla,7,0) -> 2 | F193: =Duplavastag_bútorlap_m²!N155 -> 103 FS01 | G193: fm | H193: =Elzaras_42_2_kisker -> 900 | I193: 900 | J193: 0 | K193: =Duplavastag_bútorlap_m²!N181 -> 0 | L193: 0 | M193: 0 | N193: 0 | O193: 1 | P193: 0 | V193: Helyettesíthető szín
B194: Élzárás 0,4mm íves vagy ferde | C194: Élzárás | D194: =VLOOKUP(F194,ABS4204_tabla,4,0) -> Nem kapható | E194: =VLOOKUP(F194,ABS4204_tabla,7,0) -> 0 | F194: =Duplavastag_bútorlap_m²!AA155 -> 103 FS01 | G194: fm | H194: =H191*4 -> 2400 | I194: 2400 | J194: 0 | K194: =Duplavastag_bútorlap_m²!AA181 -> 0 | L194: 0 | M194: 0 | N194: 0 | O194: 1 | P194: =M194 -> 0 | V194: Exkluzív szín
B195: Élzárás 0,7-1mm íves vagy ferde | C195: Élzárás | D195: =VLOOKUP(F195,ABS421_tabla,4,0) -> 24S | E195: =VLOOKUP(F195,ABS421_tabla,7,0) -> 1 | F195: =Duplavastag_bútorlap_m²!AD155 -> 103 FS01 | G195: fm | H195: =H192*4 -> 2600 | I195: 2600 | J195: 0 | K195: =Duplavastag_bútorlap_m²!AD181 -> 0 | L195: =H195*$K195 -> 0 | M195: =I195*K195 -> 0 | N195: =J195*$K195 -> 0 | O195: 1 | P195: 0 | V195: Egész táblás szín
B196: Élzárás 2mm íves vagy ferde | C196: Élzárás | D196: =VLOOKUP(F196,ABS422_tabla,4,0) -> 24H | E196: =VLOOKUP(F196,ABS422_tabla,7,0) -> 2 | F196: =Duplavastag_bútorlap_m²!AG155 -> 103 FS01 | G196: fm | H196: =H193*4 -> 3600 | I196: 3600 | J196: 0 | K196: =Duplavastag_bútorlap_m²!AG181 -> 0 | L196: 0 | M196: 0 | N196: 0 | O196: 1 | P196: 0 | V196: Akciós fautánzat szín
B197: Élzáróanyag 42/0,4mm | C197: Élzáróanyag | D197: =VLOOKUP(F197,ABS4204_tabla,4,0) -> Nem kapható | E197: =VLOOKUP(F197,ABS4204_tabla,7,0) -> 0 | F197: =Duplavastag_bútorlap_m²!F155 -> 103 FS01 | G197: fm | H197: =VLOOKUP($F197:$F197,ABS4204_tabla,10,0) -> 0 | I197: 0 | J197: =VLOOKUP($F197:$F197,ABS4204_tabla,12,0) -> 0 | K197: =Duplavastag_bútorlap_m²!F186 -> 0 | L197: 0 | M197: 0 | N197: 0 | O197: 1 | P197: =M197 -> 0 | V197: Prémium1 szín
B198: Élzáróanyag 42/0,7-1 mm | C198: Élzáróanyag | D198: =VLOOKUP(F198,ABS421_tabla,4,0) -> 24S | E198: =VLOOKUP(F198,ABS421_tabla,7,0) -> 1 | F198: =Duplavastag_bútorlap_m²!J155 -> 103 FS01 | G198: fm | H198: =VLOOKUP($F198:$F198,ABS421_tabla,10,0) -> 250.5543154 | I198: 250.5543154 | J198: =VLOOKUP($F198:$F198,ABS421_tabla,12,0) -> 143.1738945 | K198: =Duplavastag_bútorlap_m²!J186 -> 0 | L198: =H198*$K198 -> 0 | M198: =I198*K198 -> 0 | N198: =J198*$K198 -> 0 | O198: 1 | P198: 0 | V198: Prémium2 szín
B199: Élzáróanyag 42/2 mm | C199: Élzáróanyag | D199: =VLOOKUP(F199,ABS422_tabla,4,0) -> 24H | E199: =VLOOKUP(F199,ABS422_tabla,7,0) -> 2 | F199: =Duplavastag_bútorlap_m²!N155 -> 103 FS01 | G199: fm | H199: =VLOOKUP($F199:$F199,Data!$B$24000:$M$24998,10,0) -> 489.3681634 | I199: 489.3681634 | J199: =VLOOKUP($F199:$F199,Data!$B$24000:$M$24998,12,0) -> 279.6389505 | K199: =Duplavastag_bútorlap_m²!N186 -> 0 | L199: 0 | M199: 0 | N199: 0 | O199: 1 | P199: 0 | V199: Prémium3 szín
B200: Plusz élzáróanyag 42/0,4mm | C200: Élzáróanyag | D200: =VLOOKUP(F200,ABS4204_tabla,4,0) -> Nem kapható | E200: =VLOOKUP(F200,ABS4204_tabla,7,0) -> 0 | F200: =Duplavastag_bútorlap_m²!F155 -> 103 FS01 | G200: fm | H200: =VLOOKUP($F200:$F200,ABS4204_tabla,10,0) -> 0 | I200: 0 | J200: =VLOOKUP($F200:$F200,ABS4204_tabla,12,0) -> 0 | K200: =Duplavastag_bútorlap_m²!AT184 -> 0 | L200: =H200*$K200 -> 0 | M200: =I200*K200 -> 0 | N200: =J200*$K200 -> 0 | O200: 1 | P200: 0 | V200: Egyéb vékony szín
... 1265 more rows

Sheet Megrendelés összesítő
A1: Megrendelőlap | B1: Érték
A2: Bútorlap_m² | B2: =SUM(Árajánlat!M3:M107) -> 0
A3: Bútorlap_tábla | B3: =SUM(Árajánlat!M108:M147) -> 0
A4: Duplavastag_bútorlap_m² | B4: =SUM(Árajánlat!M148:M208) -> 0
A6: Hátfal_m² | B6: =SUM(Árajánlat!M209:M211) -> 0
A7: Hátfal_egész_tábla | B7: =SUM(Árajánlat!M212:M217) -> 0
A8: Üveg | B8: =SUM(Árajánlat!M218:M241) -> 0
A12: Munkalap_méretre | B12: =SUM(Árajánlat!M242:M283) -> 0
A13: Alkatrész raktári | B13: =SUM(Árajánlat!M593:M1297) -> 0
A14: Alkatrész rendelésre | B14: =SUM(Árajánlat!M1298:M1449) -> 0
A15: Szolgáltatás | B15: =SUM(Árajánlat!M284:M592) -> 0
A16: Végösszeg: | B16: =SUM(B2:B15) -> 0

Sheet Sevroll méretező
A1: ALFA (Delta) keretléchez
B2: Az értéket be kell írni (mm) | J2: A program számítja ki (mm)
B3: Nyílás magassága | C3: Nyílás szélessége | D3: Ajtók száma (2-4db) | E3: Betétek száma (min. 1db) | F3: Fix méretű betét magassága (ha van) | J3: Fogantyú profil hossza | K3: Tolóajtó szélessége | L3: 18mm-es betét szélessége | M3: 4mm üvegbetét szélessége | N3: 12mm üvegalátét szélessége | O3: Osztóprofil (L;T;H) hossza | P3: Nem fix méretű betét magassága összesen | Q3: Betétek magassága összesen
B4: Kötelező adat | C4: Kötelező adat | D4: Kötelező adat | E4: Kötelező adat | F4: Betét1 | G4: Betét2 | H4: Betét3 | I4: Betét4
A5: Projekt 1 | J5: =IF(B5=0,"",B5-38-2) ->  | K5: =IF(OR(C5=0,D5=0),"",(C5+((D5-1)*36))/D5) ->  | L5: =IF(K5="","",K5-22) ->  | M5: =IF(K5="","",K5-24) ->  | N5: =IF(K5="","",K5-4) ->  | O5: =IF(K5="","",K5-52) ->  | P5: =IF(Q5="","",Q5-F5-G5-H5-I5) ->  | Q5: =IF(OR(J5="",E5=""),"",J5-4-((E5-1)*2)) -> 
A6: Projekt 2 | J6: =IF(B6=0,"",B6-38-2) ->  | K6: =IF(OR(C6=0,D6=0),"",(C6+((D6-1)*36))/D6) ->  | L6: =IF(K6="","",K6-22) ->  | M6: =IF(K6="","",K6-24) ->  | N6: =IF(K6="","",K6-4) ->  | O6: =IF(K6="","",K6-52) ->  | P6: =IF(Q6="","",Q6-F6-G6-H6-I6) ->  | Q6: =IF(OR(J6="",E6=""),"",J6-4-((E6-1)*2)) -> 
A7: Projekt 3 | J7: =IF(B7=0,"",B7-38-2) ->  | K7: =IF(OR(C7=0,D7=0),"",(C7+((D7-1)*36))/D7) ->  | L7: =IF(K7="","",K7-22) ->  | O7: =IF(K7="","",K7-52) -> 
A9: Az értékek automatikusan megjelennek
A10: Projekt 1 kelléklista | B10: Fogantyúprofil | D10: L-profil | F10: T-profil | J10: Alsó-felső sín | L10: Vékony kefe
B11: =J5 ->  | C11: =D5*2 -> 0 | D11: =O5 ->  | E11: =D5*2 -> 0 | F11: =O5 ->  | H11: =(E5-1)*D5 -> 0 | J11: =IF(C5="","",C5-1) ->  | K11: 1 | L11: =IF(OR(J5="",D5=""),"",J5*D5*2) -> 
A12: Projekt 2 kelléklista | B12: Fogantyúprofil | D12: L-profil | F12: T-profil | J12: Alsó-felső sín | L12: Vékony kefe
B13: =J6 ->  | C13: =D6*2 -> 0 | D13: =O6 ->  | E13: =D7*2 -> 0 | F13: =O6 ->  | H13: =(E6-1)*D6 -> 0 | J13: =IF(C6="","",C6-1) ->  | K13: 1 | L13: =IF(OR(J6="",D6=""),"",J6*D6*2) -> 
A14: Projekt 3 kelléklista | B14: Fogantyúprofil | D14: L-profil | F14: T-profil | J14: Alsó-felső sín | L14: Vékony kefe
B15: =J7 ->  | C15: =D7*2 -> 0 | D15: =O7 ->  | E15: =D7*2 -> 0 | F15: =O7 ->  | H15: =(E7-1)*D7 -> 0 | J15: =IF(C7="","",C7-1) ->  | K15: 1 | L15: =IF(OR(J7="",D7=""),"",J7*D7*2) -> 
A17: FACTOR keretléchez
B18: Az értéket be kell írni (mm) | J18: A program számítja ki (mm)
B19: Nyílás magassága | C19: Nyílás szélessége | D19: Ajtók száma (2-4db) | E19: Betétek száma (min. 1db) | F19: Fix méretű betét magassága (ha van) | J19: Fogantyú profil hossza | K19: Tolóajtó szélessége | L19: 18mm-es betét szélessége | M19: 4mm üvegbetét szélessége | N19: 12mm üvegalátét szélessége | O19: Osztóprofil (L;T;H) hossza | P19: Nem fix méretű betét magassága összesen | Q19: Betétek magassága összesen
B20: Kötelező adat | C20: Kötelező adat | D20: Kötelező adat | E20: Kötelező adat | F20: Betét1 | G20: Betét2 | H20: Betét3 | I20: Betét4
A21: Projekt 1 | J21: =IF(B21=0,"",B21-38-2) ->  | K21: =IF(OR(C21="",D21=""),"",(C21+((D21-1)*30))/D21) ->  | L21: =IF(K21="","",K21-4) ->  | M21: =IF(K21="","",K21-10) ->  | N21: =IF(K21="","",K21-4) ->  | O21: =IF(L21="","",L21-54) ->  | P21: =IF(Q21="","",Q21-F21-G21-H21-I21) ->  | Q21: =IF(OR(J21="",E21=""),"",J21-4-((E21-1)*2)) -> 
A22: Projekt 2 | J22: =IF(B22=0,"",B22-38-2) ->  | K22: =IF(OR(C22="",D22=""),"",(C22+((D22-1)*30))/D22) ->  | L22: =IF(K22="","",K22-4) ->  | M22: =IF(K22="","",K22-10) ->  | N22: =IF(K22="","",K22-4) ->  | O22: =IF(L22="","",L22-54) ->  | P22: =IF(Q22="","",Q22-F22-G22-H22-I22) ->  | Q22: =IF(OR(J22="",E22=""),"",J22-4-((E22-1)*2)) -> 
A23: Projekt 3 | J23: =IF(B23=0,"",B23-38-2) ->  | P23: =IF(Q23="","",Q23-F23-G23-H23-I23) ->  | Q23: =IF(OR(J23="",E23=""),"",J23-4-((E23-1)*2)) -> 
A25: Az értékek automatikusan megjelennek
A26: Projekt 1 kelléklista | B26: Fogantyúprofil | D26: L-profil | F26: T-profil | J26: Alsó-felső sín | L26: Vékony kefe
B27: =J21 ->  | C27: =D21*2 -> 0 | D27: =O21 ->  | E27: =D21*2 -> 0 | F27: =O21 ->  | H27: =(E21-1)*D21 -> 0 | J27: =IF(C21="","",C21-1) ->  | K27: 1 | L27: =IF(OR(J21="",D21=""),"",J21*D21*2) -> 
A28: Projekt 2 kelléklista | B28: Fogantyúprofil | D28: L-profil | F28: T-profil | J28: Alsó-felső sín | L28: Vékony kefe
B29: =J22 ->  | C29: =D22*2 -> 0 | D29: =O22 ->  | E29: =D23*2 -> 0 | F29: =O22 ->  | H29: =(E22-1)*D22 -> 0 | J29: =IF(C22="","",C22-1) ->  | K29: 1 | L29: =IF(OR(J22="",D22=""),"",J22*D22*2) -> 
A30: Projekt 3 kelléklista | B30: Fogantyúprofil | D30: L-profil | F30: T-profil | J30: Alsó-felső sín | L30: Vékony kefe
B31: =J23 ->  | C31: =D23*2 -> 0 | D31: =O23 ->  | E31: =D23*2 -> 0 | F31: =O23 ->  | H31: =(E23-1)*D23 -> 0 | J31: =IF(C23="","",C23-1) ->  | K31: 1 | L31: =IF(OR(J23="",D23=""),"",J23*D23*2) -> 

Sheet G-MAX FIÓKSZÁMOLÓ
A1: A G-MAX "GBOX" termékekhez 16mm vastag bútorlapot kell használni
A2: Fiókrendszer SZIMPLAFALÚ G-MAX 75/350mm | B2: 350 | D2: =IF(C2=0,"",C2-75) ->  | E2: =B2-24 -> 326 | F2: =IF(C2=0,"",C2-87) ->  | G2: 69
A3: Fiókrendszer SZIMPLAFALÚ G-MAX 75/400mm | B3: 400 | E3: =B3-24 -> 376 | F3: =IF(C3=0,"",C3-87) ->  | G3: 69
A4: Fiókrendszer SZIMPLAFALÚ G-MAX 75/450mm | B4: 450 | E4: 426 | G4: 69
A5: Fiókrendszer SZIMPLAFALÚ G-MAX 75/500mm | B5: 500 | E5: 476 | G5: 69
A6: Fiókrendszer SZIMPLAFALÚ G-MAX 75/550mm | B6: 550 | E6: 526 | G6: 69
A7: Fiókrendszer SZIMPLAFALÚ G-MAX 122/350mm | B7: 350 | E7: 326 | G7: 116
A8: Fiókrendszer SZIMPLAFALÚ G-MAX 122/400mm | B8: 400 | E8: 376 | G8: 116
A9: Fiókrendszer SZIMPLAFALÚ G-MAX 122/450mm | B9: 450 | E9: 426 | G9: 116
A10: Fiókrendszer SZIMPLAFALÚ G-MAX 122/500mm | B10: 500 | E10: 476 | G10: 116
A11: Fiókrendszer SZIMPLAFALÚ G-MAX 122/550mm | B11: 550 | E11: 526 | G11: 116
A12: Fiókrendszer SZIMPLAFALÚ G-MAX 172/350mm | B12: 350 | E12: 326 | G12: 167
A13: Fiókrendszer SZIMPLAFALÚ G-MAX 172/400mm | B13: 400 | E13: 376 | G13: 167
A14: Fiókrendszer SZIMPLAFALÚ G-MAX 172/450mm | B14: 450 | E14: 426 | G14: 167
A15: Fiókrendszer SZIMPLAFALÚ G-MAX 172/500mm | B15: 500 | E15: 476 | G15: 167
A16: Fiókrendszer SZIMPLAFALÚ G-MAX 172/550mm | B16: 550 | E16: 526 | G16: 167

Sheet Példa rajzok
A1: A példarajzokba írt munkadarabokat is jelölni kell a táblázatban, az ábrák melletti cellák kitöltésének csak tájékoztató szerepe van!
B2: Sarok levágás 1X | C2: db | E2: A | F2: B | G2: C | H2: D | I2: E | J2: C-Eszög | K2: D-Eszög
A3: A „C” és a „D” méret 0mm is lehet háromszög esetén | D3: Méret (mm) | I3: =IF(OR(G3=0,E3=0,F3=0,D3=0),"",SQRT((F3-G3)*(F3-G3)+(E3-H3)*(E3-H3))) ->  | J3: =IF(OR(E3="",F3="",G3="",H3=""),"",ASIN((F3-G3)/I3)*(180/PI())) ->  | K3: =IF(OR(E3="",F3="",G3="",H3=""),"",ASIN((E3-H3)/I3)*(180/PI())) -> 
D4: ABS
D5: Méret (mm) | I5: =IF(OR(G5=0,E5=0,F5=0,D5=0),"",SQRT((F5-G5)*(F5-G5)+(E5-H5)*(E5-H5))) ->  | J5: =IF(OR(E5="",F5="",G5="",H5=""),"",ASIN((F5-G5)/I5)*(180/PI())) ->  | K5: =IF(OR(E5="",F5="",G5="",H5=""),"",ASIN((E5-H5)/I5)*(180/PI())) -> 
D6: ABS
D7: Méret (mm) | I7: =IF(OR(G7=0,E7=0,F7=0,D7=0),"",SQRT((F7-G7)*(F7-G7)+(E7-H7)*(E7-H7))) ->  | J7: =IF(OR(E7="",F7="",G7="",H7=""),"",ASIN((F7-G7)/I7)*(180/PI())) ->  | K7: =IF(OR(E7="",F7="",G7="",H7=""),"",ASIN((E7-H7)/I7)*(180/PI())) -> 
D8: ABS
D9: Méret (mm) | I9: =IF(OR(G9=0,E9=0,F9=0,D9=0),"",SQRT((F9-G9)*(F9-G9)+(E9-H9)*(E9-H9))) ->  | J9: =IF(OR(E9="",F9="",G9="",H9=""),"",ASIN((F9-G9)/I9)*(180/PI())) ->  | K9: =IF(OR(E9="",F9="",G9="",H9=""),"",ASIN((E9-H9)/I9)*(180/PI())) -> 
D10: ABS
D11: Méret (mm) | I11: =IF(OR(G11=0,E11=0,F11=0,D11=0),"",SQRT((F11-G11)*(F11-G11)+(E11-H11)*(E11-H11))) ->  | J11: =IF(OR(E11="",F11="",G11="",H11=""),"",ASIN((F11-G11)/I11)*(180/PI())) ->  | K11: =IF(OR(E11="",F11="",G11="",H11=""),"",ASIN((E11-H11)/I11)*(180/PI())) -> 
D12: ABS
D13: Méret (mm) | I13: =IF(OR(G13=0,E13=0,F13=0,D13=0),"",SQRT((F13-G13)*(F13-G13)+(E13-H13)*(E13-H13))) ->  | J13: =IF(OR(E13="",F13="",G13="",H13=""),"",ASIN((F13-G13)/I13)*(180/PI())) ->  | K13: =IF(OR(E13="",F13="",G13="",H13=""),"",ASIN((E13-H13)/I13)*(180/PI())) -> 
D14: ABS
B16: Sarok levágás 2X | C16: db | E16: A | F16: B | G16: C | H16: D | I16: E | J16: C-Eszög | K16: D-Eszög
A17: A „C” és a „D” méret akár 0mm is lehet | D17: Méret (mm) | J17: =IF(OR(E17="",F17="",G17="",H17=""),"",ASIN((F17-G17)/I17)*(180/PI())) ->  | K17: =IF(OR(E17="",F17="",G17="",H17=""),"",ASIN((E17-H17)/I17)*(180/PI())) -> 
D18: ABS
D19: Méret (mm) | J19: =IF(OR(E19="",F19="",G19="",H19=""),"",ASIN((F19-G19)/I19)*(180/PI())) ->  | K19: =IF(OR(E19="",F19="",G19="",H19=""),"",ASIN((E19-H19)/I19)*(180/PI())) -> 
D20: ABS
D21: Méret (mm) | J21: =IF(OR(E21="",F21="",G21="",H21=""),"",ASIN((F21-G21)/I21)*(180/PI())) ->  | K21: =IF(OR(E21="",F21="",G21="",H21=""),"",ASIN((E21-H21)/I21)*(180/PI())) -> 
D22: ABS
D23: Méret (mm) | J23: =IF(OR(E23="",F23="",G23="",H23=""),"",ASIN((F23-G23)/I23)*(180/PI())) ->  | K23: =IF(OR(E23="",F23="",G23="",H23=""),"",ASIN((E23-H23)/I23)*(180/PI())) -> 
D24: ABS
D25: Méret (mm) | J25: =IF(OR(E25="",F25="",G25="",H25=""),"",ASIN((F25-G25)/I25)*(180/PI())) ->  | K25: =IF(OR(E25="",F25="",G25="",H25=""),"",ASIN((E25-H25)/I25)*(180/PI())) -> 
D26: ABS
D27: Méret (mm) | J27: =IF(OR(E27="",F27="",G27="",H27=""),"",ASIN((F27-G27)/I27)*(180/PI())) ->  | K27: =IF(OR(E27="",F27="",G27="",H27=""),"",ASIN((E27-H27)/I27)*(180/PI())) -> 
D28: ABS
B30: Sarok ívelés 1X | C30: db | E30: A | F30: B | G30: C | H30: D | I30: R | J30: C+D+R
A31: A „C” és a „D” méret 0mm negyedkörív esetén | D31: Méret (mm) | J31: =IF(AND(G31="",H31="",I31=""),"",G31+H31+I31) -> 
D32: ABS
D33: Méret (mm) | J33: =IF(AND(G33="",H33="",I33=""),"",G33+H33+I33) -> 
D34: ABS
D35: Méret (mm) | J35: =IF(AND(G35="",H35="",I35=""),"",G35+H35+I35) -> 
D36: ABS
D37: Méret (mm) | J37: =IF(AND(G37="",H37="",I37=""),"",G37+H37+I37) -> 
D38: ABS
D39: Méret (mm) | J39: =IF(AND(G39="",H39="",I39=""),"",G39+H39+I39) -> 
D40: ABS
D41: Méret (mm) | J41: =IF(AND(G41="",H41="",I41=""),"",G41+H41+I41) -> 
D42: ABS
B44: Belső kimetszés 1X | C44: db | E44: A | F44: B | G44: C | H44: D | I44: E | J44: F
A45: Az "E" és az "F" élre csak 0,4mm vastag élzárás kérhető | D45: Méret (mm)
D46: ABS
D47: Méret (mm)
D48: ABS
D49: Méret (mm)
D50: ABS
D51: Méret (mm)
D52: ABS
D53: Méret (mm)
D54: ABS
D55: Méret (mm)
D56: ABS
B58: Sarok belső ív 1X | C58: db | E58: A | F58: B | G58: C | H58: D | I58: R
D59: Méret (mm)
D60: ABS
D61: Méret (mm)
D62: ABS
D63: Méret (mm)
D64: ABS
D65: Méret (mm)
D66: ABS
D67: Méret (mm)
D68: ABS
D69: Méret (mm)
D70: ABS
B72: Pánthelymarás | C72: db | E72: A | F72: B | G72: C | H72: D | I72: E | J72: F | K72: G
D73: Méret (mm) | G73: 96 | H73: 96
D74: Méret (mm) | G74: 96 | H74: 96
D75: Méret (mm) | G75: 96 | H75: 96
D76: Méret (mm) | G76: 96 | H76: 96
D77: Méret (mm) | G77: 96 | H77: 96
D78: Méret (mm) | G78: 96 | H78: 96
D79: Méret (mm) | G79: 96 | H79: 96
D80: Méret (mm) | G80: 96 | H80: 96
D81: Méret (mm) | G81: 96 | H81: 96
D82: Méret (mm) | G82: 96 | H82: 96
D83: Méret (mm) | G83: 96 | H83: 96
D84: Méret (mm) | G84: 96 | H84: 96
B86: Hátlap süllyesztés | C86: db | E86: A | F86: B | G86: C | H86: D | I86: E | J86: F
D87: Méret (mm)
D88: ABS
D89: Méret (mm)
D90: ABS
D91: Méret (mm)
D92: ABS
D93: Méret (mm)
D94: ABS
D95: Méret (mm)
D96: ABS
D97: Méret (mm)
D98: ABS
D99: Méret (mm)
D100: ABS
D101: Méret (mm)
D102: ABS
D103: Méret (mm)
D104: ABS
B107: Hátlap nútmarás | C107: db | E107: A | F107: B | G107: C | H107: D | I107: E | J107: F | K107: H
D108: Méret (mm)
D109: ABS
D110: Méret (mm)
D111: ABS
D112: Méret (mm)
D113: ABS
D114: Méret (mm)
D115: ABS
D116: Méret (mm)
D117: ABS
D118: Méret (mm)
D119: ABS
D120: Méret (mm)
D121: ABS
D122: Méret (mm)
D123: ABS
D124: Méret (mm)
D125: ABS
B128: Él szögvágás 1X | C128: db | E128: A | F128: B | G128: C | H128: D | I128: E | J128: F
A129: AZ "F" szög maximális értéke 45 fok | D129: Méret (mm)
D130: ABS
D131: Méret (mm)
D132: ABS
D133: Méret (mm)
D134: ABS
D135: Méret (mm)
D136: ABS
D137: Méret (mm)
D138: ABS
D139: Méret (mm)
D140: ABS
D141: Méret (mm)
D142: ABS
D143: Méret (mm)
D144: ABS
D145: Méret (mm)
D146: ABS
B149: Él szögvágás 2X | C149: db | E149: A | F149: B | G149: C | H149: D | I149: E | J149: F | K149: G
A150: AZ "F" és "G" szög maximális értéke 45 fok | D150: Méret (mm)
D151: ABS
D152: Méret (mm)
D153: ABS
D154: Méret (mm)
D155: ABS
D156: Méret (mm)
D157: ABS
D158: Méret (mm)
D159: ABS
D160: Méret (mm)
D161: ABS
D162: Méret (mm)
D163: ABS
D164: Méret (mm)
D165: ABS
D166: Méret (mm)
D167: ABS
B170: Él szögvágás 2X -fordított | C170: db | E170: A | F170: B | G170: C | H170: D | I170: E | J170: F | K170: G
A171: AZ "F" és "G" szög maximális értéke 45 fok | D171: Méret (mm)
D172: ABS
D173: Méret (mm)
D174: ABS
D175: Méret (mm)
D176: ABS
D177: Méret (mm)
D178: ABS
D179: Méret (mm)
D180: ABS
D181: Méret (mm)
D182: ABS
D183: Méret (mm)
D184: ABS
D185: Méret (mm)
D186: ABS
D187: Méret (mm)
D188: ABS
B191: Sarok levágás 2X -fordított | C191: db | E191: A | F191: B | G191: C | H191: D | I191: E | J191: F
D192: Méret (mm)
D193: ABS
D194: Méret (mm)
D195: ABS
D196: Méret (mm)
D197: ABS
D198: Méret (mm)
D199: ABS
D200: Méret (mm)
D201: ABS
D202: Méret (mm)
D203: ABS
D204: Méret (mm)
D205: ABS
D206: Méret (mm)
D207: ABS
D208: Méret (mm)
D209: ABS
B212: Sarok levágás 2X | C212: db | E212: A | F212: B | G212: C | H212: D | I212: E | J212: F
D213: Méret (mm)
D214: ABS
D215: Méret (mm)
D216: ABS
D217: Méret (mm)
D218: ABS
... 76 more rows

Sheet PRO100 (hidden)
A1: Megnevezés | B1: Hossz | C1: Szélesség | D1: db | E1: Szín | F1: 0,4mm | G1: 0,4mm | I1: 1mm | J1: 1mm | L1: 2mm | M1: 2mm

Sheet Bútorlap_m²
B1: Megrendelő neve, címe, telefonszáma | F1: Dátum, mikor a megrendelés elkészülésére számítok: | R1: Számlázási név, cím
B3: =VLOOKUP(F7,Data!C3502:BM3599,2,0) -> Név | R3: Név
B4: Cím
R5: Cím
B6: =VLOOKUP(F7,Data!C3502:BM3599,24,0) -> 0
B7: Vevőkód: | F7: 1001 | R7: Kérjük olvassák el az "Info" munkalapon található tájékozatót! A megrendelőlap kitöltésével ön elfogadta a benne foglalt feltételeket.
B8: A megrendelőlapon szereplő tételek ára | R8: ='Megrendelés összesítő'!B2 -> 0 | S8: Megrendelés felvétel módja: | AE8: On-line, kitöltőprogram használatával
B9: Ezen az oldalon 5 db megrendelőlap található, a további megrendelőlapokhoz kérjük lapozzon lejjebb
B10: 45 fokos sarokvágás /db | M10: A szolgáltatások 'A' oszlopban kell jelölni a mennyiséget
B12: Belső 90fokos kimetszés marással /db | M12: A szolgáltatások 'B' oszlopban kell jelölni a mennyiséget
B14: Hátlap-besüllyesztés marása /fm | M14: A szolgáltatások 'C' oszlopban kell jelölni a mennyiséget
B16: Ívelt alkatrész másolása < 1M /db | M16: A szolgáltatások 'D' oszlopban kell jelölni a mennyiséget
B18: Lapszabás Egyedi darab /db | M18: A szolgáltatások 'E' oszlopban kell jelölni a mennyiséget
B20: Pánthelyfúrás 35mm /db | M20: A szolgáltatások 'F' oszlopban kell jelölni a mennyiséget
B22: =IF(OR(VLOOKUP(B28,Data!$E$10:$AM$799,12,0)="Egész táblás szín",VLOOKUP(B28,Data!$E$10:$AM$799,12,0)="Helyettesíthető szín"),"Ez a szín nem kapható négyzetméterre, válassza a javasolt helyettesítő színt vagy válassza ki a színt a 'Bútorlap_tábla' megrendelőlapon egész táblás szabászathoz","") -> 
B23: Csavartakaró matrica (Ha van) | E23: Egység: 25db/levél | F23: Ennyi levélre lenne szükségem: | S23: Bútorjavító viasz (Ha van) | AB23: Egység: Db | AE23: Ennyi darabra lenne szükségem:
B24: Helyettesítő szín | D24: =IF(VLOOKUP(B28,Data!$E$10:$AZ$999,11,0)=0,"Nincs",VLOOKUP(B28,Data!$E$10:$AZ$999,11,0)) -> Nincs | F24: =IF(F25=0,"Nem kapható",IF(F34=$B$28,"Színazonos élzáró vastagsága:","Eltérő élzáró vastagsága:")) -> Színazonos élzáró vastagsága: | J24: =IF(J25=0,"Nem kapható",IF(J34=$B$28,"Színazonos élzáró vastagsága:","Eltérő élzáró vastagsága:")) -> Színazonos élzáró vastagsága: | L24: =IF(L25=0,"Nem kapható",IF(L34=$B$28,"Színazonos élzáró vastagsága:","Eltérő élzáró vastagsága:")) -> Nem kapható | N24: =IF(N25=0,"Nem kapható",IF(N34=$B$28,"Színazonos élzáró vastagsága:","Eltérő élzáró vastagsága:")) -> Színazonos élzáró vastagsága: | S24: =IF(S34=B28,"Színazonos élzáró vastagsága:","Eltérő élzáró vastagsága:") -> Színazonos élzáró vastagsága: | V24: =IF(V34=B28,"Színazonos élzáró vastagsága:","Eltérő élzáró vastagsága:") -> Színazonos élzáró vastagsága: | Y24: =IF(Y34=B28,"Színazonos élzáró vastagsága:","Eltérő élzáró vastagsága:") -> Színazonos élzáró vastagsága: | AB24: Ehhez a laphoz ajánlott hátfallemez: | AH24: =VLOOKUP(B28,Data!$E$10:$AB$999,14,0) -> 101 HDF
B25: Árkülönbség/m2 (Az alapárban): | D25: =IFERROR((VLOOKUP(D24,Data!$E$10:$AI$2000,18,0))-(VLOOKUP(B28,Data!$E$10:$AI$2000,18,0)),"") ->  | F25: =VLOOKUP(F34:F34,Data!$B$19000:$M$20498,7,0) -> 0.5 | J25: =VLOOKUP(J34:J34,Data!$B$20500:$M$21498,7,0) -> 1 | N25: =VLOOKUP(N34:N34,Data!$B$21499:$M$23498,7,0) -> 2 | S25: =VLOOKUP(S34:S34,Data!$B$19000:$M$20498,7,0) -> 0.5 | V25: =VLOOKUP(V34:V34,Data!$B$20500:$M$21498,7,0) -> 1 | Y25: =VLOOKUP(Y34:Y34,Data!$B$21499:$M$23498,7,0) -> 2 | AB25: Helyettesítő élzáróanyag: | AH25: =IF(VLOOKUP(B28,Data!$E$10:$AB$999,17,0)=0,"Nincs javaslat",VLOOKUP(B28,Data!$E$10:$AB$999,17,0)) -> Nincs javaslat
B26: Az alábbi cellára kattintva válassza ki a termék kódját | F26: Szín | R26: Vastagság | S26: Íves élzárás /fm | AB26: Szolgáltatások
AB27: A | AD27: B | AF27: C | AH27: D | AJ27: E | AL27: F
B28: 116 SM | F28: =VLOOKUP(B28,Data!$E$10:$AZ$1999,5,0) -> Korpusz fehér (Falco) | R28: =VLOOKUP(B28,Data!$E$10:$AZ$1999,3,0) -> 18mm | S28: Méretek bevitele milliméterben | AB28: Egységár | AD28: Egységár | AF28: Egységár | AH28: Egységár | AJ28: Egységár | AL28: Egységár
B29: m² ár: | C29: =Árajánlat!I3 -> 5950 | D29: Élz. Anyagár: | F29: =Árajánlat!I10 -> 89.1287397 | J29: =Árajánlat!I11 -> 157.3768697 | N29: =Árajánlat!I12 -> 253.8749304 | R29: Az élzáró anyagok színe kiválasztható, egy táblázatban csak egyféle élzáróanyag használható | S29: Íves munkadíj: | AB29: =Árajánlat!I16 -> 1000 | AD29: =Árajánlat!I17 -> 7500 | AF29: =Árajánlat!I18 -> 1000 | AH29: =Árajánlat!I19 -> 4500 | AJ29: =Árajánlat!I20 -> 800 | AL29: =Árajánlat!I21 -> 500
B30: =IF(E34=0,"5-20m2-ig",IF(AND(E34>=5,E34<20),"5-20m2-ig",IF(AND(E34>0,E34<5),"0-5m2-ig",IF(AND(E34>=20,E34<50),"20-50m2-ig","50 m2 -től")))) -> 5-20m2-ig | D30: Élz. Munkadíj: | F30: =Árajánlat!I4 -> 350 | J30: =Árajánlat!I5 -> 400 | N30: =Árajánlat!I6 -> 450 | S30: =Árajánlat!I7 -> 1750 | V30: =Árajánlat!I8 -> 2000 | Y30: =Árajánlat!I9 -> 2250 | AB30: =B10 -> 45 fokos sarokvágás /db | AD30: =B12 -> Belső 90fokos kimetszés marással /db | AF30: =B14 -> Hátlap-besüllyesztés marása /fm | AH30: =B16 -> Ívelt alkatrész másolása < 1M /db | AJ30: =B18 -> Lapszabás Egyedi darab /db | AL30: Pántfurat
B31: Minden méretet milliméterben kell megadni, élzáróanyag vastagságát nem kell levonni, kész méret | F31: =CONCATENATE("ABS",F25,"mm") -> ABS0,5mm | J31: =CONCATENATE("ABS",J25,"mm") -> ABS1mm | N31: =CONCATENATE("ABS",N25,"mm") -> ABS2mm | S31: =CONCATENATE("ABS",S25,"mm") -> ABS0,5mm | V31: =CONCATENATE("ABS",V25,"mm") -> ABS1mm | Y31: =CONCATENATE("ABS",Y25,"mm") -> ABS2mm
F32: =Árajánlat!D4 -> 24S | J32: =Árajánlat!D5 -> 24S | N32: =Árajánlat!D6 -> 24S | S32: =Árajánlat!D7 -> 24S | V32: =Árajánlat!D8 -> 24S | Y32: =Árajánlat!D12 -> 24S
F33: =VLOOKUP(F34:F34,Data!$B$19000:$M$20498,6,0) -> 1 | J33: =VLOOKUP(J34:J34,Data!$B$20500:$M$21498,6,0) -> 1 | N33: =VLOOKUP(N34:N34,Data!$B$21499:$M$23498,6,0) -> 1 | S33: =VLOOKUP(S34:S34,Data!$B$19000:$M$20498,6,0) -> 1 | V33: =VLOOKUP(V34:V34,Data!$B$20500:$M$21498,6,0) -> 1 | Y33: =VLOOKUP(Y34:Y34,Data!$B$21499:$M$23498,6,0) -> 1
B34: =CONCATENATE("HOSSZ"," (max. ",VLOOKUP(B28,Data!$E$10:$AZ$1999,15,0)," mm)") -> HOSSZ (max. 2800 mm) | C34: =CONCATENATE("Szélesség"," (max. ",VLOOKUP(B28,Data!$E$10:$AZ$1999,16,0)," mm)") -> Szélesség (max. 2070 mm) | D34: db | E34: =SUM(E35:E134) -> 0 | F34: =B28 -> 116 SM | H34: Élz. Száma | I34: élz. Fm | J34: =B28 -> 116 SM | L34: Élz. Száma | M34: élz. Fm | N34: =B28 -> 116 SM | P34: Élz. Száma | Q34: élz. Fm | R34: Megjegyzés | S34: =F34 -> 116 SM | V34: =J34 -> 116 SM | Y34: =N34 -> 116 SM | AB34: darab | AD34: darab vagy fm | AF34: H | AG34: SZ | AH34: I / N | AJ34: I / N | AK34: N | AL34: H | AM34: SZ | AT34: Desc. 04 | AU34: Desc. 08 | AV34: Desc. 2 | AW34: Matricán szereplő szöveg (+ a munkadarab mérete)
A35: 001 | E35: =((B35*C35)*D35)/1000000 -> 0 | H35: =(F35+G35)*$D35 -> 0 | I35: =(($B35*$D35*F35)+($C35*$D35*G35))/1000 -> 0 | L35: =(J35+K35)*$D35 -> 0 | M35: =(($B35*$D35*J35)+($C35*$D35*K35))/1000 -> 0 | P35: =(N35+O35)*$D35 -> 0 | Q35: =(($B35*$D35*N35)+($C35*$D35*O35))/1000 -> 0 | T35: =IF(S35=0,0,$D35) -> 0 | U35: =$D35*S35 -> 0 | W35: =IF(V35=0,0,$D35) -> 0 | X35: =$D35*V35 -> 0 | Z35: =IF(Y35=0,0,$D35) -> 0 | AA35: =$D35*Y35 -> 0 | AN35: =AB35*$D35 -> 0 | AO35: =AD35*$D35 -> 0 | AP35: =(($B35*$D35*AF35)+($C35*$D35*AG35))/1000 -> 0 | AQ35: =COUNTA(AH35)*$D35 -> 0 | AR35: =COUNTA(AJ35)*$D35 -> 0 | AS35: =($AL35*$D35)+($AM35*$D35) -> 0 | AT35: =CONCATENATE("04mm ",AZ35,"+",BA35," ") -> 04mm 0+0 | AU35: =CONCATENATE(J$25,"mm ",BB35,"+",BC35," ") -> 1mm 0+0 | AV35: =CONCATENATE("2mm ",BD35,"+",BE35, " ") -> 2mm 0+0 | AW35: =CONCATENATE(BI35,BJ35,BK35,BL35,BM35,BN35," ",R35," ",Árajánlat!$B$1469," ",$B$3,"_",Árajánlat!$B$1470) -> Név_30031 | AZ35: =F35 -> 0 | BA35: =G35 -> 0 | BB35: =J35 -> 0 | BC35: =K35 -> 0 | BD35: =N35 -> 0 | BE35: =O35 -> 0 | BF35: =AZ35+BA35 -> 0 | BG35: =BC35+BB35 -> 0 | BH35: =BE35+BD35 -> 0 | BI35: =IF(BF35=0,"",AT35) ->  | BJ35: =IF(BG35=0,"",AU35) ->  | BK35: =IF(BH35=0,"",AV35) ->  | BL35: =IF($F$34=$B$28,"",CONCATENATE(" 04mm=",$F$32)) ->  | BM35: =IF($J$34=$B$28,"",CONCATENATE($J$25," mm=",$J$32)) ->  | BN35: =IF($N$34=$B$28,"",CONCATENATE(" 2mm=",$N$32)) -> 
A36: 002 | E36: 0 | H36: 0 | I36: 0 | L36: 0 | M36: 0 | P36: 0 | Q36: 0 | T36: 0 | U36: 0 | W36: 0 | X36: 0 | Z36: 0 | AA36: 0 | AN36: 0 | AO36: 0 | AP36: 0 | AQ36: 0 | AR36: 0 | AS36: 0 | AT36: =CONCATENATE("04mm ",AZ36,"+",BA36," ") -> 04mm 0+0 | AU36: =CONCATENATE(J$25,"mm ",BB36,"+",BC36," ") -> 1mm 0+0 | AV36: 2mm 0+0 | AW36: =CONCATENATE(BI36,BJ36,BK36,BL36,BM36,BN36," ",R36," ",Árajánlat!$B$1469," ",$B$3,"_",Árajánlat!$B$1470) -> Név_30031 | AZ36: 0 | BA36: 0 | BB36: 0 | BC36: 0 | BD36: 0 | BE36: 0 | BF36: 0 | BG36: 0 | BH36: 0 | BL36: =IF($F$34=$B$28,"",CONCATENATE(" 04mm=",$F$32)) ->  | BM36: =IF($J$34=$B$28,"",CONCATENATE($J$25," mm=",$J$32)) ->  | BN36: =IF($N$34=$B$28,"",CONCATENATE(" 2mm=",$N$32)) -> 
A37: 003 | E37: 0 | H37: 0 | I37: 0 | L37: 0 | M37: 0 | P37: 0 | Q37: 0 | T37: 0 | U37: 0 | W37: 0 | X37: 0 | Z37: 0 | AA37: 0 | AN37: 0 | AO37: 0 | AP37: 0 | AQ37: 0 | AR37: 0 | AS37: 0 | AT37: 04mm 0+0 | AU37: 1mm 0+0 | AV37: 2mm 0+0 | AW37: =CONCATENATE(BI37,BJ37,BK37,BL37,BM37,BN37," ",R37," ",Árajánlat!$B$1469," ",$B$3,"_",Árajánlat!$B$1470) -> Név_30031 | AZ37: 0 | BA37: 0 | BB37: 0 | BC37: 0 | BD37: 0 | BE37: 0 | BF37: 0 | BG37: 0 | BH37: 0
A38: 004 | E38: 0 | H38: 0 | I38: 0 | L38: 0 | M38: 0 | P38: 0 | Q38: 0 | T38: 0 | U38: 0 | W38: 0 | X38: 0 | Z38: 0 | AA38: 0 | AN38: 0 | AO38: 0 | AP38: 0 | AQ38: 0 | AR38: 0 | AS38: 0 | AT38: 04mm 0+0 | AU38: 1mm 0+0 | AV38: 2mm 0+0 | AW38: =CONCATENATE(BI38,BJ38,BK38,BL38,BM38,BN38," ",R38," ",Árajánlat!$B$1469," ",$B$3,"_",Árajánlat!$B$1470) -> Név_30031 | AZ38: 0 | BA38: 0 | BB38: 0 | BC38: 0 | BD38: 0 | BE38: 0 | BF38: 0 | BG38: 0 | BH38: 0
A39: 005 | E39: 0 | H39: 0 | I39: 0 | L39: 0 | M39: 0 | P39: 0 | Q39: 0 | T39: 0 | U39: 0 | W39: 0 | X39: 0 | Z39: 0 | AA39: 0 | AN39: 0 | AO39: 0 | AP39: 0 | AQ39: 0 | AR39: 0 | AS39: 0 | AT39: 04mm 0+0 | AU39: 1mm 0+0 | AV39: 2mm 0+0 | AW39: =CONCATENATE(BI39,BJ39,BK39,BL39,BM39,BN39," ",R39," ",Árajánlat!$B$1469," ",$B$3,"_",Árajánlat!$B$1470) -> Név_30031 | AZ39: 0 | BA39: 0 | BB39: 0 | BC39: 0 | BD39: 0 | BE39: 0 | BF39: 0 | BG39: 0 | BH39: 0
A40: 006 | E40: 0 | H40: 0 | I40: 0 | L40: 0 | M40: 0 | P40: 0 | Q40: 0 | T40: 0 | U40: 0 | W40: 0 | X40: 0 | Z40: 0 | AA40: 0 | AN40: 0 | AO40: 0 | AP40: 0 | AQ40: 0 | AR40: 0 | AS40: 0 | AT40: 04mm 0+0 | AU40: 1mm 0+0 | AV40: 2mm 0+0 | AW40: =CONCATENATE(BI40,BJ40,BK40,BL40,BM40,BN40," ",R40," ",Árajánlat!$B$1469," ",$B$3,"_",Árajánlat!$B$1470) -> Név_30031 | AZ40: 0 | BA40: 0 | BB40: 0 | BC40: 0 | BD40: 0 | BE40: 0 | BF40: 0 | BG40: 0 | BH40: 0
A41: 007 | E41: 0 | H41: 0 | I41: 0 | L41: 0 | M41: 0 | P41: 0 | Q41: 0 | T41: 0 | U41: 0 | W41: 0 | X41: 0 | Z41: 0 | AA41: 0 | AN41: 0 | AO41: 0 | AP41: 0 | AQ41: 0 | AR41: 0 | AS41: 0 | AT41: 04mm 0+0 | AU41: 1mm 0+0 | AV41: 2mm 0+0 | AW41: =CONCATENATE(BI41,BJ41,BK41,BL41,BM41,BN41," ",R41," ",Árajánlat!$B$1469," ",$B$3,"_",Árajánlat!$B$1470) -> Név_30031 | AZ41: 0 | BA41: 0 | BB41: 0 | BC41: 0 | BD41: 0 | BE41: 0 | BF41: 0 | BG41: 0 | BH41: 0
A42: 008 | E42: 0 | H42: 0 | I42: 0 | L42: 0 | M42: 0 | P42: 0 | Q42: 0 | T42: 0 | U42: 0 | W42: 0 | X42: 0 | Z42: 0 | AA42: 0 | AN42: 0 | AO42: 0 | AP42: 0 | AQ42: 0 | AR42: 0 | AS42: 0 | AT42: 04mm 0+0 | AU42: 1mm 0+0 | AV42: 2mm 0+0 | AW42: =CONCATENATE(BI42,BJ42,BK42,BL42,BM42,BN42," ",R42," ",Árajánlat!$B$1469," ",$B$3,"_",Árajánlat!$B$1470) -> Név_30031 | AZ42: 0 | BA42: 0 | BB42: 0 | BC42: 0 | BD42: 0 | BE42: 0 | BF42: 0 | BG42: 0 | BH42: 0
A43: 009 | E43: 0 | H43: 0 | I43: 0 | L43: 0 | M43: 0 | P43: 0 | Q43: 0 | T43: 0 | U43: 0 | W43: 0 | X43: 0 | Z43: 0 | AA43: 0 | AN43: 0 | AO43: 0 | AP43: 0 | AQ43: 0 | AR43: 0 | AS43: 0 | AT43: 04mm 0+0 | AU43: 1mm 0+0 | AV43: 2mm 0+0 | AW43: =CONCATENATE(BI43,BJ43,BK43,BL43,BM43,BN43," ",R43," ",Árajánlat!$B$1469," ",$B$3,"_",Árajánlat!$B$1470) -> Név_30031 | AZ43: 0 | BA43: 0 | BB43: 0 | BC43: 0 | BD43: 0 | BE43: 0 | BF43: 0 | BG43: 0 | BH43: 0
A44: 010 | E44: 0 | H44: 0 | I44: 0 | L44: 0 | M44: 0 | P44: 0 | Q44: 0 | T44: 0 | U44: 0 | W44: 0 | X44: 0 | Z44: 0 | AA44: 0 | AN44: 0 | AO44: 0 | AP44: 0 | AQ44: 0 | AR44: 0 | AS44: 0 | AT44: 04mm 0+0 | AU44: 1mm 0+0 | AV44: 2mm 0+0 | AW44: =CONCATENATE(BI44,BJ44,BK44,BL44,BM44,BN44," ",R44," ",Árajánlat!$B$1469," ",$B$3,"_",Árajánlat!$B$1470) -> Név_30031 | AZ44: 0 | BA44: 0 | BB44: 0 | BC44: 0 | BD44: 0 | BE44: 0 | BF44: 0 | BG44: 0 | BH44: 0
A45: 011 | E45: 0 | H45: 0 | I45: 0 | L45: 0 | M45: 0 | P45: 0 | Q45: 0 | T45: 0 | U45: 0 | W45: 0 | X45: 0 | Z45: 0 | AA45: 0 | AN45: 0 | AO45: 0 | AP45: 0 | AQ45: 0 | AR45: 0 | AS45: 0 | AT45: 04mm 0+0 | AU45: 1mm 0+0 | AV45: 2mm 0+0 | AW45: =CONCATENATE(BI45,BJ45,BK45,BL45,BM45,BN45," ",R45," ",Árajánlat!$B$1469," ",$B$3,"_",Árajánlat!$B$1470) -> Név_30031 | AZ45: 0 | BA45: 0 | BB45: 0 | BC45: 0 | BD45: 0 | BE45: 0 | BF45: 0 | BG45: 0 | BH45: 0
A46: 012 | E46: 0 | H46: 0 | I46: 0 | L46: 0 | M46: 0 | P46: 0 | Q46: 0 | T46: 0 | U46: 0 | W46: 0 | X46: 0 | Z46: 0 | AA46: 0 | AN46: 0 | AO46: 0 | AP46: 0 | AQ46: 0 | AR46: 0 | AS46: 0 | AT46: 04mm 0+0 | AU46: 1mm 0+0 | AV46: 2mm 0+0 | AW46: =CONCATENATE(BI46,BJ46,BK46,BL46,BM46,BN46," ",R46," ",Árajánlat!$B$1469," ",$B$3,"_",Árajánlat!$B$1470) -> Név_30031 | AZ46: 0 | BA46: 0 | BB46: 0 | BC46: 0 | BD46: 0 | BE46: 0 | BF46: 0 | BG46: 0 | BH46: 0
A47: 013 | E47: 0 | H47: 0 | I47: 0 | L47: 0 | M47: 0 | P47: 0 | Q47: 0 | T47: 0 | U47: 0 | W47: 0 | X47: 0 | Z47: 0 | AA47: 0 | AN47: 0 | AO47: 0 | AP47: 0 | AQ47: 0 | AR47: 0 | AS47: 0 | AT47: 04mm 0+0 | AU47: 1mm 0+0 | AV47: 2mm 0+0 | AW47: =CONCATENATE(BI47,BJ47,BK47,BL47,BM47,BN47," ",R47," ",Árajánlat!$B$1469," ",$B$3,"_",Árajánlat!$B$1470) -> Név_30031 | AZ47: 0 | BA47: 0 | BB47: 0 | BC47: 0 | BD47: 0 | BE47: 0 | BF47: 0 | BG47: 0 | BH47: 0
A48: 014 | E48: 0 | H48: 0 | I48: 0 | L48: 0 | M48: 0 | P48: 0 | Q48: 0 | T48: 0 | U48: 0 | W48: 0 | X48: 0 | Z48: 0 | AA48: 0 | AN48: 0 | AO48: 0 | AP48: 0 | AQ48: 0 | AR48: 0 | AS48: 0 | AT48: 04mm 0+0 | AU48: 1mm 0+0 | AV48: 2mm 0+0 | AW48: =CONCATENATE(BI48,BJ48,BK48,BL48,BM48,BN48," ",R48," ",Árajánlat!$B$1469," ",$B$3,"_",Árajánlat!$B$1470) -> Név_30031 | AZ48: 0 | BA48: 0 | BB48: 0 | BC48: 0 | BD48: 0 | BE48: 0 | BF48: 0 | BG48: 0 | BH48: 0
A49: 015 | E49: 0 | H49: 0 | I49: 0 | L49: 0 | M49: 0 | P49: 0 | Q49: 0 | T49: 0 | U49: 0 | W49: 0 | X49: 0 | Z49: 0 | AA49: 0 | AN49: 0 | AO49: 0 | AP49: 0 | AQ49: 0 | AR49: 0 | AS49: 0 | AT49: 04mm 0+0 | AU49: 1mm 0+0 | AV49: 2mm 0+0 | AW49: =CONCATENATE(BI49,BJ49,BK49,BL49,BM49,BN49," ",R49," ",Árajánlat!$B$1469," ",$B$3,"_",Árajánlat!$B$1470) -> Név_30031 | AZ49: 0 | BA49: 0 | BB49: 0 | BC49: 0 | BD49: 0 | BE49: 0 | BF49: 0 | BG49: 0 | BH49: 0
A50: 016 | E50: 0 | H50: 0 | I50: 0 | L50: 0 | M50: 0 | P50: 0 | Q50: 0 | T50: 0 | U50: 0 | W50: 0 | X50: 0 | Z50: 0 | AA50: 0 | AN50: 0 | AO50: 0 | AP50: 0 | AQ50: 0 | AR50: 0 | AS50: 0 | AT50: 04mm 0+0 | AU50: 1mm 0+0 | AV50: 2mm 0+0 | AW50: =CONCATENATE(BI50,BJ50,BK50,BL50,BM50,BN50," ",R50," ",Árajánlat!$B$1469," ",$B$3,"_",Árajánlat!$B$1470) -> Név_30031 | AZ50: 0 | BA50: 0 | BB50: 0 | BC50: 0 | BD50: 0 | BE50: 0 | BF50: 0 | BG50: 0 | BH50: 0
A51: 017 | E51: 0 | H51: 0 | I51: 0 | L51: 0 | M51: 0 | P51: 0 | Q51: 0 | T51: 0 | U51: 0 | W51: 0 | X51: 0 | Z51: 0 | AA51: 0 | AN51: 0 | AO51: 0 | AP51: 0 | AQ51: 0 | AR51: 0 | AS51: 0 | AT51: 04mm 0+0 | AU51: 1mm 0+0 | AV51: 2mm 0+0 | AW51: =CONCATENATE(BI51,BJ51,BK51,BL51,BM51,BN51," ",R51," ",Árajánlat!$B$1469," ",$B$3,"_",Árajánlat!$B$1470) -> Név_30031 | AZ51: 0 | BA51: 0 | BB51: 0 | BC51: 0 | BD51: 0 | BE51: 0 | BF51: 0 | BG51: 0 | BH51: 0
A52: 018 | E52: 0 | H52: 0 | I52: 0 | L52: 0 | M52: 0 | P52: 0 | Q52: 0 | T52: 0 | U52: 0 | W52: 0 | X52: 0 | Z52: 0 | AA52: 0 | AN52: 0 | AO52: 0 | AP52: 0 | AQ52: 0 | AR52: 0 | AS52: 0 | AT52: 04mm 0+0 | AU52: 1mm 0+0 | AV52: 2mm 0+0 | AW52: =CONCATENATE(BI52,BJ52,BK52,BL52,BM52,BN52," ",R52," ",Árajánlat!$B$1469," ",$B$3,"_",Árajánlat!$B$1470) -> Név_30031 | AZ52: 0 | BA52: 0 | BB52: 0 | BC52: 0 | BD52: 0 | BE52: 0 | BF52: 0 | BG52: 0 | BH52: 0
A53: 019 | E53: 0 | H53: 0 | I53: 0 | L53: 0 | M53: 0 | P53: 0 | Q53: 0 | T53: 0 | U53: 0 | W53: 0 | X53: 0 | Z53: 0 | AA53: 0 | AN53: 0 | AO53: 0 | AP53: 0 | AQ53: 0 | AR53: 0 | AS53: 0 | AT53: 04mm 0+0 | AU53: 1mm 0+0 | AV53: 2mm 0+0 | AW53: =CONCATENATE(BI53,BJ53,BK53,BL53,BM53,BN53," ",R53," ",Árajánlat!$B$1469," ",$B$3,"_",Árajánlat!$B$1470) -> Név_30031 | AZ53: 0 | BA53: 0 | BB53: 0 | BC53: 0 | BD53: 0 | BE53: 0 | BF53: 0 | BG53: 0 | BH53: 0
A54: 020 | E54: 0 | H54: 0 | I54: 0 | L54: 0 | M54: 0 | P54: 0 | Q54: 0 | T54: 0 | U54: 0 | W54: 0 | X54: 0 | Z54: 0 | AA54: 0 | AN54: 0 | AO54: 0 | AP54: 0 | AQ54: 0 | AR54: 0 | AS54: 0 | AT54: 04mm 0+0 | AU54: 1mm 0+0 | AV54: 2mm 0+0 | AW54: =CONCATENATE(BI54,BJ54,BK54,BL54,BM54,BN54," ",R54," ",Árajánlat!$B$1469," ",$B$3,"_",Árajánlat!$B$1470) -> Név_30031 | AZ54: 0 | BA54: 0 | BB54: 0 | BC54: 0 | BD54: 0 | BE54: 0 | BF54: 0 | BG54: 0 | BH54: 0
A55: 021 | E55: 0 | H55: 0 | I55: 0 | L55: 0 | M55: 0 | P55: 0 | Q55: 0 | T55: 0 | U55: 0 | W55: 0 | X55: 0 | Z55: 0 | AA55: 0 | AN55: 0 | AO55: 0 | AP55: 0 | AQ55: 0 | AR55: 0 | AS55: 0 | AT55: 04mm 0+0 | AU55: 1mm 0+0 | AV55: 2mm 0+0 | AW55: =CONCATENATE(BI55,BJ55,BK55,BL55,BM55,BN55," ",R55," ",Árajánlat!$B$1469," ",$B$3,"_",Árajánlat!$B$1470) -> Név_30031 | AZ55: 0 | BA55: 0 | BB55: 0 | BC55: 0 | BD55: 0 | BE55: 0 | BF55: 0 | BG55: 0 | BH55: 0
A56: 022 | E56: 0 | H56: 0 | I56: 0 | L56: 0 | M56: 0 | P56: 0 | Q56: 0 | T56: 0 | U56: 0 | W56: 0 | X56: 0 | Z56: 0 | AA56: 0 | AN56: 0 | AO56: 0 | AP56: 0 | AQ56: 0 | AR56: 0 | AS56: 0 | AT56: 04mm 0+0 | AU56: 1mm 0+0 | AV56: 2mm 0+0 | AW56: =CONCATENATE(BI56,BJ56,BK56,BL56,BM56,BN56," ",R56," ",Árajánlat!$B$1469," ",$B$3,"_",Árajánlat!$B$1470) -> Név_30031 | AZ56: 0 | BA56: 0 | BB56: 0 | BC56: 0 | BD56: 0 | BE56: 0 | BF56: 0 | BG56: 0 | BH56: 0
A57: 023 | E57: 0 | H57: 0 | I57: 0 | L57: 0 | M57: 0 | P57: 0 | Q57: 0 | T57: 0 | U57: 0 | W57: 0 | X57: 0 | Z57: 0 | AA57: 0 | AN57: 0 | AO57: 0 | AP57: 0 | AQ57: 0 | AR57: 0 | AS57: 0 | AT57: 04mm 0+0 | AU57: 1mm 0+0 | AV57: 2mm 0+0 | AW57: =CONCATENATE(BI57,BJ57,BK57,BL57,BM57,BN57," ",R57," ",Árajánlat!$B$1469," ",$B$3,"_",Árajánlat!$B$1470) -> Név_30031 | AZ57: 0 | BA57: 0 | BB57: 0 | BC57: 0 | BD57: 0 | BE57: 0 | BF57: 0 | BG57: 0 | BH57: 0
A58: 024 | E58: 0 | H58: 0 | I58: 0 | L58: 0 | M58: 0 | P58: 0 | Q58: 0 | T58: 0 | U58: 0 | W58: 0 | X58: 0 | Z58: 0 | AA58: 0 | AN58: 0 | AO58: 0 | AP58: 0 | AQ58: 0 | AR58: 0 | AS58: 0 | AT58: 04mm 0+0 | AU58: 1mm 0+0 | AV58: 2mm 0+0 | AW58: =CONCATENATE(BI58,BJ58,BK58,BL58,BM58,BN58," ",R58," ",Árajánlat!$B$1469," ",$B$3,"_",Árajánlat!$B$1470) -> Név_30031 | AZ58: 0 | BA58: 0 | BB58: 0 | BC58: 0 | BD58: 0 | BE58: 0 | BF58: 0 | BG58: 0 | BH58: 0
A59: 025 | E59: 0 | H59: 0 | I59: 0 | L59: 0 | M59: 0 | P59: 0 | Q59: 0 | T59: 0 | U59: 0 | W59: 0 | X59: 0 | Z59: 0 | AA59: 0 | AN59: 0 | AO59: 0 | AP59: 0 | AQ59: 0 | AR59: 0 | AS59: 0 | AT59: 04mm 0+0 | AU59: 1mm 0+0 | AV59: 2mm 0+0 | AW59: =CONCATENATE(BI59,BJ59,BK59,BL59,BM59,BN59," ",R59," ",Árajánlat!$B$1469," ",$B$3,"_",Árajánlat!$B$1470) -> Név_30031 | AZ59: 0 | BA59: 0 | BB59: 0 | BC59: 0 | BD59: 0 | BE59: 0 | BF59: 0 | BG59: 0 | BH59: 0
A60: 026 | E60: 0 | H60: 0 | I60: 0 | L60: 0 | M60: 0 | P60: 0 | Q60: 0 | T60: 0 | U60: 0 | W60: 0 | X60: 0 | Z60: 0 | AA60: 0 | AN60: 0 | AO60: 0 | AP60: 0 | AQ60: 0 | AR60: 0 | AS60: 0 | AT60: 04mm 0+0 | AU60: 1mm 0+0 | AV60: 2mm 0+0 | AW60: =CONCATENATE(BI60,BJ60,BK60,BL60,BM60,BN60," ",R60," ",Árajánlat!$B$1469," ",$B$3,"_",Árajánlat!$B$1470) -> Név_30031 | AZ60: 0 | BA60: 0 | BB60: 0 | BC60: 0 | BD60: 0 | BE60: 0 | BF60: 0 | BG60: 0 | BH60: 0
A61: 027 | E61: 0 | H61: 0 | I61: 0 | L61: 0 | M61: 0 | P61: 0 | Q61: 0 | T61: 0 | U61: 0 | W61: 0 | X61: 0 | Z61: 0 | AA61: 0 | AN61: 0 | AO61: 0 | AP61: 0 | AQ61: 0 | AR61: 0 | AS61: 0 | AT61: 04mm 0+0 | AU61: 1mm 0+0 | AV61: 2mm 0+0 | AW61: =CONCATENATE(BI61,BJ61,BK61,BL61,BM61,BN61," ",R61," ",Árajánlat!$B$1469," ",$B$3,"_",Árajánlat!$B$1470) -> Név_30031 | AZ61: 0 | BA61: 0 | BB61: 0 | BC61: 0 | BD61: 0 | BE61: 0 | BF61: 0 | BG61: 0 | BH61: 0
A62: 028 | E62: 0 | H62: 0 | I62: 0 | L62: 0 | M62: 0 | P62: 0 | Q62: 0 | T62: 0 | U62: 0 | W62: 0 | X62: 0 | Z62: 0 | AA62: 0 | AN62: 0 | AO62: 0 | AP62: 0 | AQ62: 0 | AR62: 0 | AS62: 0 | AT62: 04mm 0+0 | AU62: 1mm 0+0 | AV62: 2mm 0+0 | AW62: =CONCATENATE(BI62,BJ62,BK62,BL62,BM62,BN62," ",R62," ",Árajánlat!$B$1469," ",$B$3,"_",Árajánlat!$B$1470) -> Név_30031 | AZ62: 0 | BA62: 0 | BB62: 0 | BC62: 0 | BD62: 0 | BE62: 0 | BF62: 0 | BG62: 0 | BH62: 0
A63: 029 | E63: 0 | H63: 0 | I63: 0 | L63: 0 | M63: 0 | P63: 0 | Q63: 0 | T63: 0 | U63: 0 | W63: 0 | X63: 0 | Z63: 0 | AA63: 0 | AN63: 0 | AO63: 0 | AP63: 0 | AQ63: 0 | AR63: 0 | AS63: 0 | AT63: 04mm 0+0 | AU63: 1mm 0+0 | AV63: 2mm 0+0 | AW63: =CONCATENATE(BI63,BJ63,BK63,BL63,BM63,BN63," ",R63," ",Árajánlat!$B$1469," ",$B$3,"_",Árajánlat!$B$1470) -> Név_30031 | AZ63: 0 | BA63: 0 | BB63: 0 | BC63: 0 | BD63: 0 | BE63: 0 | BF63: 0 | BG63: 0 | BH63: 0
A64: 030 | E64: 0 | H64: 0 | I64: 0 | L64: 0 | M64: 0 | P64: 0 | Q64: 0 | T64: 0 | U64: 0 | W64: 0 | X64: 0 | Z64: 0 | AA64: 0 | AN64: 0 | AO64: 0 | AP64: 0 | AQ64: 0 | AR64: 0 | AS64: 0 | AT64: 04mm 0+0 | AU64: 1mm 0+0 | AV64: 2mm 0+0 | AW64: =CONCATENATE(BI64,BJ64,BK64,BL64,BM64,BN64," ",R64," ",Árajánlat!$B$1469," ",$B$3,"_",Árajánlat!$B$1470) -> Név_30031 | AZ64: 0 | BA64: 0 | BB64: 0 | BC64: 0 | BD64: 0 | BE64: 0 | BF64: 0 | BG64: 0 | BH64: 0
A65: 031 | E65: 0 | H65: 0 | I65: 0 | L65: 0 | M65: 0 | P65: 0 | Q65: 0 | T65: 0 | U65: 0 | W65: 0 | X65: 0 | Z65: 0 | AA65: 0 | AN65: 0 | AO65: 0 | AP65: 0 | AQ65: 0 | AR65: 0 | AS65: 0 | AT65: 04mm 0+0 | AU65: 1mm 0+0 | AV65: 2mm 0+0 | AW65: =CONCATENATE(BI65,BJ65,BK65,BL65,BM65,BN65," ",R65," ",Árajánlat!$B$1469," ",$B$3,"_",Árajánlat!$B$1470) -> Név_30031 | AZ65: 0 | BA65: 0 | BB65: 0 | BC65: 0 | BD65: 0 | BE65: 0 | BF65: 0 | BG65: 0 | BH65: 0
A66: 032 | E66: 0 | H66: 0 | I66: 0 | L66: 0 | M66: 0 | P66: 0 | Q66: 0 | T66: 0 | U66: 0 | W66: 0 | X66: 0 | Z66: 0 | AA66: 0 | AN66: 0 | AO66: 0 | AP66: 0 | AQ66: 0 | AR66: 0 | AS66: 0 | AT66: 04mm 0+0 | AU66: 1mm 0+0 | AV66: 2mm 0+0 | AW66: =CONCATENATE(BI66,BJ66,BK66,BL66,BM66,BN66," ",R66," ",Árajánlat!$B$1469," ",$B$3,"_",Árajánlat!$B$1470) -> Név_30031 | AZ66: 0 | BA66: 0 | BB66: 0 | BC66: 0 | BD66: 0 | BE66: 0 | BF66: 0 | BG66: 0 | BH66: 0
A67: 033 | E67: =((B67*C67)*D67)/1000000 -> 0 | H67: =(F67+G67)*$D67 -> 0 | I67: =(($B67*$D67*F67)+($C67*$D67*G67))/1000 -> 0 | L67: =(J67+K67)*$D67 -> 0 | M67: =(($B67*$D67*J67)+($C67*$D67*K67))/1000 -> 0 | P67: =(N67+O67)*$D67 -> 0 | Q67: =(($B67*$D67*N67)+($C67*$D67*O67))/1000 -> 0 | T67: =IF(S67=0,0,$D67) -> 0 | U67: =$D67*S67 -> 0 | W67: =IF(V67=0,0,$D67) -> 0 | X67: =$D67*V67 -> 0 | Z67: =IF(Y67=0,0,$D67) -> 0 | AA67: =$D67*Y67 -> 0 | AN67: =AB67*$D67 -> 0 | AO67: =AD67*$D67 -> 0 | AP67: =(($B67*$D67*AF67)+($C67*$D67*AG67))/1000 -> 0 | AQ67: =COUNTA(AH67)*$D67 -> 0 | AR67: =COUNTA(AJ67)*$D67 -> 0 | AS67: =($AL67*$D67)+($AM67*$D67) -> 0 | AT67: 04mm 0+0 | AU67: 1mm 0+0 | AV67: =CONCATENATE("2mm ",BD67,"+",BE67, " ") -> 2mm 0+0 | AW67: =CONCATENATE(BI67,BJ67,BK67,BL67,BM67,BN67," ",R67," ",Árajánlat!$B$1469," ",$B$3,"_",Árajánlat!$B$1470) -> Név_30031 | AZ67: =F67 -> 0 | BA67: =G67 -> 0 | BB67: =J67 -> 0 | BC67: =K67 -> 0 | BD67: =N67 -> 0 | BE67: =O67 -> 0 | BF67: =AZ67+BA67 -> 0 | BG67: =BC67+BB67 -> 0 | BH67: =BE67+BD67 -> 0 | BI67: =IF(BF67=0,"",AT67) ->  | BJ67: =IF(BG67=0,"",AU67) ->  | BK67: =IF(BH67=0,"",AV67) -> 
A68: 034 | E68: 0 | H68: 0 | I68: 0 | L68: 0 | M68: 0 | P68: 0 | Q68: 0 | T68: 0 | U68: 0 | W68: 0 | X68: 0 | Z68: 0 | AA68: 0 | AN68: 0 | AO68: 0 | AP68: 0 | AQ68: 0 | AR68: 0 | AS68: 0 | AT68: 04mm 0+0 | AU68: 1mm 0+0 | AV68: 2mm 0+0 | AW68: =CONCATENATE(BI68,BJ68,BK68,BL68,BM68,BN68," ",R68," ",Árajánlat!$B$1469," ",$B$3,"_",Árajánlat!$B$1470) -> Név_30031 | AZ68: 0 | BA68: 0 | BB68: 0 | BC68: 0 | BD68: 0 | BE68: 0 | BF68: 0 | BG68: 0 | BH68: 0
A69: 035 | E69: 0 | H69: 0 | I69: 0 | L69: 0 | M69: 0 | P69: 0 | Q69: 0 | T69: 0 | U69: 0 | W69: 0 | X69: 0 | Z69: 0 | AA69: 0 | AN69: 0 | AO69: 0 | AP69: 0 | AQ69: 0 | AR69: 0 | AS69: 0 | AT69: 04mm 0+0 | AU69: 1mm 0+0 | AV69: 2mm 0+0 | AW69: =CONCATENATE(BI69,BJ69,BK69,BL69,BM69,BN69," ",R69," ",Árajánlat!$B$1469," ",$B$3,"_",Árajánlat!$B$1470) -> Név_30031 | AZ69: 0 | BA69: 0 | BB69: 0 | BC69: 0 | BD69: 0 | BE69: 0 | BF69: 0 | BG69: 0 | BH69: 0
A70: 036 | E70: 0 | H70: 0 | I70: 0 | L70: 0 | M70: 0 | P70: 0 | Q70: 0 | T70: 0 | U70: 0 | W70: 0 | X70: 0 | Z70: 0 | AA70: 0 | AN70: 0 | AO70: 0 | AP70: 0 | AQ70: 0 | AR70: 0 | AS70: 0 | AT70: 04mm 0+0 | AU70: 1mm 0+0 | AV70: 2mm 0+0 | AW70: =CONCATENATE(BI70,BJ70,BK70,BL70,BM70,BN70," ",R70," ",Árajánlat!$B$1469," ",$B$3,"_",Árajánlat!$B$1470) -> Név_30031 | AZ70: 0 | BA70: 0 | BB70: 0 | BC70: 0 | BD70: 0 | BE70: 0 | BF70: 0 | BG70: 0 | BH70: 0
A71: 037 | E71: 0 | H71: 0 | I71: 0 | L71: 0 | M71: 0 | P71: 0 | Q71: 0 | T71: 0 | U71: 0 | W71: 0 | X71: 0 | Z71: 0 | AA71: 0 | AN71: 0 | AO71: 0 | AP71: 0 | AQ71: 0 | AR71: 0 | AS71: 0 | AT71: 04mm 0+0 | AU71: 1mm 0+0 | AV71: 2mm 0+0 | AW71: =CONCATENATE(BI71,BJ71,BK71,BL71,BM71,BN71," ",R71," ",Árajánlat!$B$1469," ",$B$3,"_",Árajánlat!$B$1470) -> Név_30031 | AZ71: 0 | BA71: 0 | BB71: 0 | BC71: 0 | BD71: 0 | BE71: 0 | BF71: 0 | BG71: 0 | BH71: 0
A72: 038 | E72: 0 | H72: 0 | I72: 0 | L72: 0 | M72: 0 | P72: 0 | Q72: 0 | T72: 0 | U72: 0 | W72: 0 | X72: 0 | Z72: 0 | AA72: 0 | AN72: 0 | AO72: 0 | AP72: 0 | AQ72: 0 | AR72: 0 | AS72: 0 | AT72: 04mm 0+0 | AU72: 1mm 0+0 | AV72: 2mm 0+0 | AW72: =CONCATENATE(BI72,BJ72,BK72,BL72,BM72,BN72," ",R72," ",Árajánlat!$B$1469," ",$B$3,"_",Árajánlat!$B$1470) -> Név_30031 | AZ72: 0 | BA72: 0 | BB72: 0 | BC72: 0 | BD72: 0 | BE72: 0 | BF72: 0 | BG72: 0 | BH72: 0
A73: 039 | E73: 0 | H73: 0 | I73: 0 | L73: 0 | M73: 0 | P73: 0 | Q73: 0 | T73: 0 | U73: 0 | W73: 0 | X73: 0 | Z73: 0 | AA73: 0 | AN73: 0 | AO73: 0 | AP73: 0 | AQ73: 0 | AR73: 0 | AS73: 0 | AT73: 04mm 0+0 | AU73: 1mm 0+0 | AV73: 2mm 0+0 | AW73: =CONCATENATE(BI73,BJ73,BK73,BL73,BM73,BN73," ",R73," ",Árajánlat!$B$1469," ",$B$3,"_",Árajánlat!$B$1470) -> Név_30031 | AZ73: 0 | BA73: 0 | BB73: 0 | BC73: 0 | BD73: 0 | BE73: 0 | BF73: 0 | BG73: 0 | BH73: 0
A74: 040 | E74: 0 | H74: 0 | I74: 0 | L74: 0 | M74: 0 | P74: 0 | Q74: 0 | T74: 0 | U74: 0 | W74: 0 | X74: 0 | Z74: 0 | AA74: 0 | AN74: 0 | AO74: 0 | AP74: 0 | AQ74: 0 | AR74: 0 | AS74: 0 | AT74: 04mm 0+0 | AU74: 1mm 0+0 | AV74: 2mm 0+0 | AW74: =CONCATENATE(BI74,BJ74,BK74,BL74,BM74,BN74," ",R74," ",Árajánlat!$B$1469," ",$B$3,"_",Árajánlat!$B$1470) -> Név_30031 | AZ74: 0 | BA74: 0 | BB74: 0 | BC74: 0 | BD74: 0 | BE74: 0 | BF74: 0 | BG74: 0 | BH74: 0
A75: 041 | E75: 0 | H75: 0 | I75: 0 | L75: 0 | M75: 0 | P75: 0 | Q75: 0 | T75: 0 | U75: 0 | W75: 0 | X75: 0 | Z75: 0 | AA75: 0 | AN75: 0 | AO75: 0 | AP75: 0 | AQ75: 0 | AR75: 0 | AS75: 0 | AT75: 04mm 0+0 | AU75: 1mm 0+0 | AV75: 2mm 0+0 | AW75: =CONCATENATE(BI75,BJ75,BK75,BL75,BM75,BN75," ",R75," ",Árajánlat!$B$1469," ",$B$3,"_",Árajánlat!$B$1470) -> Név_30031 | AZ75: 0 | BA75: 0 | BB75: 0 | BC75: 0 | BD75: 0 | BE75: 0 | BF75: 0 | BG75: 0 | BH75: 0
A76: 042 | E76: 0 | H76: 0 | I76: 0 | L76: 0 | M76: 0 | P76: 0 | Q76: 0 | T76: 0 | U76: 0 | W76: 0 | X76: 0 | Z76: 0 | AA76: 0 | AN76: 0 | AO76: 0 | AP76: 0 | AQ76: 0 | AR76: 0 | AS76: 0 | AT76: 04mm 0+0 | AU76: 1mm 0+0 | AV76: 2mm 0+0 | AW76: =CONCATENATE(BI76,BJ76,BK76,BL76,BM76,BN76," ",R76," ",Árajánlat!$B$1469," ",$B$3,"_",Árajánlat!$B$1470) -> Név_30031 | AZ76: 0 | BA76: 0 | BB76: 0 | BC76: 0 | BD76: 0 | BE76: 0 | BF76: 0 | BG76: 0 | BH76: 0
A77: 043 | E77: 0 | H77: 0 | I77: 0 | L77: 0 | M77: 0 | P77: 0 | Q77: 0 | T77: 0 | U77: 0 | W77: 0 | X77: 0 | Z77: 0 | AA77: 0 | AN77: 0 | AO77: 0 | AP77: 0 | AQ77: 0 | AR77: 0 | AS77: 0 | AT77: 04mm 0+0 | AU77: 1mm 0+0 | AV77: 2mm 0+0 | AW77: =CONCATENATE(BI77,BJ77,BK77,BL77,BM77,BN77," ",R77," ",Árajánlat!$B$1469," ",$B$3,"_",Árajánlat!$B$1470) -> Név_30031 | AZ77: 0 | BA77: 0 | BB77: 0 | BC77: 0 | BD77: 0 | BE77: 0 | BF77: 0 | BG77: 0 | BH77: 0
A78: 044 | E78: 0 | H78: 0 | I78: 0 | L78: 0 | M78: 0 | P78: 0 | Q78: 0 | T78: 0 | U78: 0 | W78: 0 | X78: 0 | Z78: 0 | AA78: 0 | AN78: 0 | AO78: 0 | AP78: 0 | AQ78: 0 | AR78: 0 | AS78: 0 | AT78: 04mm 0+0 | AU78: 1mm 0+0 | AV78: 2mm 0+0 | AW78: =CONCATENATE(BI78,BJ78,BK78,BL78,BM78,BN78," ",R78," ",Árajánlat!$B$1469," ",$B$3,"_",Árajánlat!$B$1470) -> Név_30031 | AZ78: 0 | BA78: 0 | BB78: 0 | BC78: 0 | BD78: 0 | BE78: 0 | BF78: 0 | BG78: 0 | BH78: 0
A79: 045 | E79: 0 | H79: 0 | I79: 0 | L79: 0 | M79: 0 | P79: 0 | Q79: 0 | T79: 0 | U79: 0 | W79: 0 | X79: 0 | Z79: 0 | AA79: 0 | AN79: 0 | AO79: 0 | AP79: 0 | AQ79: 0 | AR79: 0 | AS79: 0 | AT79: 04mm 0+0 | AU79: 1mm 0+0 | AV79: 2mm 0+0 | AW79: =CONCATENATE(BI79,BJ79,BK79,BL79,BM79,BN79," ",R79," ",Árajánlat!$B$1469," ",$B$3,"_",Árajánlat!$B$1470) -> Név_30031 | AZ79: 0 | BA79: 0 | BB79: 0 | BC79: 0 | BD79: 0 | BE79: 0 | BF79: 0 | BG79: 0 | BH79: 0
A80: 046 | E80: 0 | H80: 0 | I80: 0 | L80: 0 | M80: 0 | P80: 0 | Q80: 0 | T80: 0 | U80: 0 | W80: 0 | X80: 0 | Z80: 0 | AA80: 0 | AN80: 0 | AO80: 0 | AP80: 0 | AQ80: 0 | AR80: 0 | AS80: 0 | AT80: 04mm 0+0 | AU80: 1mm 0+0 | AV80: 2mm 0+0 | AW80: =CONCATENATE(BI80,BJ80,BK80,BL80,BM80,BN80," ",R80," ",Árajánlat!$B$1469," ",$B$3,"_",Árajánlat!$B$1470) -> Név_30031 | AZ80: 0 | BA80: 0 | BB80: 0 | BC80: 0 | BD80: 0 | BE80: 0 | BF80: 0 | BG80: 0 | BH80: 0
A81: 047 | E81: 0 | H81: 0 | I81: 0 | L81: 0 | M81: 0 | P81: 0 | Q81: 0 | T81: 0 | U81: 0 | W81: 0 | X81: 0 | Z81: 0 | AA81: 0 | AN81: 0 | AO81: 0 | AP81: 0 | AQ81: 0 | AR81: 0 | AS81: 0 | AT81: 04mm 0+0 | AU81: 1mm 0+0 | AV81: 2mm 0+0 | AW81: =CONCATENATE(BI81,BJ81,BK81,BL81,BM81,BN81," ",R81," ",Árajánlat!$B$1469," ",$B$3,"_",Árajánlat!$B$1470) -> Név_30031 | AZ81: 0 | BA81: 0 | BB81: 0 | BC81: 0 | BD81: 0 | BE81: 0 | BF81: 0 | BG81: 0 | BH81: 0
A82: 048 | E82: 0 | H82: 0 | I82: 0 | L82: 0 | M82: 0 | P82: 0 | Q82: 0 | T82: 0 | U82: 0 | W82: 0 | X82: 0 | Z82: 0 | AA82: 0 | AN82: 0 | AO82: 0 | AP82: 0 | AQ82: 0 | AR82: 0 | AS82: 0 | AT82: 04mm 0+0 | AU82: 1mm 0+0 | AV82: 2mm 0+0 | AW82: =CONCATENATE(BI82,BJ82,BK82,BL82,BM82,BN82," ",R82," ",Árajánlat!$B$1469," ",$B$3,"_",Árajánlat!$B$1470) -> Név_30031 | AZ82: 0 | BA82: 0 | BB82: 0 | BC82: 0 | BD82: 0 | BE82: 0 | BF82: 0 | BG82: 0 | BH82: 0
A83: 049 | E83: 0 | H83: 0 | I83: 0 | L83: 0 | M83: 0 | P83: 0 | Q83: 0 | T83: 0 | U83: 0 | W83: 0 | X83: 0 | Z83: 0 | AA83: 0 | AN83: 0 | AO83: 0 | AP83: 0 | AQ83: 0 | AR83: 0 | AS83: 0 | AT83: 04mm 0+0 | AU83: 1mm 0+0 | AV83: 2mm 0+0 | AW83: =CONCATENATE(BI83,BJ83,BK83,BL83,BM83,BN83," ",R83," ",Árajánlat!$B$1469," ",$B$3,"_",Árajánlat!$B$1470) -> Név_30031 | AZ83: 0 | BA83: 0 | BB83: 0 | BC83: 0 | BD83: 0 | BE83: 0 | BF83: 0 | BG83: 0 | BH83: 0
A84: 050 | E84: 0 | H84: 0 | I84: 0 | L84: 0 | M84: 0 | P84: 0 | Q84: 0 | T84: 0 | U84: 0 | W84: 0 | X84: 0 | Z84: 0 | AA84: 0 | AN84: 0 | AO84: 0 | AP84: 0 | AQ84: 0 | AR84: 0 | AS84: 0 | AT84: 04mm 0+0 | AU84: 1mm 0+0 | AV84: 2mm 0+0 | AW84: =CONCATENATE(BI84,BJ84,BK84,BL84,BM84,BN84," ",R84," ",Árajánlat!$B$1469," ",$B$3,"_",Árajánlat!$B$1470) -> Név_30031 | AZ84: 0 | BA84: 0 | BB84: 0 | BC84: 0 | BD84: 0 | BE84: 0 | BF84: 0 | BG84: 0 | BH84: 0
A85: 051 | E85: 0 | H85: 0 | I85: 0 | L85: 0 | M85: 0 | P85: 0 | Q85: 0 | T85: 0 | U85: 0 | W85: 0 | X85: 0 | Z85: 0 | AA85: 0 | AN85: 0 | AO85: 0 | AP85: 0 | AQ85: 0 | AR85: 0 | AS85: 0 | AT85: 04mm 0+0 | AU85: 1mm 0+0 | AV85: 2mm 0+0 | AW85: =CONCATENATE(BI85,BJ85,BK85,BL85,BM85,BN85," ",R85," ",Árajánlat!$B$1469," ",$B$3,"_",Árajánlat!$B$1470) -> Név_30031 | AZ85: 0 | BA85: 0 | BB85: 0 | BC85: 0 | BD85: 0 | BE85: 0 | BF85: 0 | BG85: 0 | BH85: 0
A86: 052 | E86: 0 | H86: 0 | I86: 0 | L86: 0 | M86: 0 | P86: 0 | Q86: 0 | T86: 0 | U86: 0 | W86: 0 | X86: 0 | Z86: 0 | AA86: 0 | AN86: 0 | AO86: 0 | AP86: 0 | AQ86: 0 | AR86: 0 | AS86: 0 | AT86: 04mm 0+0 | AU86: 1mm 0+0 | AV86: 2mm 0+0 | AW86: =CONCATENATE(BI86,BJ86,BK86,BL86,BM86,BN86," ",R86," ",Árajánlat!$B$1469," ",$B$3,"_",Árajánlat!$B$1470) -> Név_30031 | AZ86: 0 | BA86: 0 | BB86: 0 | BC86: 0 | BD86: 0 | BE86: 0 | BF86: 0 | BG86: 0 | BH86: 0
A87: 053 | E87: 0 | H87: 0 | I87: 0 | L87: 0 | M87: 0 | P87: 0 | Q87: 0 | T87: 0 | U87: 0 | W87: 0 | X87: 0 | Z87: 0 | AA87: 0 | AN87: 0 | AO87: 0 | AP87: 0 | AQ87: 0 | AR87: 0 | AS87: 0 | AT87: 04mm 0+0 | AU87: 1mm 0+0 | AV87: 2mm 0+0 | AW87: =CONCATENATE(BI87,BJ87,BK87,BL87,BM87,BN87," ",R87," ",Árajánlat!$B$1469," ",$B$3,"_",Árajánlat!$B$1470) -> Név_30031 | AZ87: 0 | BA87: 0 | BB87: 0 | BC87: 0 | BD87: 0 | BE87: 0 | BF87: 0 | BG87: 0 | BH87: 0
A88: 054 | E88: 0 | H88: 0 | I88: 0 | L88: 0 | M88: 0 | P88: 0 | Q88: 0 | T88: 0 | U88: 0 | W88: 0 | X88: 0 | Z88: 0 | AA88: 0 | AN88: 0 | AO88: 0 | AP88: 0 | AQ88: 0 | AR88: 0 | AS88: 0 | AT88: 04mm 0+0 | AU88: 1mm 0+0 | AV88: 2mm 0+0 | AW88: =CONCATENATE(BI88,BJ88,BK88,BL88,BM88,BN88," ",R88," ",Árajánlat!$B$1469," ",$B$3,"_",Árajánlat!$B$1470) -> Név_30031 | AZ88: 0 | BA88: 0 | BB88: 0 | BC88: 0 | BD88: 0 | BE88: 0 | BF88: 0 | BG88: 0 | BH88: 0
A89: 055 | E89: 0 | H89: 0 | I89: 0 | L89: 0 | M89: 0 | P89: 0 | Q89: 0 | T89: 0 | U89: 0 | W89: 0 | X89: 0 | Z89: 0 | AA89: 0 | AN89: 0 | AO89: 0 | AP89: 0 | AQ89: 0 | AR89: 0 | AS89: 0 | AT89: 04mm 0+0 | AU89: 1mm 0+0 | AV89: 2mm 0+0 | AW89: =CONCATENATE(BI89,BJ89,BK89,BL89,BM89,BN89," ",R89," ",Árajánlat!$B$1469," ",$B$3,"_",Árajánlat!$B$1470) -> Név_30031 | AZ89: 0 | BA89: 0 | BB89: 0 | BC89: 0 | BD89: 0 | BE89: 0 | BF89: 0 | BG89: 0 | BH89: 0
A90: 056 | E90: 0 | H90: 0 | I90: 0 | L90: 0 | M90: 0 | P90: 0 | Q90: 0 | T90: 0 | U90: 0 | W90: 0 | X90: 0 | Z90: 0 | AA90: 0 | AN90: 0 | AO90: 0 | AP90: 0 | AQ90: 0 | AR90: 0 | AS90: 0 | AT90: 04mm 0+0 | AU90: 1mm 0+0 | AV90: 2mm 0+0 | AW90: =CONCATENATE(BI90,BJ90,BK90,BL90,BM90,BN90," ",R90," ",Árajánlat!$B$1469," ",$B$3,"_",Árajánlat!$B$1470) -> Név_30031 | AZ90: 0 | BA90: 0 | BB90: 0 | BC90: 0 | BD90: 0 | BE90: 0 | BF90: 0 | BG90: 0 | BH90: 0
A91: 057 | E91: 0 | H91: 0 | I91: 0 | L91: 0 | M91: 0 | P91: 0 | Q91: 0 | T91: 0 | U91: 0 | W91: 0 | X91: 0 | Z91: 0 | AA91: 0 | AN91: 0 | AO91: 0 | AP91: 0 | AQ91: 0 | AR91: 0 | AS91: 0 | AT91: 04mm 0+0 | AU91: 1mm 0+0 | AV91: 2mm 0+0 | AW91: =CONCATENATE(BI91,BJ91,BK91,BL91,BM91,BN91," ",R91," ",Árajánlat!$B$1469," ",$B$3,"_",Árajánlat!$B$1470) -> Név_30031 | AZ91: 0 | BA91: 0 | BB91: 0 | BC91: 0 | BD91: 0 | BE91: 0 | BF91: 0 | BG91: 0 | BH91: 0
A92: 058 | E92: 0 | H92: 0 | I92: 0 | L92: 0 | M92: 0 | P92: 0 | Q92: 0 | T92: 0 | U92: 0 | W92: 0 | X92: 0 | Z92: 0 | AA92: 0 | AN92: 0 | AO92: 0 | AP92: 0 | AQ92: 0 | AR92: 0 | AS92: 0 | AT92: 04mm 0+0 | AU92: 1mm 0+0 | AV92: 2mm 0+0 | AW92: =CONCATENATE(BI92,BJ92,BK92,BL92,BM92,BN92," ",R92," ",Árajánlat!$B$1469," ",$B$3,"_",Árajánlat!$B$1470) -> Név_30031 | AZ92: 0 | BA92: 0 | BB92: 0 | BC92: 0 | BD92: 0 | BE92: 0 | BF92: 0 | BG92: 0 | BH92: 0
A93: 059 | E93: 0 | H93: 0 | I93: 0 | L93: 0 | M93: 0 | P93: 0 | Q93: 0 | T93: 0 | U93: 0 | W93: 0 | X93: 0 | Z93: 0 | AA93: 0 | AN93: 0 | AO93: 0 | AP93: 0 | AQ93: 0 | AR93: 0 | AS93: 0 | AT93: 04mm 0+0 | AU93: 1mm 0+0 | AV93: 2mm 0+0 | AW93: =CONCATENATE(BI93,BJ93,BK93,BL93,BM93,BN93," ",R93," ",Árajánlat!$B$1469," ",$B$3,"_",Árajánlat!$B$1470) -> Név_30031 | AZ93: 0 | BA93: 0 | BB93: 0 | BC93: 0 | BD93: 0 | BE93: 0 | BF93: 0 | BG93: 0 | BH93: 0
A94: 060 | E94: 0 | H94: 0 | I94: 0 | L94: 0 | M94: 0 | P94: 0 | Q94: 0 | T94: 0 | U94: 0 | W94: 0 | X94: 0 | Z94: 0 | AA94: 0 | AN94: 0 | AO94: 0 | AP94: 0 | AQ94: 0 | AR94: 0 | AS94: 0 | AT94: 04mm 0+0 | AU94: 1mm 0+0 | AV94: 2mm 0+0 | AW94: =CONCATENATE(BI94,BJ94,BK94,BL94,BM94,BN94," ",R94," ",Árajánlat!$B$1469," ",$B$3,"_",Árajánlat!$B$1470) -> Név_30031 | AZ94: 0 | BA94: 0 | BB94: 0 | BC94: 0 | BD94: 0 | BE94: 0 | BF94: 0 | BG94: 0 | BH94: 0
A95: 061 | E95: 0 | H95: 0 | I95: 0 | L95: 0 | M95: 0 | P95: 0 | Q95: 0 | T95: 0 | U95: 0 | W95: 0 | X95: 0 | Z95: 0 | AA95: 0 | AN95: 0 | AO95: 0 | AP95: 0 | AQ95: 0 | AR95: 0 | AS95: 0 | AT95: 04mm 0+0 | AU95: 1mm 0+0 | AV95: 2mm 0+0 | AW95: =CONCATENATE(BI95,BJ95,BK95,BL95,BM95,BN95," ",R95," ",Árajánlat!$B$1469," ",$B$3,"_",Árajánlat!$B$1470) -> Név_30031 | AZ95: 0 | BA95: 0 | BB95: 0 | BC95: 0 | BD95: 0 | BE95: 0 | BF95: 0 | BG95: 0 | BH95: 0
A96: 062 | E96: 0 | H96: 0 | I96: 0 | L96: 0 | M96: 0 | P96: 0 | Q96: 0 | T96: 0 | U96: 0 | W96: 0 | X96: 0 | Z96: 0 | AA96: 0 | AN96: 0 | AO96: 0 | AP96: 0 | AQ96: 0 | AR96: 0 | AS96: 0 | AT96: 04mm 0+0 | AU96: 1mm 0+0 | AV96: 2mm 0+0 | AW96: =CONCATENATE(BI96,BJ96,BK96,BL96,BM96,BN96," ",R96," ",Árajánlat!$B$1469," ",$B$3,"_",Árajánlat!$B$1470) -> Név_30031 | AZ96: 0 | BA96: 0 | BB96: 0 | BC96: 0 | BD96: 0 | BE96: 0 | BF96: 0 | BG96: 0 | BH96: 0
A97: 063 | E97: 0 | H97: 0 | I97: 0 | L97: 0 | M97: 0 | P97: 0 | Q97: 0 | T97: 0 | U97: 0 | W97: 0 | X97: 0 | Z97: 0 | AA97: 0 | AN97: 0 | AO97: 0 | AP97: 0 | AQ97: 0 | AR97: 0 | AS97: 0 | AT97: 04mm 0+0 | AU97: 1mm 0+0 | AV97: 2mm 0+0 | AW97: =CONCATENATE(BI97,BJ97,BK97,BL97,BM97,BN97," ",R97," ",Árajánlat!$B$1469," ",$B$3,"_",Árajánlat!$B$1470) -> Név_30031 | AZ97: 0 | BA97: 0 | BB97: 0 | BC97: 0 | BD97: 0 | BE97: 0 | BF97: 0 | BG97: 0 | BH97: 0
A98: 064 | E98: 0 | H98: 0 | I98: 0 | L98: 0 | M98: 0 | P98: 0 | Q98: 0 | T98: 0 | U98: 0 | W98: 0 | X98: 0 | Z98: 0 | AA98: 0 | AN98: 0 | AO98: 0 | AP98: 0 | AQ98: 0 | AR98: 0 | AS98: 0 | AT98: 04mm 0+0 | AU98: 1mm 0+0 | AV98: 2mm 0+0 | AW98: =CONCATENATE(BI98,BJ98,BK98,BL98,BM98,BN98," ",R98," ",Árajánlat!$B$1469," ",$B$3,"_",Árajánlat!$B$1470) -> Név_30031 | AZ98: 0 | BA98: 0 | BB98: 0 | BC98: 0 | BD98: 0 | BE98: 0 | BF98: 0 | BG98: 0 | BH98: 0
A99: 065 | E99: =((B99*C99)*D99)/1000000 -> 0 | H99: =(F99+G99)*$D99 -> 0 | I99: =(($B99*$D99*F99)+($C99*$D99*G99))/1000 -> 0 | L99: =(J99+K99)*$D99 -> 0 | M99: =(($B99*$D99*J99)+($C99*$D99*K99))/1000 -> 0 | P99: =(N99+O99)*$D99 -> 0 | Q99: =(($B99*$D99*N99)+($C99*$D99*O99))/1000 -> 0 | T99: =IF(S99=0,0,$D99) -> 0 | U99: =$D99*S99 -> 0 | W99: =IF(V99=0,0,$D99) -> 0 | X99: =$D99*V99 -> 0 | Z99: =IF(Y99=0,0,$D99) -> 0 | AA99: =$D99*Y99 -> 0 | AN99: =AB99*$D99 -> 0 | AO99: =AD99*$D99 -> 0 | AP99: =(($B99*$D99*AF99)+($C99*$D99*AG99))/1000 -> 0 | AQ99: =COUNTA(AH99)*$D99 -> 0 | AR99: =COUNTA(AJ99)*$D99 -> 0 | AS99: =($AL99*$D99)+($AM99*$D99) -> 0 | AT99: 04mm 0+0 | AU99: 1mm 0+0 | AV99: =CONCATENATE("2mm ",BD99,"+",BE99, " ") -> 2mm 0+0 | AW99: =CONCATENATE(BI99,BJ99,BK99,BL99,BM99,BN99," ",R99," ",Árajánlat!$B$1469," ",$B$3,"_",Árajánlat!$B$1470) -> Név_30031 | AZ99: =F99 -> 0 | BA99: =G99 -> 0 | BB99: =J99 -> 0 | BC99: =K99 -> 0 | BD99: =N99 -> 0 | BE99: =O99 -> 0 | BF99: =AZ99+BA99 -> 0 | BG99: =BC99+BB99 -> 0 | BH99: =BE99+BD99 -> 0 | BI99: =IF(BF99=0,"",AT99) ->  | BJ99: =IF(BG99=0,"",AU99) ->  | BK99: =IF(BH99=0,"",AV99) -> 
A100: 066 | E100: 0 | H100: 0 | I100: 0 | L100: 0 | M100: 0 | P100: 0 | Q100: 0 | T100: 0 | U100: 0 | W100: 0 | X100: 0 | Z100: 0 | AA100: 0 | AN100: 0 | AO100: 0 | AP100: 0 | AQ100: 0 | AR100: 0 | AS100: 0 | AT100: =CONCATENATE("04mm ",AZ100,"+",BA100," ") -> 04mm 0+0 | AU100: =CONCATENATE(J$25,"mm ",BB100,"+",BC100," ") -> 1mm 0+0 | AV100: 2mm 0+0 | AW100: =CONCATENATE(BI100,BJ100,BK100,BL100,BM100,BN100," ",R100," ",Árajánlat!$B$1469," ",$B$3,"_",Árajánlat!$B$1470) -> Név_30031 | AZ100: 0 | BA100: 0 | BB100: 0 | BC100: 0 | BD100: 0 | BE100: 0 | BF100: 0 | BG100: 0 | BH100: 0 | BL100: =IF($F$34=$B$28,"",CONCATENATE(" 04mm=",$F$32)) ->  | BM100: =IF($J$34=$B$28,"",CONCATENATE($J$25," mm=",$J$32)) ->  | BN100: =IF($N$34=$B$28,"",CONCATENATE(" 2mm=",$N$32)) -> 
A101: 067 | E101: 0 | H101: 0 | I101: 0 | L101: 0 | M101: 0 | P101: 0 | Q101: 0 | T101: 0 | U101: 0 | W101: 0 | X101: 0 | Z101: 0 | AA101: 0 | AN101: 0 | AO101: 0 | AP101: 0 | AQ101: 0 | AR101: 0 | AS101: 0 | AT101: 04mm 0+0 | AU101: 1mm 0+0 | AV101: 2mm 0+0 | AW101: =CONCATENATE(BI101,BJ101,BK101,BL101,BM101,BN101," ",R101," ",Árajánlat!$B$1469," ",$B$3,"_",Árajánlat!$B$1470) -> Név_30031 | AZ101: 0 | BA101: 0 | BB101: 0 | BC101: 0 | BD101: 0 | BE101: 0 | BF101: 0 | BG101: 0 | BH101: 0
A102: 068 | E102: 0 | H102: 0 | I102: 0 | L102: 0 | M102: 0 | P102: 0 | Q102: 0 | T102: 0 | U102: 0 | W102: 0 | X102: 0 | Z102: 0 | AA102: 0 | AN102: 0 | AO102: 0 | AP102: 0 | AQ102: 0 | AR102: 0 | AS102: 0 | AT102: 04mm 0+0 | AU102: 1mm 0+0 | AV102: 2mm 0+0 | AW102: =CONCATENATE(BI102,BJ102,BK102,BL102,BM102,BN102," ",R102," ",Árajánlat!$B$1469," ",$B$3,"_",Árajánlat!$B$1470) -> Név_30031 | AZ102: 0 | BA102: 0 | BB102: 0 | BC102: 0 | BD102: 0 | BE102: 0 | BF102: 0 | BG102: 0 | BH102: 0
A103: 069 | E103: 0 | H103: 0 | I103: 0 | L103: 0 | M103: 0 | P103: 0 | Q103: 0 | T103: 0 | U103: 0 | W103: 0 | X103: 0 | Z103: 0 | AA103: 0 | AN103: 0 | AO103: 0 | AP103: 0 | AQ103: 0 | AR103: 0 | AS103: 0 | AT103: 04mm 0+0 | AU103: 1mm 0+0 | AV103: 2mm 0+0 | AW103: =CONCATENATE(BI103,BJ103,BK103,BL103,BM103,BN103," ",R103," ",Árajánlat!$B$1469," ",$B$3,"_",Árajánlat!$B$1470) -> Név_30031 | AZ103: 0 | BA103: 0 | BB103: 0 | BC103: 0 | BD103: 0 | BE103: 0 | BF103: 0 | BG103: 0 | BH103: 0
A104: 070 | E104: 0 | H104: 0 | I104: 0 | L104: 0 | M104: 0 | P104: 0 | Q104: 0 | T104: 0 | U104: 0 | W104: 0 | X104: 0 | Z104: 0 | AA104: 0 | AN104: 0 | AO104: 0 | AP104: 0 | AQ104: 0 | AR104: 0 | AS104: 0 | AT104: 04mm 0+0 | AU104: 1mm 0+0 | AV104: 2mm 0+0 | AW104: =CONCATENATE(BI104,BJ104,BK104,BL104,BM104,BN104," ",R104," ",Árajánlat!$B$1469," ",$B$3,"_",Árajánlat!$B$1470) -> Név_30031 | AZ104: 0 | BA104: 0 | BB104: 0 | BC104: 0 | BD104: 0 | BE104: 0 | BF104: 0 | BG104: 0 | BH104: 0
A105: 071 | E105: 0 | H105: 0 | I105: 0 | L105: 0 | M105: 0 | P105: 0 | Q105: 0 | T105: 0 | U105: 0 | W105: 0 | X105: 0 | Z105: 0 | AA105: 0 | AN105: 0 | AO105: 0 | AP105: 0 | AQ105: 0 | AR105: 0 | AS105: 0 | AT105: 04mm 0+0 | AU105: 1mm 0+0 | AV105: 2mm 0+0 | AW105: =CONCATENATE(BI105,BJ105,BK105,BL105,BM105,BN105," ",R105," ",Árajánlat!$B$1469," ",$B$3,"_",Árajánlat!$B$1470) -> Név_30031 | AZ105: 0 | BA105: 0 | BB105: 0 | BC105: 0 | BD105: 0 | BE105: 0 | BF105: 0 | BG105: 0 | BH105: 0
A106: 072 | E106: 0 | H106: 0 | I106: 0 | L106: 0 | M106: 0 | P106: 0 | Q106: 0 | T106: 0 | U106: 0 | W106: 0 | X106: 0 | Z106: 0 | AA106: 0 | AN106: 0 | AO106: 0 | AP106: 0 | AQ106: 0 | AR106: 0 | AS106: 0 | AT106: 04mm 0+0 | AU106: 1mm 0+0 | AV106: 2mm 0+0 | AW106: =CONCATENATE(BI106,BJ106,BK106,BL106,BM106,BN106," ",R106," ",Árajánlat!$B$1469," ",$B$3,"_",Árajánlat!$B$1470) -> Név_30031 | AZ106: 0 | BA106: 0 | BB106: 0 | BC106: 0 | BD106: 0 | BE106: 0 | BF106: 0 | BG106: 0 | BH106: 0
A107: 073 | E107: 0 | H107: 0 | I107: 0 | L107: 0 | M107: 0 | P107: 0 | Q107: 0 | T107: 0 | U107: 0 | W107: 0 | X107: 0 | Z107: 0 | AA107: 0 | AN107: 0 | AO107: 0 | AP107: 0 | AQ107: 0 | AR107: 0 | AS107: 0 | AT107: 04mm 0+0 | AU107: 1mm 0+0 | AV107: 2mm 0+0 | AW107: =CONCATENATE(BI107,BJ107,BK107,BL107,BM107,BN107," ",R107," ",Árajánlat!$B$1469," ",$B$3,"_",Árajánlat!$B$1470) -> Név_30031 | AZ107: 0 | BA107: 0 | BB107: 0 | BC107: 0 | BD107: 0 | BE107: 0 | BF107: 0 | BG107: 0 | BH107: 0
A108: 074 | E108: 0 | H108: 0 | I108: 0 | L108: 0 | M108: 0 | P108: 0 | Q108: 0 | T108: 0 | U108: 0 | W108: 0 | X108: 0 | Z108: 0 | AA108: 0 | AN108: 0 | AO108: 0 | AP108: 0 | AQ108: 0 | AR108: 0 | AS108: 0 | AT108: 04mm 0+0 | AU108: 1mm 0+0 | AV108: 2mm 0+0 | AW108: =CONCATENATE(BI108,BJ108,BK108,BL108,BM108,BN108," ",R108," ",Árajánlat!$B$1469," ",$B$3,"_",Árajánlat!$B$1470) -> Név_30031 | AZ108: 0 | BA108: 0 | BB108: 0 | BC108: 0 | BD108: 0 | BE108: 0 | BF108: 0 | BG108: 0 | BH108: 0
A109: 075 | E109: 0 | H109: 0 | I109: 0 | L109: 0 | M109: 0 | P109: 0 | Q109: 0 | T109: 0 | U109: 0 | W109: 0 | X109: 0 | Z109: 0 | AA109: 0 | AN109: 0 | AO109: 0 | AP109: 0 | AQ109: 0 | AR109: 0 | AS109: 0 | AT109: 04mm 0+0 | AU109: 1mm 0+0 | AV109: 2mm 0+0 | AW109: =CONCATENATE(BI109,BJ109,BK109,BL109,BM109,BN109," ",R109," ",Árajánlat!$B$1469," ",$B$3,"_",Árajánlat!$B$1470) -> Név_30031 | AZ109: 0 | BA109: 0 | BB109: 0 | BC109: 0 | BD109: 0 | BE109: 0 | BF109: 0 | BG109: 0 | BH109: 0
A110: 076 | E110: 0 | H110: 0 | I110: 0 | L110: 0 | M110: 0 | P110: 0 | Q110: 0 | T110: 0 | U110: 0 | W110: 0 | X110: 0 | Z110: 0 | AA110: 0 | AN110: 0 | AO110: 0 | AP110: 0 | AQ110: 0 | AR110: 0 | AS110: 0 | AT110: 04mm 0+0 | AU110: 1mm 0+0 | AV110: 2mm 0+0 | AW110: =CONCATENATE(BI110,BJ110,BK110,BL110,BM110,BN110," ",R110," ",Árajánlat!$B$1469," ",$B$3,"_",Árajánlat!$B$1470) -> Név_30031 | AZ110: 0 | BA110: 0 | BB110: 0 | BC110: 0 | BD110: 0 | BE110: 0 | BF110: 0 | BG110: 0 | BH110: 0
A111: 077 | E111: 0 | H111: 0 | I111: 0 | L111: 0 | M111: 0 | P111: 0 | Q111: 0 | T111: 0 | U111: 0 | W111: 0 | X111: 0 | Z111: 0 | AA111: 0 | AN111: 0 | AO111: 0 | AP111: 0 | AQ111: 0 | AR111: 0 | AS111: 0 | AT111: 04mm 0+0 | AU111: 1mm 0+0 | AV111: 2mm 0+0 | AW111: =CONCATENATE(BI111,BJ111,BK111,BL111,BM111,BN111," ",R111," ",Árajánlat!$B$1469," ",$B$3,"_",Árajánlat!$B$1470) -> Név_30031 | AZ111: 0 | BA111: 0 | BB111: 0 | BC111: 0 | BD111: 0 | BE111: 0 | BF111: 0 | BG111: 0 | BH111: 0
A112: 078 | E112: 0 | H112: 0 | I112: 0 | L112: 0 | M112: 0 | P112: 0 | Q112: 0 | T112: 0 | U112: 0 | W112: 0 | X112: 0 | Z112: 0 | AA112: 0 | AN112: 0 | AO112: 0 | AP112: 0 | AQ112: 0 | AR112: 0 | AS112: 0 | AT112: 04mm 0+0 | AU112: 1mm 0+0 | AV112: 2mm 0+0 | AW112: =CONCATENATE(BI112,BJ112,BK112,BL112,BM112,BN112," ",R112," ",Árajánlat!$B$1469," ",$B$3,"_",Árajánlat!$B$1470) -> Név_30031 | AZ112: 0 | BA112: 0 | BB112: 0 | BC112: 0 | BD112: 0 | BE112: 0 | BF112: 0 | BG112: 0 | BH112: 0
A113: 079 | E113: 0 | H113: 0 | I113: 0 | L113: 0 | M113: 0 | P113: 0 | Q113: 0 | T113: 0 | U113: 0 | W113: 0 | X113: 0 | Z113: 0 | AA113: 0 | AN113: 0 | AO113: 0 | AP113: 0 | AQ113: 0 | AR113: 0 | AS113: 0 | AT113: 04mm 0+0 | AU113: 1mm 0+0 | AV113: 2mm 0+0 | AW113: =CONCATENATE(BI113,BJ113,BK113,BL113,BM113,BN113," ",R113," ",Árajánlat!$B$1469," ",$B$3,"_",Árajánlat!$B$1470) -> Név_30031 | AZ113: 0 | BA113: 0 | BB113: 0 | BC113: 0 | BD113: 0 | BE113: 0 | BF113: 0 | BG113: 0 | BH113: 0
A114: 080 | E114: 0 | H114: 0 | I114: 0 | L114: 0 | M114: 0 | P114: 0 | Q114: 0 | T114: 0 | U114: 0 | W114: 0 | X114: 0 | Z114: 0 | AA114: 0 | AN114: 0 | AO114: 0 | AP114: 0 | AQ114: 0 | AR114: 0 | AS114: 0 | AT114: 04mm 0+0 | AU114: 1mm 0+0 | AV114: 2mm 0+0 | AW114: =CONCATENATE(BI114,BJ114,BK114,BL114,BM114,BN114," ",R114," ",Árajánlat!$B$1469," ",$B$3,"_",Árajánlat!$B$1470) -> Név_30031 | AZ114: 0 | BA114: 0 | BB114: 0 | BC114: 0 | BD114: 0 | BE114: 0 | BF114: 0 | BG114: 0 | BH114: 0
A115: 081 | E115: 0 | H115: 0 | I115: 0 | L115: 0 | M115: 0 | P115: 0 | Q115: 0 | T115: 0 | U115: 0 | W115: 0 | X115: 0 | Z115: 0 | AA115: 0 | AN115: 0 | AO115: 0 | AP115: 0 | AQ115: 0 | AR115: 0 | AS115: 0 | AT115: 04mm 0+0 | AU115: 1mm 0+0 | AV115: 2mm 0+0 | AW115: =CONCATENATE(BI115,BJ115,BK115,BL115,BM115,BN115," ",R115," ",Árajánlat!$B$1469," ",$B$3,"_",Árajánlat!$B$1470) -> Név_30031 | AZ115: 0 | BA115: 0 | BB115: 0 | BC115: 0 | BD115: 0 | BE115: 0 | BF115: 0 | BG115: 0 | BH115: 0
A116: 082 | E116: 0 | H116: 0 | I116: 0 | L116: 0 | M116: 0 | P116: 0 | Q116: 0 | T116: 0 | U116: 0 | W116: 0 | X116: 0 | Z116: 0 | AA116: 0 | AN116: 0 | AO116: 0 | AP116: 0 | AQ116: 0 | AR116: 0 | AS116: 0 | AT116: 04mm 0+0 | AU116: 1mm 0+0 | AV116: 2mm 0+0 | AW116: =CONCATENATE(BI116,BJ116,BK116,BL116,BM116,BN116," ",R116," ",Árajánlat!$B$1469," ",$B$3,"_",Árajánlat!$B$1470) -> Név_30031 | AZ116: 0 | BA116: 0 | BB116: 0 | BC116: 0 | BD116: 0 | BE116: 0 | BF116: 0 | BG116: 0 | BH116: 0
A117: 083 | E117: 0 | H117: 0 | I117: 0 | L117: 0 | M117: 0 | P117: 0 | Q117: 0 | T117: 0 | U117: 0 | W117: 0 | X117: 0 | Z117: 0 | AA117: 0 | AN117: 0 | AO117: 0 | AP117: 0 | AQ117: 0 | AR117: 0 | AS117: 0 | AT117: 04mm 0+0 | AU117: 1mm 0+0 | AV117: 2mm 0+0 | AW117: =CONCATENATE(BI117,BJ117,BK117,BL117,BM117,BN117," ",R117," ",Árajánlat!$B$1469," ",$B$3,"_",Árajánlat!$B$1470) -> Név_30031 | AZ117: 0 | BA117: 0 | BB117: 0 | BC117: 0 | BD117: 0 | BE117: 0 | BF117: 0 | BG117: 0 | BH117: 0
A118: 084 | E118: 0 | H118: 0 | I118: 0 | L118: 0 | M118: 0 | P118: 0 | Q118: 0 | T118: 0 | U118: 0 | W118: 0 | X118: 0 | Z118: 0 | AA118: 0 | AN118: 0 | AO118: 0 | AP118: 0 | AQ118: 0 | AR118: 0 | AS118: 0 | AT118: 04mm 0+0 | AU118: 1mm 0+0 | AV118: 2mm 0+0 | AW118: =CONCATENATE(BI118,BJ118,BK118,BL118,BM118,BN118," ",R118," ",Árajánlat!$B$1469," ",$B$3,"_",Árajánlat!$B$1470) -> Név_30031 | AZ118: 0 | BA118: 0 | BB118: 0 | BC118: 0 | BD118: 0 | BE118: 0 | BF118: 0 | BG118: 0 | BH118: 0
A119: 085 | E119: 0 | H119: 0 | I119: 0 | L119: 0 | M119: 0 | P119: 0 | Q119: 0 | T119: 0 | U119: 0 | W119: 0 | X119: 0 | Z119: 0 | AA119: 0 | AN119: 0 | AO119: 0 | AP119: 0 | AQ119: 0 | AR119: 0 | AS119: 0 | AT119: 04mm 0+0 | AU119: 1mm 0+0 | AV119: 2mm 0+0 | AW119: =CONCATENATE(BI119,BJ119,BK119,BL119,BM119,BN119," ",R119," ",Árajánlat!$B$1469," ",$B$3,"_",Árajánlat!$B$1470) -> Név_30031 | AZ119: 0 | BA119: 0 | BB119: 0 | BC119: 0 | BD119: 0 | BE119: 0 | BF119: 0 | BG119: 0 | BH119: 0
A120: 086 | E120: 0 | H120: 0 | I120: 0 | L120: 0 | M120: 0 | P120: 0 | Q120: 0 | T120: 0 | U120: 0 | W120: 0 | X120: 0 | Z120: 0 | AA120: 0 | AN120: 0 | AO120: 0 | AP120: 0 | AQ120: 0 | AR120: 0 | AS120: 0 | AT120: 04mm 0+0 | AU120: 1mm 0+0 | AV120: 2mm 0+0 | AW120: =CONCATENATE(BI120,BJ120,BK120,BL120,BM120,BN120," ",R120," ",Árajánlat!$B$1469," ",$B$3,"_",Árajánlat!$B$1470) -> Név_30031 | AZ120: 0 | BA120: 0 | BB120: 0 | BC120: 0 | BD120: 0 | BE120: 0 | BF120: 0 | BG120: 0 | BH120: 0
A121: 087 | E121: 0 | H121: 0 | I121: 0 | L121: 0 | M121: 0 | P121: 0 | Q121: 0 | T121: 0 | U121: 0 | W121: 0 | X121: 0 | Z121: 0 | AA121: 0 | AN121: 0 | AO121: 0 | AP121: 0 | AQ121: 0 | AR121: 0 | AS121: 0 | AT121: 04mm 0+0 | AU121: 1mm 0+0 | AV121: 2mm 0+0 | AW121: =CONCATENATE(BI121,BJ121,BK121,BL121,BM121,BN121," ",R121," ",Árajánlat!$B$1469," ",$B$3,"_",Árajánlat!$B$1470) -> Név_30031 | AZ121: 0 | BA121: 0 | BB121: 0 | BC121: 0 | BD121: 0 | BE121: 0 | BF121: 0 | BG121: 0 | BH121: 0
A122: 088 | E122: 0 | H122: 0 | I122: 0 | L122: 0 | M122: 0 | P122: 0 | Q122: 0 | T122: 0 | U122: 0 | W122: 0 | X122: 0 | Z122: 0 | AA122: 0 | AN122: 0 | AO122: 0 | AP122: 0 | AQ122: 0 | AR122: 0 | AS122: 0 | AT122: 04mm 0+0 | AU122: 1mm 0+0 | AV122: 2mm 0+0 | AW122: =CONCATENATE(BI122,BJ122,BK122,BL122,BM122,BN122," ",R122," ",Árajánlat!$B$1469," ",$B$3,"_",Árajánlat!$B$1470) -> Név_30031 | AZ122: 0 | BA122: 0 | BB122: 0 | BC122: 0 | BD122: 0 | BE122: 0 | BF122: 0 | BG122: 0 | BH122: 0
A123: 089 | E123: 0 | H123: 0 | I123: 0 | L123: 0 | M123: 0 | P123: 0 | Q123: 0 | T123: 0 | U123: 0 | W123: 0 | X123: 0 | Z123: 0 | AA123: 0 | AN123: 0 | AO123: 0 | AP123: 0 | AQ123: 0 | AR123: 0 | AS123: 0 | AT123: 04mm 0+0 | AU123: 1mm 0+0 | AV123: 2mm 0+0 | AW123: =CONCATENATE(BI123,BJ123,BK123,BL123,BM123,BN123," ",R123," ",Árajánlat!$B$1469," ",$B$3,"_",Árajánlat!$B$1470) -> Név_30031 | AZ123: 0 | BA123: 0 | BB123: 0 | BC123: 0 | BD123: 0 | BE123: 0 | BF123: 0 | BG123: 0 | BH123: 0
A124: 090 | E124: 0 | H124: 0 | I124: 0 | L124: 0 | M124: 0 | P124: 0 | Q124: 0 | T124: 0 | U124: 0 | W124: 0 | X124: 0 | Z124: 0 | AA124: 0 | AN124: 0 | AO124: 0 | AP124: 0 | AQ124: 0 | AR124: 0 | AS124: 0 | AT124: 04mm 0+0 | AU124: 1mm 0+0 | AV124: 2mm 0+0 | AW124: =CONCATENATE(BI124,BJ124,BK124,BL124,BM124,BN124," ",R124," ",Árajánlat!$B$1469," ",$B$3,"_",Árajánlat!$B$1470) -> Név_30031 | AZ124: 0 | BA124: 0 | BB124: 0 | BC124: 0 | BD124: 0 | BE124: 0 | BF124: 0 | BG124: 0 | BH124: 0
A125: 091 | E125: 0 | H125: 0 | I125: 0 | L125: 0 | M125: 0 | P125: 0 | Q125: 0 | T125: 0 | U125: 0 | W125: 0 | X125: 0 | Z125: 0 | AA125: 0 | AN125: 0 | AO125: 0 | AP125: 0 | AQ125: 0 | AR125: 0 | AS125: 0 | AT125: 04mm 0+0 | AU125: 1mm 0+0 | AV125: 2mm 0+0 | AW125: =CONCATENATE(BI125,BJ125,BK125,BL125,BM125,BN125," ",R125," ",Árajánlat!$B$1469," ",$B$3,"_",Árajánlat!$B$1470) -> Név_30031 | AZ125: 0 | BA125: 0 | BB125: 0 | BC125: 0 | BD125: 0 | BE125: 0 | BF125: 0 | BG125: 0 | BH125: 0
A126: 092 | E126: 0 | H126: 0 | I126: 0 | L126: 0 | M126: 0 | P126: 0 | Q126: 0 | T126: 0 | U126: 0 | W126: 0 | X126: 0 | Z126: 0 | AA126: 0 | AN126: 0 | AO126: 0 | AP126: 0 | AQ126: 0 | AR126: 0 | AS126: 0 | AT126: 04mm 0+0 | AU126: 1mm 0+0 | AV126: 2mm 0+0 | AW126: =CONCATENATE(BI126,BJ126,BK126,BL126,BM126,BN126," ",R126," ",Árajánlat!$B$1469," ",$B$3,"_",Árajánlat!$B$1470) -> Név_30031 | AZ126: 0 | BA126: 0 | BB126: 0 | BC126: 0 | BD126: 0 | BE126: 0 | BF126: 0 | BG126: 0 | BH126: 0
A127: 093 | E127: 0 | H127: 0 | I127: 0 | L127: 0 | M127: 0 | P127: 0 | Q127: 0 | T127: 0 | U127: 0 | W127: 0 | X127: 0 | Z127: 0 | AA127: 0 | AN127: 0 | AO127: 0 | AP127: 0 | AQ127: 0 | AR127: 0 | AS127: 0 | AT127: 04mm 0+0 | AU127: 1mm 0+0 | AV127: 2mm 0+0 | AW127: =CONCATENATE(BI127,BJ127,BK127,BL127,BM127,BN127," ",R127," ",Árajánlat!$B$1469," ",$B$3,"_",Árajánlat!$B$1470) -> Név_30031 | AZ127: 0 | BA127: 0 | BB127: 0 | BC127: 0 | BD127: 0 | BE127: 0 | BF127: 0 | BG127: 0 | BH127: 0
A128: 094 | E128: 0 | H128: 0 | I128: 0 | L128: 0 | M128: 0 | P128: 0 | Q128: 0 | T128: 0 | U128: 0 | W128: 0 | X128: 0 | Z128: 0 | AA128: 0 | AN128: 0 | AO128: 0 | AP128: 0 | AQ128: 0 | AR128: 0 | AS128: 0 | AT128: 04mm 0+0 | AU128: 1mm 0+0 | AV128: 2mm 0+0 | AW128: =CONCATENATE(BI128,BJ128,BK128,BL128,BM128,BN128," ",R128," ",Árajánlat!$B$1469," ",$B$3,"_",Árajánlat!$B$1470) -> Név_30031 | AZ128: 0 | BA128: 0 | BB128: 0 | BC128: 0 | BD128: 0 | BE128: 0 | BF128: 0 | BG128: 0 | BH128: 0
A129: 095 | E129: 0 | H129: 0 | I129: 0 | L129: 0 | M129: 0 | P129: 0 | Q129: 0 | T129: 0 | U129: 0 | W129: 0 | X129: 0 | Z129: 0 | AA129: 0 | AN129: 0 | AO129: 0 | AP129: 0 | AQ129: 0 | AR129: 0 | AS129: 0 | AT129: 04mm 0+0 | AU129: 1mm 0+0 | AV129: 2mm 0+0 | AW129: =CONCATENATE(BI129,BJ129,BK129,BL129,BM129,BN129," ",R129," ",Árajánlat!$B$1469," ",$B$3,"_",Árajánlat!$B$1470) -> Név_30031 | AZ129: 0 | BA129: 0 | BB129: 0 | BC129: 0 | BD129: 0 | BE129: 0 | BF129: 0 | BG129: 0 | BH129: 0
A130: 096 | E130: 0 | H130: 0 | I130: 0 | L130: 0 | M130: 0 | P130: 0 | Q130: 0 | T130: 0 | U130: 0 | W130: 0 | X130: 0 | Z130: 0 | AA130: 0 | AN130: 0 | AO130: 0 | AP130: 0 | AQ130: 0 | AR130: 0 | AS130: 0 | AT130: 04mm 0+0 | AU130: 1mm 0+0 | AV130: 2mm 0+0 | AW130: =CONCATENATE(BI130,BJ130,BK130,BL130,BM130,BN130," ",R130," ",Árajánlat!$B$1469," ",$B$3,"_",Árajánlat!$B$1470) -> Név_30031 | AZ130: 0 | BA130: 0 | BB130: 0 | BC130: 0 | BD130: 0 | BE130: 0 | BF130: 0 | BG130: 0 | BH130: 0
A131: 097 | E131: =((B131*C131)*D131)/1000000 -> 0 | H131: =(F131+G131)*$D131 -> 0 | I131: 0 | L131: =(J131+K131)*$D131 -> 0 | M131: 0 | P131: =(N131+O131)*$D131 -> 0 | Q131: 0 | T131: =IF(S131=0,0,$D131) -> 0 | U131: 0 | W131: =IF(V131=0,0,$D131) -> 0 | X131: 0 | Z131: =IF(Y131=0,0,$D131) -> 0 | AA131: 0 | AN131: 0 | AO131: 0 | AP131: 0 | AQ131: 0 | AR131: 0 | AS131: 0 | AT131: 04mm 0+0 | AU131: 1mm 0+0 | AV131: 2mm 0+0 | AW131: =CONCATENATE(BI131,BJ131,BK131,BL131,BM131,BN131," ",R131," ",Árajánlat!$B$1469," ",$B$3,"_",Árajánlat!$B$1470) -> Név_30031 | AZ131: 0 | BA131: 0 | BB131: 0 | BC131: 0 | BD131: 0 | BE131: 0 | BF131: 0 | BG131: 0 | BH131: 0
A132: 098 | E132: =((B132*C132)*D132)/1000000 -> 0 | H132: =(F132+G132)*$D132 -> 0 | I132: 0 | L132: =(J132+K132)*$D132 -> 0 | M132: 0 | P132: =(N132+O132)*$D132 -> 0 | Q132: 0 | T132: =IF(S132=0,0,$D132) -> 0 | U132: 0 | W132: =IF(V132=0,0,$D132) -> 0 | X132: 0 | Z132: =IF(Y132=0,0,$D132) -> 0 | AA132: 0 | AN132: 0 | AO132: 0 | AP132: 0 | AQ132: 0 | AR132: 0 | AS132: 0 | AT132: 04mm 0+0 | AU132: 1mm 0+0 | AV132: 2mm 0+0 | AW132: =CONCATENATE(BI132,BJ132,BK132,BL132,BM132,BN132," ",R132," ",Árajánlat!$B$1469," ",$B$3,"_",Árajánlat!$B$1470) -> Név_30031 | AZ132: 0 | BA132: 0 | BB132: 0 | BC132: 0 | BD132: 0 | BE132: 0 | BF132: 0 | BG132: 0 | BH132: 0
A133: 099 | E133: =((B133*C133)*D133)/1000000 -> 0 | H133: =(F133+G133)*$D133 -> 0 | I133: 0 | L133: =(J133+K133)*$D133 -> 0 | M133: 0 | P133: =(N133+O133)*$D133 -> 0 | Q133: 0 | T133: =IF(S133=0,0,$D133) -> 0 | U133: 0 | W133: =IF(V133=0,0,$D133) -> 0 | X133: 0 | Z133: =IF(Y133=0,0,$D133) -> 0 | AA133: 0 | AN133: 0 | AO133: 0 | AP133: 0 | AQ133: 0 | AR133: 0 | AS133: 0 | AT133: 04mm 0+0 | AU133: 1mm 0+0 | AV133: 2mm 0+0 | AW133: =CONCATENATE(BI133,BJ133,BK133,BL133,BM133,BN133," ",R133," ",Árajánlat!$B$1469," ",$B$3,"_",Árajánlat!$B$1470) -> Név_30031 | AZ133: 0 | BA133: 0 | BB133: 0 | BC133: 0 | BD133: 0 | BE133: 0 | BF133: 0 | BG133: 0 | BH133: 0
A134: 100 | E134: =((B134*C134)*D134)/1000000 -> 0 | H134: =(F134+G134)*$D134 -> 0 | I134: 0 | L134: =(J134+K134)*$D134 -> 0 | M134: 0 | P134: =(N134+O134)*$D134 -> 0 | Q134: 0 | T134: =IF(S134=0,0,$D134) -> 0 | U134: 0 | W134: =IF(V134=0,0,$D134) -> 0 | X134: 0 | Z134: =IF(Y134=0,0,$D134) -> 0 | AA134: 0 | AN134: 0 | AO134: 0 | AP134: 0 | AQ134: 0 | AR134: 0 | AS134: 0 | AT134: 04mm 0+0 | AU134: 1mm 0+0 | AV134: 2mm 0+0 | AW134: =CONCATENATE(BI134,BJ134,BK134,BL134,BM134,BN134," ",R134," ",Árajánlat!$B$1469," ",$B$3,"_",Árajánlat!$B$1470) -> Név_30031 | AZ134: 0 | BA134: 0 | BB134: 0 | BC134: 0 | BD134: 0 | BE134: 0 | BF134: 0 | BG134: 0 | BH134: 0
B135: Darabszám: | D135: =SUM(D35:D134) -> 0 | E135: =SUM(E35:E134) -> 0 | F135: =SUM(I35:I134) -> 0 | H135: =SUM(H35:H134) -> 0 | I135: =SUM(I35:I134) -> 0 | J135: =SUM(M35:M134) -> 0 | L135: =SUM(L35:L134) -> 0 | M135: =SUM(M35:M134) -> 0 | N135: =SUM(Q35:Q134) -> 0 | P135: =SUM(P35:P134) -> 0 | Q135: =SUM(Q35:Q134) -> 0 | S135: =SUM(S35:S134) -> 0 | T135: 0 | U135: 0 | V135: 0 | W135: 0 | X135: 0 | Y135: 0 | Z135: 0 | AA135: 0 | AE135: =SUM(AE35:AE134) -> 0 | AN135: =SUM(AN35:AN134) -> 0 | AO135: 0 | AP135: 0 | AQ135: 0 | AR135: 0 | AS135: 0
B136: m² | C136: =SUM(E35:E134) -> 0 | F136: Munkadíj ár | J136: Munkadíj ár | N136: Munkadíj ár | S136: Munkadíj ár | V136: Munkadíj ár | Y136: Munkadíj ár | AB136: Ár | AD136: Ár | AF136: Ár | AH136: Ár | AJ136: Ár | AL136: Ár
B137: Ár | C137: =C136*C29 -> 0 | F137: =F30*F135 -> 0 | J137: =J30*J135 -> 0 | N137: =N30*N135 -> 0 | S137: =S30*S135 -> 0 | V137: =V30*V135 -> 0 | Y137: =Y30*Y135 -> 0 | AB137: =AB29*AN135 -> 0 | AD137: =AD29*AO135 -> 0 | AF137: =AF29*AP135 -> 0 | AH137: =AH29*(AQ135) -> 0 | AJ137: =AJ29*(AR135) -> 0 | AL137: =$AS135*$AL29 -> 0
B138: Felragasztott élzáró mennyiség: | F138: =F135 -> 0 | J138: =J135 -> 0 | N138: =N135 -> 0 | S138: =S135 -> 0 | V138: =V135 -> 0 | Y138: =Y135 -> 0 | AB138: Plusz élzáróanyag: | AE138: 0,4mm
B139: Felhasznált élzáróanyag hulladékkal: | F139: =F138+(SUM(H35:H134)*0.07)+S139 -> 0 | J139: =J138+(SUM(L35:L134)*0.07)+V139 -> 0 | N139: =N138+(SUM(P35:P134)*0.07)+Y139 -> 0 | S139: =S138+(SUM(T35:T134)*0.1) -> 0 | V139: =V138+(SUM(W35:W134)*0.1) -> 0 | Y139: =Y138+(SUM(Z35:Z134)*0.1) -> 0 | AE139: =J25 -> 1
B140: Minimális mennyiséghez kerekítés: | F140: =CEILING(F139,F33) -> 0 | J140: =CEILING(J139,J33) -> 0 | N140: =CEILING(N139,N33) -> 0 | AE140: 2mm
B141: Élzáró anyagok ára összesen | F141: ABS0,4mm | J141: ABS1mm | N141: ABS2mm | R141: Megrendelőlap végösszege | V141: =C137+F137+J137+N137+S137+V137+Y137+AB137+AD137+AF137+AH137+AJ137+AL137+F142+J142+N142+V143+AH143 -> 0
F142: =F29*F140 -> 0 | J142: =J29*J140 -> 0 | N142: =N29*N140 -> 0
R143: Csavartakaró matrica: | V143: =N23*250 -> 0 | AB143: Javítóviasz | AH143: =AL23*650 -> 0
B147: 45 fokos sarokvágás /db | M147: A szolgáltatások 'A' oszlopban kell jelölni a mennyiséget
B149: Belső 90fokos kimetszés marással /db | M149: A szolgáltatások 'B' oszlopban kell jelölni a mennyiséget
B151: Hátlap-besüllyesztés marása /fm | M151: A szolgáltatások 'C' oszlopban kell jelölni a mennyiséget
B153: Ívelt alkatrész elkészítése < 1M /db | M153: A szolgáltatások 'D' oszlopban kell jelölni a mennyiséget
B155: Lapszabás Egyedi darab /db | M155: A szolgáltatások 'E' oszlopban kell jelölni a mennyiséget
B157: Pánthelyfúrás 35mm /db | M157: A szolgáltatások 'F' oszlopban kell jelölni a mennyiséget
B159: =IF(OR(VLOOKUP(B165,Data!$E$10:$AM$799,12,0)="Egész táblás szín",VLOOKUP(B165,Data!$E$10:$AM$799,12,0)="Helyettesíthető szín"),"Ez a szín nem kapható négyzetméterre, válassza a javasolt helyettesítő színt vagy válassza ki a színt a 'Bútorlap_tábla' megrendelőlapon egész táblás szabászathoz","") -> 
B160: Csavartakaró matrica (Ha van) | E160: Egység: 25db/levél | F160: Ennyi levélre lenne szükségem: | S160: Bútorjavító viasz (Ha van) | AB160: Egység: Db | AE160: Ennyi darabra lenne szükségem:
B161: Helyettesítő szín | D161: =IF(VLOOKUP(B165,Data!$E$10:$AZ$999,11,0)=0,"Nincs",VLOOKUP(B165,Data!$E$10:$AZ$999,11,0)) -> Nincs | F161: =IF(F162=0,"Nem kapható",IF(F171=$B$165,"Színazonos élzáró vastagsága:","Eltérő élzáró vastagsága:")) -> Színazonos élzáró vastagsága: | J161: =IF(J162=0,"Nem kapható",IF(J171=$B$165,"Színazonos élzáró vastagsága:","Eltérő élzáró vastagsága:")) -> Színazonos élzáró vastagsága: | L161: =IF(L162=0,"Nem kapható",IF(L171=$B$165,"Színazonos élzáró vastagsága:","Eltérő élzáró vastagsága:")) -> Nem kapható | N161: =IF(N162=0,"Nem kapható",IF(N171=$B$165,"Színazonos élzáró vastagsága:","Eltérő élzáró vastagsága:")) -> Színazonos élzáró vastagsága: | S161: =IF(S171=B165,"Színazonos élzáró vastagsága:","Eltérő élzáró vastagsága:") -> Színazonos élzáró vastagsága: | V161: =IF(V171=B165,"Színazonos élzáró vastagsága:","Eltérő élzáró vastagsága:") -> Színazonos élzáró vastagsága: | Y161: =IF(Y171=B165,"Színazonos élzáró vastagsága:","Eltérő élzáró vastagsága:") -> Színazonos élzáró vastagsága: | AB161: Ehhez a laphoz ajánlott hátfallemez: | AH161: =VLOOKUP(B165,Data!$E$10:$AB$999,14,0) -> 101 HDF
B162: Árkülönbség/m2 (Az alapárban): | D162: =IFERROR((VLOOKUP(D161,Data!$E$10:$AI$2000,18,0))-(VLOOKUP(B165,Data!$E$10:$AI$2000,18,0)),"") ->  | F162: =VLOOKUP(F171:F171,Data!$B$19000:$M$20498,7,0) -> 0.5 | J162: =VLOOKUP(J171:J171,Data!$B$20500:$M$21498,7,0) -> 1 | N162: =VLOOKUP(N171:N171,Data!$B$21499:$M$23498,7,0) -> 2 | S162: =VLOOKUP(S171:S171,Data!$B$19000:$M$20498,7,0) -> 0.5 | V162: =VLOOKUP(V171:V171,Data!$B$20500:$M$21498,7,0) -> 1 | Y162: =VLOOKUP(Y171:Y171,Data!$B$21499:$M$23498,7,0) -> 2 | AB162: Helyettesítő élzáróanyag: | AH162: =IF(VLOOKUP(B165,Data!$E$10:$AB$999,17,0)=0,"Nincs javaslat",VLOOKUP(B165,Data!$E$10:$AB$999,17,0)) -> Nincs javaslat
B163: Az alábbi cellára kattintva válassza ki a termék kódját | F163: Szín | R163: Vastagság | S163: Íves élzárás /fm | AB163: Szolgáltatások
AB164: A | AD164: B | AF164: C | AH164: D | AJ164: E | AL164: F
B165: 116 SM | F165: =VLOOKUP(B165,Data!$E$10:$AZ$1999,5,0) -> Korpusz fehér (Falco) | R165: =VLOOKUP(B165,Data!$E$10:$AZ$1999,3,0) -> 18mm | S165: Méretek bevitele milliméterben | AB165: Egységár | AD165: Egységár | AF165: Egységár | AH165: Egységár | AJ165: Egységár | AL165: Egységár
B166: m² ár: | C166: =Árajánlat!I24 -> 5950 | D166: Élz. Anyagár: | F166: =Árajánlat!I31 -> 89.1287397 | J166: =Árajánlat!I32 -> 157.3768697 | N166: =Árajánlat!I33 -> 253.8749304 | R166: Az élzáró anyagok színe kiválasztható, egy táblázatban csak egyféle élzáróanyag használható | S166: Íves munkadíj: | AB166: =Árajánlat!I37 -> 1000 | AD166: =Árajánlat!I38 -> 7500 | AF166: =Árajánlat!I39 -> 1000 | AH166: =Árajánlat!I40 -> 7500 | AJ166: =Árajánlat!I41 -> 800 | AL166: =Árajánlat!I42 -> 500
B167: =IF(E171=0,"5-20m2-ig",IF(AND(E171>=5,E171<20),"5-20m2-ig",IF(AND(E171>0,E171<5),"0-5m2-ig",IF(AND(E171>=20,E171<50),"20-50m2-ig","50 m2 -től")))) -> 5-20m2-ig | D167: Élz. Munkadíj: | F167: =Árajánlat!I25 -> 350 | J167: =Árajánlat!I26 -> 400 | N167: =Árajánlat!I27 -> 450 | S167: =Árajánlat!I28 -> 1750 | V167: =Árajánlat!I29 -> 2000 | Y167: =Árajánlat!I30 -> 2250 | AB167: =B147 -> 45 fokos sarokvágás /db | AD167: =B149 -> Belső 90fokos kimetszés marással /db | AF167: =B151 -> Hátlap-besüllyesztés marása /fm | AH167: =B153 -> Ívelt alkatrész elkészítése < 1M /db | AJ167: =B155 -> Lapszabás Egyedi darab /db | AL167: Pántfurat
B168: Minden méretet milliméterben kell megadni, élzáróanyag vastagságát nem kell levonni, kész méret | F168: =CONCATENATE("ABS",F162,"mm") -> ABS0,5mm | J168: =CONCATENATE("ABS",J162,"mm") -> ABS1mm | N168: =CONCATENATE("ABS",N162,"mm") -> ABS2mm | S168: ABS04mm | V168: ABS0,7-1,3mm | Y168: ABS2mm
F169: =Árajánlat!D25 -> 24S | J169: =Árajánlat!D26 -> 24S | N169: =Árajánlat!D27 -> 24S | S169: =Árajánlat!D28 -> 24S | V169: =Árajánlat!D29 -> 24S | Y169: =Árajánlat!D30 -> 24S
F170: =VLOOKUP(F171:F171,Data!$B$19000:$M$20498,6,0) -> 1 | J170: =VLOOKUP(J171:J171,Data!$B$20500:$M$21498,6,0) -> 1 | N170: =VLOOKUP(N171:N171,Data!$B$21499:$M$23498,6,0) -> 1 | S170: =VLOOKUP(S171:S171,Data!$B$19000:$M$20498,6,0) -> 1 | V170: =VLOOKUP(V171:V171,Data!$B$20500:$M$21498,6,0) -> 1 | Y170: =VLOOKUP(Y171:Y171,Data!$B$21499:$M$23498,6,0) -> 1
B171: =CONCATENATE("HOSSZ"," (max. ",VLOOKUP(B165,Data!$E$10:$AZ$1999,15,0)," mm)") -> HOSSZ (max. 2800 mm) | C171: =CONCATENATE("Szélesség"," (max. ",VLOOKUP(B165,Data!$E$10:$AZ$1999,16,0)," mm)") -> Szélesség (max. 2070 mm) | D171: db | E171: =SUM(E172:E271) -> 0 | F171: =B165 -> 116 SM | H171: Élz. Száma | I171: élz. Fm | J171: =B165 -> 116 SM | L171: Élz. Száma | M171: élz. Fm | N171: =B165 -> 116 SM | P171: Élz. Száma | Q171: élz. Fm | R171: Megjegyzés | S171: =F171 -> 116 SM | V171: =J171 -> 116 SM | Y171: =N171 -> 116 SM | AB171: darab | AD171: darab vagy fm | AF171: H | AG171: SZ | AH171: I / N | AJ171: I / N | AK171: N | AL171: H | AM171: SZ | AT171: Desc. 04 | AU171: Desc. 08 | AV171: Desc. 2 | AW171: Matricán szereplő szöveg (+ a munkadarab mérete)
A172: 101 | E172: =((B172*C172)*D172)/1000000 -> 0 | H172: =(F172+G172)*$D172 -> 0 | I172: =(($B172*$D172*F172)+($C172*$D172*G172))/1000 -> 0 | L172: =(J172+K172)*$D172 -> 0 | M172: =(($B172*$D172*J172)+($C172*$D172*K172))/1000 -> 0 | P172: =(N172+O172)*$D172 -> 0 | Q172: =(($B172*$D172*N172)+($C172*$D172*O172))/1000 -> 0 | T172: =IF(S172=0,0,$D172) -> 0 | U172: =$D172*S172 -> 0 | W172: =IF(V172=0,0,$D172) -> 0 | X172: =$D172*V172 -> 0 | Z172: =IF(Y172=0,0,$D172) -> 0 | AA172: =$D172*Y172 -> 0 | AN172: =AB172*$D172 -> 0 | AO172: =AD172*$D172 -> 0 | AP172: =(($B172*$D172*AF172)+($C172*$D172*AG172))/1000 -> 0 | AQ172: =COUNTA(AH172)*$D172 -> 0 | AR172: =COUNTA(AJ172)*$D172 -> 0 | AS172: =($AL172*$D172)+($AM172*$D172) -> 0 | AT172: =CONCATENATE("04mm ",AZ172,"+",BA172," ") -> 04mm 0+0 | AU172: =CONCATENATE(J$162,"mm ",BB172,"+",BC172," ") -> 1mm 0+0 | AV172: =CONCATENATE("2mm ",BD172,"+",BE172, " ") -> 2mm 0+0 | AW172: =CONCATENATE(BI172,BJ172,BK172,BL172,BM172,BN172," ",R172," ",Árajánlat!$B$1469," ",$B$3,"_",Árajánlat!$B$1470) -> Név_30031 | AZ172: =F172 -> 0 | BA172: =G172 -> 0 | BB172: =J172 -> 0 | BC172: =K172 -> 0 | BD172: =N172 -> 0 | BE172: =O172 -> 0 | BF172: =AZ172+BA172 -> 0 | BG172: =BC172+BB172 -> 0 | BH172: =BE172+BD172 -> 0 | BI172: =IF(BF172=0,"",AT172) ->  | BJ172: =IF(BG172=0,"",AU172) ->  | BK172: =IF(BH172=0,"",AV172) ->  | BL172: =IF($F$171=$B$165,"",CONCATENATE(" 04mm=",$F$169)) ->  | BM172: =IF($J$171=$B$165,"",CONCATENATE($J$162," mm=",$J$169)) ->  | BN172: =IF($N$171=$B$165,"",CONCATENATE(" 2mm=",$N$169)) -> 
A173: 102 | E173: 0 | H173: 0 | I173: 0 | L173: 0 | M173: 0 | P173: 0 | Q173: 0 | T173: 0 | U173: 0 | W173: 0 | X173: 0 | Z173: 0 | AA173: 0 | AN173: 0 | AO173: 0 | AP173: 0 | AQ173: 0 | AR173: 0 | AS173: 0 | AT173: =CONCATENATE("04mm ",AZ173,"+",BA173," ") -> 04mm 0+0 | AU173: =CONCATENATE(J$162,"mm ",BB173,"+",BC173," ") -> 1mm 0+0 | AV173: 2mm 0+0 | AW173: =CONCATENATE(BI173,BJ173,BK173,BL173,BM173,BN173," ",R173," ",Árajánlat!$B$1469," ",$B$3,"_",Árajánlat!$B$1470) -> Név_30031 | AZ173: 0 | BA173: 0 | BB173: 0 | BC173: 0 | BD173: 0 | BE173: 0 | BF173: 0 | BG173: 0 | BH173: 0 | BL173: =IF($F$171=$B$165,"",CONCATENATE(" 04mm=",$F$169)) ->  | BM173: =IF($J$171=$B$165,"",CONCATENATE($J$162," mm=",$J$169)) ->  | BN173: =IF($N$171=$B$165,"",CONCATENATE(" 2mm=",$N$169)) -> 
